Workbook

Sheet Cover
A1: RIIO Financial Model
B2: Electricity Distribution
C3: =MID(CELL("filename"),SEARCH("[",CELL("filename"))+1,SEARCH("]",CELL("filename"))-SEARCH("[",CELL("filename"))-1) -> Annex to Order of the CMA - CMA substitute ED1 Price Control Financial Model.xlsm
C4: RIIO ED1 Price Control Financial Model for the Annual Iteration Process that will take place by 30 November 2015-16
C6: DISCLAIMER: The purpose of this model is used to calculate Base Revenue (PU)and MOD terms in subsequent years for Licensees on the basis of Financial Handbook and Licence conditions of the relevant Network Operator
B8: Model key
E10: Sample | G10: Information and interface
E11: Sample | G11: Fixed input value
E12: Sample | G12: Annual update input
E13: Sample | G13: Input linked from annual update
E14: Sample | G14: Notes and instructions
B16: Contents
E18: INTERFACE >
E19: Cover | G19: Model key and content directory
E20: UserInterface | G20: Model operation
E21: TaxTrigger | G21: Tax trigger calculations
E22: MOD | G22: MOD Summary
E23: INPUT SELECTION >
E24: Input | G24: Inputs for selected licensee
E25: CALCULATION >
E26: Totex | G26: Totex allowance and actuals
E27: TIM | G27: Totex Incentive Mechanism and capitalisation
E28: DARTs | G28: Direct Allowance Revenue Terms
E29: Depn | G29: Gas distribution regulatory depreciation
E30: Return&RAV | G30: RAV and return calculations
E31: TaxPools | G31: Tax pools and capital allowances
E32: Finance&Tax | G32: Net debt, equity issuance, financing costs and tax
E33: Revenue | G33: Revenue and MOD
E35: OUTPUT >
E36: LiveResults | G36: Results for selected company
E37: SavedResults | G37: Saved results for all companies
E39: COMPANY SPECIFIC INPUT SHEETS >
E40: ENWL
E41: NPgN
E42: NPgY
E43: WMID
E44: EMID
E45: SWALES
E46: SWEST
E47: LPN
E48: SPN
E49: EPN
E50: SPD
E51: SPMW
E52: SSEH
E53: SSES
B55: End of sheet

Sheet UserInterface
A1: User Interface
B3: Model operation
C5: PCFM year t
C6: Instruction: Use the following drop-down list to identify year t in the model. Year t is identified here by its end date.
E8: Year t selection:
E10: Year t selected: | G10: =EOMONTH(42094,E69*12) -> 2016-03-31
C12: Active company
C13: Instruction: Use the following drop-down list to select the active company in the model.
E15: Company selection:
E17: Selected company: | G17: =INDEX(E43:E56, E57) -> SSES
E18: Company status: | G18: =IF(AND(m_identity>=4,m_identity<=7),"Fast-Tracked","Slow-Tracked") -> Slow-Tracked
C20: Model state
C21: Below shows the state of the model selected in the Tax Trigger sheet
E23: Selected model status: | G23: =INDEX(TaxTrigger!E30:E31,m_tax_trigger_state,1) -> Licence Model
C25: Run model for all licensees
C26: Instruction: Click on the left button to save results for the selected company only. Click the right button to save results for all.
C27: Note: Annual iterations must have been completed for all prior years before running the model to generate MOD.
C28: The macros save results and values required for future years which cannot be recreated once inputs are revised.
C29: Running the macro saves the output from year t's iteration for use in future iterations.
C30: Results for the selected company can be found on the "LiveResults" sheet and also on the "SavedResults" sheet once saved by a macro.
B36: User selection lists
B37: Note: The lists below drive the drop-down lists above.
B38: Using the drop-down lists above returns an integer in the "cell link" positioned below their "source list."
B39: The number returned in the cell link corresponds to the position of the selected item in the source list.
B40: The company selection output is set as a "named range." This gives a stable anchor point for the "RunForAll" macro to change the company.
E42: ="Source for ''"&C12&"'' drop-down list" -> Source for ''Active company'' drop-down list | G42: Company Status List
E43: ENWL | G43: Fast-Tracked
E44: NPgN | G44: Slow-Tracked
E45: NPgY | G45: =MATCH($G$18,$G$43:$G$44)-1 -> 1
E46: WMID | G46: Adjacent named range: m_tracked
E47: EMID
E48: SWALES
E49: SWEST
E50: LPN
E51: SPN
E52: EPN
E53: SPD
E54: SPMW
E55: SSEH
E56: SSES
E57: 14
E58: Adjacent named range: m_identity
E60: ="Source for ''"&C5&"'' drop-down list" -> Source for ''PCFM year t'' drop-down list
E61: 2016-03-31
E62: 2017-03-31
E63: 2018-03-31
E64: 2019-03-31
E65: 2020-03-31
E66: 2021-03-31
E67: 2022-03-31
E68: 2023-03-31
E69: 1
E70: Adjacent named range: m_PCFM_year_t
B72: End of sheet

Sheet TaxTrigger
A1: Tax Trigger
B2: =UserInterface!G17 -> SSES
E7: Parameter | G7: Units | I7: Constant | AJ7: Annual values
E8: PCFM year ending | I8: =UserInterface!$G$10 -> 2016-03-31 | K8: 1991-03-31 | L8: 1992-03-31 | M8: 1993-03-31 | N8: 1994-03-31 | O8: 1995-03-31 | P8: 1996-03-31 | Q8: 1997-03-31 | R8: 1998-03-31 | S8: 1999-03-31 | T8: 2000-03-31 | U8: 2001-03-31 | V8: 2002-03-31 | W8: 2003-03-31 | X8: 2004-03-31 | Y8: 2005-03-31 | Z8: 2006-03-31 | AA8: 2007-03-31 | AB8: 2008-03-31 | AC8: 2009-03-31 | AD8: 2010-03-31 | AE8: 2011-03-31 | AF8: 2012-03-31 | AG8: 2013-03-31 | AH8: 2014-03-31 | AI8: 2015-03-31 | AJ8: 2016-03-31 | AK8: 2017-03-31 | AL8: 2018-03-31 | AM8: 2019-03-31 | AN8: 2020-03-31 | AO8: 2021-03-31 | AP8: 2022-03-31 | AQ8: 2023-03-31
B10: Tax trigger calculation
C12: Test operation
C13: Instruction: To run the model as the Tax Trigger Tool, The model state selected below should be Tax Trigger Calculation
C14: Clicking the macro button below runs the "TaxTrigger" macro, performing the Tax Trigger adjustment calculation for the selected licensee for year t.
C15: The output generated by the macro can be replicated manually using the following steps:
C16: 1. Clear any values from previous tests in the "Test state output" section below (named range "m_saved_original_results")
C17: 2. Set testing state to "Licence Model"
C18: 3. Copy the cells marked as the "m_calculated_tax" named range and paste them at the named range "m_saved_original_test."
C19: 4. Set testing state to "Tax Trigger Calculation"
C20: Note: The Tax Trigger Tool is disabled if the "Model state" below reads "Licence Model."
E26: State selection
E29: State options
E30: Licence Model
E31: Tax Trigger Calculation
E32: 1
E33: Adjacent named range: m_tax_trigger_state
E38: Run macro
C44: Tax calculation
E46: Tax Allowance when tax losses are not taken into account
E48: Profits attributable to corporation tax | G48: £m 12/13 prices | AJ48: ='Finance&Tax'!AJ169 * Input!$AG$59 / Input!AJ$59 -> 109.2364946 | AK48: ='Finance&Tax'!AK169 * Input!$AG$59 / Input!AK$59 -> 108.7399259 | AL48: ='Finance&Tax'!AL169 * Input!$AG$59 / Input!AL$59 -> 104.2066047 | AM48: ='Finance&Tax'!AM169 * Input!$AG$59 / Input!AM$59 -> 101.5300431 | AN48: ='Finance&Tax'!AN169 * Input!$AG$59 / Input!AN$59 -> 101.1844894 | AO48: ='Finance&Tax'!AO169 * Input!$AG$59 / Input!AO$59 -> 103.1407439 | AP48: ='Finance&Tax'!AP169 * Input!$AG$59 / Input!AP$59 -> 103.1589094 | AQ48: ='Finance&Tax'!AQ169 * Input!$AG$59 / Input!AQ$59 -> 104.0354529
E49: Corporation tax rate | AJ49: ='Finance&Tax'!AJ186 -> 0.2 | AK49: ='Finance&Tax'!AK186 -> 0.2 | AL49: ='Finance&Tax'!AL186 -> 0.2 | AM49: ='Finance&Tax'!AM186 -> 0.2 | AN49: ='Finance&Tax'!AN186 -> 0.2 | AO49: ='Finance&Tax'!AO186 -> 0.2 | AP49: ='Finance&Tax'!AP186 -> 0.2 | AQ49: ='Finance&Tax'!AQ186 -> 0.2
E50: Grossing-up factor for tax on tax charge | AJ50: ='Finance&Tax'!AJ189 -> 1.25 | AK50: ='Finance&Tax'!AK189 -> 1.25 | AL50: ='Finance&Tax'!AL189 -> 1.25 | AM50: ='Finance&Tax'!AM189 -> 1.25 | AN50: ='Finance&Tax'!AN189 -> 1.25 | AO50: ='Finance&Tax'!AO189 -> 1.25 | AP50: ='Finance&Tax'!AP189 -> 1.25 | AQ50: ='Finance&Tax'!AQ189 -> 1.25
E51: Corporation tax charge beforre losses | AJ51: =AJ49*AJ48*AJ50 -> 27.30912366 | AK51: =AK49*AK48*AK50 -> 27.18498149 | AL51: 26.05165116 | AM51: 25.38251078 | AN51: 25.29612236 | AO51: 25.78518598 | AP51: 25.78972736 | AQ51: 26.00886322
E53: Tax allowance without taking into account losses | AJ53: =AJ51 -> 27.30912366 | AK53: =AK51 -> 27.18498149 | AL53: 26.05165116 | AM53: 25.38251078 | AN53: 25.29612236 | AO53: 25.78518598 | AP53: 25.78972736 | AQ53: 26.00886322
I55: Instruction
E56: Tax allowance before tax trigger | G56: £m 12/13 prices | AJ56: =AJ53 -> 27.30912366 | AK56: =AK53 -> 27.18498149 | AL56: 26.05165116 | AM56: 25.38251078 | AN56: 25.29612236 | AO56: 25.78518598 | AP56: 25.78972736 | AQ56: 26.00886322
E57: B event value | G57: £m 12/13 prices | AJ57: =AJ135 -> 0 | AK57: =AK135 -> 0 | AL57: 0 | AM57: 0 | AN57: 0 | AO57: 0 | AP57: 0 | AQ57: 0
E58: Threshold value adjustment | G58: £m 12/13 prices | AJ58: =AJ86 -> 0 | AK58: =AK86 -> 0 | AL58: 0 | AM58: 0 | AN58: 0 | AO58: 0 | AP58: 0 | AQ58: 0
E59: Tax allowance | G59: £m 12/13 prices | I59: =IF(m_tax_trigger_state = 1, "Copy cells -->", "-") -> Copy cells --> | AJ59: =SUM(AJ56:AJ58) -> 27.30912366 | AK59: 27.18498149 | AL59: 26.05165116 | AM59: 25.38251078 | AN59: 25.29612236 | AO59: 25.78518598 | AP59: 25.78972736 | AQ59: 26.00886322
AJ60: Adjacent named range: m_calculated_tax
C61: Test state output
C62: Note: The formula determines whether the recalculated tax is above or below the threshold and sets the adjustment accordingly
I64: Instruction
E65: Value with original settings | G65: £m 12/13 prices | I65: =IF( m_tax_trigger_state = 1, "Paste cells -->","-") -> Paste cells --> | AI65: m_tax_trigger_results
AJ66: Named ranges above: m_saved_original_test
E67: Value with new settings and threshold adjustment | G67: £m 12/13 prices | AJ67: =AJ59 -> 27.30912366 | AK67: =AK59 -> 27.18498149 | AL67: 26.05165116 | AM67: 25.38251078 | AN67: 25.29612236 | AO67: 25.78518598 | AP67: 25.78972736 | AQ67: 26.00886322
C69: Result and output
C70: Note: Once the test is complete, the "Tax Trigger adjustment" below can be taken from below and inputted to the PCFM set to run as the Licence Model, rather than the Tax Trigger Tool.
E72: Tax trigger adjustment | G72: £m 12/13 prices | AJ72: =IF(m_tax_trigger_state=2,IF(ABS((AJ56+AJ57)-AJ65)> ABS(AJ86), AJ67 - AJ65, 0),0) -> 0 | AK72: 0 | AL72: 0 | AM72: 0 | AN72: 0 | AO72: 0 | AP72: 0 | AQ72: 0
B74: Tax trigger parameters
B75: Instruction: Enter values in the yellow cells below for use in the Tax Trigger test.
B76: Note: Flags are used throughout to indicate whether the original or Tax Trigger value is being used. The live values below are exported for use throughout the model.
C78: Active policy
E80: Tax trigger tax settings are used | G80: flag | AJ80: =IF(AND(AJ$8 <= $I8, m_tax_trigger_state = 2), TRUE, FALSE) -> FALSE | AK80: FALSE | AL80: FALSE | AM80: FALSE | AN80: FALSE | AO80: FALSE | AP80: FALSE | AQ80: FALSE
C82: Threshold
E84: Threshold value | G84: £m 12/13 prices | AJ84: =CHOOSE(m_identity,AJ139,AJ140,AJ141,AJ142,AJ143,AJ144,AJ145,AJ146,AJ147,AJ148,AJ149,AJ150,AJ151,AJ152) -> 1.563374397 | AK84: 1.568670789 | AL84: 1.568613605 | AM84: 1.568584578 | AN84: 1.568563101 | AO84: 1.568571338 | AP84: 1.56856771 | AQ84: 1.568595295
E86: Threshold value applied | G86: £m 12/13 prices | AJ86: =IF(OR((AJ56+AJ57) = AJ65, AJ65 = ""), 0, IF(AJ65 < (AJ56+AJ57), -AJ84, +AJ84)) -> 0 | AK86: =IF(OR((AK56+AK57) = AK65, AK65 = ""), 0, IF(AK65 < (AK56+AK57), -AK84, +AK84)) -> 0 | AL86: 0 | AM86: 0 | AN86: 0 | AO86: 0 | AP86: 0 | AQ86: 0
C88: Corporation tax rate
E90: Active | G90: text | AJ90: =AJ$80 = FALSE() -> TRUE | AK90: TRUE | AL90: TRUE | AM90: TRUE | AN90: TRUE | AO90: TRUE | AP90: TRUE | AQ90: TRUE
E91: RIIO | G91: % | J91: > | AJ91: =Input!AJ377 -> 0.2 | AK91: =Input!AK377 -> 0.2 | AL91: =Input!AL377 -> 0.2 | AM91: =Input!AM377 -> 0.2 | AN91: =Input!AN377 -> 0.2 | AO91: =Input!AO377 -> 0.2 | AP91: =Input!AP377 -> 0.2 | AQ91: =Input!AQ377 -> 0.2
E93: Active | G93: text | AJ93: =AJ$80 -> FALSE | AK93: FALSE | AL93: FALSE | AM93: FALSE | AN93: FALSE | AO93: FALSE | AP93: FALSE | AQ93: FALSE
E94: Tax trigger | G94: % | AJ94: =AJ91 -> 0.2 | AK94: 0.2 | AL94: 0.2 | AM94: 0.2 | AN94: 0.2 | AO94: 0.2 | AP94: 0.2 | AQ94: 0.2
E96: Applied | G96: % | J96: > | AJ96: =(AJ90 * AJ91) + (AJ93 * AJ94) -> 0.2 | AK96: =(AK90 * AK91) + (AK93 * AK94) -> 0.2 | AL96: 0.2 | AM96: 0.2 | AN96: 0.2 | AO96: 0.2 | AP96: 0.2 | AQ96: 0.2
C98: Capital allowance rate
D100: General pool
E102: Active | G102: text | AJ102: =AJ$80 = FALSE() -> TRUE | AK102: TRUE | AL102: TRUE | AM102: TRUE | AN102: TRUE | AO102: TRUE | AP102: TRUE | AQ102: TRUE
E103: RIIO | G103: % | AJ103: =Input!AJ379 -> 0.18 | AK103: =Input!AK379 -> 0.18 | AL103: =Input!AL379 -> 0.18 | AM103: =Input!AM379 -> 0.18 | AN103: =Input!AN379 -> 0.18 | AO103: =Input!AO379 -> 0.18 | AP103: =Input!AP379 -> 0.18 | AQ103: =Input!AQ379 -> 0.18
E105: Active | G105: text | AJ105: =AJ$80 -> FALSE | AK105: FALSE | AL105: FALSE | AM105: FALSE | AN105: FALSE | AO105: FALSE | AP105: FALSE | AQ105: FALSE
E106: Tax trigger | G106: % | AJ106: =AJ103 -> 0.18 | AK106: =AK103 -> 0.18 | AL106: 0.18 | AM106: 0.18 | AN106: 0.18 | AO106: 0.18 | AP106: 0.18 | AQ106: 0.18
E108: Applied | G108: % | AJ108: =(AJ102 * AJ103) + (AJ105 * AJ106) -> 0.18 | AK108: 0.18 | AL108: 0.18 | AM108: 0.18 | AN108: 0.18 | AO108: 0.18 | AP108: 0.18 | AQ108: 0.18
D110: Special Rate pool
E112: Active | G112: text | AJ112: =AJ$80 = FALSE() -> TRUE | AK112: TRUE | AL112: TRUE | AM112: TRUE | AN112: TRUE | AO112: TRUE | AP112: TRUE | AQ112: TRUE
E113: RIIO | G113: % | J113: > | AJ113: =Input!AJ380 -> 0.08 | AK113: =Input!AK380 -> 0.08 | AL113: =Input!AL380 -> 0.08 | AM113: =Input!AM380 -> 0.08 | AN113: =Input!AN380 -> 0.08 | AO113: =Input!AO380 -> 0.08 | AP113: =Input!AP380 -> 0.08 | AQ113: =Input!AQ380 -> 0.08
E115: Active | G115: text | AJ115: =AJ$80 -> FALSE | AK115: FALSE | AL115: FALSE | AM115: FALSE | AN115: FALSE | AO115: FALSE | AP115: FALSE | AQ115: FALSE
E116: Tax trigger | G116: % | AJ116: =AJ113 -> 0.08 | AK116: =AK113 -> 0.08 | AL116: 0.08 | AM116: 0.08 | AN116: 0.08 | AO116: 0.08 | AP116: 0.08 | AQ116: 0.08
E118: Applied | G118: % | J118: > | AJ118: =(AJ112 * AJ113) + (AJ115 * AJ116) -> 0.08 | AK118: 0.08 | AL118: 0.08 | AM118: 0.08 | AN118: 0.08 | AO118: 0.08 | AP118: 0.08 | AQ118: 0.08
D120: Deferred revenue writing down allowance rate
E122: Active | G122: text | AJ122: =AJ$80 = FALSE() -> TRUE | AK122: TRUE | AL122: TRUE | AM122: TRUE | AN122: TRUE | AO122: TRUE | AP122: TRUE | AQ122: TRUE
E123: RIIO | G123: % | J123: > | AJ123: =Input!AJ381 -> 0.0222 | AK123: =Input!AK381 -> 0.0222 | AL123: =Input!AL381 -> 0.0222 | AM123: =Input!AM381 -> 0.0222 | AN123: =Input!AN381 -> 0.0222 | AO123: =Input!AO381 -> 0.0222 | AP123: =Input!AP381 -> 0.0222 | AQ123: =Input!AQ381 -> 0.0222
E125: Active | G125: text | AJ125: =AJ$80 -> FALSE | AK125: FALSE | AL125: FALSE | AM125: FALSE | AN125: FALSE | AO125: FALSE | AP125: FALSE | AQ125: FALSE
E126: Tax trigger | G126: % | AJ126: =AJ123 -> 0.0222 | AK126: =AK123 -> 0.0222 | AL126: 0.0222 | AM126: 0.0222 | AN126: 0.0222 | AO126: 0.0222 | AP126: 0.0222 | AQ126: 0.0222
E128: Applied | G128: % | J128: > | AJ128: =(AJ122 * AJ123) + (AJ125 * AJ126) -> 0.0222 | AK128: 0.0222 | AL128: 0.0222 | AM128: 0.0222 | AN128: 0.0222 | AO128: 0.0222 | AP128: 0.0222 | AQ128: 0.0222
C130: B event value
E132: Active | G132: text | AJ132: =AJ$80 -> FALSE | AK132: FALSE | AL132: FALSE | AM132: FALSE | AN132: FALSE | AO132: FALSE | AP132: FALSE | AQ132: FALSE
E133: Tax trigger | G133: £m 12/13 prices | AJ133: 0 | AK133: 0 | AL133: 0 | AM133: 0 | AN133: 0 | AO133: 0 | AP133: 0 | AQ133: 0
E135: Applied | G135: £m 12/13 prices | AJ135: =AJ132 * AJ133 -> 0 | AK135: =AK132 * AK133 -> 0 | AL135: 0 | AM135: 0 | AN135: 0 | AO135: 0 | AP135: 0 | AQ135: 0
C137: Tax Trigger Deadbands
E139: ENWL | AJ139: =ENWL!AJ$468 -> 1.2309 | AK139: =ENWL!AK$468 -> 1.259303692 | AL139: =ENWL!AL$468 -> 1.196325013 | AM139: =ENWL!AM$468 -> 1.184358795 | AN139: =ENWL!AN$468 -> 1.172518072 | AO139: =ENWL!AO$468 -> 1.160799573 | AP139: =ENWL!AP$468 -> 1.160793907 | AQ139: =ENWL!AQ$468 -> 1.160803902
E140: NPgN | AJ140: =NPgN!AJ$468 -> 0.8220105433 | AK140: =NPgN!AK$468 -> 0.8144692204 | AL140: =NPgN!AL$468 -> 0.8144550022 | AM140: =NPgN!AM$468 -> 0.8144437065 | AN140: =NPgN!AN$468 -> 0.8144355393 | AO140: =NPgN!AO$468 -> 0.8144224873 | AP140: =NPgN!AP$468 -> 0.8144334121 | AQ140: =NPgN!AQ$468 -> 0.8144432061
E141: NPgY | AJ141: =NPgY!AJ$468 -> 1.068020561 | AK141: =NPgY!AK$468 -> 1.064834043 | AL141: =NPgY!AL$468 -> 1.064853929 | AM141: =NPgY!AM$468 -> 1.064898827 | AN141: =NPgY!AN$468 -> 1.06494749 | AO141: =NPgY!AO$468 -> 1.064958033 | AP141: =NPgY!AP$468 -> 1.064990647 | AQ141: =NPgY!AQ$468 -> 1.064938208
E142: WMID | AJ142: =WMID!AJ$468 -> 0 | AK142: =WMID!AK$468 -> 0 | AL142: =WMID!AL$468 -> 0 | AM142: =WMID!AM$468 -> 0 | AN142: =WMID!AN$468 -> 0 | AO142: =WMID!AO$468 -> 0 | AP142: =WMID!AP$468 -> 0 | AQ142: =WMID!AQ$468 -> 0
E143: EMID | AJ143: =EMID!AJ$468 -> 0 | AK143: =EMID!AK$468 -> 0 | AL143: =EMID!AL$468 -> 0 | AM143: =EMID!AM$468 -> 0 | AN143: =EMID!AN$468 -> 0 | AO143: =EMID!AO$468 -> 0 | AP143: =EMID!AP$468 -> 0 | AQ143: =EMID!AQ$468 -> 0
E144: SWALES | AJ144: =SWALES!AJ$468 -> 0 | AK144: =SWALES!AK$468 -> 0 | AL144: =SWALES!AL$468 -> 0 | AM144: =SWALES!AM$468 -> 0 | AN144: =SWALES!AN$468 -> 0 | AO144: =SWALES!AO$468 -> 0 | AP144: =SWALES!AP$468 -> 0 | AQ144: =SWALES!AQ$468 -> 0
E145: SWEST | AJ145: =SWEST!AJ$468 -> 0 | AK145: =SWEST!AK$468 -> 0 | AL145: =SWEST!AL$468 -> 0 | AM145: =SWEST!AM$468 -> 0 | AN145: =SWEST!AN$468 -> 0 | AO145: =SWEST!AO$468 -> 0 | AP145: =SWEST!AP$468 -> 0 | AQ145: =SWEST!AQ$468 -> 0
E146: LPN | AJ146: =LPN!AJ$468 -> 1.210633093 | AK146: =LPN!AK$468 -> 1.283229295 | AL146: =LPN!AL$468 -> 1.26905732 | AM146: =LPN!AM$468 -> 1.291946225 | AN146: =LPN!AN$468 -> 1.315666388 | AO146: =LPN!AO$468 -> 1.339806749 | AP146: =LPN!AP$468 -> 1.364301232 | AQ146: =LPN!AQ$468 -> 1.389498454
E147: SPN | AJ147: =SPN!AJ$468 -> 1.062765128 | AK147: =SPN!AK$468 -> 1.078400142 | AL147: =SPN!AL$468 -> 1.10085602 | AM147: =SPN!AM$468 -> 1.127755146 | AN147: =SPN!AN$468 -> 1.155576805 | AO147: =SPN!AO$468 -> 1.183903852 | AP147: =SPN!AP$468 -> 1.212927158 | AQ147: =SPN!AQ$468 -> 1.243041251
E148: EPN | AJ148: =EPN!AJ$468 -> 1.6387598 | AK148: =EPN!AK$468 -> 1.682857 | AL148: =EPN!AL$468 -> 1.671177616 | AM148: =EPN!AM$468 -> 1.682806911 | AN148: =EPN!AN$468 -> 1.709445204 | AO148: =EPN!AO$468 -> 1.736645544 | AP148: =EPN!AP$468 -> 1.764411792 | AQ148: =EPN!AQ$468 -> 1.792025942
E149: SPD | AJ149: =SPD!AJ$468 -> 1.116475795 | AK149: =SPD!AK$468 -> 1.146065365 | AL149: =SPD!AL$468 -> 1.146061682 | AM149: =SPD!AM$468 -> 1.146033105 | AN149: =SPD!AN$468 -> 1.146007129 | AO149: =SPD!AO$468 -> 1.145993109 | AP149: =SPD!AP$468 -> 1.14597438 | AQ149: =SPD!AQ$468 -> 1.145966583
E150: SPMW | AJ150: =SPMW!AJ$468 -> 1.005326046 | AK150: =SPMW!AK$468 -> 1.0305141 | AL150: =SPMW!AL$468 -> 1.030527255 | AM150: =SPMW!AM$468 -> 1.03053888 | AN150: =SPMW!AN$468 -> 1.030547039 | AO150: =SPMW!AO$468 -> 1.030547558 | AP150: =SPMW!AP$468 -> 1.030573405 | AQ150: =SPMW!AQ$468 -> 1.030556167
E151: SSEH | AJ151: =SSEH!AJ$468 -> 0.8131584534 | AK151: =SSEH!AK$468 -> 0.8497457239 | AL151: =SSEH!AL$468 -> 0.8497207123 | AM151: =SSEH!AM$468 -> 0.8497027971 | AN151: =SSEH!AN$468 -> 0.8496680701 | AO151: =SSEH!AO$468 -> 0.8496860898 | AP151: =SSEH!AP$468 -> 0.8496986364 | AQ151: =SSEH!AQ$468 -> 0.8497061361
E152: SSES | AJ152: =SSES!AJ$468 -> 1.563374397 | AK152: =SSES!AK$468 -> 1.568670789 | AL152: =SSES!AL$468 -> 1.568613605 | AM152: =SSES!AM$468 -> 1.568584578 | AN152: =SSES!AN$468 -> 1.568563101 | AO152: =SSES!AO$468 -> 1.568571338 | AP152: =SSES!AP$468 -> 1.56856771 | AQ152: =SSES!AQ$468 -> 1.568595295
B154: End of sheet

Sheet MOD
A1: MOD
B2: =UserInterface!G17 -> SSES
E6: Parameter | G6: Units | I6: Constant | AJ6: Annual values
E7: PCFM year ending | I7: =UserInterface!$G$10 -> 2016-03-31 | K7: 1991-03-31 | L7: 1992-03-31 | M7: 1993-03-31 | N7: 1994-03-31 | O7: 1995-03-31 | P7: 1996-03-31 | Q7: 1997-03-31 | R7: 1998-03-31 | S7: 1999-03-31 | T7: 2000-03-31 | U7: 2001-03-31 | V7: 2002-03-31 | W7: 2003-03-31 | X7: 2004-03-31 | Y7: 2005-03-31 | Z7: 2006-03-31 | AA7: 2007-03-31 | AB7: 2008-03-31 | AC7: 2009-03-31 | AD7: 2010-03-31 | AE7: 2011-03-31 | AF7: 2012-03-31 | AG7: 2013-03-31 | AH7: 2014-03-31 | AI7: 2015-03-31 | AJ7: 2016-03-31 | AK7: 2017-03-31 | AL7: 2018-03-31 | AM7: 2019-03-31 | AN7: 2020-03-31 | AO7: 2021-03-31 | AP7: 2022-03-31 | AQ7: 2023-03-31
E9: =UserInterface!E10 -> Year t selected: | G9: =UserInterface!G10 -> 2016-03-31
E11: =Revenue!E67 -> Final Proposals base revenue | AJ11: =Revenue!AJ67 -> 473.7491007 | AK11: =Revenue!AK67 -> 473.7285721 | AL11: =Revenue!AL67 -> 473.7110698 | AM11: =Revenue!AM67 -> 473.7021606 | AN11: =Revenue!AN67 -> 473.6956159 | AO11: =Revenue!AO67 -> 473.6980857 | AP11: =Revenue!AP67 -> 473.6969336 | AQ11: =Revenue!AQ67 -> 473.7053956
E12: =Revenue!E68 -> MOD | AK12: =Revenue!AK68 -> 0 | AL12: =Revenue!AL68 -> 0 | AM12: =Revenue!AM68 -> 0 | AN12: =Revenue!AN68 -> 0 | AO12: =Revenue!AO68 -> 0 | AP12: =Revenue!AP68 -> 0 | AQ12: =Revenue!AQ68 -> 0
E13: =Revenue!E69 -> Base revenue | AJ13: =Revenue!AJ69 -> 473.7491007 | AK13: =Revenue!AK69 -> 473.7285721 | AL13: =Revenue!AL69 -> 473.7110698 | AM13: =Revenue!AM69 -> 473.7021606 | AN13: =Revenue!AN69 -> 473.6956159 | AO13: =Revenue!AO69 -> 473.6980857 | AP13: =Revenue!AP69 -> 473.6969336 | AQ13: =Revenue!AQ69 -> 473.7053956
B15: End of sheet

Sheet Input
A1: Input
B2: =UserInterface!G17 -> SSES
E6: Parameter | F6: Licence condition | G6: Units | H6: Term | I6: Constant | AJ6: Annual values
E7: PCFM year ending | F7: =Cover!C3 -> Annex to Order of the CMA - CMA substitute ED1 Price Control Financial Model.xlsm | I7: =UserInterface!$G$10 -> 2016-03-31 | K7: 1991-03-31 | L7: 1992-03-31 | M7: 1993-03-31 | N7: 1994-03-31 | O7: 1995-03-31 | P7: 1996-03-31 | Q7: 1997-03-31 | R7: 1998-03-31 | S7: 1999-03-31 | T7: 2000-03-31 | U7: 2001-03-31 | V7: 2002-03-31 | W7: 2003-03-31 | X7: 2004-03-31 | Y7: 2005-03-31 | Z7: 2006-03-31 | AA7: 2007-03-31 | AB7: 2008-03-31 | AC7: 2009-03-31 | AD7: 2010-03-31 | AE7: 2011-03-31 | AF7: 2012-03-31 | AG7: 2013-03-31 | AH7: 2014-03-31 | AI7: 2015-03-31 | AJ7: 2016-03-31 | AK7: 2017-03-31 | AL7: 2018-03-31 | AM7: 2019-03-31 | AN7: 2020-03-31 | AO7: 2021-03-31 | AP7: 2022-03-31 | AQ7: 2023-03-31
B9: PCFM Variable Values Table
E11: Allowed percentage cost of corporate debt | F11: CRC 3C | G11: Annual Real % | H11: CDE | AJ11: =CHOOSE(m_identity,ENWL!AJ11, NPgN!AJ11, NPgY!AJ11, WMID!AJ11, EMID!AJ11, SWALES!AJ11, SWEST!AJ11, LPN!AJ11,SPN!AJ11,EPN!AJ11,SPD!AJ11,SPMW!AJ11,SSEH!AJ11,SSES!AJ11) -> 0.0255 | AK11: =CHOOSE(m_identity,ENWL!AK11, NPgN!AK11, NPgY!AK11, WMID!AK11, EMID!AK11, SWALES!AK11, SWEST!AK11, LPN!AK11,SPN!AK11,EPN!AK11,SPD!AK11,SPMW!AK11,SSEH!AK11,SSES!AK11) -> 0.0255 | AL11: =CHOOSE(m_identity,ENWL!AL11, NPgN!AL11, NPgY!AL11, WMID!AL11, EMID!AL11, SWALES!AL11, SWEST!AL11, LPN!AL11,SPN!AL11,EPN!AL11,SPD!AL11,SPMW!AL11,SSEH!AL11,SSES!AL11) -> 0.0255 | AM11: =CHOOSE(m_identity,ENWL!AM11, NPgN!AM11, NPgY!AM11, WMID!AM11, EMID!AM11, SWALES!AM11, SWEST!AM11, LPN!AM11,SPN!AM11,EPN!AM11,SPD!AM11,SPMW!AM11,SSEH!AM11,SSES!AM11) -> 0.0255 | AN11: =CHOOSE(m_identity,ENWL!AN11, NPgN!AN11, NPgY!AN11, WMID!AN11, EMID!AN11, SWALES!AN11, SWEST!AN11, LPN!AN11,SPN!AN11,EPN!AN11,SPD!AN11,SPMW!AN11,SSEH!AN11,SSES!AN11) -> 0.0255 | AO11: =CHOOSE(m_identity,ENWL!AO11, NPgN!AO11, NPgY!AO11, WMID!AO11, EMID!AO11, SWALES!AO11, SWEST!AO11, LPN!AO11,SPN!AO11,EPN!AO11,SPD!AO11,SPMW!AO11,SSEH!AO11,SSES!AO11) -> 0.0255 | AP11: =CHOOSE(m_identity,ENWL!AP11, NPgN!AP11, NPgY!AP11, WMID!AP11, EMID!AP11, SWALES!AP11, SWEST!AP11, LPN!AP11,SPN!AP11,EPN!AP11,SPD!AP11,SPMW!AP11,SSEH!AP11,SSES!AP11) -> 0.0255 | AQ11: =CHOOSE(m_identity,ENWL!AQ11, NPgN!AQ11, NPgY!AQ11, WMID!AQ11, EMID!AQ11, SWALES!AQ11, SWEST!AQ11, LPN!AQ11,SPN!AQ11,EPN!AQ11,SPD!AQ11,SPMW!AQ11,SSEH!AQ11,SSES!AQ11) -> 0.0255
E12: Actual load-related capex expenditure | F12: CRC 3B | G12: £m 12/13 prices | H12: ALC | AJ12: =CHOOSE(m_identity,ENWL!AJ12, NPgN!AJ12, NPgY!AJ12, WMID!AJ12, EMID!AJ12, SWALES!AJ12, SWEST!AJ12, LPN!AJ12,SPN!AJ12,EPN!AJ12,SPD!AJ12,SPMW!AJ12,SSEH!AJ12,SSES!AJ12) -> 0 | AK12: =CHOOSE(m_identity,ENWL!AK12, NPgN!AK12, NPgY!AK12, WMID!AK12, EMID!AK12, SWALES!AK12, SWEST!AK12, LPN!AK12,SPN!AK12,EPN!AK12,SPD!AK12,SPMW!AK12,SSEH!AK12,SSES!AK12) -> 0 | AL12: =CHOOSE(m_identity,ENWL!AL12, NPgN!AL12, NPgY!AL12, WMID!AL12, EMID!AL12, SWALES!AL12, SWEST!AL12, LPN!AL12,SPN!AL12,EPN!AL12,SPD!AL12,SPMW!AL12,SSEH!AL12,SSES!AL12) -> 0 | AM12: =CHOOSE(m_identity,ENWL!AM12, NPgN!AM12, NPgY!AM12, WMID!AM12, EMID!AM12, SWALES!AM12, SWEST!AM12, LPN!AM12,SPN!AM12,EPN!AM12,SPD!AM12,SPMW!AM12,SSEH!AM12,SSES!AM12) -> 0 | AN12: =CHOOSE(m_identity,ENWL!AN12, NPgN!AN12, NPgY!AN12, WMID!AN12, EMID!AN12, SWALES!AN12, SWEST!AN12, LPN!AN12,SPN!AN12,EPN!AN12,SPD!AN12,SPMW!AN12,SSEH!AN12,SSES!AN12) -> 0 | AO12: =CHOOSE(m_identity,ENWL!AO12, NPgN!AO12, NPgY!AO12, WMID!AO12, EMID!AO12, SWALES!AO12, SWEST!AO12, LPN!AO12,SPN!AO12,EPN!AO12,SPD!AO12,SPMW!AO12,SSEH!AO12,SSES!AO12) -> 0 | AP12: =CHOOSE(m_identity,ENWL!AP12, NPgN!AP12, NPgY!AP12, WMID!AP12, EMID!AP12, SWALES!AP12, SWEST!AP12, LPN!AP12,SPN!AP12,EPN!AP12,SPD!AP12,SPMW!AP12,SSEH!AP12,SSES!AP12) -> 0 | AQ12: =CHOOSE(m_identity,ENWL!AQ12, NPgN!AQ12, NPgY!AQ12, WMID!AQ12, EMID!AQ12, SWALES!AQ12, SWEST!AQ12, LPN!AQ12,SPN!AQ12,EPN!AQ12,SPD!AQ12,SPMW!AQ12,SSEH!AQ12,SSES!AQ12) -> 0
E13: Actual non-load related capex expenditure - asset replacement | F13: CRC 3B | G13: £m 12/13 prices | H13: ANLR | AJ13: =CHOOSE(m_identity,ENWL!AJ13, NPgN!AJ13, NPgY!AJ13, WMID!AJ13, EMID!AJ13, SWALES!AJ13, SWEST!AJ13, LPN!AJ13,SPN!AJ13,EPN!AJ13,SPD!AJ13,SPMW!AJ13,SSEH!AJ13,SSES!AJ13) -> 0 | AK13: =CHOOSE(m_identity,ENWL!AK13, NPgN!AK13, NPgY!AK13, WMID!AK13, EMID!AK13, SWALES!AK13, SWEST!AK13, LPN!AK13,SPN!AK13,EPN!AK13,SPD!AK13,SPMW!AK13,SSEH!AK13,SSES!AK13) -> 0 | AL13: =CHOOSE(m_identity,ENWL!AL13, NPgN!AL13, NPgY!AL13, WMID!AL13, EMID!AL13, SWALES!AL13, SWEST!AL13, LPN!AL13,SPN!AL13,EPN!AL13,SPD!AL13,SPMW!AL13,SSEH!AL13,SSES!AL13) -> 0 | AM13: =CHOOSE(m_identity,ENWL!AM13, NPgN!AM13, NPgY!AM13, WMID!AM13, EMID!AM13, SWALES!AM13, SWEST!AM13, LPN!AM13,SPN!AM13,EPN!AM13,SPD!AM13,SPMW!AM13,SSEH!AM13,SSES!AM13) -> 0 | AN13: =CHOOSE(m_identity,ENWL!AN13, NPgN!AN13, NPgY!AN13, WMID!AN13, EMID!AN13, SWALES!AN13, SWEST!AN13, LPN!AN13,SPN!AN13,EPN!AN13,SPD!AN13,SPMW!AN13,SSEH!AN13,SSES!AN13) -> 0 | AO13: =CHOOSE(m_identity,ENWL!AO13, NPgN!AO13, NPgY!AO13, WMID!AO13, EMID!AO13, SWALES!AO13, SWEST!AO13, LPN!AO13,SPN!AO13,EPN!AO13,SPD!AO13,SPMW!AO13,SSEH!AO13,SSES!AO13) -> 0 | AP13: =CHOOSE(m_identity,ENWL!AP13, NPgN!AP13, NPgY!AP13, WMID!AP13, EMID!AP13, SWALES!AP13, SWEST!AP13, LPN!AP13,SPN!AP13,EPN!AP13,SPD!AP13,SPMW!AP13,SSEH!AP13,SSES!AP13) -> 0 | AQ13: =CHOOSE(m_identity,ENWL!AQ13, NPgN!AQ13, NPgY!AQ13, WMID!AQ13, EMID!AQ13, SWALES!AQ13, SWEST!AQ13, LPN!AQ13,SPN!AQ13,EPN!AQ13,SPD!AQ13,SPMW!AQ13,SSEH!AQ13,SSES!AQ13) -> 0
E14: Actual non-load related capex - other | F14: CRC 3B | G14: £m 12/13 prices | H14: ANLO | AJ14: =CHOOSE(m_identity,ENWL!AJ14, NPgN!AJ14, NPgY!AJ14, WMID!AJ14, EMID!AJ14, SWALES!AJ14, SWEST!AJ14, LPN!AJ14,SPN!AJ14,EPN!AJ14,SPD!AJ14,SPMW!AJ14,SSEH!AJ14,SSES!AJ14) -> 0 | AK14: =CHOOSE(m_identity,ENWL!AK14, NPgN!AK14, NPgY!AK14, WMID!AK14, EMID!AK14, SWALES!AK14, SWEST!AK14, LPN!AK14,SPN!AK14,EPN!AK14,SPD!AK14,SPMW!AK14,SSEH!AK14,SSES!AK14) -> 0 | AL14: =CHOOSE(m_identity,ENWL!AL14, NPgN!AL14, NPgY!AL14, WMID!AL14, EMID!AL14, SWALES!AL14, SWEST!AL14, LPN!AL14,SPN!AL14,EPN!AL14,SPD!AL14,SPMW!AL14,SSEH!AL14,SSES!AL14) -> 0 | AM14: =CHOOSE(m_identity,ENWL!AM14, NPgN!AM14, NPgY!AM14, WMID!AM14, EMID!AM14, SWALES!AM14, SWEST!AM14, LPN!AM14,SPN!AM14,EPN!AM14,SPD!AM14,SPMW!AM14,SSEH!AM14,SSES!AM14) -> 0 | AN14: =CHOOSE(m_identity,ENWL!AN14, NPgN!AN14, NPgY!AN14, WMID!AN14, EMID!AN14, SWALES!AN14, SWEST!AN14, LPN!AN14,SPN!AN14,EPN!AN14,SPD!AN14,SPMW!AN14,SSEH!AN14,SSES!AN14) -> 0 | AO14: =CHOOSE(m_identity,ENWL!AO14, NPgN!AO14, NPgY!AO14, WMID!AO14, EMID!AO14, SWALES!AO14, SWEST!AO14, LPN!AO14,SPN!AO14,EPN!AO14,SPD!AO14,SPMW!AO14,SSEH!AO14,SSES!AO14) -> 0 | AP14: =CHOOSE(m_identity,ENWL!AP14, NPgN!AP14, NPgY!AP14, WMID!AP14, EMID!AP14, SWALES!AP14, SWEST!AP14, LPN!AP14,SPN!AP14,EPN!AP14,SPD!AP14,SPMW!AP14,SSEH!AP14,SSES!AP14) -> 0 | AQ14: =CHOOSE(m_identity,ENWL!AQ14, NPgN!AQ14, NPgY!AQ14, WMID!AQ14, EMID!AQ14, SWALES!AQ14, SWEST!AQ14, LPN!AQ14,SPN!AQ14,EPN!AQ14,SPD!AQ14,SPMW!AQ14,SSEH!AQ14,SSES!AQ14) -> 0
E15: Actual faults expenditure | F15: CRC 3B | G15: £m 12/13 prices | H15: AFE | AJ15: =CHOOSE(m_identity,ENWL!AJ15, NPgN!AJ15, NPgY!AJ15, WMID!AJ15, EMID!AJ15, SWALES!AJ15, SWEST!AJ15, LPN!AJ15,SPN!AJ15,EPN!AJ15,SPD!AJ15,SPMW!AJ15,SSEH!AJ15,SSES!AJ15) -> 0 | AK15: =CHOOSE(m_identity,ENWL!AK15, NPgN!AK15, NPgY!AK15, WMID!AK15, EMID!AK15, SWALES!AK15, SWEST!AK15, LPN!AK15,SPN!AK15,EPN!AK15,SPD!AK15,SPMW!AK15,SSEH!AK15,SSES!AK15) -> 0 | AL15: =CHOOSE(m_identity,ENWL!AL15, NPgN!AL15, NPgY!AL15, WMID!AL15, EMID!AL15, SWALES!AL15, SWEST!AL15, LPN!AL15,SPN!AL15,EPN!AL15,SPD!AL15,SPMW!AL15,SSEH!AL15,SSES!AL15) -> 0 | AM15: =CHOOSE(m_identity,ENWL!AM15, NPgN!AM15, NPgY!AM15, WMID!AM15, EMID!AM15, SWALES!AM15, SWEST!AM15, LPN!AM15,SPN!AM15,EPN!AM15,SPD!AM15,SPMW!AM15,SSEH!AM15,SSES!AM15) -> 0 | AN15: =CHOOSE(m_identity,ENWL!AN15, NPgN!AN15, NPgY!AN15, WMID!AN15, EMID!AN15, SWALES!AN15, SWEST!AN15, LPN!AN15,SPN!AN15,EPN!AN15,SPD!AN15,SPMW!AN15,SSEH!AN15,SSES!AN15) -> 0 | AO15: =CHOOSE(m_identity,ENWL!AO15, NPgN!AO15, NPgY!AO15, WMID!AO15, EMID!AO15, SWALES!AO15, SWEST!AO15, LPN!AO15,SPN!AO15,EPN!AO15,SPD!AO15,SPMW!AO15,SSEH!AO15,SSES!AO15) -> 0 | AP15: =CHOOSE(m_identity,ENWL!AP15, NPgN!AP15, NPgY!AP15, WMID!AP15, EMID!AP15, SWALES!AP15, SWEST!AP15, LPN!AP15,SPN!AP15,EPN!AP15,SPD!AP15,SPMW!AP15,SSEH!AP15,SSES!AP15) -> 0 | AQ15: =CHOOSE(m_identity,ENWL!AQ15, NPgN!AQ15, NPgY!AQ15, WMID!AQ15, EMID!AQ15, SWALES!AQ15, SWEST!AQ15, LPN!AQ15,SPN!AQ15,EPN!AQ15,SPD!AQ15,SPMW!AQ15,SSEH!AQ15,SSES!AQ15) -> 0
E16: Actual tree cutting expenditure | F16: CRC 3B | G16: £m 12/13 prices | H16: TRE | AJ16: =CHOOSE(m_identity,ENWL!AJ16, NPgN!AJ16, NPgY!AJ16, WMID!AJ16, EMID!AJ16, SWALES!AJ16, SWEST!AJ16, LPN!AJ16,SPN!AJ16,EPN!AJ16,SPD!AJ16,SPMW!AJ16,SSEH!AJ16,SSES!AJ16) -> 0 | AK16: =CHOOSE(m_identity,ENWL!AK16, NPgN!AK16, NPgY!AK16, WMID!AK16, EMID!AK16, SWALES!AK16, SWEST!AK16, LPN!AK16,SPN!AK16,EPN!AK16,SPD!AK16,SPMW!AK16,SSEH!AK16,SSES!AK16) -> 0 | AL16: =CHOOSE(m_identity,ENWL!AL16, NPgN!AL16, NPgY!AL16, WMID!AL16, EMID!AL16, SWALES!AL16, SWEST!AL16, LPN!AL16,SPN!AL16,EPN!AL16,SPD!AL16,SPMW!AL16,SSEH!AL16,SSES!AL16) -> 0 | AM16: =CHOOSE(m_identity,ENWL!AM16, NPgN!AM16, NPgY!AM16, WMID!AM16, EMID!AM16, SWALES!AM16, SWEST!AM16, LPN!AM16,SPN!AM16,EPN!AM16,SPD!AM16,SPMW!AM16,SSEH!AM16,SSES!AM16) -> 0 | AN16: =CHOOSE(m_identity,ENWL!AN16, NPgN!AN16, NPgY!AN16, WMID!AN16, EMID!AN16, SWALES!AN16, SWEST!AN16, LPN!AN16,SPN!AN16,EPN!AN16,SPD!AN16,SPMW!AN16,SSEH!AN16,SSES!AN16) -> 0 | AO16: =CHOOSE(m_identity,ENWL!AO16, NPgN!AO16, NPgY!AO16, WMID!AO16, EMID!AO16, SWALES!AO16, SWEST!AO16, LPN!AO16,SPN!AO16,EPN!AO16,SPD!AO16,SPMW!AO16,SSEH!AO16,SSES!AO16) -> 0 | AP16: =CHOOSE(m_identity,ENWL!AP16, NPgN!AP16, NPgY!AP16, WMID!AP16, EMID!AP16, SWALES!AP16, SWEST!AP16, LPN!AP16,SPN!AP16,EPN!AP16,SPD!AP16,SPMW!AP16,SSEH!AP16,SSES!AP16) -> 0 | AQ16: =CHOOSE(m_identity,ENWL!AQ16, NPgN!AQ16, NPgY!AQ16, WMID!AQ16, EMID!AQ16, SWALES!AQ16, SWEST!AQ16, LPN!AQ16,SPN!AQ16,EPN!AQ16,SPD!AQ16,SPMW!AQ16,SSEH!AQ16,SSES!AQ16) -> 0
E17: Actual 100% ‘revenue pool’ expenditure | F17: CRC 3B | G17: £m 12/13 prices | H17: ARP | AJ17: =CHOOSE(m_identity,ENWL!AJ17, NPgN!AJ17, NPgY!AJ17, WMID!AJ17, EMID!AJ17, SWALES!AJ17, SWEST!AJ17, LPN!AJ17,SPN!AJ17,EPN!AJ17,SPD!AJ17,SPMW!AJ17,SSEH!AJ17,SSES!AJ17) -> 0 | AK17: =CHOOSE(m_identity,ENWL!AK17, NPgN!AK17, NPgY!AK17, WMID!AK17, EMID!AK17, SWALES!AK17, SWEST!AK17, LPN!AK17,SPN!AK17,EPN!AK17,SPD!AK17,SPMW!AK17,SSEH!AK17,SSES!AK17) -> 0 | AL17: =CHOOSE(m_identity,ENWL!AL17, NPgN!AL17, NPgY!AL17, WMID!AL17, EMID!AL17, SWALES!AL17, SWEST!AL17, LPN!AL17,SPN!AL17,EPN!AL17,SPD!AL17,SPMW!AL17,SSEH!AL17,SSES!AL17) -> 0 | AM17: =CHOOSE(m_identity,ENWL!AM17, NPgN!AM17, NPgY!AM17, WMID!AM17, EMID!AM17, SWALES!AM17, SWEST!AM17, LPN!AM17,SPN!AM17,EPN!AM17,SPD!AM17,SPMW!AM17,SSEH!AM17,SSES!AM17) -> 0 | AN17: =CHOOSE(m_identity,ENWL!AN17, NPgN!AN17, NPgY!AN17, WMID!AN17, EMID!AN17, SWALES!AN17, SWEST!AN17, LPN!AN17,SPN!AN17,EPN!AN17,SPD!AN17,SPMW!AN17,SSEH!AN17,SSES!AN17) -> 0 | AO17: =CHOOSE(m_identity,ENWL!AO17, NPgN!AO17, NPgY!AO17, WMID!AO17, EMID!AO17, SWALES!AO17, SWEST!AO17, LPN!AO17,SPN!AO17,EPN!AO17,SPD!AO17,SPMW!AO17,SSEH!AO17,SSES!AO17) -> 0 | AP17: =CHOOSE(m_identity,ENWL!AP17, NPgN!AP17, NPgY!AP17, WMID!AP17, EMID!AP17, SWALES!AP17, SWEST!AP17, LPN!AP17,SPN!AP17,EPN!AP17,SPD!AP17,SPMW!AP17,SSEH!AP17,SSES!AP17) -> 0 | AQ17: =CHOOSE(m_identity,ENWL!AQ17, NPgN!AQ17, NPgY!AQ17, WMID!AQ17, EMID!AQ17, SWALES!AQ17, SWEST!AQ17, LPN!AQ17,SPN!AQ17,EPN!AQ17,SPD!AQ17,SPMW!AQ17,SSEH!AQ17,SSES!AQ17) -> 0
E18: Actual controllable opex expenditure | F18: CRC 3B | G18: £m 12/13 prices | H18: ACO | AJ18: =CHOOSE(m_identity,ENWL!AJ18, NPgN!AJ18, NPgY!AJ18, WMID!AJ18, EMID!AJ18, SWALES!AJ18, SWEST!AJ18, LPN!AJ18,SPN!AJ18,EPN!AJ18,SPD!AJ18,SPMW!AJ18,SSEH!AJ18,SSES!AJ18) -> 0 | AK18: =CHOOSE(m_identity,ENWL!AK18, NPgN!AK18, NPgY!AK18, WMID!AK18, EMID!AK18, SWALES!AK18, SWEST!AK18, LPN!AK18,SPN!AK18,EPN!AK18,SPD!AK18,SPMW!AK18,SSEH!AK18,SSES!AK18) -> 0 | AL18: =CHOOSE(m_identity,ENWL!AL18, NPgN!AL18, NPgY!AL18, WMID!AL18, EMID!AL18, SWALES!AL18, SWEST!AL18, LPN!AL18,SPN!AL18,EPN!AL18,SPD!AL18,SPMW!AL18,SSEH!AL18,SSES!AL18) -> 0 | AM18: =CHOOSE(m_identity,ENWL!AM18, NPgN!AM18, NPgY!AM18, WMID!AM18, EMID!AM18, SWALES!AM18, SWEST!AM18, LPN!AM18,SPN!AM18,EPN!AM18,SPD!AM18,SPMW!AM18,SSEH!AM18,SSES!AM18) -> 0 | AN18: =CHOOSE(m_identity,ENWL!AN18, NPgN!AN18, NPgY!AN18, WMID!AN18, EMID!AN18, SWALES!AN18, SWEST!AN18, LPN!AN18,SPN!AN18,EPN!AN18,SPD!AN18,SPMW!AN18,SSEH!AN18,SSES!AN18) -> 0 | AO18: =CHOOSE(m_identity,ENWL!AO18, NPgN!AO18, NPgY!AO18, WMID!AO18, EMID!AO18, SWALES!AO18, SWEST!AO18, LPN!AO18,SPN!AO18,EPN!AO18,SPD!AO18,SPMW!AO18,SSEH!AO18,SSES!AO18) -> 0 | AP18: =CHOOSE(m_identity,ENWL!AP18, NPgN!AP18, NPgY!AP18, WMID!AP18, EMID!AP18, SWALES!AP18, SWEST!AP18, LPN!AP18,SPN!AP18,EPN!AP18,SPD!AP18,SPMW!AP18,SSEH!AP18,SSES!AP18) -> 0 | AQ18: =CHOOSE(m_identity,ENWL!AQ18, NPgN!AQ18, NPgY!AQ18, WMID!AQ18, EMID!AQ18, SWALES!AQ18, SWEST!AQ18, LPN!AQ18,SPN!AQ18,EPN!AQ18,SPD!AQ18,SPMW!AQ18,SSEH!AQ18,SSES!AQ18) -> 0
E19: Allowed Expenditure - Enhanced Physical Site Security | F19: CRC 3F | G19: £m 12/13 prices | H19: UCEPS | AJ19: =CHOOSE(m_identity,ENWL!AJ19, NPgN!AJ19, NPgY!AJ19, WMID!AJ19, EMID!AJ19, SWALES!AJ19, SWEST!AJ19, LPN!AJ19,SPN!AJ19,EPN!AJ19,SPD!AJ19,SPMW!AJ19,SSEH!AJ19,SSES!AJ19) -> 0 | AK19: =CHOOSE(m_identity,ENWL!AK19, NPgN!AK19, NPgY!AK19, WMID!AK19, EMID!AK19, SWALES!AK19, SWEST!AK19, LPN!AK19,SPN!AK19,EPN!AK19,SPD!AK19,SPMW!AK19,SSEH!AK19,SSES!AK19) -> 0 | AL19: =CHOOSE(m_identity,ENWL!AL19, NPgN!AL19, NPgY!AL19, WMID!AL19, EMID!AL19, SWALES!AL19, SWEST!AL19, LPN!AL19,SPN!AL19,EPN!AL19,SPD!AL19,SPMW!AL19,SSEH!AL19,SSES!AL19) -> 0 | AM19: =CHOOSE(m_identity,ENWL!AM19, NPgN!AM19, NPgY!AM19, WMID!AM19, EMID!AM19, SWALES!AM19, SWEST!AM19, LPN!AM19,SPN!AM19,EPN!AM19,SPD!AM19,SPMW!AM19,SSEH!AM19,SSES!AM19) -> 0 | AN19: =CHOOSE(m_identity,ENWL!AN19, NPgN!AN19, NPgY!AN19, WMID!AN19, EMID!AN19, SWALES!AN19, SWEST!AN19, LPN!AN19,SPN!AN19,EPN!AN19,SPD!AN19,SPMW!AN19,SSEH!AN19,SSES!AN19) -> 0 | AO19: =CHOOSE(m_identity,ENWL!AO19, NPgN!AO19, NPgY!AO19, WMID!AO19, EMID!AO19, SWALES!AO19, SWEST!AO19, LPN!AO19,SPN!AO19,EPN!AO19,SPD!AO19,SPMW!AO19,SSEH!AO19,SSES!AO19) -> 0 | AP19: =CHOOSE(m_identity,ENWL!AP19, NPgN!AP19, NPgY!AP19, WMID!AP19, EMID!AP19, SWALES!AP19, SWEST!AP19, LPN!AP19,SPN!AP19,EPN!AP19,SPD!AP19,SPMW!AP19,SSEH!AP19,SSES!AP19) -> 0 | AQ19: =CHOOSE(m_identity,ENWL!AQ19, NPgN!AQ19, NPgY!AQ19, WMID!AQ19, EMID!AQ19, SWALES!AQ19, SWEST!AQ19, LPN!AQ19,SPN!AQ19,EPN!AQ19,SPD!AQ19,SPMW!AQ19,SSEH!AQ19,SSES!AQ19) -> 0
E20: Allowed Expenditure - High Value Projects | F20: CRC 3F | G20: £m 12/13 prices | H20: UCHVP | AJ20: =CHOOSE(m_identity,ENWL!AJ20, NPgN!AJ20, NPgY!AJ20, WMID!AJ20, EMID!AJ20, SWALES!AJ20, SWEST!AJ20, LPN!AJ20,SPN!AJ20,EPN!AJ20,SPD!AJ20,SPMW!AJ20,SSEH!AJ20,SSES!AJ20) -> 4.433198965 | AK20: =CHOOSE(m_identity,ENWL!AK20, NPgN!AK20, NPgY!AK20, WMID!AK20, EMID!AK20, SWALES!AK20, SWEST!AK20, LPN!AK20,SPN!AK20,EPN!AK20,SPD!AK20,SPMW!AK20,SSEH!AK20,SSES!AK20) -> 4.421847606 | AL20: =CHOOSE(m_identity,ENWL!AL20, NPgN!AL20, NPgY!AL20, WMID!AL20, EMID!AL20, SWALES!AL20, SWEST!AL20, LPN!AL20,SPN!AL20,EPN!AL20,SPD!AL20,SPMW!AL20,SSEH!AL20,SSES!AL20) -> 8.826784917 | AM20: =CHOOSE(m_identity,ENWL!AM20, NPgN!AM20, NPgY!AM20, WMID!AM20, EMID!AM20, SWALES!AM20, SWEST!AM20, LPN!AM20,SPN!AM20,EPN!AM20,SPD!AM20,SPMW!AM20,SSEH!AM20,SSES!AM20) -> 8.758462151 | AN20: =CHOOSE(m_identity,ENWL!AN20, NPgN!AN20, NPgY!AN20, WMID!AN20, EMID!AN20, SWALES!AN20, SWEST!AN20, LPN!AN20,SPN!AN20,EPN!AN20,SPD!AN20,SPMW!AN20,SSEH!AN20,SSES!AN20) -> 0 | AO20: =CHOOSE(m_identity,ENWL!AO20, NPgN!AO20, NPgY!AO20, WMID!AO20, EMID!AO20, SWALES!AO20, SWEST!AO20, LPN!AO20,SPN!AO20,EPN!AO20,SPD!AO20,SPMW!AO20,SSEH!AO20,SSES!AO20) -> 0 | AP20: =CHOOSE(m_identity,ENWL!AP20, NPgN!AP20, NPgY!AP20, WMID!AP20, EMID!AP20, SWALES!AP20, SWEST!AP20, LPN!AP20,SPN!AP20,EPN!AP20,SPD!AP20,SPMW!AP20,SSEH!AP20,SSES!AP20) -> 0 | AQ20: =CHOOSE(m_identity,ENWL!AQ20, NPgN!AQ20, NPgY!AQ20, WMID!AQ20, EMID!AQ20, SWALES!AQ20, SWEST!AQ20, LPN!AQ20,SPN!AQ20,EPN!AQ20,SPD!AQ20,SPMW!AQ20,SSEH!AQ20,SSES!AQ20) -> 0
E21: Allowed Expenditure - Visual Amenity Projects (TIM neutral) | F21: CRC 3J | G21: £m 12/13 prices | H21: VAA | AJ21: =CHOOSE(m_identity,ENWL!AJ21, NPgN!AJ21, NPgY!AJ21, WMID!AJ21, EMID!AJ21, SWALES!AJ21, SWEST!AJ21, LPN!AJ21,SPN!AJ21,EPN!AJ21,SPD!AJ21,SPMW!AJ21,SSEH!AJ21,SSES!AJ21) -> 0 | AK21: =CHOOSE(m_identity,ENWL!AK21, NPgN!AK21, NPgY!AK21, WMID!AK21, EMID!AK21, SWALES!AK21, SWEST!AK21, LPN!AK21,SPN!AK21,EPN!AK21,SPD!AK21,SPMW!AK21,SSEH!AK21,SSES!AK21) -> 0 | AL21: =CHOOSE(m_identity,ENWL!AL21, NPgN!AL21, NPgY!AL21, WMID!AL21, EMID!AL21, SWALES!AL21, SWEST!AL21, LPN!AL21,SPN!AL21,EPN!AL21,SPD!AL21,SPMW!AL21,SSEH!AL21,SSES!AL21) -> 0 | AM21: =CHOOSE(m_identity,ENWL!AM21, NPgN!AM21, NPgY!AM21, WMID!AM21, EMID!AM21, SWALES!AM21, SWEST!AM21, LPN!AM21,SPN!AM21,EPN!AM21,SPD!AM21,SPMW!AM21,SSEH!AM21,SSES!AM21) -> 0 | AN21: =CHOOSE(m_identity,ENWL!AN21, NPgN!AN21, NPgY!AN21, WMID!AN21, EMID!AN21, SWALES!AN21, SWEST!AN21, LPN!AN21,SPN!AN21,EPN!AN21,SPD!AN21,SPMW!AN21,SSEH!AN21,SSES!AN21) -> 0 | AO21: =CHOOSE(m_identity,ENWL!AO21, NPgN!AO21, NPgY!AO21, WMID!AO21, EMID!AO21, SWALES!AO21, SWEST!AO21, LPN!AO21,SPN!AO21,EPN!AO21,SPD!AO21,SPMW!AO21,SSEH!AO21,SSES!AO21) -> 0 | AP21: =CHOOSE(m_identity,ENWL!AP21, NPgN!AP21, NPgY!AP21, WMID!AP21, EMID!AP21, SWALES!AP21, SWEST!AP21, LPN!AP21,SPN!AP21,EPN!AP21,SPD!AP21,SPMW!AP21,SSEH!AP21,SSES!AP21) -> 0 | AQ21: =CHOOSE(m_identity,ENWL!AQ21, NPgN!AQ21, NPgY!AQ21, WMID!AQ21, EMID!AQ21, SWALES!AQ21, SWEST!AQ21, LPN!AQ21,SPN!AQ21,EPN!AQ21,SPD!AQ21,SPMW!AQ21,SSEH!AQ21,SSES!AQ21) -> 0
E22: Allowed Expenditure - Worst Served Customer Project (TIM neutral) | F22: CRC 3H | G22: £m 12/13 prices | H22: WSCC | AJ22: =CHOOSE(m_identity,ENWL!AJ22, NPgN!AJ22, NPgY!AJ22, WMID!AJ22, EMID!AJ22, SWALES!AJ22, SWEST!AJ22, LPN!AJ22,SPN!AJ22,EPN!AJ22,SPD!AJ22,SPMW!AJ22,SSEH!AJ22,SSES!AJ22) -> 0 | AK22: =CHOOSE(m_identity,ENWL!AK22, NPgN!AK22, NPgY!AK22, WMID!AK22, EMID!AK22, SWALES!AK22, SWEST!AK22, LPN!AK22,SPN!AK22,EPN!AK22,SPD!AK22,SPMW!AK22,SSEH!AK22,SSES!AK22) -> 0 | AL22: =CHOOSE(m_identity,ENWL!AL22, NPgN!AL22, NPgY!AL22, WMID!AL22, EMID!AL22, SWALES!AL22, SWEST!AL22, LPN!AL22,SPN!AL22,EPN!AL22,SPD!AL22,SPMW!AL22,SSEH!AL22,SSES!AL22) -> 0 | AM22: =CHOOSE(m_identity,ENWL!AM22, NPgN!AM22, NPgY!AM22, WMID!AM22, EMID!AM22, SWALES!AM22, SWEST!AM22, LPN!AM22,SPN!AM22,EPN!AM22,SPD!AM22,SPMW!AM22,SSEH!AM22,SSES!AM22) -> 0 | AN22: =CHOOSE(m_identity,ENWL!AN22, NPgN!AN22, NPgY!AN22, WMID!AN22, EMID!AN22, SWALES!AN22, SWEST!AN22, LPN!AN22,SPN!AN22,EPN!AN22,SPD!AN22,SPMW!AN22,SSEH!AN22,SSES!AN22) -> 0 | AO22: =CHOOSE(m_identity,ENWL!AO22, NPgN!AO22, NPgY!AO22, WMID!AO22, EMID!AO22, SWALES!AO22, SWEST!AO22, LPN!AO22,SPN!AO22,EPN!AO22,SPD!AO22,SPMW!AO22,SSEH!AO22,SSES!AO22) -> 0 | AP22: =CHOOSE(m_identity,ENWL!AP22, NPgN!AP22, NPgY!AP22, WMID!AP22, EMID!AP22, SWALES!AP22, SWEST!AP22, LPN!AP22,SPN!AP22,EPN!AP22,SPD!AP22,SPMW!AP22,SSEH!AP22,SSES!AP22) -> 0 | AQ22: =CHOOSE(m_identity,ENWL!AQ22, NPgN!AQ22, NPgY!AQ22, WMID!AQ22, EMID!AQ22, SWALES!AQ22, SWEST!AQ22, LPN!AQ22,SPN!AQ22,EPN!AQ22,SPD!AQ22,SPMW!AQ22,SSEH!AQ22,SSES!AQ22) -> 0
E23: Allowed Expenditure - Smart Meter Roll-out costs | F23: CRC 3E | G23: £m 12/13 prices | H23: SMAE | AJ23: =CHOOSE(m_identity,ENWL!AJ23, NPgN!AJ23, NPgY!AJ23, WMID!AJ23, EMID!AJ23, SWALES!AJ23, SWEST!AJ23, LPN!AJ23,SPN!AJ23,EPN!AJ23,SPD!AJ23,SPMW!AJ23,SSEH!AJ23,SSES!AJ23) -> 1.255093274 | AK23: =CHOOSE(m_identity,ENWL!AK23, NPgN!AK23, NPgY!AK23, WMID!AK23, EMID!AK23, SWALES!AK23, SWEST!AK23, LPN!AK23,SPN!AK23,EPN!AK23,SPD!AK23,SPMW!AK23,SSEH!AK23,SSES!AK23) -> 2.397137128 | AL23: =CHOOSE(m_identity,ENWL!AL23, NPgN!AL23, NPgY!AL23, WMID!AL23, EMID!AL23, SWALES!AL23, SWEST!AL23, LPN!AL23,SPN!AL23,EPN!AL23,SPD!AL23,SPMW!AL23,SSEH!AL23,SSES!AL23) -> 3.401666236 | AM23: =CHOOSE(m_identity,ENWL!AM23, NPgN!AM23, NPgY!AM23, WMID!AM23, EMID!AM23, SWALES!AM23, SWEST!AM23, LPN!AM23,SPN!AM23,EPN!AM23,SPD!AM23,SPMW!AM23,SSEH!AM23,SSES!AM23) -> 3.787737389 | AN23: =CHOOSE(m_identity,ENWL!AN23, NPgN!AN23, NPgY!AN23, WMID!AN23, EMID!AN23, SWALES!AN23, SWEST!AN23, LPN!AN23,SPN!AN23,EPN!AN23,SPD!AN23,SPMW!AN23,SSEH!AN23,SSES!AN23) -> 3.591877133 | AO23: =CHOOSE(m_identity,ENWL!AO23, NPgN!AO23, NPgY!AO23, WMID!AO23, EMID!AO23, SWALES!AO23, SWEST!AO23, LPN!AO23,SPN!AO23,EPN!AO23,SPD!AO23,SPMW!AO23,SSEH!AO23,SSES!AO23) -> 2.523178883 | AP23: =CHOOSE(m_identity,ENWL!AP23, NPgN!AP23, NPgY!AP23, WMID!AP23, EMID!AP23, SWALES!AP23, SWEST!AP23, LPN!AP23,SPN!AP23,EPN!AP23,SPD!AP23,SPMW!AP23,SSEH!AP23,SSES!AP23) -> 0 | AQ23: =CHOOSE(m_identity,ENWL!AQ23, NPgN!AQ23, NPgY!AQ23, WMID!AQ23, EMID!AQ23, SWALES!AQ23, SWEST!AQ23, LPN!AQ23,SPN!AQ23,EPN!AQ23,SPD!AQ23,SPMW!AQ23,SSEH!AQ23,SSES!AQ23) -> 0
E24: Allowed Expenditure - Specified Street Works | F24: CRC 3F | G24: £m 12/13 prices | H24: UCSSW | AJ24: =CHOOSE(m_identity,ENWL!AJ24, NPgN!AJ24, NPgY!AJ24, WMID!AJ24, EMID!AJ24, SWALES!AJ24, SWEST!AJ24, LPN!AJ24,SPN!AJ24,EPN!AJ24,SPD!AJ24,SPMW!AJ24,SSEH!AJ24,SSES!AJ24) -> 0 | AK24: =CHOOSE(m_identity,ENWL!AK24, NPgN!AK24, NPgY!AK24, WMID!AK24, EMID!AK24, SWALES!AK24, SWEST!AK24, LPN!AK24,SPN!AK24,EPN!AK24,SPD!AK24,SPMW!AK24,SSEH!AK24,SSES!AK24) -> 0 | AL24: =CHOOSE(m_identity,ENWL!AL24, NPgN!AL24, NPgY!AL24, WMID!AL24, EMID!AL24, SWALES!AL24, SWEST!AL24, LPN!AL24,SPN!AL24,EPN!AL24,SPD!AL24,SPMW!AL24,SSEH!AL24,SSES!AL24) -> 0 | AM24: =CHOOSE(m_identity,ENWL!AM24, NPgN!AM24, NPgY!AM24, WMID!AM24, EMID!AM24, SWALES!AM24, SWEST!AM24, LPN!AM24,SPN!AM24,EPN!AM24,SPD!AM24,SPMW!AM24,SSEH!AM24,SSES!AM24) -> 0 | AN24: =CHOOSE(m_identity,ENWL!AN24, NPgN!AN24, NPgY!AN24, WMID!AN24, EMID!AN24, SWALES!AN24, SWEST!AN24, LPN!AN24,SPN!AN24,EPN!AN24,SPD!AN24,SPMW!AN24,SSEH!AN24,SSES!AN24) -> 0 | AO24: =CHOOSE(m_identity,ENWL!AO24, NPgN!AO24, NPgY!AO24, WMID!AO24, EMID!AO24, SWALES!AO24, SWEST!AO24, LPN!AO24,SPN!AO24,EPN!AO24,SPD!AO24,SPMW!AO24,SSEH!AO24,SSES!AO24) -> 0 | AP24: =CHOOSE(m_identity,ENWL!AP24, NPgN!AP24, NPgY!AP24, WMID!AP24, EMID!AP24, SWALES!AP24, SWEST!AP24, LPN!AP24,SPN!AP24,EPN!AP24,SPD!AP24,SPMW!AP24,SSEH!AP24,SSES!AP24) -> 0 | AQ24: =CHOOSE(m_identity,ENWL!AQ24, NPgN!AQ24, NPgY!AQ24, WMID!AQ24, EMID!AQ24, SWALES!AQ24, SWEST!AQ24, LPN!AQ24,SPN!AQ24,EPN!AQ24,SPD!AQ24,SPMW!AQ24,SSEH!AQ24,SSES!AQ24) -> 0
E25: Allowed Expenditure - Load Related | F25: CRC 3G | G25: £m 12/13 prices | H25: LRRC | AJ25: =CHOOSE(m_identity,ENWL!AJ25, NPgN!AJ25, NPgY!AJ25, WMID!AJ25, EMID!AJ25, SWALES!AJ25, SWEST!AJ25, LPN!AJ25,SPN!AJ25,EPN!AJ25,SPD!AJ25,SPMW!AJ25,SSEH!AJ25,SSES!AJ25) -> 25.83201986 | AK25: =CHOOSE(m_identity,ENWL!AK25, NPgN!AK25, NPgY!AK25, WMID!AK25, EMID!AK25, SWALES!AK25, SWEST!AK25, LPN!AK25,SPN!AK25,EPN!AK25,SPD!AK25,SPMW!AK25,SSEH!AK25,SSES!AK25) -> 32.82000398 | AL25: =CHOOSE(m_identity,ENWL!AL25, NPgN!AL25, NPgY!AL25, WMID!AL25, EMID!AL25, SWALES!AL25, SWEST!AL25, LPN!AL25,SPN!AL25,EPN!AL25,SPD!AL25,SPMW!AL25,SSEH!AL25,SSES!AL25) -> 26.24194261 | AM25: =CHOOSE(m_identity,ENWL!AM25, NPgN!AM25, NPgY!AM25, WMID!AM25, EMID!AM25, SWALES!AM25, SWEST!AM25, LPN!AM25,SPN!AM25,EPN!AM25,SPD!AM25,SPMW!AM25,SSEH!AM25,SSES!AM25) -> 29.95291917 | AN25: =CHOOSE(m_identity,ENWL!AN25, NPgN!AN25, NPgY!AN25, WMID!AN25, EMID!AN25, SWALES!AN25, SWEST!AN25, LPN!AN25,SPN!AN25,EPN!AN25,SPD!AN25,SPMW!AN25,SSEH!AN25,SSES!AN25) -> 18.26500494 | AO25: =CHOOSE(m_identity,ENWL!AO25, NPgN!AO25, NPgY!AO25, WMID!AO25, EMID!AO25, SWALES!AO25, SWEST!AO25, LPN!AO25,SPN!AO25,EPN!AO25,SPD!AO25,SPMW!AO25,SSEH!AO25,SSES!AO25) -> 27.47388736 | AP25: =CHOOSE(m_identity,ENWL!AP25, NPgN!AP25, NPgY!AP25, WMID!AP25, EMID!AP25, SWALES!AP25, SWEST!AP25, LPN!AP25,SPN!AP25,EPN!AP25,SPD!AP25,SPMW!AP25,SSEH!AP25,SSES!AP25) -> 38.74042893 | AQ25: =CHOOSE(m_identity,ENWL!AQ25, NPgN!AQ25, NPgY!AQ25, WMID!AQ25, EMID!AQ25, SWALES!AQ25, SWEST!AQ25, LPN!AQ25,SPN!AQ25,EPN!AQ25,SPD!AQ25,SPMW!AQ25,SSEH!AQ25,SSES!AQ25) -> 33.80933459
E26: Allowed Expenditure - Rail Electrification (WPD) | F26: CRC 3K | G26: £m 12/13 prices | H26: RE | AJ26: =CHOOSE(m_identity,ENWL!AJ26, NPgN!AJ26, NPgY!AJ26, WMID!AJ26, EMID!AJ26, SWALES!AJ26, SWEST!AJ26, LPN!AJ26,SPN!AJ26,EPN!AJ26,SPD!AJ26,SPMW!AJ26,SSEH!AJ26,SSES!AJ26) -> 0 | AK26: =CHOOSE(m_identity,ENWL!AK26, NPgN!AK26, NPgY!AK26, WMID!AK26, EMID!AK26, SWALES!AK26, SWEST!AK26, LPN!AK26,SPN!AK26,EPN!AK26,SPD!AK26,SPMW!AK26,SSEH!AK26,SSES!AK26) -> 0 | AL26: =CHOOSE(m_identity,ENWL!AL26, NPgN!AL26, NPgY!AL26, WMID!AL26, EMID!AL26, SWALES!AL26, SWEST!AL26, LPN!AL26,SPN!AL26,EPN!AL26,SPD!AL26,SPMW!AL26,SSEH!AL26,SSES!AL26) -> 0 | AM26: =CHOOSE(m_identity,ENWL!AM26, NPgN!AM26, NPgY!AM26, WMID!AM26, EMID!AM26, SWALES!AM26, SWEST!AM26, LPN!AM26,SPN!AM26,EPN!AM26,SPD!AM26,SPMW!AM26,SSEH!AM26,SSES!AM26) -> 0 | AN26: =CHOOSE(m_identity,ENWL!AN26, NPgN!AN26, NPgY!AN26, WMID!AN26, EMID!AN26, SWALES!AN26, SWEST!AN26, LPN!AN26,SPN!AN26,EPN!AN26,SPD!AN26,SPMW!AN26,SSEH!AN26,SSES!AN26) -> 0 | AO26: =CHOOSE(m_identity,ENWL!AO26, NPgN!AO26, NPgY!AO26, WMID!AO26, EMID!AO26, SWALES!AO26, SWEST!AO26, LPN!AO26,SPN!AO26,EPN!AO26,SPD!AO26,SPMW!AO26,SSEH!AO26,SSES!AO26) -> 0 | AP26: =CHOOSE(m_identity,ENWL!AP26, NPgN!AP26, NPgY!AP26, WMID!AP26, EMID!AP26, SWALES!AP26, SWEST!AP26, LPN!AP26,SPN!AP26,EPN!AP26,SPD!AP26,SPMW!AP26,SSEH!AP26,SSES!AP26) -> 0 | AQ26: =CHOOSE(m_identity,ENWL!AQ26, NPgN!AQ26, NPgY!AQ26, WMID!AQ26, EMID!AQ26, SWALES!AQ26, SWEST!AQ26, LPN!AQ26,SPN!AQ26,EPN!AQ26,SPD!AQ26,SPMW!AQ26,SSEH!AQ26,SSES!AQ26) -> 0
E27: Allowed Expenditure - Moorside Costs (ENWL) | F27: CRC 3L | G27: £m 12/13 prices | H27: UCMC | AJ27: =CHOOSE(m_identity,ENWL!AJ27, NPgN!AJ27, NPgY!AJ27, WMID!AJ27, EMID!AJ27, SWALES!AJ27, SWEST!AJ27, LPN!AJ27,SPN!AJ27,EPN!AJ27,SPD!AJ27,SPMW!AJ27,SSEH!AJ27,SSES!AJ27) -> 0 | AK27: =CHOOSE(m_identity,ENWL!AK27, NPgN!AK27, NPgY!AK27, WMID!AK27, EMID!AK27, SWALES!AK27, SWEST!AK27, LPN!AK27,SPN!AK27,EPN!AK27,SPD!AK27,SPMW!AK27,SSEH!AK27,SSES!AK27) -> 0 | AL27: =CHOOSE(m_identity,ENWL!AL27, NPgN!AL27, NPgY!AL27, WMID!AL27, EMID!AL27, SWALES!AL27, SWEST!AL27, LPN!AL27,SPN!AL27,EPN!AL27,SPD!AL27,SPMW!AL27,SSEH!AL27,SSES!AL27) -> 0 | AM27: =CHOOSE(m_identity,ENWL!AM27, NPgN!AM27, NPgY!AM27, WMID!AM27, EMID!AM27, SWALES!AM27, SWEST!AM27, LPN!AM27,SPN!AM27,EPN!AM27,SPD!AM27,SPMW!AM27,SSEH!AM27,SSES!AM27) -> 0 | AN27: =CHOOSE(m_identity,ENWL!AN27, NPgN!AN27, NPgY!AN27, WMID!AN27, EMID!AN27, SWALES!AN27, SWEST!AN27, LPN!AN27,SPN!AN27,EPN!AN27,SPD!AN27,SPMW!AN27,SSEH!AN27,SSES!AN27) -> 0 | AO27: =CHOOSE(m_identity,ENWL!AO27, NPgN!AO27, NPgY!AO27, WMID!AO27, EMID!AO27, SWALES!AO27, SWEST!AO27, LPN!AO27,SPN!AO27,EPN!AO27,SPD!AO27,SPMW!AO27,SSEH!AO27,SSES!AO27) -> 0 | AP27: =CHOOSE(m_identity,ENWL!AP27, NPgN!AP27, NPgY!AP27, WMID!AP27, EMID!AP27, SWALES!AP27, SWEST!AP27, LPN!AP27,SPN!AP27,EPN!AP27,SPD!AP27,SPMW!AP27,SSEH!AP27,SSES!AP27) -> 0 | AQ27: =CHOOSE(m_identity,ENWL!AQ27, NPgN!AQ27, NPgY!AQ27, WMID!AQ27, EMID!AQ27, SWALES!AQ27, SWEST!AQ27, LPN!AQ27,SPN!AQ27,EPN!AQ27,SPD!AQ27,SPMW!AQ27,SSEH!AQ27,SSES!AQ27) -> 0
E28: Allowed Expenditure - Shetland Uncertain Energy (SSEH) | F28: CRC 3F | G28: £m 12/13 prices | H28: UCSFE | AJ28: =CHOOSE(m_identity,ENWL!AJ28, NPgN!AJ28, NPgY!AJ28, WMID!AJ28, EMID!AJ28, SWALES!AJ28, SWEST!AJ28, LPN!AJ28,SPN!AJ28,EPN!AJ28,SPD!AJ28,SPMW!AJ28,SSEH!AJ28,SSES!AJ28) -> 0 | AK28: =CHOOSE(m_identity,ENWL!AK28, NPgN!AK28, NPgY!AK28, WMID!AK28, EMID!AK28, SWALES!AK28, SWEST!AK28, LPN!AK28,SPN!AK28,EPN!AK28,SPD!AK28,SPMW!AK28,SSEH!AK28,SSES!AK28) -> 0 | AL28: =CHOOSE(m_identity,ENWL!AL28, NPgN!AL28, NPgY!AL28, WMID!AL28, EMID!AL28, SWALES!AL28, SWEST!AL28, LPN!AL28,SPN!AL28,EPN!AL28,SPD!AL28,SPMW!AL28,SSEH!AL28,SSES!AL28) -> 0 | AM28: =CHOOSE(m_identity,ENWL!AM28, NPgN!AM28, NPgY!AM28, WMID!AM28, EMID!AM28, SWALES!AM28, SWEST!AM28, LPN!AM28,SPN!AM28,EPN!AM28,SPD!AM28,SPMW!AM28,SSEH!AM28,SSES!AM28) -> 0 | AN28: =CHOOSE(m_identity,ENWL!AN28, NPgN!AN28, NPgY!AN28, WMID!AN28, EMID!AN28, SWALES!AN28, SWEST!AN28, LPN!AN28,SPN!AN28,EPN!AN28,SPD!AN28,SPMW!AN28,SSEH!AN28,SSES!AN28) -> 0 | AO28: =CHOOSE(m_identity,ENWL!AO28, NPgN!AO28, NPgY!AO28, WMID!AO28, EMID!AO28, SWALES!AO28, SWEST!AO28, LPN!AO28,SPN!AO28,EPN!AO28,SPD!AO28,SPMW!AO28,SSEH!AO28,SSES!AO28) -> 0 | AP28: =CHOOSE(m_identity,ENWL!AP28, NPgN!AP28, NPgY!AP28, WMID!AP28, EMID!AP28, SWALES!AP28, SWEST!AP28, LPN!AP28,SPN!AP28,EPN!AP28,SPD!AP28,SPMW!AP28,SSEH!AP28,SSES!AP28) -> 0 | AQ28: =CHOOSE(m_identity,ENWL!AQ28, NPgN!AQ28, NPgY!AQ28, WMID!AQ28, EMID!AQ28, SWALES!AQ28, SWEST!AQ28, LPN!AQ28,SPN!AQ28,EPN!AQ28,SPD!AQ28,SPMW!AQ28,SSEH!AQ28,SSES!AQ28) -> 0
E29: Allowed Expenditure - Shetland Competitive Process (SSEH) | F29: CRC 3F | G29: £m 12/13 prices | H29: UCCPC | AJ29: =CHOOSE(m_identity,ENWL!AJ29, NPgN!AJ29, NPgY!AJ29, WMID!AJ29, EMID!AJ29, SWALES!AJ29, SWEST!AJ29, LPN!AJ29,SPN!AJ29,EPN!AJ29,SPD!AJ29,SPMW!AJ29,SSEH!AJ29,SSES!AJ29) -> 0 | AK29: =CHOOSE(m_identity,ENWL!AK29, NPgN!AK29, NPgY!AK29, WMID!AK29, EMID!AK29, SWALES!AK29, SWEST!AK29, LPN!AK29,SPN!AK29,EPN!AK29,SPD!AK29,SPMW!AK29,SSEH!AK29,SSES!AK29) -> 0 | AL29: =CHOOSE(m_identity,ENWL!AL29, NPgN!AL29, NPgY!AL29, WMID!AL29, EMID!AL29, SWALES!AL29, SWEST!AL29, LPN!AL29,SPN!AL29,EPN!AL29,SPD!AL29,SPMW!AL29,SSEH!AL29,SSES!AL29) -> 0 | AM29: =CHOOSE(m_identity,ENWL!AM29, NPgN!AM29, NPgY!AM29, WMID!AM29, EMID!AM29, SWALES!AM29, SWEST!AM29, LPN!AM29,SPN!AM29,EPN!AM29,SPD!AM29,SPMW!AM29,SSEH!AM29,SSES!AM29) -> 0 | AN29: =CHOOSE(m_identity,ENWL!AN29, NPgN!AN29, NPgY!AN29, WMID!AN29, EMID!AN29, SWALES!AN29, SWEST!AN29, LPN!AN29,SPN!AN29,EPN!AN29,SPD!AN29,SPMW!AN29,SSEH!AN29,SSES!AN29) -> 0 | AO29: =CHOOSE(m_identity,ENWL!AO29, NPgN!AO29, NPgY!AO29, WMID!AO29, EMID!AO29, SWALES!AO29, SWEST!AO29, LPN!AO29,SPN!AO29,EPN!AO29,SPD!AO29,SPMW!AO29,SSEH!AO29,SSES!AO29) -> 0 | AP29: =CHOOSE(m_identity,ENWL!AP29, NPgN!AP29, NPgY!AP29, WMID!AP29, EMID!AP29, SWALES!AP29, SWEST!AP29, LPN!AP29,SPN!AP29,EPN!AP29,SPD!AP29,SPMW!AP29,SSEH!AP29,SSES!AP29) -> 0 | AQ29: =CHOOSE(m_identity,ENWL!AQ29, NPgN!AQ29, NPgY!AQ29, WMID!AQ29, EMID!AQ29, SWALES!AQ29, SWEST!AQ29, LPN!AQ29,SPN!AQ29,EPN!AQ29,SPD!AQ29,SPMW!AQ29,SSEH!AQ29,SSES!AQ29) -> 0
E30: Allowed Expenditure - Link Boxes | F30: CRC 3F | G30: £m 12/13 prices | H30: UCLB | AJ30: =CHOOSE(m_identity,ENWL!AJ30, NPgN!AJ30, NPgY!AJ30, WMID!AJ30, EMID!AJ30, SWALES!AJ30, SWEST!AJ30, LPN!AJ30,SPN!AJ30,EPN!AJ30,SPD!AJ30,SPMW!AJ30,SSEH!AJ30,SSES!AJ30) -> 0 | AK30: =CHOOSE(m_identity,ENWL!AK30, NPgN!AK30, NPgY!AK30, WMID!AK30, EMID!AK30, SWALES!AK30, SWEST!AK30, LPN!AK30,SPN!AK30,EPN!AK30,SPD!AK30,SPMW!AK30,SSEH!AK30,SSES!AK30) -> 0 | AL30: =CHOOSE(m_identity,ENWL!AL30, NPgN!AL30, NPgY!AL30, WMID!AL30, EMID!AL30, SWALES!AL30, SWEST!AL30, LPN!AL30,SPN!AL30,EPN!AL30,SPD!AL30,SPMW!AL30,SSEH!AL30,SSES!AL30) -> 0 | AM30: =CHOOSE(m_identity,ENWL!AM30, NPgN!AM30, NPgY!AM30, WMID!AM30, EMID!AM30, SWALES!AM30, SWEST!AM30, LPN!AM30,SPN!AM30,EPN!AM30,SPD!AM30,SPMW!AM30,SSEH!AM30,SSES!AM30) -> 0 | AN30: =CHOOSE(m_identity,ENWL!AN30, NPgN!AN30, NPgY!AN30, WMID!AN30, EMID!AN30, SWALES!AN30, SWEST!AN30, LPN!AN30,SPN!AN30,EPN!AN30,SPD!AN30,SPMW!AN30,SSEH!AN30,SSES!AN30) -> 0 | AO30: =CHOOSE(m_identity,ENWL!AO30, NPgN!AO30, NPgY!AO30, WMID!AO30, EMID!AO30, SWALES!AO30, SWEST!AO30, LPN!AO30,SPN!AO30,EPN!AO30,SPD!AO30,SPMW!AO30,SSEH!AO30,SSES!AO30) -> 0 | AP30: =CHOOSE(m_identity,ENWL!AP30, NPgN!AP30, NPgY!AP30, WMID!AP30, EMID!AP30, SWALES!AP30, SWEST!AP30, LPN!AP30,SPN!AP30,EPN!AP30,SPD!AP30,SPMW!AP30,SSEH!AP30,SSES!AP30) -> 0 | AQ30: =CHOOSE(m_identity,ENWL!AQ30, NPgN!AQ30, NPgY!AQ30, WMID!AQ30, EMID!AQ30, SWALES!AQ30, SWEST!AQ30, LPN!AQ30,SPN!AQ30,EPN!AQ30,SPD!AQ30,SPMW!AQ30,SSEH!AQ30,SSES!AQ30) -> 0
E31: Allowed Expenditure - Subsea Cables (SSEH) | F31: CRC 3F | G31: £m 12/13 prices | H31: UCSC | AJ31: =CHOOSE(m_identity,ENWL!AJ31, NPgN!AJ31, NPgY!AJ31, WMID!AJ31, EMID!AJ31, SWALES!AJ31, SWEST!AJ31, LPN!AJ31,SPN!AJ31,EPN!AJ31,SPD!AJ31,SPMW!AJ31,SSEH!AJ31,SSES!AJ31) -> 0 | AK31: =CHOOSE(m_identity,ENWL!AK31, NPgN!AK31, NPgY!AK31, WMID!AK31, EMID!AK31, SWALES!AK31, SWEST!AK31, LPN!AK31,SPN!AK31,EPN!AK31,SPD!AK31,SPMW!AK31,SSEH!AK31,SSES!AK31) -> 0 | AL31: =CHOOSE(m_identity,ENWL!AL31, NPgN!AL31, NPgY!AL31, WMID!AL31, EMID!AL31, SWALES!AL31, SWEST!AL31, LPN!AL31,SPN!AL31,EPN!AL31,SPD!AL31,SPMW!AL31,SSEH!AL31,SSES!AL31) -> 0 | AM31: =CHOOSE(m_identity,ENWL!AM31, NPgN!AM31, NPgY!AM31, WMID!AM31, EMID!AM31, SWALES!AM31, SWEST!AM31, LPN!AM31,SPN!AM31,EPN!AM31,SPD!AM31,SPMW!AM31,SSEH!AM31,SSES!AM31) -> 0 | AN31: =CHOOSE(m_identity,ENWL!AN31, NPgN!AN31, NPgY!AN31, WMID!AN31, EMID!AN31, SWALES!AN31, SWEST!AN31, LPN!AN31,SPN!AN31,EPN!AN31,SPD!AN31,SPMW!AN31,SSEH!AN31,SSES!AN31) -> 0 | AO31: =CHOOSE(m_identity,ENWL!AO31, NPgN!AO31, NPgY!AO31, WMID!AO31, EMID!AO31, SWALES!AO31, SWEST!AO31, LPN!AO31,SPN!AO31,EPN!AO31,SPD!AO31,SPMW!AO31,SSEH!AO31,SSES!AO31) -> 0 | AP31: =CHOOSE(m_identity,ENWL!AP31, NPgN!AP31, NPgY!AP31, WMID!AP31, EMID!AP31, SWALES!AP31, SWEST!AP31, LPN!AP31,SPN!AP31,EPN!AP31,SPD!AP31,SPMW!AP31,SSEH!AP31,SSES!AP31) -> 0 | AQ31: =CHOOSE(m_identity,ENWL!AQ31, NPgN!AQ31, NPgY!AQ31, WMID!AQ31, EMID!AQ31, SWALES!AQ31, SWEST!AQ31, LPN!AQ31,SPN!AQ31,EPN!AQ31,SPD!AQ31,SPMW!AQ31,SSEH!AQ31,SSES!AQ31) -> 0
E32: Allowed Expenditure - Uncertain Rail Electrification Costs | F32: CRC 3F | G32: £m 12/13 prices | H32: UCRE | AJ32: =CHOOSE(m_identity,ENWL!AJ32, NPgN!AJ32, NPgY!AJ32, WMID!AJ32, EMID!AJ32, SWALES!AJ32, SWEST!AJ32, LPN!AJ32,SPN!AJ32,EPN!AJ32,SPD!AJ32,SPMW!AJ32,SSEH!AJ32,SSES!AJ32) -> 0 | AK32: =CHOOSE(m_identity,ENWL!AK32, NPgN!AK32, NPgY!AK32, WMID!AK32, EMID!AK32, SWALES!AK32, SWEST!AK32, LPN!AK32,SPN!AK32,EPN!AK32,SPD!AK32,SPMW!AK32,SSEH!AK32,SSES!AK32) -> 0 | AL32: =CHOOSE(m_identity,ENWL!AL32, NPgN!AL32, NPgY!AL32, WMID!AL32, EMID!AL32, SWALES!AL32, SWEST!AL32, LPN!AL32,SPN!AL32,EPN!AL32,SPD!AL32,SPMW!AL32,SSEH!AL32,SSES!AL32) -> 0 | AM32: =CHOOSE(m_identity,ENWL!AM32, NPgN!AM32, NPgY!AM32, WMID!AM32, EMID!AM32, SWALES!AM32, SWEST!AM32, LPN!AM32,SPN!AM32,EPN!AM32,SPD!AM32,SPMW!AM32,SSEH!AM32,SSES!AM32) -> 0 | AN32: =CHOOSE(m_identity,ENWL!AN32, NPgN!AN32, NPgY!AN32, WMID!AN32, EMID!AN32, SWALES!AN32, SWEST!AN32, LPN!AN32,SPN!AN32,EPN!AN32,SPD!AN32,SPMW!AN32,SSEH!AN32,SSES!AN32) -> 0 | AO32: =CHOOSE(m_identity,ENWL!AO32, NPgN!AO32, NPgY!AO32, WMID!AO32, EMID!AO32, SWALES!AO32, SWEST!AO32, LPN!AO32,SPN!AO32,EPN!AO32,SPD!AO32,SPMW!AO32,SSEH!AO32,SSES!AO32) -> 0 | AP32: =CHOOSE(m_identity,ENWL!AP32, NPgN!AP32, NPgY!AP32, WMID!AP32, EMID!AP32, SWALES!AP32, SWEST!AP32, LPN!AP32,SPN!AP32,EPN!AP32,SPD!AP32,SPMW!AP32,SSEH!AP32,SSES!AP32) -> 0 | AQ32: =CHOOSE(m_identity,ENWL!AQ32, NPgN!AQ32, NPgY!AQ32, WMID!AQ32, EMID!AQ32, SWALES!AQ32, SWEST!AQ32, LPN!AQ32,SPN!AQ32,EPN!AQ32,SPD!AQ32,SPMW!AQ32,SSEH!AQ32,SSES!AQ32) -> 0
E33: Allowed Expenditure - Innovation Roll-out Mechanism | F33: CRC 3D | G33: £m 12/13 prices | H33: IRM | AJ33: =CHOOSE(m_identity,ENWL!AJ33, NPgN!AJ33, NPgY!AJ33, WMID!AJ33, EMID!AJ33, SWALES!AJ33, SWEST!AJ33, LPN!AJ33,SPN!AJ33,EPN!AJ33,SPD!AJ33,SPMW!AJ33,SSEH!AJ33,SSES!AJ33) -> 0 | AK33: =CHOOSE(m_identity,ENWL!AK33, NPgN!AK33, NPgY!AK33, WMID!AK33, EMID!AK33, SWALES!AK33, SWEST!AK33, LPN!AK33,SPN!AK33,EPN!AK33,SPD!AK33,SPMW!AK33,SSEH!AK33,SSES!AK33) -> 0 | AL33: =CHOOSE(m_identity,ENWL!AL33, NPgN!AL33, NPgY!AL33, WMID!AL33, EMID!AL33, SWALES!AL33, SWEST!AL33, LPN!AL33,SPN!AL33,EPN!AL33,SPD!AL33,SPMW!AL33,SSEH!AL33,SSES!AL33) -> 0 | AM33: =CHOOSE(m_identity,ENWL!AM33, NPgN!AM33, NPgY!AM33, WMID!AM33, EMID!AM33, SWALES!AM33, SWEST!AM33, LPN!AM33,SPN!AM33,EPN!AM33,SPD!AM33,SPMW!AM33,SSEH!AM33,SSES!AM33) -> 0 | AN33: =CHOOSE(m_identity,ENWL!AN33, NPgN!AN33, NPgY!AN33, WMID!AN33, EMID!AN33, SWALES!AN33, SWEST!AN33, LPN!AN33,SPN!AN33,EPN!AN33,SPD!AN33,SPMW!AN33,SSEH!AN33,SSES!AN33) -> 0 | AO33: =CHOOSE(m_identity,ENWL!AO33, NPgN!AO33, NPgY!AO33, WMID!AO33, EMID!AO33, SWALES!AO33, SWEST!AO33, LPN!AO33,SPN!AO33,EPN!AO33,SPD!AO33,SPMW!AO33,SSEH!AO33,SSES!AO33) -> 0 | AP33: =CHOOSE(m_identity,ENWL!AP33, NPgN!AP33, NPgY!AP33, WMID!AP33, EMID!AP33, SWALES!AP33, SWEST!AP33, LPN!AP33,SPN!AP33,EPN!AP33,SPD!AP33,SPMW!AP33,SSEH!AP33,SSES!AP33) -> 0 | AQ33: =CHOOSE(m_identity,ENWL!AQ33, NPgN!AQ33, NPgY!AQ33, WMID!AQ33, EMID!AQ33, SWALES!AQ33, SWEST!AQ33, LPN!AQ33,SPN!AQ33,EPN!AQ33,SPD!AQ33,SPMW!AQ33,SSEH!AQ33,SSES!AQ33) -> 0
E34: Pension Scheme Established Deficit revenue adjustment | F34: CRC 3C | G34: £m 12/13 prices | H34: EDE | AJ34: =CHOOSE(m_identity,ENWL!AJ34, NPgN!AJ34, NPgY!AJ34, WMID!AJ34, EMID!AJ34, SWALES!AJ34, SWEST!AJ34, LPN!AJ34,SPN!AJ34,EPN!AJ34,SPD!AJ34,SPMW!AJ34,SSEH!AJ34,SSES!AJ34) -> 32.22532102 | AK34: =CHOOSE(m_identity,ENWL!AK34, NPgN!AK34, NPgY!AK34, WMID!AK34, EMID!AK34, SWALES!AK34, SWEST!AK34, LPN!AK34,SPN!AK34,EPN!AK34,SPD!AK34,SPMW!AK34,SSEH!AK34,SSES!AK34) -> 32.22532102 | AL34: =CHOOSE(m_identity,ENWL!AL34, NPgN!AL34, NPgY!AL34, WMID!AL34, EMID!AL34, SWALES!AL34, SWEST!AL34, LPN!AL34,SPN!AL34,EPN!AL34,SPD!AL34,SPMW!AL34,SSEH!AL34,SSES!AL34) -> 32.22532102 | AM34: =CHOOSE(m_identity,ENWL!AM34, NPgN!AM34, NPgY!AM34, WMID!AM34, EMID!AM34, SWALES!AM34, SWEST!AM34, LPN!AM34,SPN!AM34,EPN!AM34,SPD!AM34,SPMW!AM34,SSEH!AM34,SSES!AM34) -> 32.22532102 | AN34: =CHOOSE(m_identity,ENWL!AN34, NPgN!AN34, NPgY!AN34, WMID!AN34, EMID!AN34, SWALES!AN34, SWEST!AN34, LPN!AN34,SPN!AN34,EPN!AN34,SPD!AN34,SPMW!AN34,SSEH!AN34,SSES!AN34) -> 32.22532102 | AO34: =CHOOSE(m_identity,ENWL!AO34, NPgN!AO34, NPgY!AO34, WMID!AO34, EMID!AO34, SWALES!AO34, SWEST!AO34, LPN!AO34,SPN!AO34,EPN!AO34,SPD!AO34,SPMW!AO34,SSEH!AO34,SSES!AO34) -> 32.22532102 | AP34: =CHOOSE(m_identity,ENWL!AP34, NPgN!AP34, NPgY!AP34, WMID!AP34, EMID!AP34, SWALES!AP34, SWEST!AP34, LPN!AP34,SPN!AP34,EPN!AP34,SPD!AP34,SPMW!AP34,SSEH!AP34,SSES!AP34) -> 32.22532102 | AQ34: =CHOOSE(m_identity,ENWL!AQ34, NPgN!AQ34, NPgY!AQ34, WMID!AQ34, EMID!AQ34, SWALES!AQ34, SWEST!AQ34, LPN!AQ34,SPN!AQ34,EPN!AQ34,SPD!AQ34,SPMW!AQ34,SSEH!AQ34,SSES!AQ34) -> 32.22532102
E35: Other legacy adjustments' price control allowed revenue adjustment | F35: CRC 3A | G35: £m 12/13 prices | H35: OLREV | AJ35: =CHOOSE(m_identity,ENWL!AJ35, NPgN!AJ35, NPgY!AJ35, WMID!AJ35, EMID!AJ35, SWALES!AJ35, SWEST!AJ35, LPN!AJ35,SPN!AJ35,EPN!AJ35,SPD!AJ35,SPMW!AJ35,SSEH!AJ35,SSES!AJ35) -> 0
E36: Other legacy adjustments' price control RAV additions adjustment | F36: CRC 3A | G36: £m 12/13 prices | H36: OLRAV | AH36: =CHOOSE(m_identity,ENWL!AH36, NPgN!AH36, NPgY!AH36, WMID!AH36, EMID!AH36, SWALES!AH36, SWEST!AH36, LPN!AH36,SPN!AH36,EPN!AH36,SPD!AH36,SPMW!AH36,SSEH!AH36,SSES!AH36) -> 0 | AI36: =CHOOSE(m_identity,ENWL!AI36, NPgN!AI36, NPgY!AI36, WMID!AI36, EMID!AI36, SWALES!AI36, SWEST!AI36, LPN!AI36,SPN!AI36,EPN!AI36,SPD!AI36,SPMW!AI36,SSEH!AI36,SSES!AI36) -> 0
E37: RAV Rolling Incentive legacy adjustments' price control allowed revenue adjustment | F37: CRC 3A | G37: £m 12/13 prices | H37: RIREV | AJ37: =CHOOSE(m_identity,ENWL!AJ37, NPgN!AJ37, NPgY!AJ37, WMID!AJ37, EMID!AJ37, SWALES!AJ37, SWEST!AJ37, LPN!AJ37,SPN!AJ37,EPN!AJ37,SPD!AJ37,SPMW!AJ37,SSEH!AJ37,SSES!AJ37) -> 0
E38: Tax liability revenue allowance adjustments - gearing / debt interest costs | F38: CRC 3C | G38: £m Nominal | H38: TGIE | AJ38: =CHOOSE(m_identity,ENWL!AJ38, NPgN!AJ38, NPgY!AJ38, WMID!AJ38, EMID!AJ38, SWALES!AJ38, SWEST!AJ38, LPN!AJ38,SPN!AJ38,EPN!AJ38,SPD!AJ38,SPMW!AJ38,SSEH!AJ38,SSES!AJ38) -> 0 | AK38: =CHOOSE(m_identity,ENWL!AK38, NPgN!AK38, NPgY!AK38, WMID!AK38, EMID!AK38, SWALES!AK38, SWEST!AK38, LPN!AK38,SPN!AK38,EPN!AK38,SPD!AK38,SPMW!AK38,SSEH!AK38,SSES!AK38) -> 0 | AL38: =CHOOSE(m_identity,ENWL!AL38, NPgN!AL38, NPgY!AL38, WMID!AL38, EMID!AL38, SWALES!AL38, SWEST!AL38, LPN!AL38,SPN!AL38,EPN!AL38,SPD!AL38,SPMW!AL38,SSEH!AL38,SSES!AL38) -> 0 | AM38: =CHOOSE(m_identity,ENWL!AM38, NPgN!AM38, NPgY!AM38, WMID!AM38, EMID!AM38, SWALES!AM38, SWEST!AM38, LPN!AM38,SPN!AM38,EPN!AM38,SPD!AM38,SPMW!AM38,SSEH!AM38,SSES!AM38) -> 0 | AN38: =CHOOSE(m_identity,ENWL!AN38, NPgN!AN38, NPgY!AN38, WMID!AN38, EMID!AN38, SWALES!AN38, SWEST!AN38, LPN!AN38,SPN!AN38,EPN!AN38,SPD!AN38,SPMW!AN38,SSEH!AN38,SSES!AN38) -> 0 | AO38: =CHOOSE(m_identity,ENWL!AO38, NPgN!AO38, NPgY!AO38, WMID!AO38, EMID!AO38, SWALES!AO38, SWEST!AO38, LPN!AO38,SPN!AO38,EPN!AO38,SPD!AO38,SPMW!AO38,SSEH!AO38,SSES!AO38) -> 0 | AP38: =CHOOSE(m_identity,ENWL!AP38, NPgN!AP38, NPgY!AP38, WMID!AP38, EMID!AP38, SWALES!AP38, SWEST!AP38, LPN!AP38,SPN!AP38,EPN!AP38,SPD!AP38,SPMW!AP38,SSEH!AP38,SSES!AP38) -> 0 | AQ38: =CHOOSE(m_identity,ENWL!AQ38, NPgN!AQ38, NPgY!AQ38, WMID!AQ38, EMID!AQ38, SWALES!AQ38, SWEST!AQ38, LPN!AQ38,SPN!AQ38,EPN!AQ38,SPD!AQ38,SPMW!AQ38,SSEH!AQ38,SSES!AQ38) -> 0
E39: Tax liability revenue allowance adjustments - tax trigger events | F39: CRC 3C | G39: £m 12/13 prices | H39: TTE | AJ39: =CHOOSE(m_identity,ENWL!AJ39, NPgN!AJ39, NPgY!AJ39, WMID!AJ39, EMID!AJ39, SWALES!AJ39, SWEST!AJ39, LPN!AJ39,SPN!AJ39,EPN!AJ39,SPD!AJ39,SPMW!AJ39,SSEH!AJ39,SSES!AJ39) -> 0 | AK39: =CHOOSE(m_identity,ENWL!AK39, NPgN!AK39, NPgY!AK39, WMID!AK39, EMID!AK39, SWALES!AK39, SWEST!AK39, LPN!AK39,SPN!AK39,EPN!AK39,SPD!AK39,SPMW!AK39,SSEH!AK39,SSES!AK39) -> 0 | AL39: =CHOOSE(m_identity,ENWL!AL39, NPgN!AL39, NPgY!AL39, WMID!AL39, EMID!AL39, SWALES!AL39, SWEST!AL39, LPN!AL39,SPN!AL39,EPN!AL39,SPD!AL39,SPMW!AL39,SSEH!AL39,SSES!AL39) -> 0 | AM39: =CHOOSE(m_identity,ENWL!AM39, NPgN!AM39, NPgY!AM39, WMID!AM39, EMID!AM39, SWALES!AM39, SWEST!AM39, LPN!AM39,SPN!AM39,EPN!AM39,SPD!AM39,SPMW!AM39,SSEH!AM39,SSES!AM39) -> 0 | AN39: =CHOOSE(m_identity,ENWL!AN39, NPgN!AN39, NPgY!AN39, WMID!AN39, EMID!AN39, SWALES!AN39, SWEST!AN39, LPN!AN39,SPN!AN39,EPN!AN39,SPD!AN39,SPMW!AN39,SSEH!AN39,SSES!AN39) -> 0 | AO39: =CHOOSE(m_identity,ENWL!AO39, NPgN!AO39, NPgY!AO39, WMID!AO39, EMID!AO39, SWALES!AO39, SWEST!AO39, LPN!AO39,SPN!AO39,EPN!AO39,SPD!AO39,SPMW!AO39,SSEH!AO39,SSES!AO39) -> 0 | AP39: =CHOOSE(m_identity,ENWL!AP39, NPgN!AP39, NPgY!AP39, WMID!AP39, EMID!AP39, SWALES!AP39, SWEST!AP39, LPN!AP39,SPN!AP39,EPN!AP39,SPD!AP39,SPMW!AP39,SSEH!AP39,SSES!AP39) -> 0 | AQ39: =CHOOSE(m_identity,ENWL!AQ39, NPgN!AQ39, NPgY!AQ39, WMID!AQ39, EMID!AQ39, SWALES!AQ39, SWEST!AQ39, LPN!AQ39,SPN!AQ39,EPN!AQ39,SPD!AQ39,SPMW!AQ39,SSEH!AQ39,SSES!AQ39) -> 0
E40: Legacy general tax pool adjustment | F40: CRC 3A | G40: £m Nominal | H40: LTPG | AH40: =CHOOSE(m_identity,ENWL!AH40, NPgN!AH40, NPgY!AH40, WMID!AH40, EMID!AH40, SWALES!AH40, SWEST!AH40, LPN!AH40,SPN!AH40,EPN!AH40,SPD!AH40,SPMW!AH40,SSEH!AH40,SSES!AH40) -> 0 | AI40: =CHOOSE(m_identity,ENWL!AI40, NPgN!AI40, NPgY!AI40, WMID!AI40, EMID!AI40, SWALES!AI40, SWEST!AI40, LPN!AI40,SPN!AI40,EPN!AI40,SPD!AI40,SPMW!AI40,SSEH!AI40,SSES!AI40) -> 0
E41: Legacy special tax pool adjustment | F41: CRC 3A | G41: £m Nominal | H41: LTPS | AH41: =CHOOSE(m_identity,ENWL!AH41, NPgN!AH41, NPgY!AH41, WMID!AH41, EMID!AH41, SWALES!AH41, SWEST!AH41, LPN!AH41,SPN!AH41,EPN!AH41,SPD!AH41,SPMW!AH41,SSEH!AH41,SSES!AH41) -> 0 | AI41: =CHOOSE(m_identity,ENWL!AI41, NPgN!AI41, NPgY!AI41, WMID!AI41, EMID!AI41, SWALES!AI41, SWEST!AI41, LPN!AI41,SPN!AI41,EPN!AI41,SPD!AI41,SPMW!AI41,SSEH!AI41,SSES!AI41) -> 0
E42: Deferred Revenue Expenditure pre-RIIO movement adjustment | F42: CRC 3A | G42: £m Nominal | H42: LTPD | AH42: =CHOOSE(m_identity,ENWL!AH42, NPgN!AH42, NPgY!AH42, WMID!AH42, EMID!AH42, SWALES!AH42, SWEST!AH42, LPN!AH42,SPN!AH42,EPN!AH42,SPD!AH42,SPMW!AH42,SSEH!AH42,SSES!AH42) -> 0 | AI42: =CHOOSE(m_identity,ENWL!AI42, NPgN!AI42, NPgY!AI42, WMID!AI42, EMID!AI42, SWALES!AI42, SWEST!AI42, LPN!AI42,SPN!AI42,EPN!AI42,SPD!AI42,SPMW!AI42,SSEH!AI42,SSES!AI42) -> 0
E43: DRE: Gross capex adjustment | F43: CRC 3A | G43: £m Nominal | H43: LTPC | AH43: =CHOOSE(m_identity,ENWL!AH43, NPgN!AH43, NPgY!AH43, WMID!AH43, EMID!AH43, SWALES!AH43, SWEST!AH43, LPN!AH43,SPN!AH43,EPN!AH43,SPD!AH43,SPMW!AH43,SSEH!AH43,SSES!AH43) -> 0 | AI43: =CHOOSE(m_identity,ENWL!AI43, NPgN!AI43, NPgY!AI43, WMID!AI43, EMID!AI43, SWALES!AI43, SWEST!AI43, LPN!AI43,SPN!AI43,EPN!AI43,SPD!AI43,SPMW!AI43,SSEH!AI43,SSES!AI43) -> 0
B45: Policy
C47: Cost of capital
E49: Cost of debt | G49: annual real % | AJ49: =AJ11 -> 0.0255 | AK49: 0.0255 | AL49: 0.0255 | AM49: 0.0255 | AN49: 0.0255 | AO49: 0.0255 | AP49: 0.0255 | AQ49: 0.0255
E50: Cost of equity | G50: annual real % | AJ50: =CHOOSE(m_identity,ENWL!AJ50, NPgN!AJ50, NPgY!AJ50, WMID!AJ50, EMID!AJ50, SWALES!AJ50, SWEST!AJ50, LPN!AJ50,SPN!AJ50,EPN!AJ50,SPD!AJ50,SPMW!AJ50,SSEH!AJ50,SSES!AJ50) -> 0.06 | AK50: =CHOOSE(m_identity,ENWL!AK50, NPgN!AK50, NPgY!AK50, WMID!AK50, EMID!AK50, SWALES!AK50, SWEST!AK50, LPN!AK50,SPN!AK50,EPN!AK50,SPD!AK50,SPMW!AK50,SSEH!AK50,SSES!AK50) -> 0.06 | AL50: =CHOOSE(m_identity,ENWL!AL50, NPgN!AL50, NPgY!AL50, WMID!AL50, EMID!AL50, SWALES!AL50, SWEST!AL50, LPN!AL50,SPN!AL50,EPN!AL50,SPD!AL50,SPMW!AL50,SSEH!AL50,SSES!AL50) -> 0.06 | AM50: =CHOOSE(m_identity,ENWL!AM50, NPgN!AM50, NPgY!AM50, WMID!AM50, EMID!AM50, SWALES!AM50, SWEST!AM50, LPN!AM50,SPN!AM50,EPN!AM50,SPD!AM50,SPMW!AM50,SSEH!AM50,SSES!AM50) -> 0.06 | AN50: =CHOOSE(m_identity,ENWL!AN50, NPgN!AN50, NPgY!AN50, WMID!AN50, EMID!AN50, SWALES!AN50, SWEST!AN50, LPN!AN50,SPN!AN50,EPN!AN50,SPD!AN50,SPMW!AN50,SSEH!AN50,SSES!AN50) -> 0.06 | AO50: =CHOOSE(m_identity,ENWL!AO50, NPgN!AO50, NPgY!AO50, WMID!AO50, EMID!AO50, SWALES!AO50, SWEST!AO50, LPN!AO50,SPN!AO50,EPN!AO50,SPD!AO50,SPMW!AO50,SSEH!AO50,SSES!AO50) -> 0.06 | AP50: =CHOOSE(m_identity,ENWL!AP50, NPgN!AP50, NPgY!AP50, WMID!AP50, EMID!AP50, SWALES!AP50, SWEST!AP50, LPN!AP50,SPN!AP50,EPN!AP50,SPD!AP50,SPMW!AP50,SSEH!AP50,SSES!AP50) -> 0.06 | AQ50: =CHOOSE(m_identity,ENWL!AQ50, NPgN!AQ50, NPgY!AQ50, WMID!AQ50, EMID!AQ50, SWALES!AQ50, SWEST!AQ50, LPN!AQ50,SPN!AQ50,EPN!AQ50,SPD!AQ50,SPMW!AQ50,SSEH!AQ50,SSES!AQ50) -> 0.06
E51: Notional gearing | G51: % | J51: > | AI51: =CHOOSE(m_identity,ENWL!AI51, NPgN!AI51, NPgY!AI51, WMID!AI51, EMID!AI51, SWALES!AI51, SWEST!AI51, LPN!AI51,SPN!AI51,EPN!AI51,SPD!AI51,SPMW!AI51,SSEH!AI51,SSES!AI51) -> 0.65 | AJ51: =CHOOSE(m_identity,ENWL!AJ51, NPgN!AJ51, NPgY!AJ51, WMID!AJ51, EMID!AJ51, SWALES!AJ51, SWEST!AJ51, LPN!AJ51,SPN!AJ51,EPN!AJ51,SPD!AJ51,SPMW!AJ51,SSEH!AJ51,SSES!AJ51) -> 0.65 | AK51: =CHOOSE(m_identity,ENWL!AK51, NPgN!AK51, NPgY!AK51, WMID!AK51, EMID!AK51, SWALES!AK51, SWEST!AK51, LPN!AK51,SPN!AK51,EPN!AK51,SPD!AK51,SPMW!AK51,SSEH!AK51,SSES!AK51) -> 0.65 | AL51: =CHOOSE(m_identity,ENWL!AL51, NPgN!AL51, NPgY!AL51, WMID!AL51, EMID!AL51, SWALES!AL51, SWEST!AL51, LPN!AL51,SPN!AL51,EPN!AL51,SPD!AL51,SPMW!AL51,SSEH!AL51,SSES!AL51) -> 0.65 | AM51: =CHOOSE(m_identity,ENWL!AM51, NPgN!AM51, NPgY!AM51, WMID!AM51, EMID!AM51, SWALES!AM51, SWEST!AM51, LPN!AM51,SPN!AM51,EPN!AM51,SPD!AM51,SPMW!AM51,SSEH!AM51,SSES!AM51) -> 0.65 | AN51: =CHOOSE(m_identity,ENWL!AN51, NPgN!AN51, NPgY!AN51, WMID!AN51, EMID!AN51, SWALES!AN51, SWEST!AN51, LPN!AN51,SPN!AN51,EPN!AN51,SPD!AN51,SPMW!AN51,SSEH!AN51,SSES!AN51) -> 0.65 | AO51: =CHOOSE(m_identity,ENWL!AO51, NPgN!AO51, NPgY!AO51, WMID!AO51, EMID!AO51, SWALES!AO51, SWEST!AO51, LPN!AO51,SPN!AO51,EPN!AO51,SPD!AO51,SPMW!AO51,SSEH!AO51,SSES!AO51) -> 0.65 | AP51: =CHOOSE(m_identity,ENWL!AP51, NPgN!AP51, NPgY!AP51, WMID!AP51, EMID!AP51, SWALES!AP51, SWEST!AP51, LPN!AP51,SPN!AP51,EPN!AP51,SPD!AP51,SPMW!AP51,SSEH!AP51,SSES!AP51) -> 0.65 | AQ51: =CHOOSE(m_identity,ENWL!AQ51, NPgN!AQ51, NPgY!AQ51, WMID!AQ51, EMID!AQ51, SWALES!AQ51, SWEST!AQ51, LPN!AQ51,SPN!AQ51,EPN!AQ51,SPD!AQ51,SPMW!AQ51,SSEH!AQ51,SSES!AQ51) -> 0.65
E53: Vanilla WACC | G53: annual real % | AJ53: =(AJ49 * AJ51) + (AJ50 * (1 - AJ51)) -> 0.037575 | AK53: 0.037575 | AL53: 0.037575 | AM53: 0.037575 | AN53: 0.037575 | AO53: 0.037575 | AP53: 0.037575 | AQ53: 0.037575
C57: Indexation
E59: Forecast RPI (Financial Year, Simple Average) | G59: index value | J59: > | AG59: =CHOOSE(m_identity,ENWL!AG59, NPgN!AG59, NPgY!AG59, WMID!AG59, EMID!AG59, SWALES!AG59, SWEST!AG59, LPN!AG59,SPN!AG59,EPN!AG59,SPD!AG59,SPMW!AG59,SSEH!AG59,SSES!AG59) -> 244.675 | AH59: =CHOOSE(m_identity,ENWL!AH59, NPgN!AH59, NPgY!AH59, WMID!AH59, EMID!AH59, SWALES!AH59, SWEST!AH59, LPN!AH59,SPN!AH59,EPN!AH59,SPD!AH59,SPMW!AH59,SSEH!AH59,SSES!AH59) -> 251.733 | AI59: =CHOOSE(m_identity,ENWL!AI59, NPgN!AI59, NPgY!AI59, WMID!AI59, EMID!AI59, SWALES!AI59, SWEST!AI59, LPN!AI59,SPN!AI59,EPN!AI59,SPD!AI59,SPMW!AI59,SSEH!AI59,SSES!AI59) -> 259.537 | AJ59: =CHOOSE(m_identity,ENWL!AJ59, NPgN!AJ59, NPgY!AJ59, WMID!AJ59, EMID!AJ59, SWALES!AJ59, SWEST!AJ59, LPN!AJ59,SPN!AJ59,EPN!AJ59,SPD!AJ59,SPMW!AJ59,SSEH!AJ59,SSES!AJ59) -> 267.583 | AK59: =CHOOSE(m_identity,ENWL!AK59, NPgN!AK59, NPgY!AK59, WMID!AK59, EMID!AK59, SWALES!AK59, SWEST!AK59, LPN!AK59,SPN!AK59,EPN!AK59,SPD!AK59,SPMW!AK59,SSEH!AK59,SSES!AK59) -> 275.878 | AL59: =CHOOSE(m_identity,ENWL!AL59, NPgN!AL59, NPgY!AL59, WMID!AL59, EMID!AL59, SWALES!AL59, SWEST!AL59, LPN!AL59,SPN!AL59,EPN!AL59,SPD!AL59,SPMW!AL59,SSEH!AL59,SSES!AL59) -> 284.43 | AM59: =CHOOSE(m_identity,ENWL!AM59, NPgN!AM59, NPgY!AM59, WMID!AM59, EMID!AM59, SWALES!AM59, SWEST!AM59, LPN!AM59,SPN!AM59,EPN!AM59,SPD!AM59,SPMW!AM59,SSEH!AM59,SSES!AM59) -> 293.247 | AN59: =CHOOSE(m_identity,ENWL!AN59, NPgN!AN59, NPgY!AN59, WMID!AN59, EMID!AN59, SWALES!AN59, SWEST!AN59, LPN!AN59,SPN!AN59,EPN!AN59,SPD!AN59,SPMW!AN59,SSEH!AN59,SSES!AN59) -> 302.338 | AO59: =CHOOSE(m_identity,ENWL!AO59, NPgN!AO59, NPgY!AO59, WMID!AO59, EMID!AO59, SWALES!AO59, SWEST!AO59, LPN!AO59,SPN!AO59,EPN!AO59,SPD!AO59,SPMW!AO59,SSEH!AO59,SSES!AO59) -> 311.71 | AP59: =CHOOSE(m_identity,ENWL!AP59, NPgN!AP59, NPgY!AP59, WMID!AP59, EMID!AP59, SWALES!AP59, SWEST!AP59, LPN!AP59,SPN!AP59,EPN!AP59,SPD!AP59,SPMW!AP59,SSEH!AP59,SSES!AP59) -> 321.373 | AQ59: =CHOOSE(m_identity,ENWL!AQ59, NPgN!AQ59, NPgY!AQ59, WMID!AQ59, EMID!AQ59, SWALES!AQ59, SWEST!AQ59, LPN!AQ59,SPN!AQ59,EPN!AQ59,SPD!AQ59,SPMW!AQ59,SSEH!AQ59,SSES!AQ59) -> 331.336
E60: RPI assumption for interest costs | G60: index value | J60: > | AG60: =CHOOSE(m_identity,ENWL!AG60, NPgN!AG60, NPgY!AG60, WMID!AG60, EMID!AG60, SWALES!AG60, SWEST!AG60, LPN!AG60,SPN!AG60,EPN!AG60,SPD!AG60,SPMW!AG60,SSEH!AG60,SSES!AG60) -> 244.675 | AH60: =CHOOSE(m_identity,ENWL!AH60, NPgN!AH60, NPgY!AH60, WMID!AH60, EMID!AH60, SWALES!AH60, SWEST!AH60, LPN!AH60,SPN!AH60,EPN!AH60,SPD!AH60,SPMW!AH60,SSEH!AH60,SSES!AH60) -> 251.733 | AI60: =CHOOSE(m_identity,ENWL!AI60, NPgN!AI60, NPgY!AI60, WMID!AI60, EMID!AI60, SWALES!AI60, SWEST!AI60, LPN!AI60,SPN!AI60,EPN!AI60,SPD!AI60,SPMW!AI60,SSEH!AI60,SSES!AI60) -> 259.537 | AJ60: =CHOOSE(m_identity,ENWL!AJ60, NPgN!AJ60, NPgY!AJ60, WMID!AJ60, EMID!AJ60, SWALES!AJ60, SWEST!AJ60, LPN!AJ60,SPN!AJ60,EPN!AJ60,SPD!AJ60,SPMW!AJ60,SSEH!AJ60,SSES!AJ60) -> 267.583 | AK60: =CHOOSE(m_identity,ENWL!AK60, NPgN!AK60, NPgY!AK60, WMID!AK60, EMID!AK60, SWALES!AK60, SWEST!AK60, LPN!AK60,SPN!AK60,EPN!AK60,SPD!AK60,SPMW!AK60,SSEH!AK60,SSES!AK60) -> 275.878 | AL60: =CHOOSE(m_identity,ENWL!AL60, NPgN!AL60, NPgY!AL60, WMID!AL60, EMID!AL60, SWALES!AL60, SWEST!AL60, LPN!AL60,SPN!AL60,EPN!AL60,SPD!AL60,SPMW!AL60,SSEH!AL60,SSES!AL60) -> 284.43 | AM60: =CHOOSE(m_identity,ENWL!AM60, NPgN!AM60, NPgY!AM60, WMID!AM60, EMID!AM60, SWALES!AM60, SWEST!AM60, LPN!AM60,SPN!AM60,EPN!AM60,SPD!AM60,SPMW!AM60,SSEH!AM60,SSES!AM60) -> 293.247 | AN60: =CHOOSE(m_identity,ENWL!AN60, NPgN!AN60, NPgY!AN60, WMID!AN60, EMID!AN60, SWALES!AN60, SWEST!AN60, LPN!AN60,SPN!AN60,EPN!AN60,SPD!AN60,SPMW!AN60,SSEH!AN60,SSES!AN60) -> 302.338 | AO60: =CHOOSE(m_identity,ENWL!AO60, NPgN!AO60, NPgY!AO60, WMID!AO60, EMID!AO60, SWALES!AO60, SWEST!AO60, LPN!AO60,SPN!AO60,EPN!AO60,SPD!AO60,SPMW!AO60,SSEH!AO60,SSES!AO60) -> 311.71 | AP60: =CHOOSE(m_identity,ENWL!AP60, NPgN!AP60, NPgY!AP60, WMID!AP60, EMID!AP60, SWALES!AP60, SWEST!AP60, LPN!AP60,SPN!AP60,EPN!AP60,SPD!AP60,SPMW!AP60,SSEH!AP60,SSES!AP60) -> 321.373 | AQ60: =CHOOSE(m_identity,ENWL!AQ60, NPgN!AQ60, NPgY!AQ60, WMID!AQ60, EMID!AQ60, SWALES!AQ60, SWEST!AQ60, LPN!AQ60,SPN!AQ60,EPN!AQ60,SPD!AQ60,SPMW!AQ60,SSEH!AQ60,SSES!AQ60) -> 331.336
C62: TIM and capitalisation
E64: Years from t until normal reporting of actual costs | G64: years | I64: =CHOOSE(m_identity,ENWL!I64, NPgN!I64, NPgY!I64, WMID!I64, EMID!I64, SWALES!I64, SWEST!I64, LPN!I64,SPN!I64,EPN!I64,SPD!I64,SPMW!I64,SSEH!I64,SSES!I64) -> 2
E66: Capitalised share of totex | G66: % | AJ66: =CHOOSE(m_identity,ENWL!AJ66, NPgN!AJ66, NPgY!AJ66, WMID!AJ66, EMID!AJ66, SWALES!AJ66, SWEST!AJ66, LPN!AJ66,SPN!AJ66,EPN!AJ66,SPD!AJ66,SPMW!AJ66,SSEH!AJ66,SSES!AJ66) -> 0.7 | AK66: =CHOOSE(m_identity,ENWL!AK66, NPgN!AK66, NPgY!AK66, WMID!AK66, EMID!AK66, SWALES!AK66, SWEST!AK66, LPN!AK66,SPN!AK66,EPN!AK66,SPD!AK66,SPMW!AK66,SSEH!AK66,SSES!AK66) -> 0.7 | AL66: =CHOOSE(m_identity,ENWL!AL66, NPgN!AL66, NPgY!AL66, WMID!AL66, EMID!AL66, SWALES!AL66, SWEST!AL66, LPN!AL66,SPN!AL66,EPN!AL66,SPD!AL66,SPMW!AL66,SSEH!AL66,SSES!AL66) -> 0.7 | AM66: =CHOOSE(m_identity,ENWL!AM66, NPgN!AM66, NPgY!AM66, WMID!AM66, EMID!AM66, SWALES!AM66, SWEST!AM66, LPN!AM66,SPN!AM66,EPN!AM66,SPD!AM66,SPMW!AM66,SSEH!AM66,SSES!AM66) -> 0.7 | AN66: =CHOOSE(m_identity,ENWL!AN66, NPgN!AN66, NPgY!AN66, WMID!AN66, EMID!AN66, SWALES!AN66, SWEST!AN66, LPN!AN66,SPN!AN66,EPN!AN66,SPD!AN66,SPMW!AN66,SSEH!AN66,SSES!AN66) -> 0.7 | AO66: =CHOOSE(m_identity,ENWL!AO66, NPgN!AO66, NPgY!AO66, WMID!AO66, EMID!AO66, SWALES!AO66, SWEST!AO66, LPN!AO66,SPN!AO66,EPN!AO66,SPD!AO66,SPMW!AO66,SSEH!AO66,SSES!AO66) -> 0.7 | AP66: =CHOOSE(m_identity,ENWL!AP66, NPgN!AP66, NPgY!AP66, WMID!AP66, EMID!AP66, SWALES!AP66, SWEST!AP66, LPN!AP66,SPN!AP66,EPN!AP66,SPD!AP66,SPMW!AP66,SSEH!AP66,SSES!AP66) -> 0.7 | AQ66: =CHOOSE(m_identity,ENWL!AQ66, NPgN!AQ66, NPgY!AQ66, WMID!AQ66, EMID!AQ66, SWALES!AQ66, SWEST!AQ66, LPN!AQ66,SPN!AQ66,EPN!AQ66,SPD!AQ66,SPMW!AQ66,SSEH!AQ66,SSES!AQ66) -> 0.7
E68: Additional income % | G68: % | I68: =CHOOSE(m_identity,ENWL!I68, NPgN!I68, NPgY!I68, WMID!I68, EMID!I68, SWALES!I68, SWEST!I68, LPN!I68,SPN!I68,EPN!I68,SPD!I68,SPMW!I68,SSEH!I68,SSES!I68) -> 0.00120122744
E70: Incentive Strength | G70: % | I70: =CHOOSE(m_identity,ENWL!I70, NPgN!I70, NPgY!I70, WMID!I70, EMID!I70, SWALES!I70, SWEST!I70, LPN!I70,SPN!I70,EPN!I70,SPD!I70,SPMW!I70,SSEH!I70,SSES!I70) -> 0.5647137527
E72: Weight of Ofgem's view on price control totex | G72: % | I72: =CHOOSE(m_identity,ENWL!I72, NPgN!I72, NPgY!I72, WMID!I72, EMID!I72, SWALES!I72, SWEST!I72, LPN!I72,SPN!I72,EPN!I72,SPD!I72,SPMW!I72,SSEH!I72,SSES!I72) -> 0.75
E73: Weight of operator's view on price control totex | G73: % | I73: =CHOOSE(m_identity,ENWL!I73, NPgN!I73, NPgY!I73, WMID!I73, EMID!I73, SWALES!I73, SWEST!I73, LPN!I73,SPN!I73,EPN!I73,SPD!I73,SPMW!I73,SSEH!I73,SSES!I73) -> 0.25
E75: Ofgem's view of licensee totex | G75: £m 12/13 prices | I75: =CHOOSE(m_identity,ENWL!I75, NPgN!I75, NPgY!I75, WMID!I75, EMID!I75, SWALES!I75, SWEST!I75, LPN!I75,SPN!I75,EPN!I75,SPD!I75,SPMW!I75,SSEH!I75,SSES!I75) -> 2304.270388
E76: Operator's view of licensee totex | G76: £m 12/13 prices | I76: =CHOOSE(m_identity,ENWL!I76, NPgN!I76, NPgY!I76, WMID!I76, EMID!I76, SWALES!I76, SWEST!I76, LPN!I76,SPN!I76,EPN!I76,SPD!I76,SPMW!I76,SSEH!I76,SSES!I76) -> 2425.037871
E78: Ofgem's view of group price control totex | G78: £m 12/13 prices | I78: =CHOOSE(m_identity,ENWL!I78, NPgN!I78, NPgY!I78, WMID!I78, EMID!I78, SWALES!I78, SWEST!I78, LPN!I78,SPN!I78,EPN!I78,SPD!I78,SPMW!I78,SSEH!I78,SSES!I78) -> 3395.805907
E79: Operator's view of group price control totex | G79: £m 12/13 prices | I79: =CHOOSE(m_identity,ENWL!I79, NPgN!I79, NPgY!I79, WMID!I79, EMID!I79, SWALES!I79, SWEST!I79, LPN!I79,SPN!I79,EPN!I79,SPD!I79,SPMW!I79,SSEH!I79,SSES!I79) -> 3635.453766
C81: Finance
E83: Minimum equity issuance threshold | G83: % | I83: =CHOOSE(m_identity,ENWL!I83, NPgN!I83, NPgY!I83, WMID!I83, EMID!I83, SWALES!I83, SWEST!I83, LPN!I83,SPN!I83,EPN!I83,SPD!I83,SPMW!I83,SSEH!I83,SSES!I83) -> 0.05
E84: Equity issuance costs | G84: % | I84: =CHOOSE(m_identity,ENWL!I84, NPgN!I84, NPgY!I84, WMID!I84, EMID!I84, SWALES!I84, SWEST!I84, LPN!I84,SPN!I84,EPN!I84,SPD!I84,SPMW!I84,SSEH!I84,SSES!I84) -> 0.05
E85: Assumed dividends as % of notional equity portion of RAV | G85: % | I85: =CHOOSE(m_identity,ENWL!I85, NPgN!I85, NPgY!I85, WMID!I85, EMID!I85, SWALES!I85, SWEST!I85, LPN!I85,SPN!I85,EPN!I85,SPD!I85,SPMW!I85,SSEH!I85,SSES!I85) -> 0.05
E87: Equity issuance gearing target | G87: % | AJ87: =CHOOSE(m_identity,ENWL!AJ87, NPgN!AJ87, NPgY!AJ87, WMID!AJ87, EMID!AJ87, SWALES!AJ87, SWEST!AJ87, LPN!AJ87,SPN!AJ87,EPN!AJ87,SPD!AJ87,SPMW!AJ87,SSEH!AJ87,SSES!AJ87) -> 0.65 | AK87: =CHOOSE(m_identity,ENWL!AK87, NPgN!AK87, NPgY!AK87, WMID!AK87, EMID!AK87, SWALES!AK87, SWEST!AK87, LPN!AK87,SPN!AK87,EPN!AK87,SPD!AK87,SPMW!AK87,SSEH!AK87,SSES!AK87) -> 0.65 | AL87: =CHOOSE(m_identity,ENWL!AL87, NPgN!AL87, NPgY!AL87, WMID!AL87, EMID!AL87, SWALES!AL87, SWEST!AL87, LPN!AL87,SPN!AL87,EPN!AL87,SPD!AL87,SPMW!AL87,SSEH!AL87,SSES!AL87) -> 0.65 | AM87: =CHOOSE(m_identity,ENWL!AM87, NPgN!AM87, NPgY!AM87, WMID!AM87, EMID!AM87, SWALES!AM87, SWEST!AM87, LPN!AM87,SPN!AM87,EPN!AM87,SPD!AM87,SPMW!AM87,SSEH!AM87,SSES!AM87) -> 0.65 | AN87: =CHOOSE(m_identity,ENWL!AN87, NPgN!AN87, NPgY!AN87, WMID!AN87, EMID!AN87, SWALES!AN87, SWEST!AN87, LPN!AN87,SPN!AN87,EPN!AN87,SPD!AN87,SPMW!AN87,SSEH!AN87,SSES!AN87) -> 0.65 | AO87: =CHOOSE(m_identity,ENWL!AO87, NPgN!AO87, NPgY!AO87, WMID!AO87, EMID!AO87, SWALES!AO87, SWEST!AO87, LPN!AO87,SPN!AO87,EPN!AO87,SPD!AO87,SPMW!AO87,SSEH!AO87,SSES!AO87) -> 0.65 | AP87: =CHOOSE(m_identity,ENWL!AP87, NPgN!AP87, NPgY!AP87, WMID!AP87, EMID!AP87, SWALES!AP87, SWEST!AP87, LPN!AP87,SPN!AP87,EPN!AP87,SPD!AP87,SPMW!AP87,SSEH!AP87,SSES!AP87) -> 0.65 | AQ87: =CHOOSE(m_identity,ENWL!AQ87, NPgN!AQ87, NPgY!AQ87, WMID!AQ87, EMID!AQ87, SWALES!AQ87, SWEST!AQ87, LPN!AQ87,SPN!AQ87,EPN!AQ87,SPD!AQ87,SPMW!AQ87,SSEH!AQ87,SSES!AQ87) -> 0.65
E89: Index-linked debt as a percentage of net debt | G89: % | AJ89: =CHOOSE(m_identity,ENWL!AJ89, NPgN!AJ89, NPgY!AJ89, WMID!AJ89, EMID!AJ89, SWALES!AJ89, SWEST!AJ89, LPN!AJ89,SPN!AJ89,EPN!AJ89,SPD!AJ89,SPMW!AJ89,SSEH!AJ89,SSES!AJ89) -> 0.25 | AK89: =CHOOSE(m_identity,ENWL!AK89, NPgN!AK89, NPgY!AK89, WMID!AK89, EMID!AK89, SWALES!AK89, SWEST!AK89, LPN!AK89,SPN!AK89,EPN!AK89,SPD!AK89,SPMW!AK89,SSEH!AK89,SSES!AK89) -> 0.25 | AL89: =CHOOSE(m_identity,ENWL!AL89, NPgN!AL89, NPgY!AL89, WMID!AL89, EMID!AL89, SWALES!AL89, SWEST!AL89, LPN!AL89,SPN!AL89,EPN!AL89,SPD!AL89,SPMW!AL89,SSEH!AL89,SSES!AL89) -> 0.25 | AM89: =CHOOSE(m_identity,ENWL!AM89, NPgN!AM89, NPgY!AM89, WMID!AM89, EMID!AM89, SWALES!AM89, SWEST!AM89, LPN!AM89,SPN!AM89,EPN!AM89,SPD!AM89,SPMW!AM89,SSEH!AM89,SSES!AM89) -> 0.25 | AN89: =CHOOSE(m_identity,ENWL!AN89, NPgN!AN89, NPgY!AN89, WMID!AN89, EMID!AN89, SWALES!AN89, SWEST!AN89, LPN!AN89,SPN!AN89,EPN!AN89,SPD!AN89,SPMW!AN89,SSEH!AN89,SSES!AN89) -> 0.25 | AO89: =CHOOSE(m_identity,ENWL!AO89, NPgN!AO89, NPgY!AO89, WMID!AO89, EMID!AO89, SWALES!AO89, SWEST!AO89, LPN!AO89,SPN!AO89,EPN!AO89,SPD!AO89,SPMW!AO89,SSEH!AO89,SSES!AO89) -> 0.25 | AP89: =CHOOSE(m_identity,ENWL!AP89, NPgN!AP89, NPgY!AP89, WMID!AP89, EMID!AP89, SWALES!AP89, SWEST!AP89, LPN!AP89,SPN!AP89,EPN!AP89,SPD!AP89,SPMW!AP89,SSEH!AP89,SSES!AP89) -> 0.25 | AQ89: =CHOOSE(m_identity,ENWL!AQ89, NPgN!AQ89, NPgY!AQ89, WMID!AQ89, EMID!AQ89, SWALES!AQ89, SWEST!AQ89, LPN!AQ89,SPN!AQ89,EPN!AQ89,SPD!AQ89,SPMW!AQ89,SSEH!AQ89,SSES!AQ89) -> 0.25
B91: Expenditure
C93: Totex
D95: Non-variant allowances
E97: Non-variant allowed load related capex | G97: £m 12/13 prices | AJ97: =CHOOSE(m_identity,ENWL!AJ97, NPgN!AJ97, NPgY!AJ97, WMID!AJ97, EMID!AJ97, SWALES!AJ97, SWEST!AJ97, LPN!AJ97,SPN!AJ97,EPN!AJ97,SPD!AJ97,SPMW!AJ97,SSEH!AJ97,SSES!AJ97) -> 0 | AK97: =CHOOSE(m_identity,ENWL!AK97, NPgN!AK97, NPgY!AK97, WMID!AK97, EMID!AK97, SWALES!AK97, SWEST!AK97, LPN!AK97,SPN!AK97,EPN!AK97,SPD!AK97,SPMW!AK97,SSEH!AK97,SSES!AK97) -> 0 | AL97: =CHOOSE(m_identity,ENWL!AL97, NPgN!AL97, NPgY!AL97, WMID!AL97, EMID!AL97, SWALES!AL97, SWEST!AL97, LPN!AL97,SPN!AL97,EPN!AL97,SPD!AL97,SPMW!AL97,SSEH!AL97,SSES!AL97) -> 0 | AM97: =CHOOSE(m_identity,ENWL!AM97, NPgN!AM97, NPgY!AM97, WMID!AM97, EMID!AM97, SWALES!AM97, SWEST!AM97, LPN!AM97,SPN!AM97,EPN!AM97,SPD!AM97,SPMW!AM97,SSEH!AM97,SSES!AM97) -> 0 | AN97: =CHOOSE(m_identity,ENWL!AN97, NPgN!AN97, NPgY!AN97, WMID!AN97, EMID!AN97, SWALES!AN97, SWEST!AN97, LPN!AN97,SPN!AN97,EPN!AN97,SPD!AN97,SPMW!AN97,SSEH!AN97,SSES!AN97) -> 0 | AO97: =CHOOSE(m_identity,ENWL!AO97, NPgN!AO97, NPgY!AO97, WMID!AO97, EMID!AO97, SWALES!AO97, SWEST!AO97, LPN!AO97,SPN!AO97,EPN!AO97,SPD!AO97,SPMW!AO97,SSEH!AO97,SSES!AO97) -> 0 | AP97: =CHOOSE(m_identity,ENWL!AP97, NPgN!AP97, NPgY!AP97, WMID!AP97, EMID!AP97, SWALES!AP97, SWEST!AP97, LPN!AP97,SPN!AP97,EPN!AP97,SPD!AP97,SPMW!AP97,SSEH!AP97,SSES!AP97) -> 0 | AQ97: =CHOOSE(m_identity,ENWL!AQ97, NPgN!AQ97, NPgY!AQ97, WMID!AQ97, EMID!AQ97, SWALES!AQ97, SWEST!AQ97, LPN!AQ97,SPN!AQ97,EPN!AQ97,SPD!AQ97,SPMW!AQ97,SSEH!AQ97,SSES!AQ97) -> 0
E98: Non-variant allowed non-load related capex - asset replacement | G98: £m 12/13 prices | AJ98: =CHOOSE(m_identity,ENWL!AJ98, NPgN!AJ98, NPgY!AJ98, WMID!AJ98, EMID!AJ98, SWALES!AJ98, SWEST!AJ98, LPN!AJ98,SPN!AJ98,EPN!AJ98,SPD!AJ98,SPMW!AJ98,SSEH!AJ98,SSES!AJ98) -> 98.54428553 | AK98: =CHOOSE(m_identity,ENWL!AK98, NPgN!AK98, NPgY!AK98, WMID!AK98, EMID!AK98, SWALES!AK98, SWEST!AK98, LPN!AK98,SPN!AK98,EPN!AK98,SPD!AK98,SPMW!AK98,SSEH!AK98,SSES!AK98) -> 98.10132146 | AL98: =CHOOSE(m_identity,ENWL!AL98, NPgN!AL98, NPgY!AL98, WMID!AL98, EMID!AL98, SWALES!AL98, SWEST!AL98, LPN!AL98,SPN!AL98,EPN!AL98,SPD!AL98,SPMW!AL98,SSEH!AL98,SSES!AL98) -> 94.12784613 | AM98: =CHOOSE(m_identity,ENWL!AM98, NPgN!AM98, NPgY!AM98, WMID!AM98, EMID!AM98, SWALES!AM98, SWEST!AM98, LPN!AM98,SPN!AM98,EPN!AM98,SPD!AM98,SPMW!AM98,SSEH!AM98,SSES!AM98) -> 90.32826066 | AN98: =CHOOSE(m_identity,ENWL!AN98, NPgN!AN98, NPgY!AN98, WMID!AN98, EMID!AN98, SWALES!AN98, SWEST!AN98, LPN!AN98,SPN!AN98,EPN!AN98,SPD!AN98,SPMW!AN98,SSEH!AN98,SSES!AN98) -> 85.80297784 | AO98: =CHOOSE(m_identity,ENWL!AO98, NPgN!AO98, NPgY!AO98, WMID!AO98, EMID!AO98, SWALES!AO98, SWEST!AO98, LPN!AO98,SPN!AO98,EPN!AO98,SPD!AO98,SPMW!AO98,SSEH!AO98,SSES!AO98) -> 80.78402175 | AP98: =CHOOSE(m_identity,ENWL!AP98, NPgN!AP98, NPgY!AP98, WMID!AP98, EMID!AP98, SWALES!AP98, SWEST!AP98, LPN!AP98,SPN!AP98,EPN!AP98,SPD!AP98,SPMW!AP98,SSEH!AP98,SSES!AP98) -> 79.46528115 | AQ98: =CHOOSE(m_identity,ENWL!AQ98, NPgN!AQ98, NPgY!AQ98, WMID!AQ98, EMID!AQ98, SWALES!AQ98, SWEST!AQ98, LPN!AQ98,SPN!AQ98,EPN!AQ98,SPD!AQ98,SPMW!AQ98,SSEH!AQ98,SSES!AQ98) -> 81.21298545
E99: Non-variant allowed non-load related capex - other (Net of Disposals) | G99: £m 12/13 prices | AJ99: =CHOOSE(m_identity,ENWL!AJ99, NPgN!AJ99, NPgY!AJ99, WMID!AJ99, EMID!AJ99, SWALES!AJ99, SWEST!AJ99, LPN!AJ99,SPN!AJ99,EPN!AJ99,SPD!AJ99,SPMW!AJ99,SSEH!AJ99,SSES!AJ99)+IF(m_tracked=1,AJ$367,0) -> 18.28381296 | AK99: =CHOOSE(m_identity,ENWL!AK99, NPgN!AK99, NPgY!AK99, WMID!AK99, EMID!AK99, SWALES!AK99, SWEST!AK99, LPN!AK99,SPN!AK99,EPN!AK99,SPD!AK99,SPMW!AK99,SSEH!AK99,SSES!AK99)+IF(m_tracked=1,AK$367,0) -> 18.88204475 | AL99: =CHOOSE(m_identity,ENWL!AL99, NPgN!AL99, NPgY!AL99, WMID!AL99, EMID!AL99, SWALES!AL99, SWEST!AL99, LPN!AL99,SPN!AL99,EPN!AL99,SPD!AL99,SPMW!AL99,SSEH!AL99,SSES!AL99)+IF(m_tracked=1,AL$367,0) -> 15.91201473 | AM99: =CHOOSE(m_identity,ENWL!AM99, NPgN!AM99, NPgY!AM99, WMID!AM99, EMID!AM99, SWALES!AM99, SWEST!AM99, LPN!AM99,SPN!AM99,EPN!AM99,SPD!AM99,SPMW!AM99,SSEH!AM99,SSES!AM99)+IF(m_tracked=1,AM$367,0) -> 16.84892395 | AN99: =CHOOSE(m_identity,ENWL!AN99, NPgN!AN99, NPgY!AN99, WMID!AN99, EMID!AN99, SWALES!AN99, SWEST!AN99, LPN!AN99,SPN!AN99,EPN!AN99,SPD!AN99,SPMW!AN99,SSEH!AN99,SSES!AN99)+IF(m_tracked=1,AN$367,0) -> 12.38632703 | AO99: =CHOOSE(m_identity,ENWL!AO99, NPgN!AO99, NPgY!AO99, WMID!AO99, EMID!AO99, SWALES!AO99, SWEST!AO99, LPN!AO99,SPN!AO99,EPN!AO99,SPD!AO99,SPMW!AO99,SSEH!AO99,SSES!AO99)+IF(m_tracked=1,AO$367,0) -> 11.81186202 | AP99: =CHOOSE(m_identity,ENWL!AP99, NPgN!AP99, NPgY!AP99, WMID!AP99, EMID!AP99, SWALES!AP99, SWEST!AP99, LPN!AP99,SPN!AP99,EPN!AP99,SPD!AP99,SPMW!AP99,SSEH!AP99,SSES!AP99)+IF(m_tracked=1,AP$367,0) -> 11.486702 | AQ99: =CHOOSE(m_identity,ENWL!AQ99, NPgN!AQ99, NPgY!AQ99, WMID!AQ99, EMID!AQ99, SWALES!AQ99, SWEST!AQ99, LPN!AQ99,SPN!AQ99,EPN!AQ99,SPD!AQ99,SPMW!AQ99,SSEH!AQ99,SSES!AQ99)+IF(m_tracked=1,AQ$367,0) -> 10.92631677
E100: Non-variant allowed faults | G100: £m 12/13 prices | AJ100: =CHOOSE(m_identity,ENWL!AJ100, NPgN!AJ100, NPgY!AJ100, WMID!AJ100, EMID!AJ100, SWALES!AJ100, SWEST!AJ100, LPN!AJ100,SPN!AJ100,EPN!AJ100,SPD!AJ100,SPMW!AJ100,SSEH!AJ100,SSES!AJ100) -> 33.07547295 | AK100: =CHOOSE(m_identity,ENWL!AK100, NPgN!AK100, NPgY!AK100, WMID!AK100, EMID!AK100, SWALES!AK100, SWEST!AK100, LPN!AK100,SPN!AK100,EPN!AK100,SPD!AK100,SPMW!AK100,SSEH!AK100,SSES!AK100) -> 32.64756665 | AL100: =CHOOSE(m_identity,ENWL!AL100, NPgN!AL100, NPgY!AL100, WMID!AL100, EMID!AL100, SWALES!AL100, SWEST!AL100, LPN!AL100,SPN!AL100,EPN!AL100,SPD!AL100,SPMW!AL100,SSEH!AL100,SSES!AL100) -> 32.40972392 | AM100: =CHOOSE(m_identity,ENWL!AM100, NPgN!AM100, NPgY!AM100, WMID!AM100, EMID!AM100, SWALES!AM100, SWEST!AM100, LPN!AM100,SPN!AM100,EPN!AM100,SPD!AM100,SPMW!AM100,SSEH!AM100,SSES!AM100) -> 31.95955749 | AN100: =CHOOSE(m_identity,ENWL!AN100, NPgN!AN100, NPgY!AN100, WMID!AN100, EMID!AN100, SWALES!AN100, SWEST!AN100, LPN!AN100,SPN!AN100,EPN!AN100,SPD!AN100,SPMW!AN100,SSEH!AN100,SSES!AN100) -> 31.72850049 | AO100: =CHOOSE(m_identity,ENWL!AO100, NPgN!AO100, NPgY!AO100, WMID!AO100, EMID!AO100, SWALES!AO100, SWEST!AO100, LPN!AO100,SPN!AO100,EPN!AO100,SPD!AO100,SPMW!AO100,SSEH!AO100,SSES!AO100) -> 31.33750833 | AP100: =CHOOSE(m_identity,ENWL!AP100, NPgN!AP100, NPgY!AP100, WMID!AP100, EMID!AP100, SWALES!AP100, SWEST!AP100, LPN!AP100,SPN!AP100,EPN!AP100,SPD!AP100,SPMW!AP100,SSEH!AP100,SSES!AP100) -> 32.26907557 | AQ100: =CHOOSE(m_identity,ENWL!AQ100, NPgN!AQ100, NPgY!AQ100, WMID!AQ100, EMID!AQ100, SWALES!AQ100, SWEST!AQ100, LPN!AQ100,SPN!AQ100,EPN!AQ100,SPD!AQ100,SPMW!AQ100,SSEH!AQ100,SSES!AQ100) -> 30.71634812
E101: Non-variant tree cutting | G101: £m 12/13 prices | AJ101: =CHOOSE(m_identity,ENWL!AJ101, NPgN!AJ101, NPgY!AJ101, WMID!AJ101, EMID!AJ101, SWALES!AJ101, SWEST!AJ101, LPN!AJ101,SPN!AJ101,EPN!AJ101,SPD!AJ101,SPMW!AJ101,SSEH!AJ101,SSES!AJ101) -> 14.4646671 | AK101: =CHOOSE(m_identity,ENWL!AK101, NPgN!AK101, NPgY!AK101, WMID!AK101, EMID!AK101, SWALES!AK101, SWEST!AK101, LPN!AK101,SPN!AK101,EPN!AK101,SPD!AK101,SPMW!AK101,SSEH!AK101,SSES!AK101) -> 13.78176026 | AL101: =CHOOSE(m_identity,ENWL!AL101, NPgN!AL101, NPgY!AL101, WMID!AL101, EMID!AL101, SWALES!AL101, SWEST!AL101, LPN!AL101,SPN!AL101,EPN!AL101,SPD!AL101,SPMW!AL101,SSEH!AL101,SSES!AL101) -> 13.29126159 | AM101: =CHOOSE(m_identity,ENWL!AM101, NPgN!AM101, NPgY!AM101, WMID!AM101, EMID!AM101, SWALES!AM101, SWEST!AM101, LPN!AM101,SPN!AM101,EPN!AM101,SPD!AM101,SPMW!AM101,SSEH!AM101,SSES!AM101) -> 12.01613759 | AN101: =CHOOSE(m_identity,ENWL!AN101, NPgN!AN101, NPgY!AN101, WMID!AN101, EMID!AN101, SWALES!AN101, SWEST!AN101, LPN!AN101,SPN!AN101,EPN!AN101,SPD!AN101,SPMW!AN101,SSEH!AN101,SSES!AN101) -> 11.8385551 | AO101: =CHOOSE(m_identity,ENWL!AO101, NPgN!AO101, NPgY!AO101, WMID!AO101, EMID!AO101, SWALES!AO101, SWEST!AO101, LPN!AO101,SPN!AO101,EPN!AO101,SPD!AO101,SPMW!AO101,SSEH!AO101,SSES!AO101) -> 11.76402734 | AP101: =CHOOSE(m_identity,ENWL!AP101, NPgN!AP101, NPgY!AP101, WMID!AP101, EMID!AP101, SWALES!AP101, SWEST!AP101, LPN!AP101,SPN!AP101,EPN!AP101,SPD!AP101,SPMW!AP101,SSEH!AP101,SSES!AP101) -> 11.58342134 | AQ101: =CHOOSE(m_identity,ENWL!AQ101, NPgN!AQ101, NPgY!AQ101, WMID!AQ101, EMID!AQ101, SWALES!AQ101, SWEST!AQ101, LPN!AQ101,SPN!AQ101,EPN!AQ101,SPD!AQ101,SPMW!AQ101,SSEH!AQ101,SSES!AQ101) -> 11.40619036
E102: Non-variant allowed 100% ‘revenue pool’ expenditure | G102: £m 12/13 prices | AJ102: =CHOOSE(m_identity,ENWL!AJ102, NPgN!AJ102, NPgY!AJ102, WMID!AJ102, EMID!AJ102, SWALES!AJ102, SWEST!AJ102, LPN!AJ102,SPN!AJ102,EPN!AJ102,SPD!AJ102,SPMW!AJ102,SSEH!AJ102,SSES!AJ102) -> 10.65609271 | AK102: =CHOOSE(m_identity,ENWL!AK102, NPgN!AK102, NPgY!AK102, WMID!AK102, EMID!AK102, SWALES!AK102, SWEST!AK102, LPN!AK102,SPN!AK102,EPN!AK102,SPD!AK102,SPMW!AK102,SSEH!AK102,SSES!AK102) -> 10.57726167 | AL102: =CHOOSE(m_identity,ENWL!AL102, NPgN!AL102, NPgY!AL102, WMID!AL102, EMID!AL102, SWALES!AL102, SWEST!AL102, LPN!AL102,SPN!AL102,EPN!AL102,SPD!AL102,SPMW!AL102,SSEH!AL102,SSES!AL102) -> 10.36376818 | AM102: =CHOOSE(m_identity,ENWL!AM102, NPgN!AM102, NPgY!AM102, WMID!AM102, EMID!AM102, SWALES!AM102, SWEST!AM102, LPN!AM102,SPN!AM102,EPN!AM102,SPD!AM102,SPMW!AM102,SSEH!AM102,SSES!AM102) -> 10.18708382 | AN102: =CHOOSE(m_identity,ENWL!AN102, NPgN!AN102, NPgY!AN102, WMID!AN102, EMID!AN102, SWALES!AN102, SWEST!AN102, LPN!AN102,SPN!AN102,EPN!AN102,SPD!AN102,SPMW!AN102,SSEH!AN102,SSES!AN102) -> 9.864297296 | AO102: =CHOOSE(m_identity,ENWL!AO102, NPgN!AO102, NPgY!AO102, WMID!AO102, EMID!AO102, SWALES!AO102, SWEST!AO102, LPN!AO102,SPN!AO102,EPN!AO102,SPD!AO102,SPMW!AO102,SSEH!AO102,SSES!AO102) -> 9.584600354 | AP102: =CHOOSE(m_identity,ENWL!AP102, NPgN!AP102, NPgY!AP102, WMID!AP102, EMID!AP102, SWALES!AP102, SWEST!AP102, LPN!AP102,SPN!AP102,EPN!AP102,SPD!AP102,SPMW!AP102,SSEH!AP102,SSES!AP102) -> 9.545373434 | AQ102: =CHOOSE(m_identity,ENWL!AQ102, NPgN!AQ102, NPgY!AQ102, WMID!AQ102, EMID!AQ102, SWALES!AQ102, SWEST!AQ102, LPN!AQ102,SPN!AQ102,EPN!AQ102,SPD!AQ102,SPMW!AQ102,SSEH!AQ102,SSES!AQ102) -> 9.423228223
E103: Non-variant allowed controllable opex (Net of DRS 8) | G103: £m 12/13 prices | AJ103: =CHOOSE(m_identity,ENWL!AJ103, NPgN!AJ103, NPgY!AJ103, WMID!AJ103, EMID!AJ103, SWALES!AJ103, SWEST!AJ103, LPN!AJ103,SPN!AJ103,EPN!AJ103,SPD!AJ103,SPMW!AJ103,SSEH!AJ103,SSES!AJ103)-IF(m_tracked=1,AJ$285,0) -> 99.60226431 | AK103: =CHOOSE(m_identity,ENWL!AK103, NPgN!AK103, NPgY!AK103, WMID!AK103, EMID!AK103, SWALES!AK103, SWEST!AK103, LPN!AK103,SPN!AK103,EPN!AK103,SPD!AK103,SPMW!AK103,SSEH!AK103,SSES!AK103)-IF(m_tracked=1,AK$285,0) -> 98.87046673 | AL103: =CHOOSE(m_identity,ENWL!AL103, NPgN!AL103, NPgY!AL103, WMID!AL103, EMID!AL103, SWALES!AL103, SWEST!AL103, LPN!AL103,SPN!AL103,EPN!AL103,SPD!AL103,SPMW!AL103,SSEH!AL103,SSES!AL103)-IF(m_tracked=1,AL$285,0) -> 99.82435851 | AM103: =CHOOSE(m_identity,ENWL!AM103, NPgN!AM103, NPgY!AM103, WMID!AM103, EMID!AM103, SWALES!AM103, SWEST!AM103, LPN!AM103,SPN!AM103,EPN!AM103,SPD!AM103,SPMW!AM103,SSEH!AM103,SSES!AM103)-IF(m_tracked=1,AM$285,0) -> 100.1266088 | AN103: =CHOOSE(m_identity,ENWL!AN103, NPgN!AN103, NPgY!AN103, WMID!AN103, EMID!AN103, SWALES!AN103, SWEST!AN103, LPN!AN103,SPN!AN103,EPN!AN103,SPD!AN103,SPMW!AN103,SSEH!AN103,SSES!AN103)-IF(m_tracked=1,AN$285,0) -> 99.88550221 | AO103: =CHOOSE(m_identity,ENWL!AO103, NPgN!AO103, NPgY!AO103, WMID!AO103, EMID!AO103, SWALES!AO103, SWEST!AO103, LPN!AO103,SPN!AO103,EPN!AO103,SPD!AO103,SPMW!AO103,SSEH!AO103,SSES!AO103)-IF(m_tracked=1,AO$285,0) -> 98.46051156 | AP103: =CHOOSE(m_identity,ENWL!AP103, NPgN!AP103, NPgY!AP103, WMID!AP103, EMID!AP103, SWALES!AP103, SWEST!AP103, LPN!AP103,SPN!AP103,EPN!AP103,SPD!AP103,SPMW!AP103,SSEH!AP103,SSES!AP103)-IF(m_tracked=1,AP$285,0) -> 98.61402505 | AQ103: =CHOOSE(m_identity,ENWL!AQ103, NPgN!AQ103, NPgY!AQ103, WMID!AQ103, EMID!AQ103, SWALES!AQ103, SWEST!AQ103, LPN!AQ103,SPN!AQ103,EPN!AQ103,SPD!AQ103,SPMW!AQ103,SSEH!AQ103,SSES!AQ103)-IF(m_tracked=1,AQ$285,0) -> 96.98953265
D105: Variant allowances
E107: =E19 -> Allowed Expenditure - Enhanced Physical Site Security | G107: £m 12/13 prices | AJ107: =AJ19 -> 0 | AK107: =AK19 -> 0 | AL107: 0 | AM107: 0 | AN107: 0 | AO107: 0 | AP107: 0 | AQ107: 0
E108: Allocation to load related capex | G108: % | AJ108: =CHOOSE(m_identity,ENWL!AJ108, NPgN!AJ108, NPgY!AJ108, WMID!AJ108, EMID!AJ108, SWALES!AJ108, SWEST!AJ108, LPN!AJ108,SPN!AJ108,EPN!AJ108,SPD!AJ108,SPMW!AJ108,SSEH!AJ108,SSES!AJ108) -> 0 | AK108: =CHOOSE(m_identity,ENWL!AK108, NPgN!AK108, NPgY!AK108, WMID!AK108, EMID!AK108, SWALES!AK108, SWEST!AK108, LPN!AK108,SPN!AK108,EPN!AK108,SPD!AK108,SPMW!AK108,SSEH!AK108,SSES!AK108) -> 0 | AL108: =CHOOSE(m_identity,ENWL!AL108, NPgN!AL108, NPgY!AL108, WMID!AL108, EMID!AL108, SWALES!AL108, SWEST!AL108, LPN!AL108,SPN!AL108,EPN!AL108,SPD!AL108,SPMW!AL108,SSEH!AL108,SSES!AL108) -> 0 | AM108: =CHOOSE(m_identity,ENWL!AM108, NPgN!AM108, NPgY!AM108, WMID!AM108, EMID!AM108, SWALES!AM108, SWEST!AM108, LPN!AM108,SPN!AM108,EPN!AM108,SPD!AM108,SPMW!AM108,SSEH!AM108,SSES!AM108) -> 0 | AN108: =CHOOSE(m_identity,ENWL!AN108, NPgN!AN108, NPgY!AN108, WMID!AN108, EMID!AN108, SWALES!AN108, SWEST!AN108, LPN!AN108,SPN!AN108,EPN!AN108,SPD!AN108,SPMW!AN108,SSEH!AN108,SSES!AN108) -> 0 | AO108: =CHOOSE(m_identity,ENWL!AO108, NPgN!AO108, NPgY!AO108, WMID!AO108, EMID!AO108, SWALES!AO108, SWEST!AO108, LPN!AO108,SPN!AO108,EPN!AO108,SPD!AO108,SPMW!AO108,SSEH!AO108,SSES!AO108) -> 0 | AP108: =CHOOSE(m_identity,ENWL!AP108, NPgN!AP108, NPgY!AP108, WMID!AP108, EMID!AP108, SWALES!AP108, SWEST!AP108, LPN!AP108,SPN!AP108,EPN!AP108,SPD!AP108,SPMW!AP108,SSEH!AP108,SSES!AP108) -> 0 | AQ108: =CHOOSE(m_identity,ENWL!AQ108, NPgN!AQ108, NPgY!AQ108, WMID!AQ108, EMID!AQ108, SWALES!AQ108, SWEST!AQ108, LPN!AQ108,SPN!AQ108,EPN!AQ108,SPD!AQ108,SPMW!AQ108,SSEH!AQ108,SSES!AQ108) -> 0
E109: Allocation to non-load related capex - asset replacement | G109: % | AJ109: =CHOOSE(m_identity,ENWL!AJ109, NPgN!AJ109, NPgY!AJ109, WMID!AJ109, EMID!AJ109, SWALES!AJ109, SWEST!AJ109, LPN!AJ109,SPN!AJ109,EPN!AJ109,SPD!AJ109,SPMW!AJ109,SSEH!AJ109,SSES!AJ109) -> 0.945186369 | AK109: =CHOOSE(m_identity,ENWL!AK109, NPgN!AK109, NPgY!AK109, WMID!AK109, EMID!AK109, SWALES!AK109, SWEST!AK109, LPN!AK109,SPN!AK109,EPN!AK109,SPD!AK109,SPMW!AK109,SSEH!AK109,SSES!AK109) -> 0.945082379 | AL109: =CHOOSE(m_identity,ENWL!AL109, NPgN!AL109, NPgY!AL109, WMID!AL109, EMID!AL109, SWALES!AL109, SWEST!AL109, LPN!AL109,SPN!AL109,EPN!AL109,SPD!AL109,SPMW!AL109,SSEH!AL109,SSES!AL109) -> 0.9451246633 | AM109: =CHOOSE(m_identity,ENWL!AM109, NPgN!AM109, NPgY!AM109, WMID!AM109, EMID!AM109, SWALES!AM109, SWEST!AM109, LPN!AM109,SPN!AM109,EPN!AM109,SPD!AM109,SPMW!AM109,SSEH!AM109,SSES!AM109) -> 0.945302499 | AN109: =CHOOSE(m_identity,ENWL!AN109, NPgN!AN109, NPgY!AN109, WMID!AN109, EMID!AN109, SWALES!AN109, SWEST!AN109, LPN!AN109,SPN!AN109,EPN!AN109,SPD!AN109,SPMW!AN109,SSEH!AN109,SSES!AN109) -> 0.9452043653 | AO109: =CHOOSE(m_identity,ENWL!AO109, NPgN!AO109, NPgY!AO109, WMID!AO109, EMID!AO109, SWALES!AO109, SWEST!AO109, LPN!AO109,SPN!AO109,EPN!AO109,SPD!AO109,SPMW!AO109,SSEH!AO109,SSES!AO109) -> 0.945243028 | AP109: =CHOOSE(m_identity,ENWL!AP109, NPgN!AP109, NPgY!AP109, WMID!AP109, EMID!AP109, SWALES!AP109, SWEST!AP109, LPN!AP109,SPN!AP109,EPN!AP109,SPD!AP109,SPMW!AP109,SSEH!AP109,SSES!AP109) -> 0.9454462248 | AQ109: =CHOOSE(m_identity,ENWL!AQ109, NPgN!AQ109, NPgY!AQ109, WMID!AQ109, EMID!AQ109, SWALES!AQ109, SWEST!AQ109, LPN!AQ109,SPN!AQ109,EPN!AQ109,SPD!AQ109,SPMW!AQ109,SSEH!AQ109,SSES!AQ109) -> 0.9453250514
E110: Allocation to non-load related capex - other | G110: % | AJ110: =CHOOSE(m_identity,ENWL!AJ110, NPgN!AJ110, NPgY!AJ110, WMID!AJ110, EMID!AJ110, SWALES!AJ110, SWEST!AJ110, LPN!AJ110,SPN!AJ110,EPN!AJ110,SPD!AJ110,SPMW!AJ110,SSEH!AJ110,SSES!AJ110) -> 0 | AK110: =CHOOSE(m_identity,ENWL!AK110, NPgN!AK110, NPgY!AK110, WMID!AK110, EMID!AK110, SWALES!AK110, SWEST!AK110, LPN!AK110,SPN!AK110,EPN!AK110,SPD!AK110,SPMW!AK110,SSEH!AK110,SSES!AK110) -> 0 | AL110: =CHOOSE(m_identity,ENWL!AL110, NPgN!AL110, NPgY!AL110, WMID!AL110, EMID!AL110, SWALES!AL110, SWEST!AL110, LPN!AL110,SPN!AL110,EPN!AL110,SPD!AL110,SPMW!AL110,SSEH!AL110,SSES!AL110) -> 0 | AM110: =CHOOSE(m_identity,ENWL!AM110, NPgN!AM110, NPgY!AM110, WMID!AM110, EMID!AM110, SWALES!AM110, SWEST!AM110, LPN!AM110,SPN!AM110,EPN!AM110,SPD!AM110,SPMW!AM110,SSEH!AM110,SSES!AM110) -> 0 | AN110: =CHOOSE(m_identity,ENWL!AN110, NPgN!AN110, NPgY!AN110, WMID!AN110, EMID!AN110, SWALES!AN110, SWEST!AN110, LPN!AN110,SPN!AN110,EPN!AN110,SPD!AN110,SPMW!AN110,SSEH!AN110,SSES!AN110) -> 0 | AO110: =CHOOSE(m_identity,ENWL!AO110, NPgN!AO110, NPgY!AO110, WMID!AO110, EMID!AO110, SWALES!AO110, SWEST!AO110, LPN!AO110,SPN!AO110,EPN!AO110,SPD!AO110,SPMW!AO110,SSEH!AO110,SSES!AO110) -> 0 | AP110: =CHOOSE(m_identity,ENWL!AP110, NPgN!AP110, NPgY!AP110, WMID!AP110, EMID!AP110, SWALES!AP110, SWEST!AP110, LPN!AP110,SPN!AP110,EPN!AP110,SPD!AP110,SPMW!AP110,SSEH!AP110,SSES!AP110) -> 0 | AQ110: =CHOOSE(m_identity,ENWL!AQ110, NPgN!AQ110, NPgY!AQ110, WMID!AQ110, EMID!AQ110, SWALES!AQ110, SWEST!AQ110, LPN!AQ110,SPN!AQ110,EPN!AQ110,SPD!AQ110,SPMW!AQ110,SSEH!AQ110,SSES!AQ110) -> 0
E111: Allocation to faults | G111: % | AJ111: =CHOOSE(m_identity,ENWL!AJ111, NPgN!AJ111, NPgY!AJ111, WMID!AJ111, EMID!AJ111, SWALES!AJ111, SWEST!AJ111, LPN!AJ111,SPN!AJ111,EPN!AJ111,SPD!AJ111,SPMW!AJ111,SSEH!AJ111,SSES!AJ111) -> 0 | AK111: =CHOOSE(m_identity,ENWL!AK111, NPgN!AK111, NPgY!AK111, WMID!AK111, EMID!AK111, SWALES!AK111, SWEST!AK111, LPN!AK111,SPN!AK111,EPN!AK111,SPD!AK111,SPMW!AK111,SSEH!AK111,SSES!AK111) -> 0 | AL111: =CHOOSE(m_identity,ENWL!AL111, NPgN!AL111, NPgY!AL111, WMID!AL111, EMID!AL111, SWALES!AL111, SWEST!AL111, LPN!AL111,SPN!AL111,EPN!AL111,SPD!AL111,SPMW!AL111,SSEH!AL111,SSES!AL111) -> 0 | AM111: =CHOOSE(m_identity,ENWL!AM111, NPgN!AM111, NPgY!AM111, WMID!AM111, EMID!AM111, SWALES!AM111, SWEST!AM111, LPN!AM111,SPN!AM111,EPN!AM111,SPD!AM111,SPMW!AM111,SSEH!AM111,SSES!AM111) -> 0 | AN111: =CHOOSE(m_identity,ENWL!AN111, NPgN!AN111, NPgY!AN111, WMID!AN111, EMID!AN111, SWALES!AN111, SWEST!AN111, LPN!AN111,SPN!AN111,EPN!AN111,SPD!AN111,SPMW!AN111,SSEH!AN111,SSES!AN111) -> 0 | AO111: =CHOOSE(m_identity,ENWL!AO111, NPgN!AO111, NPgY!AO111, WMID!AO111, EMID!AO111, SWALES!AO111, SWEST!AO111, LPN!AO111,SPN!AO111,EPN!AO111,SPD!AO111,SPMW!AO111,SSEH!AO111,SSES!AO111) -> 0 | AP111: =CHOOSE(m_identity,ENWL!AP111, NPgN!AP111, NPgY!AP111, WMID!AP111, EMID!AP111, SWALES!AP111, SWEST!AP111, LPN!AP111,SPN!AP111,EPN!AP111,SPD!AP111,SPMW!AP111,SSEH!AP111,SSES!AP111) -> 0 | AQ111: =CHOOSE(m_identity,ENWL!AQ111, NPgN!AQ111, NPgY!AQ111, WMID!AQ111, EMID!AQ111, SWALES!AQ111, SWEST!AQ111, LPN!AQ111,SPN!AQ111,EPN!AQ111,SPD!AQ111,SPMW!AQ111,SSEH!AQ111,SSES!AQ111) -> 0
E112: Allocation to tree cutting | G112: % | AJ112: =CHOOSE(m_identity,ENWL!AJ112, NPgN!AJ112, NPgY!AJ112, WMID!AJ112, EMID!AJ112, SWALES!AJ112, SWEST!AJ112, LPN!AJ112,SPN!AJ112,EPN!AJ112,SPD!AJ112,SPMW!AJ112,SSEH!AJ112,SSES!AJ112) -> 0 | AK112: =CHOOSE(m_identity,ENWL!AK112, NPgN!AK112, NPgY!AK112, WMID!AK112, EMID!AK112, SWALES!AK112, SWEST!AK112, LPN!AK112,SPN!AK112,EPN!AK112,SPD!AK112,SPMW!AK112,SSEH!AK112,SSES!AK112) -> 0 | AL112: =CHOOSE(m_identity,ENWL!AL112, NPgN!AL112, NPgY!AL112, WMID!AL112, EMID!AL112, SWALES!AL112, SWEST!AL112, LPN!AL112,SPN!AL112,EPN!AL112,SPD!AL112,SPMW!AL112,SSEH!AL112,SSES!AL112) -> 0 | AM112: =CHOOSE(m_identity,ENWL!AM112, NPgN!AM112, NPgY!AM112, WMID!AM112, EMID!AM112, SWALES!AM112, SWEST!AM112, LPN!AM112,SPN!AM112,EPN!AM112,SPD!AM112,SPMW!AM112,SSEH!AM112,SSES!AM112) -> 0 | AN112: =CHOOSE(m_identity,ENWL!AN112, NPgN!AN112, NPgY!AN112, WMID!AN112, EMID!AN112, SWALES!AN112, SWEST!AN112, LPN!AN112,SPN!AN112,EPN!AN112,SPD!AN112,SPMW!AN112,SSEH!AN112,SSES!AN112) -> 0 | AO112: =CHOOSE(m_identity,ENWL!AO112, NPgN!AO112, NPgY!AO112, WMID!AO112, EMID!AO112, SWALES!AO112, SWEST!AO112, LPN!AO112,SPN!AO112,EPN!AO112,SPD!AO112,SPMW!AO112,SSEH!AO112,SSES!AO112) -> 0 | AP112: =CHOOSE(m_identity,ENWL!AP112, NPgN!AP112, NPgY!AP112, WMID!AP112, EMID!AP112, SWALES!AP112, SWEST!AP112, LPN!AP112,SPN!AP112,EPN!AP112,SPD!AP112,SPMW!AP112,SSEH!AP112,SSES!AP112) -> 0 | AQ112: =CHOOSE(m_identity,ENWL!AQ112, NPgN!AQ112, NPgY!AQ112, WMID!AQ112, EMID!AQ112, SWALES!AQ112, SWEST!AQ112, LPN!AQ112,SPN!AQ112,EPN!AQ112,SPD!AQ112,SPMW!AQ112,SSEH!AQ112,SSES!AQ112) -> 0
E113: Allocation to 100% ‘revenue pool’ expenditure | G113: % | AJ113: =CHOOSE(m_identity,ENWL!AJ113, NPgN!AJ113, NPgY!AJ113, WMID!AJ113, EMID!AJ113, SWALES!AJ113, SWEST!AJ113, LPN!AJ113,SPN!AJ113,EPN!AJ113,SPD!AJ113,SPMW!AJ113,SSEH!AJ113,SSES!AJ113) -> 0.05481363103 | AK113: =CHOOSE(m_identity,ENWL!AK113, NPgN!AK113, NPgY!AK113, WMID!AK113, EMID!AK113, SWALES!AK113, SWEST!AK113, LPN!AK113,SPN!AK113,EPN!AK113,SPD!AK113,SPMW!AK113,SSEH!AK113,SSES!AK113) -> 0.05491762105 | AL113: =CHOOSE(m_identity,ENWL!AL113, NPgN!AL113, NPgY!AL113, WMID!AL113, EMID!AL113, SWALES!AL113, SWEST!AL113, LPN!AL113,SPN!AL113,EPN!AL113,SPD!AL113,SPMW!AL113,SSEH!AL113,SSES!AL113) -> 0.05487533671 | AM113: =CHOOSE(m_identity,ENWL!AM113, NPgN!AM113, NPgY!AM113, WMID!AM113, EMID!AM113, SWALES!AM113, SWEST!AM113, LPN!AM113,SPN!AM113,EPN!AM113,SPD!AM113,SPMW!AM113,SSEH!AM113,SSES!AM113) -> 0.05469750103 | AN113: =CHOOSE(m_identity,ENWL!AN113, NPgN!AN113, NPgY!AN113, WMID!AN113, EMID!AN113, SWALES!AN113, SWEST!AN113, LPN!AN113,SPN!AN113,EPN!AN113,SPD!AN113,SPMW!AN113,SSEH!AN113,SSES!AN113) -> 0.05479563471 | AO113: =CHOOSE(m_identity,ENWL!AO113, NPgN!AO113, NPgY!AO113, WMID!AO113, EMID!AO113, SWALES!AO113, SWEST!AO113, LPN!AO113,SPN!AO113,EPN!AO113,SPD!AO113,SPMW!AO113,SSEH!AO113,SSES!AO113) -> 0.054756972 | AP113: =CHOOSE(m_identity,ENWL!AP113, NPgN!AP113, NPgY!AP113, WMID!AP113, EMID!AP113, SWALES!AP113, SWEST!AP113, LPN!AP113,SPN!AP113,EPN!AP113,SPD!AP113,SPMW!AP113,SSEH!AP113,SSES!AP113) -> 0.05455377516 | AQ113: =CHOOSE(m_identity,ENWL!AQ113, NPgN!AQ113, NPgY!AQ113, WMID!AQ113, EMID!AQ113, SWALES!AQ113, SWEST!AQ113, LPN!AQ113,SPN!AQ113,EPN!AQ113,SPD!AQ113,SPMW!AQ113,SSEH!AQ113,SSES!AQ113) -> 0.05467494859
E114: Allocation to controllable opex | G114: % | AJ114: =CHOOSE(m_identity,ENWL!AJ114, NPgN!AJ114, NPgY!AJ114, WMID!AJ114, EMID!AJ114, SWALES!AJ114, SWEST!AJ114, LPN!AJ114,SPN!AJ114,EPN!AJ114,SPD!AJ114,SPMW!AJ114,SSEH!AJ114,SSES!AJ114) -> 0 | AK114: =CHOOSE(m_identity,ENWL!AK114, NPgN!AK114, NPgY!AK114, WMID!AK114, EMID!AK114, SWALES!AK114, SWEST!AK114, LPN!AK114,SPN!AK114,EPN!AK114,SPD!AK114,SPMW!AK114,SSEH!AK114,SSES!AK114) -> 0 | AL114: =CHOOSE(m_identity,ENWL!AL114, NPgN!AL114, NPgY!AL114, WMID!AL114, EMID!AL114, SWALES!AL114, SWEST!AL114, LPN!AL114,SPN!AL114,EPN!AL114,SPD!AL114,SPMW!AL114,SSEH!AL114,SSES!AL114) -> 0 | AM114: =CHOOSE(m_identity,ENWL!AM114, NPgN!AM114, NPgY!AM114, WMID!AM114, EMID!AM114, SWALES!AM114, SWEST!AM114, LPN!AM114,SPN!AM114,EPN!AM114,SPD!AM114,SPMW!AM114,SSEH!AM114,SSES!AM114) -> 0 | AN114: =CHOOSE(m_identity,ENWL!AN114, NPgN!AN114, NPgY!AN114, WMID!AN114, EMID!AN114, SWALES!AN114, SWEST!AN114, LPN!AN114,SPN!AN114,EPN!AN114,SPD!AN114,SPMW!AN114,SSEH!AN114,SSES!AN114) -> 0 | AO114: =CHOOSE(m_identity,ENWL!AO114, NPgN!AO114, NPgY!AO114, WMID!AO114, EMID!AO114, SWALES!AO114, SWEST!AO114, LPN!AO114,SPN!AO114,EPN!AO114,SPD!AO114,SPMW!AO114,SSEH!AO114,SSES!AO114) -> 0 | AP114: =CHOOSE(m_identity,ENWL!AP114, NPgN!AP114, NPgY!AP114, WMID!AP114, EMID!AP114, SWALES!AP114, SWEST!AP114, LPN!AP114,SPN!AP114,EPN!AP114,SPD!AP114,SPMW!AP114,SSEH!AP114,SSES!AP114) -> 0 | AQ114: =CHOOSE(m_identity,ENWL!AQ114, NPgN!AQ114, NPgY!AQ114, WMID!AQ114, EMID!AQ114, SWALES!AQ114, SWEST!AQ114, LPN!AQ114,SPN!AQ114,EPN!AQ114,SPD!AQ114,SPMW!AQ114,SSEH!AQ114,SSES!AQ114) -> 0
E116: =E20 -> Allowed Expenditure - High Value Projects | G116: £m 12/13 prices | AJ116: =AJ20 -> 4.433198965 | AK116: 4.421847606 | AL116: 8.826784917 | AM116: 8.758462151 | AN116: 0 | AO116: 0 | AP116: 0 | AQ116: 0
E117: Allocation to load related capex | G117: % | AJ117: =CHOOSE(m_identity,ENWL!AJ117, NPgN!AJ117, NPgY!AJ117, WMID!AJ117, EMID!AJ117, SWALES!AJ117, SWEST!AJ117, LPN!AJ117,SPN!AJ117,EPN!AJ117,SPD!AJ117,SPMW!AJ117,SSEH!AJ117,SSES!AJ117) -> 1 | AK117: =CHOOSE(m_identity,ENWL!AK117, NPgN!AK117, NPgY!AK117, WMID!AK117, EMID!AK117, SWALES!AK117, SWEST!AK117, LPN!AK117,SPN!AK117,EPN!AK117,SPD!AK117,SPMW!AK117,SSEH!AK117,SSES!AK117) -> 1 | AL117: =CHOOSE(m_identity,ENWL!AL117, NPgN!AL117, NPgY!AL117, WMID!AL117, EMID!AL117, SWALES!AL117, SWEST!AL117, LPN!AL117,SPN!AL117,EPN!AL117,SPD!AL117,SPMW!AL117,SSEH!AL117,SSES!AL117) -> 1 | AM117: =CHOOSE(m_identity,ENWL!AM117, NPgN!AM117, NPgY!AM117, WMID!AM117, EMID!AM117, SWALES!AM117, SWEST!AM117, LPN!AM117,SPN!AM117,EPN!AM117,SPD!AM117,SPMW!AM117,SSEH!AM117,SSES!AM117) -> 1 | AN117: =CHOOSE(m_identity,ENWL!AN117, NPgN!AN117, NPgY!AN117, WMID!AN117, EMID!AN117, SWALES!AN117, SWEST!AN117, LPN!AN117,SPN!AN117,EPN!AN117,SPD!AN117,SPMW!AN117,SSEH!AN117,SSES!AN117) -> 0.99 | AO117: =CHOOSE(m_identity,ENWL!AO117, NPgN!AO117, NPgY!AO117, WMID!AO117, EMID!AO117, SWALES!AO117, SWEST!AO117, LPN!AO117,SPN!AO117,EPN!AO117,SPD!AO117,SPMW!AO117,SSEH!AO117,SSES!AO117) -> 0.99 | AP117: =CHOOSE(m_identity,ENWL!AP117, NPgN!AP117, NPgY!AP117, WMID!AP117, EMID!AP117, SWALES!AP117, SWEST!AP117, LPN!AP117,SPN!AP117,EPN!AP117,SPD!AP117,SPMW!AP117,SSEH!AP117,SSES!AP117) -> 0.99 | AQ117: =CHOOSE(m_identity,ENWL!AQ117, NPgN!AQ117, NPgY!AQ117, WMID!AQ117, EMID!AQ117, SWALES!AQ117, SWEST!AQ117, LPN!AQ117,SPN!AQ117,EPN!AQ117,SPD!AQ117,SPMW!AQ117,SSEH!AQ117,SSES!AQ117) -> 0.99
E118: Allocation to non-load related capex - asset replacement | G118: % | AJ118: =CHOOSE(m_identity,ENWL!AJ118, NPgN!AJ118, NPgY!AJ118, WMID!AJ118, EMID!AJ118, SWALES!AJ118, SWEST!AJ118, LPN!AJ118,SPN!AJ118,EPN!AJ118,SPD!AJ118,SPMW!AJ118,SSEH!AJ118,SSES!AJ118) -> 0 | AK118: =CHOOSE(m_identity,ENWL!AK118, NPgN!AK118, NPgY!AK118, WMID!AK118, EMID!AK118, SWALES!AK118, SWEST!AK118, LPN!AK118,SPN!AK118,EPN!AK118,SPD!AK118,SPMW!AK118,SSEH!AK118,SSES!AK118) -> 0 | AL118: =CHOOSE(m_identity,ENWL!AL118, NPgN!AL118, NPgY!AL118, WMID!AL118, EMID!AL118, SWALES!AL118, SWEST!AL118, LPN!AL118,SPN!AL118,EPN!AL118,SPD!AL118,SPMW!AL118,SSEH!AL118,SSES!AL118) -> 0 | AM118: =CHOOSE(m_identity,ENWL!AM118, NPgN!AM118, NPgY!AM118, WMID!AM118, EMID!AM118, SWALES!AM118, SWEST!AM118, LPN!AM118,SPN!AM118,EPN!AM118,SPD!AM118,SPMW!AM118,SSEH!AM118,SSES!AM118) -> 0 | AN118: =CHOOSE(m_identity,ENWL!AN118, NPgN!AN118, NPgY!AN118, WMID!AN118, EMID!AN118, SWALES!AN118, SWEST!AN118, LPN!AN118,SPN!AN118,EPN!AN118,SPD!AN118,SPMW!AN118,SSEH!AN118,SSES!AN118) -> 0 | AO118: =CHOOSE(m_identity,ENWL!AO118, NPgN!AO118, NPgY!AO118, WMID!AO118, EMID!AO118, SWALES!AO118, SWEST!AO118, LPN!AO118,SPN!AO118,EPN!AO118,SPD!AO118,SPMW!AO118,SSEH!AO118,SSES!AO118) -> 0 | AP118: =CHOOSE(m_identity,ENWL!AP118, NPgN!AP118, NPgY!AP118, WMID!AP118, EMID!AP118, SWALES!AP118, SWEST!AP118, LPN!AP118,SPN!AP118,EPN!AP118,SPD!AP118,SPMW!AP118,SSEH!AP118,SSES!AP118) -> 0 | AQ118: =CHOOSE(m_identity,ENWL!AQ118, NPgN!AQ118, NPgY!AQ118, WMID!AQ118, EMID!AQ118, SWALES!AQ118, SWEST!AQ118, LPN!AQ118,SPN!AQ118,EPN!AQ118,SPD!AQ118,SPMW!AQ118,SSEH!AQ118,SSES!AQ118) -> 0
E119: Allocation to non-load related capex - other | G119: % | AJ119: =CHOOSE(m_identity,ENWL!AJ119, NPgN!AJ119, NPgY!AJ119, WMID!AJ119, EMID!AJ119, SWALES!AJ119, SWEST!AJ119, LPN!AJ119,SPN!AJ119,EPN!AJ119,SPD!AJ119,SPMW!AJ119,SSEH!AJ119,SSES!AJ119) -> 0 | AK119: =CHOOSE(m_identity,ENWL!AK119, NPgN!AK119, NPgY!AK119, WMID!AK119, EMID!AK119, SWALES!AK119, SWEST!AK119, LPN!AK119,SPN!AK119,EPN!AK119,SPD!AK119,SPMW!AK119,SSEH!AK119,SSES!AK119) -> 0 | AL119: =CHOOSE(m_identity,ENWL!AL119, NPgN!AL119, NPgY!AL119, WMID!AL119, EMID!AL119, SWALES!AL119, SWEST!AL119, LPN!AL119,SPN!AL119,EPN!AL119,SPD!AL119,SPMW!AL119,SSEH!AL119,SSES!AL119) -> 0 | AM119: =CHOOSE(m_identity,ENWL!AM119, NPgN!AM119, NPgY!AM119, WMID!AM119, EMID!AM119, SWALES!AM119, SWEST!AM119, LPN!AM119,SPN!AM119,EPN!AM119,SPD!AM119,SPMW!AM119,SSEH!AM119,SSES!AM119) -> 0 | AN119: =CHOOSE(m_identity,ENWL!AN119, NPgN!AN119, NPgY!AN119, WMID!AN119, EMID!AN119, SWALES!AN119, SWEST!AN119, LPN!AN119,SPN!AN119,EPN!AN119,SPD!AN119,SPMW!AN119,SSEH!AN119,SSES!AN119) -> 0 | AO119: =CHOOSE(m_identity,ENWL!AO119, NPgN!AO119, NPgY!AO119, WMID!AO119, EMID!AO119, SWALES!AO119, SWEST!AO119, LPN!AO119,SPN!AO119,EPN!AO119,SPD!AO119,SPMW!AO119,SSEH!AO119,SSES!AO119) -> 0 | AP119: =CHOOSE(m_identity,ENWL!AP119, NPgN!AP119, NPgY!AP119, WMID!AP119, EMID!AP119, SWALES!AP119, SWEST!AP119, LPN!AP119,SPN!AP119,EPN!AP119,SPD!AP119,SPMW!AP119,SSEH!AP119,SSES!AP119) -> 0 | AQ119: =CHOOSE(m_identity,ENWL!AQ119, NPgN!AQ119, NPgY!AQ119, WMID!AQ119, EMID!AQ119, SWALES!AQ119, SWEST!AQ119, LPN!AQ119,SPN!AQ119,EPN!AQ119,SPD!AQ119,SPMW!AQ119,SSEH!AQ119,SSES!AQ119) -> 0
E120: Allocation to faults | G120: % | AJ120: =CHOOSE(m_identity,ENWL!AJ120, NPgN!AJ120, NPgY!AJ120, WMID!AJ120, EMID!AJ120, SWALES!AJ120, SWEST!AJ120, LPN!AJ120,SPN!AJ120,EPN!AJ120,SPD!AJ120,SPMW!AJ120,SSEH!AJ120,SSES!AJ120) -> 0 | AK120: =CHOOSE(m_identity,ENWL!AK120, NPgN!AK120, NPgY!AK120, WMID!AK120, EMID!AK120, SWALES!AK120, SWEST!AK120, LPN!AK120,SPN!AK120,EPN!AK120,SPD!AK120,SPMW!AK120,SSEH!AK120,SSES!AK120) -> 0 | AL120: =CHOOSE(m_identity,ENWL!AL120, NPgN!AL120, NPgY!AL120, WMID!AL120, EMID!AL120, SWALES!AL120, SWEST!AL120, LPN!AL120,SPN!AL120,EPN!AL120,SPD!AL120,SPMW!AL120,SSEH!AL120,SSES!AL120) -> 0 | AM120: =CHOOSE(m_identity,ENWL!AM120, NPgN!AM120, NPgY!AM120, WMID!AM120, EMID!AM120, SWALES!AM120, SWEST!AM120, LPN!AM120,SPN!AM120,EPN!AM120,SPD!AM120,SPMW!AM120,SSEH!AM120,SSES!AM120) -> 0 | AN120: =CHOOSE(m_identity,ENWL!AN120, NPgN!AN120, NPgY!AN120, WMID!AN120, EMID!AN120, SWALES!AN120, SWEST!AN120, LPN!AN120,SPN!AN120,EPN!AN120,SPD!AN120,SPMW!AN120,SSEH!AN120,SSES!AN120) -> 0 | AO120: =CHOOSE(m_identity,ENWL!AO120, NPgN!AO120, NPgY!AO120, WMID!AO120, EMID!AO120, SWALES!AO120, SWEST!AO120, LPN!AO120,SPN!AO120,EPN!AO120,SPD!AO120,SPMW!AO120,SSEH!AO120,SSES!AO120) -> 0 | AP120: =CHOOSE(m_identity,ENWL!AP120, NPgN!AP120, NPgY!AP120, WMID!AP120, EMID!AP120, SWALES!AP120, SWEST!AP120, LPN!AP120,SPN!AP120,EPN!AP120,SPD!AP120,SPMW!AP120,SSEH!AP120,SSES!AP120) -> 0 | AQ120: =CHOOSE(m_identity,ENWL!AQ120, NPgN!AQ120, NPgY!AQ120, WMID!AQ120, EMID!AQ120, SWALES!AQ120, SWEST!AQ120, LPN!AQ120,SPN!AQ120,EPN!AQ120,SPD!AQ120,SPMW!AQ120,SSEH!AQ120,SSES!AQ120) -> 0
E121: Allocation to tree cutting | G121: % | AJ121: =CHOOSE(m_identity,ENWL!AJ121, NPgN!AJ121, NPgY!AJ121, WMID!AJ121, EMID!AJ121, SWALES!AJ121, SWEST!AJ121, LPN!AJ121,SPN!AJ121,EPN!AJ121,SPD!AJ121,SPMW!AJ121,SSEH!AJ121,SSES!AJ121) -> 0 | AK121: =CHOOSE(m_identity,ENWL!AK121, NPgN!AK121, NPgY!AK121, WMID!AK121, EMID!AK121, SWALES!AK121, SWEST!AK121, LPN!AK121,SPN!AK121,EPN!AK121,SPD!AK121,SPMW!AK121,SSEH!AK121,SSES!AK121) -> 0 | AL121: =CHOOSE(m_identity,ENWL!AL121, NPgN!AL121, NPgY!AL121, WMID!AL121, EMID!AL121, SWALES!AL121, SWEST!AL121, LPN!AL121,SPN!AL121,EPN!AL121,SPD!AL121,SPMW!AL121,SSEH!AL121,SSES!AL121) -> 0 | AM121: =CHOOSE(m_identity,ENWL!AM121, NPgN!AM121, NPgY!AM121, WMID!AM121, EMID!AM121, SWALES!AM121, SWEST!AM121, LPN!AM121,SPN!AM121,EPN!AM121,SPD!AM121,SPMW!AM121,SSEH!AM121,SSES!AM121) -> 0 | AN121: =CHOOSE(m_identity,ENWL!AN121, NPgN!AN121, NPgY!AN121, WMID!AN121, EMID!AN121, SWALES!AN121, SWEST!AN121, LPN!AN121,SPN!AN121,EPN!AN121,SPD!AN121,SPMW!AN121,SSEH!AN121,SSES!AN121) -> 0 | AO121: =CHOOSE(m_identity,ENWL!AO121, NPgN!AO121, NPgY!AO121, WMID!AO121, EMID!AO121, SWALES!AO121, SWEST!AO121, LPN!AO121,SPN!AO121,EPN!AO121,SPD!AO121,SPMW!AO121,SSEH!AO121,SSES!AO121) -> 0 | AP121: =CHOOSE(m_identity,ENWL!AP121, NPgN!AP121, NPgY!AP121, WMID!AP121, EMID!AP121, SWALES!AP121, SWEST!AP121, LPN!AP121,SPN!AP121,EPN!AP121,SPD!AP121,SPMW!AP121,SSEH!AP121,SSES!AP121) -> 0 | AQ121: =CHOOSE(m_identity,ENWL!AQ121, NPgN!AQ121, NPgY!AQ121, WMID!AQ121, EMID!AQ121, SWALES!AQ121, SWEST!AQ121, LPN!AQ121,SPN!AQ121,EPN!AQ121,SPD!AQ121,SPMW!AQ121,SSEH!AQ121,SSES!AQ121) -> 0
E122: Allocation to 100% ‘revenue pool’ expenditure | G122: % | AJ122: =CHOOSE(m_identity,ENWL!AJ122, NPgN!AJ122, NPgY!AJ122, WMID!AJ122, EMID!AJ122, SWALES!AJ122, SWEST!AJ122, LPN!AJ122,SPN!AJ122,EPN!AJ122,SPD!AJ122,SPMW!AJ122,SSEH!AJ122,SSES!AJ122) -> 0 | AK122: =CHOOSE(m_identity,ENWL!AK122, NPgN!AK122, NPgY!AK122, WMID!AK122, EMID!AK122, SWALES!AK122, SWEST!AK122, LPN!AK122,SPN!AK122,EPN!AK122,SPD!AK122,SPMW!AK122,SSEH!AK122,SSES!AK122) -> 0 | AL122: =CHOOSE(m_identity,ENWL!AL122, NPgN!AL122, NPgY!AL122, WMID!AL122, EMID!AL122, SWALES!AL122, SWEST!AL122, LPN!AL122,SPN!AL122,EPN!AL122,SPD!AL122,SPMW!AL122,SSEH!AL122,SSES!AL122) -> 0 | AM122: =CHOOSE(m_identity,ENWL!AM122, NPgN!AM122, NPgY!AM122, WMID!AM122, EMID!AM122, SWALES!AM122, SWEST!AM122, LPN!AM122,SPN!AM122,EPN!AM122,SPD!AM122,SPMW!AM122,SSEH!AM122,SSES!AM122) -> 0 | AN122: =CHOOSE(m_identity,ENWL!AN122, NPgN!AN122, NPgY!AN122, WMID!AN122, EMID!AN122, SWALES!AN122, SWEST!AN122, LPN!AN122,SPN!AN122,EPN!AN122,SPD!AN122,SPMW!AN122,SSEH!AN122,SSES!AN122) -> 0.01 | AO122: =CHOOSE(m_identity,ENWL!AO122, NPgN!AO122, NPgY!AO122, WMID!AO122, EMID!AO122, SWALES!AO122, SWEST!AO122, LPN!AO122,SPN!AO122,EPN!AO122,SPD!AO122,SPMW!AO122,SSEH!AO122,SSES!AO122) -> 0.01 | AP122: =CHOOSE(m_identity,ENWL!AP122, NPgN!AP122, NPgY!AP122, WMID!AP122, EMID!AP122, SWALES!AP122, SWEST!AP122, LPN!AP122,SPN!AP122,EPN!AP122,SPD!AP122,SPMW!AP122,SSEH!AP122,SSES!AP122) -> 0.01 | AQ122: =CHOOSE(m_identity,ENWL!AQ122, NPgN!AQ122, NPgY!AQ122, WMID!AQ122, EMID!AQ122, SWALES!AQ122, SWEST!AQ122, LPN!AQ122,SPN!AQ122,EPN!AQ122,SPD!AQ122,SPMW!AQ122,SSEH!AQ122,SSES!AQ122) -> 0.01
E123: Allocation to controllable opex | G123: % | AJ123: =CHOOSE(m_identity,ENWL!AJ123, NPgN!AJ123, NPgY!AJ123, WMID!AJ123, EMID!AJ123, SWALES!AJ123, SWEST!AJ123, LPN!AJ123,SPN!AJ123,EPN!AJ123,SPD!AJ123,SPMW!AJ123,SSEH!AJ123,SSES!AJ123) -> 0 | AK123: =CHOOSE(m_identity,ENWL!AK123, NPgN!AK123, NPgY!AK123, WMID!AK123, EMID!AK123, SWALES!AK123, SWEST!AK123, LPN!AK123,SPN!AK123,EPN!AK123,SPD!AK123,SPMW!AK123,SSEH!AK123,SSES!AK123) -> 0 | AL123: =CHOOSE(m_identity,ENWL!AL123, NPgN!AL123, NPgY!AL123, WMID!AL123, EMID!AL123, SWALES!AL123, SWEST!AL123, LPN!AL123,SPN!AL123,EPN!AL123,SPD!AL123,SPMW!AL123,SSEH!AL123,SSES!AL123) -> 0 | AM123: =CHOOSE(m_identity,ENWL!AM123, NPgN!AM123, NPgY!AM123, WMID!AM123, EMID!AM123, SWALES!AM123, SWEST!AM123, LPN!AM123,SPN!AM123,EPN!AM123,SPD!AM123,SPMW!AM123,SSEH!AM123,SSES!AM123) -> 0 | AN123: =CHOOSE(m_identity,ENWL!AN123, NPgN!AN123, NPgY!AN123, WMID!AN123, EMID!AN123, SWALES!AN123, SWEST!AN123, LPN!AN123,SPN!AN123,EPN!AN123,SPD!AN123,SPMW!AN123,SSEH!AN123,SSES!AN123) -> 0 | AO123: =CHOOSE(m_identity,ENWL!AO123, NPgN!AO123, NPgY!AO123, WMID!AO123, EMID!AO123, SWALES!AO123, SWEST!AO123, LPN!AO123,SPN!AO123,EPN!AO123,SPD!AO123,SPMW!AO123,SSEH!AO123,SSES!AO123) -> 0 | AP123: =CHOOSE(m_identity,ENWL!AP123, NPgN!AP123, NPgY!AP123, WMID!AP123, EMID!AP123, SWALES!AP123, SWEST!AP123, LPN!AP123,SPN!AP123,EPN!AP123,SPD!AP123,SPMW!AP123,SSEH!AP123,SSES!AP123) -> 0 | AQ123: =CHOOSE(m_identity,ENWL!AQ123, NPgN!AQ123, NPgY!AQ123, WMID!AQ123, EMID!AQ123, SWALES!AQ123, SWEST!AQ123, LPN!AQ123,SPN!AQ123,EPN!AQ123,SPD!AQ123,SPMW!AQ123,SSEH!AQ123,SSES!AQ123) -> 0
E125: =E21 -> Allowed Expenditure - Visual Amenity Projects (TIM neutral) | G125: £m 12/13 prices | AJ125: =AJ21 -> 0 | AK125: =AK21 -> 0 | AL125: 0 | AM125: 0 | AN125: 0 | AO125: 0 | AP125: 0 | AQ125: 0
E126: Allocation to load related capex | G126: % | AJ126: =CHOOSE(m_identity,ENWL!AJ126, NPgN!AJ126, NPgY!AJ126, WMID!AJ126, EMID!AJ126, SWALES!AJ126, SWEST!AJ126, LPN!AJ126,SPN!AJ126,EPN!AJ126,SPD!AJ126,SPMW!AJ126,SSEH!AJ126,SSES!AJ126) -> 0 | AK126: =CHOOSE(m_identity,ENWL!AK126, NPgN!AK126, NPgY!AK126, WMID!AK126, EMID!AK126, SWALES!AK126, SWEST!AK126, LPN!AK126,SPN!AK126,EPN!AK126,SPD!AK126,SPMW!AK126,SSEH!AK126,SSES!AK126) -> 0 | AL126: =CHOOSE(m_identity,ENWL!AL126, NPgN!AL126, NPgY!AL126, WMID!AL126, EMID!AL126, SWALES!AL126, SWEST!AL126, LPN!AL126,SPN!AL126,EPN!AL126,SPD!AL126,SPMW!AL126,SSEH!AL126,SSES!AL126) -> 0 | AM126: =CHOOSE(m_identity,ENWL!AM126, NPgN!AM126, NPgY!AM126, WMID!AM126, EMID!AM126, SWALES!AM126, SWEST!AM126, LPN!AM126,SPN!AM126,EPN!AM126,SPD!AM126,SPMW!AM126,SSEH!AM126,SSES!AM126) -> 0 | AN126: =CHOOSE(m_identity,ENWL!AN126, NPgN!AN126, NPgY!AN126, WMID!AN126, EMID!AN126, SWALES!AN126, SWEST!AN126, LPN!AN126,SPN!AN126,EPN!AN126,SPD!AN126,SPMW!AN126,SSEH!AN126,SSES!AN126) -> 0 | AO126: =CHOOSE(m_identity,ENWL!AO126, NPgN!AO126, NPgY!AO126, WMID!AO126, EMID!AO126, SWALES!AO126, SWEST!AO126, LPN!AO126,SPN!AO126,EPN!AO126,SPD!AO126,SPMW!AO126,SSEH!AO126,SSES!AO126) -> 0 | AP126: =CHOOSE(m_identity,ENWL!AP126, NPgN!AP126, NPgY!AP126, WMID!AP126, EMID!AP126, SWALES!AP126, SWEST!AP126, LPN!AP126,SPN!AP126,EPN!AP126,SPD!AP126,SPMW!AP126,SSEH!AP126,SSES!AP126) -> 0 | AQ126: =CHOOSE(m_identity,ENWL!AQ126, NPgN!AQ126, NPgY!AQ126, WMID!AQ126, EMID!AQ126, SWALES!AQ126, SWEST!AQ126, LPN!AQ126,SPN!AQ126,EPN!AQ126,SPD!AQ126,SPMW!AQ126,SSEH!AQ126,SSES!AQ126) -> 0
E127: Allocation to non-load related capex - asset replacement | G127: % | AJ127: =CHOOSE(m_identity,ENWL!AJ127, NPgN!AJ127, NPgY!AJ127, WMID!AJ127, EMID!AJ127, SWALES!AJ127, SWEST!AJ127, LPN!AJ127,SPN!AJ127,EPN!AJ127,SPD!AJ127,SPMW!AJ127,SSEH!AJ127,SSES!AJ127) -> 0 | AK127: =CHOOSE(m_identity,ENWL!AK127, NPgN!AK127, NPgY!AK127, WMID!AK127, EMID!AK127, SWALES!AK127, SWEST!AK127, LPN!AK127,SPN!AK127,EPN!AK127,SPD!AK127,SPMW!AK127,SSEH!AK127,SSES!AK127) -> 0 | AL127: =CHOOSE(m_identity,ENWL!AL127, NPgN!AL127, NPgY!AL127, WMID!AL127, EMID!AL127, SWALES!AL127, SWEST!AL127, LPN!AL127,SPN!AL127,EPN!AL127,SPD!AL127,SPMW!AL127,SSEH!AL127,SSES!AL127) -> 0 | AM127: =CHOOSE(m_identity,ENWL!AM127, NPgN!AM127, NPgY!AM127, WMID!AM127, EMID!AM127, SWALES!AM127, SWEST!AM127, LPN!AM127,SPN!AM127,EPN!AM127,SPD!AM127,SPMW!AM127,SSEH!AM127,SSES!AM127) -> 0 | AN127: =CHOOSE(m_identity,ENWL!AN127, NPgN!AN127, NPgY!AN127, WMID!AN127, EMID!AN127, SWALES!AN127, SWEST!AN127, LPN!AN127,SPN!AN127,EPN!AN127,SPD!AN127,SPMW!AN127,SSEH!AN127,SSES!AN127) -> 0 | AO127: =CHOOSE(m_identity,ENWL!AO127, NPgN!AO127, NPgY!AO127, WMID!AO127, EMID!AO127, SWALES!AO127, SWEST!AO127, LPN!AO127,SPN!AO127,EPN!AO127,SPD!AO127,SPMW!AO127,SSEH!AO127,SSES!AO127) -> 0 | AP127: =CHOOSE(m_identity,ENWL!AP127, NPgN!AP127, NPgY!AP127, WMID!AP127, EMID!AP127, SWALES!AP127, SWEST!AP127, LPN!AP127,SPN!AP127,EPN!AP127,SPD!AP127,SPMW!AP127,SSEH!AP127,SSES!AP127) -> 0 | AQ127: =CHOOSE(m_identity,ENWL!AQ127, NPgN!AQ127, NPgY!AQ127, WMID!AQ127, EMID!AQ127, SWALES!AQ127, SWEST!AQ127, LPN!AQ127,SPN!AQ127,EPN!AQ127,SPD!AQ127,SPMW!AQ127,SSEH!AQ127,SSES!AQ127) -> 0
E128: Allocation to non-load related capex - other | G128: % | AJ128: =CHOOSE(m_identity,ENWL!AJ128, NPgN!AJ128, NPgY!AJ128, WMID!AJ128, EMID!AJ128, SWALES!AJ128, SWEST!AJ128, LPN!AJ128,SPN!AJ128,EPN!AJ128,SPD!AJ128,SPMW!AJ128,SSEH!AJ128,SSES!AJ128) -> 1 | AK128: =CHOOSE(m_identity,ENWL!AK128, NPgN!AK128, NPgY!AK128, WMID!AK128, EMID!AK128, SWALES!AK128, SWEST!AK128, LPN!AK128,SPN!AK128,EPN!AK128,SPD!AK128,SPMW!AK128,SSEH!AK128,SSES!AK128) -> 1 | AL128: =CHOOSE(m_identity,ENWL!AL128, NPgN!AL128, NPgY!AL128, WMID!AL128, EMID!AL128, SWALES!AL128, SWEST!AL128, LPN!AL128,SPN!AL128,EPN!AL128,SPD!AL128,SPMW!AL128,SSEH!AL128,SSES!AL128) -> 1 | AM128: =CHOOSE(m_identity,ENWL!AM128, NPgN!AM128, NPgY!AM128, WMID!AM128, EMID!AM128, SWALES!AM128, SWEST!AM128, LPN!AM128,SPN!AM128,EPN!AM128,SPD!AM128,SPMW!AM128,SSEH!AM128,SSES!AM128) -> 1 | AN128: =CHOOSE(m_identity,ENWL!AN128, NPgN!AN128, NPgY!AN128, WMID!AN128, EMID!AN128, SWALES!AN128, SWEST!AN128, LPN!AN128,SPN!AN128,EPN!AN128,SPD!AN128,SPMW!AN128,SSEH!AN128,SSES!AN128) -> 1 | AO128: =CHOOSE(m_identity,ENWL!AO128, NPgN!AO128, NPgY!AO128, WMID!AO128, EMID!AO128, SWALES!AO128, SWEST!AO128, LPN!AO128,SPN!AO128,EPN!AO128,SPD!AO128,SPMW!AO128,SSEH!AO128,SSES!AO128) -> 1 | AP128: =CHOOSE(m_identity,ENWL!AP128, NPgN!AP128, NPgY!AP128, WMID!AP128, EMID!AP128, SWALES!AP128, SWEST!AP128, LPN!AP128,SPN!AP128,EPN!AP128,SPD!AP128,SPMW!AP128,SSEH!AP128,SSES!AP128) -> 1 | AQ128: =CHOOSE(m_identity,ENWL!AQ128, NPgN!AQ128, NPgY!AQ128, WMID!AQ128, EMID!AQ128, SWALES!AQ128, SWEST!AQ128, LPN!AQ128,SPN!AQ128,EPN!AQ128,SPD!AQ128,SPMW!AQ128,SSEH!AQ128,SSES!AQ128) -> 1
E129: Allocation to faults | G129: % | AJ129: =CHOOSE(m_identity,ENWL!AJ129, NPgN!AJ129, NPgY!AJ129, WMID!AJ129, EMID!AJ129, SWALES!AJ129, SWEST!AJ129, LPN!AJ129,SPN!AJ129,EPN!AJ129,SPD!AJ129,SPMW!AJ129,SSEH!AJ129,SSES!AJ129) -> 0 | AK129: =CHOOSE(m_identity,ENWL!AK129, NPgN!AK129, NPgY!AK129, WMID!AK129, EMID!AK129, SWALES!AK129, SWEST!AK129, LPN!AK129,SPN!AK129,EPN!AK129,SPD!AK129,SPMW!AK129,SSEH!AK129,SSES!AK129) -> 0 | AL129: =CHOOSE(m_identity,ENWL!AL129, NPgN!AL129, NPgY!AL129, WMID!AL129, EMID!AL129, SWALES!AL129, SWEST!AL129, LPN!AL129,SPN!AL129,EPN!AL129,SPD!AL129,SPMW!AL129,SSEH!AL129,SSES!AL129) -> 0 | AM129: =CHOOSE(m_identity,ENWL!AM129, NPgN!AM129, NPgY!AM129, WMID!AM129, EMID!AM129, SWALES!AM129, SWEST!AM129, LPN!AM129,SPN!AM129,EPN!AM129,SPD!AM129,SPMW!AM129,SSEH!AM129,SSES!AM129) -> 0 | AN129: =CHOOSE(m_identity,ENWL!AN129, NPgN!AN129, NPgY!AN129, WMID!AN129, EMID!AN129, SWALES!AN129, SWEST!AN129, LPN!AN129,SPN!AN129,EPN!AN129,SPD!AN129,SPMW!AN129,SSEH!AN129,SSES!AN129) -> 0 | AO129: =CHOOSE(m_identity,ENWL!AO129, NPgN!AO129, NPgY!AO129, WMID!AO129, EMID!AO129, SWALES!AO129, SWEST!AO129, LPN!AO129,SPN!AO129,EPN!AO129,SPD!AO129,SPMW!AO129,SSEH!AO129,SSES!AO129) -> 0 | AP129: =CHOOSE(m_identity,ENWL!AP129, NPgN!AP129, NPgY!AP129, WMID!AP129, EMID!AP129, SWALES!AP129, SWEST!AP129, LPN!AP129,SPN!AP129,EPN!AP129,SPD!AP129,SPMW!AP129,SSEH!AP129,SSES!AP129) -> 0 | AQ129: =CHOOSE(m_identity,ENWL!AQ129, NPgN!AQ129, NPgY!AQ129, WMID!AQ129, EMID!AQ129, SWALES!AQ129, SWEST!AQ129, LPN!AQ129,SPN!AQ129,EPN!AQ129,SPD!AQ129,SPMW!AQ129,SSEH!AQ129,SSES!AQ129) -> 0
E130: Allocation to tree cutting | G130: % | AJ130: =CHOOSE(m_identity,ENWL!AJ130, NPgN!AJ130, NPgY!AJ130, WMID!AJ130, EMID!AJ130, SWALES!AJ130, SWEST!AJ130, LPN!AJ130,SPN!AJ130,EPN!AJ130,SPD!AJ130,SPMW!AJ130,SSEH!AJ130,SSES!AJ130) -> 0 | AK130: =CHOOSE(m_identity,ENWL!AK130, NPgN!AK130, NPgY!AK130, WMID!AK130, EMID!AK130, SWALES!AK130, SWEST!AK130, LPN!AK130,SPN!AK130,EPN!AK130,SPD!AK130,SPMW!AK130,SSEH!AK130,SSES!AK130) -> 0 | AL130: =CHOOSE(m_identity,ENWL!AL130, NPgN!AL130, NPgY!AL130, WMID!AL130, EMID!AL130, SWALES!AL130, SWEST!AL130, LPN!AL130,SPN!AL130,EPN!AL130,SPD!AL130,SPMW!AL130,SSEH!AL130,SSES!AL130) -> 0 | AM130: =CHOOSE(m_identity,ENWL!AM130, NPgN!AM130, NPgY!AM130, WMID!AM130, EMID!AM130, SWALES!AM130, SWEST!AM130, LPN!AM130,SPN!AM130,EPN!AM130,SPD!AM130,SPMW!AM130,SSEH!AM130,SSES!AM130) -> 0 | AN130: =CHOOSE(m_identity,ENWL!AN130, NPgN!AN130, NPgY!AN130, WMID!AN130, EMID!AN130, SWALES!AN130, SWEST!AN130, LPN!AN130,SPN!AN130,EPN!AN130,SPD!AN130,SPMW!AN130,SSEH!AN130,SSES!AN130) -> 0 | AO130: =CHOOSE(m_identity,ENWL!AO130, NPgN!AO130, NPgY!AO130, WMID!AO130, EMID!AO130, SWALES!AO130, SWEST!AO130, LPN!AO130,SPN!AO130,EPN!AO130,SPD!AO130,SPMW!AO130,SSEH!AO130,SSES!AO130) -> 0 | AP130: =CHOOSE(m_identity,ENWL!AP130, NPgN!AP130, NPgY!AP130, WMID!AP130, EMID!AP130, SWALES!AP130, SWEST!AP130, LPN!AP130,SPN!AP130,EPN!AP130,SPD!AP130,SPMW!AP130,SSEH!AP130,SSES!AP130) -> 0 | AQ130: =CHOOSE(m_identity,ENWL!AQ130, NPgN!AQ130, NPgY!AQ130, WMID!AQ130, EMID!AQ130, SWALES!AQ130, SWEST!AQ130, LPN!AQ130,SPN!AQ130,EPN!AQ130,SPD!AQ130,SPMW!AQ130,SSEH!AQ130,SSES!AQ130) -> 0
E131: Allocation to 100% ‘revenue pool’ expenditure | G131: % | AJ131: =CHOOSE(m_identity,ENWL!AJ131, NPgN!AJ131, NPgY!AJ131, WMID!AJ131, EMID!AJ131, SWALES!AJ131, SWEST!AJ131, LPN!AJ131,SPN!AJ131,EPN!AJ131,SPD!AJ131,SPMW!AJ131,SSEH!AJ131,SSES!AJ131) -> 0 | AK131: =CHOOSE(m_identity,ENWL!AK131, NPgN!AK131, NPgY!AK131, WMID!AK131, EMID!AK131, SWALES!AK131, SWEST!AK131, LPN!AK131,SPN!AK131,EPN!AK131,SPD!AK131,SPMW!AK131,SSEH!AK131,SSES!AK131) -> 0 | AL131: =CHOOSE(m_identity,ENWL!AL131, NPgN!AL131, NPgY!AL131, WMID!AL131, EMID!AL131, SWALES!AL131, SWEST!AL131, LPN!AL131,SPN!AL131,EPN!AL131,SPD!AL131,SPMW!AL131,SSEH!AL131,SSES!AL131) -> 0 | AM131: =CHOOSE(m_identity,ENWL!AM131, NPgN!AM131, NPgY!AM131, WMID!AM131, EMID!AM131, SWALES!AM131, SWEST!AM131, LPN!AM131,SPN!AM131,EPN!AM131,SPD!AM131,SPMW!AM131,SSEH!AM131,SSES!AM131) -> 0 | AN131: =CHOOSE(m_identity,ENWL!AN131, NPgN!AN131, NPgY!AN131, WMID!AN131, EMID!AN131, SWALES!AN131, SWEST!AN131, LPN!AN131,SPN!AN131,EPN!AN131,SPD!AN131,SPMW!AN131,SSEH!AN131,SSES!AN131) -> 0 | AO131: =CHOOSE(m_identity,ENWL!AO131, NPgN!AO131, NPgY!AO131, WMID!AO131, EMID!AO131, SWALES!AO131, SWEST!AO131, LPN!AO131,SPN!AO131,EPN!AO131,SPD!AO131,SPMW!AO131,SSEH!AO131,SSES!AO131) -> 0 | AP131: =CHOOSE(m_identity,ENWL!AP131, NPgN!AP131, NPgY!AP131, WMID!AP131, EMID!AP131, SWALES!AP131, SWEST!AP131, LPN!AP131,SPN!AP131,EPN!AP131,SPD!AP131,SPMW!AP131,SSEH!AP131,SSES!AP131) -> 0 | AQ131: =CHOOSE(m_identity,ENWL!AQ131, NPgN!AQ131, NPgY!AQ131, WMID!AQ131, EMID!AQ131, SWALES!AQ131, SWEST!AQ131, LPN!AQ131,SPN!AQ131,EPN!AQ131,SPD!AQ131,SPMW!AQ131,SSEH!AQ131,SSES!AQ131) -> 0
E132: Allocation to controllable opex | G132: % | AJ132: =CHOOSE(m_identity,ENWL!AJ132, NPgN!AJ132, NPgY!AJ132, WMID!AJ132, EMID!AJ132, SWALES!AJ132, SWEST!AJ132, LPN!AJ132,SPN!AJ132,EPN!AJ132,SPD!AJ132,SPMW!AJ132,SSEH!AJ132,SSES!AJ132) -> 0 | AK132: =CHOOSE(m_identity,ENWL!AK132, NPgN!AK132, NPgY!AK132, WMID!AK132, EMID!AK132, SWALES!AK132, SWEST!AK132, LPN!AK132,SPN!AK132,EPN!AK132,SPD!AK132,SPMW!AK132,SSEH!AK132,SSES!AK132) -> 0 | AL132: =CHOOSE(m_identity,ENWL!AL132, NPgN!AL132, NPgY!AL132, WMID!AL132, EMID!AL132, SWALES!AL132, SWEST!AL132, LPN!AL132,SPN!AL132,EPN!AL132,SPD!AL132,SPMW!AL132,SSEH!AL132,SSES!AL132) -> 0 | AM132: =CHOOSE(m_identity,ENWL!AM132, NPgN!AM132, NPgY!AM132, WMID!AM132, EMID!AM132, SWALES!AM132, SWEST!AM132, LPN!AM132,SPN!AM132,EPN!AM132,SPD!AM132,SPMW!AM132,SSEH!AM132,SSES!AM132) -> 0 | AN132: =CHOOSE(m_identity,ENWL!AN132, NPgN!AN132, NPgY!AN132, WMID!AN132, EMID!AN132, SWALES!AN132, SWEST!AN132, LPN!AN132,SPN!AN132,EPN!AN132,SPD!AN132,SPMW!AN132,SSEH!AN132,SSES!AN132) -> 0 | AO132: =CHOOSE(m_identity,ENWL!AO132, NPgN!AO132, NPgY!AO132, WMID!AO132, EMID!AO132, SWALES!AO132, SWEST!AO132, LPN!AO132,SPN!AO132,EPN!AO132,SPD!AO132,SPMW!AO132,SSEH!AO132,SSES!AO132) -> 0 | AP132: =CHOOSE(m_identity,ENWL!AP132, NPgN!AP132, NPgY!AP132, WMID!AP132, EMID!AP132, SWALES!AP132, SWEST!AP132, LPN!AP132,SPN!AP132,EPN!AP132,SPD!AP132,SPMW!AP132,SSEH!AP132,SSES!AP132) -> 0 | AQ132: =CHOOSE(m_identity,ENWL!AQ132, NPgN!AQ132, NPgY!AQ132, WMID!AQ132, EMID!AQ132, SWALES!AQ132, SWEST!AQ132, LPN!AQ132,SPN!AQ132,EPN!AQ132,SPD!AQ132,SPMW!AQ132,SSEH!AQ132,SSES!AQ132) -> 0
E134: =E22 -> Allowed Expenditure - Worst Served Customer Project (TIM neutral) | G134: £m 12/13 prices | AJ134: =AJ22 -> 0 | AK134: =AK22 -> 0 | AL134: 0 | AM134: 0 | AN134: 0 | AO134: 0 | AP134: 0 | AQ134: 0
E135: Allocation to load related capex | G135: % | AJ135: =CHOOSE(m_identity,ENWL!AJ135, NPgN!AJ135, NPgY!AJ135, WMID!AJ135, EMID!AJ135, SWALES!AJ135, SWEST!AJ135, LPN!AJ135,SPN!AJ135,EPN!AJ135,SPD!AJ135,SPMW!AJ135,SSEH!AJ135,SSES!AJ135) -> 0 | AK135: =CHOOSE(m_identity,ENWL!AK135, NPgN!AK135, NPgY!AK135, WMID!AK135, EMID!AK135, SWALES!AK135, SWEST!AK135, LPN!AK135,SPN!AK135,EPN!AK135,SPD!AK135,SPMW!AK135,SSEH!AK135,SSES!AK135) -> 0 | AL135: =CHOOSE(m_identity,ENWL!AL135, NPgN!AL135, NPgY!AL135, WMID!AL135, EMID!AL135, SWALES!AL135, SWEST!AL135, LPN!AL135,SPN!AL135,EPN!AL135,SPD!AL135,SPMW!AL135,SSEH!AL135,SSES!AL135) -> 0 | AM135: =CHOOSE(m_identity,ENWL!AM135, NPgN!AM135, NPgY!AM135, WMID!AM135, EMID!AM135, SWALES!AM135, SWEST!AM135, LPN!AM135,SPN!AM135,EPN!AM135,SPD!AM135,SPMW!AM135,SSEH!AM135,SSES!AM135) -> 0 | AN135: =CHOOSE(m_identity,ENWL!AN135, NPgN!AN135, NPgY!AN135, WMID!AN135, EMID!AN135, SWALES!AN135, SWEST!AN135, LPN!AN135,SPN!AN135,EPN!AN135,SPD!AN135,SPMW!AN135,SSEH!AN135,SSES!AN135) -> 0 | AO135: =CHOOSE(m_identity,ENWL!AO135, NPgN!AO135, NPgY!AO135, WMID!AO135, EMID!AO135, SWALES!AO135, SWEST!AO135, LPN!AO135,SPN!AO135,EPN!AO135,SPD!AO135,SPMW!AO135,SSEH!AO135,SSES!AO135) -> 0 | AP135: =CHOOSE(m_identity,ENWL!AP135, NPgN!AP135, NPgY!AP135, WMID!AP135, EMID!AP135, SWALES!AP135, SWEST!AP135, LPN!AP135,SPN!AP135,EPN!AP135,SPD!AP135,SPMW!AP135,SSEH!AP135,SSES!AP135) -> 0 | AQ135: =CHOOSE(m_identity,ENWL!AQ135, NPgN!AQ135, NPgY!AQ135, WMID!AQ135, EMID!AQ135, SWALES!AQ135, SWEST!AQ135, LPN!AQ135,SPN!AQ135,EPN!AQ135,SPD!AQ135,SPMW!AQ135,SSEH!AQ135,SSES!AQ135) -> 0
E136: Allocation to non-load related capex - asset replacement | G136: % | AJ136: =CHOOSE(m_identity,ENWL!AJ136, NPgN!AJ136, NPgY!AJ136, WMID!AJ136, EMID!AJ136, SWALES!AJ136, SWEST!AJ136, LPN!AJ136,SPN!AJ136,EPN!AJ136,SPD!AJ136,SPMW!AJ136,SSEH!AJ136,SSES!AJ136) -> 0 | AK136: =CHOOSE(m_identity,ENWL!AK136, NPgN!AK136, NPgY!AK136, WMID!AK136, EMID!AK136, SWALES!AK136, SWEST!AK136, LPN!AK136,SPN!AK136,EPN!AK136,SPD!AK136,SPMW!AK136,SSEH!AK136,SSES!AK136) -> 0 | AL136: =CHOOSE(m_identity,ENWL!AL136, NPgN!AL136, NPgY!AL136, WMID!AL136, EMID!AL136, SWALES!AL136, SWEST!AL136, LPN!AL136,SPN!AL136,EPN!AL136,SPD!AL136,SPMW!AL136,SSEH!AL136,SSES!AL136) -> 0 | AM136: =CHOOSE(m_identity,ENWL!AM136, NPgN!AM136, NPgY!AM136, WMID!AM136, EMID!AM136, SWALES!AM136, SWEST!AM136, LPN!AM136,SPN!AM136,EPN!AM136,SPD!AM136,SPMW!AM136,SSEH!AM136,SSES!AM136) -> 0 | AN136: =CHOOSE(m_identity,ENWL!AN136, NPgN!AN136, NPgY!AN136, WMID!AN136, EMID!AN136, SWALES!AN136, SWEST!AN136, LPN!AN136,SPN!AN136,EPN!AN136,SPD!AN136,SPMW!AN136,SSEH!AN136,SSES!AN136) -> 0 | AO136: =CHOOSE(m_identity,ENWL!AO136, NPgN!AO136, NPgY!AO136, WMID!AO136, EMID!AO136, SWALES!AO136, SWEST!AO136, LPN!AO136,SPN!AO136,EPN!AO136,SPD!AO136,SPMW!AO136,SSEH!AO136,SSES!AO136) -> 0 | AP136: =CHOOSE(m_identity,ENWL!AP136, NPgN!AP136, NPgY!AP136, WMID!AP136, EMID!AP136, SWALES!AP136, SWEST!AP136, LPN!AP136,SPN!AP136,EPN!AP136,SPD!AP136,SPMW!AP136,SSEH!AP136,SSES!AP136) -> 0 | AQ136: =CHOOSE(m_identity,ENWL!AQ136, NPgN!AQ136, NPgY!AQ136, WMID!AQ136, EMID!AQ136, SWALES!AQ136, SWEST!AQ136, LPN!AQ136,SPN!AQ136,EPN!AQ136,SPD!AQ136,SPMW!AQ136,SSEH!AQ136,SSES!AQ136) -> 0
E137: Allocation to non-load related capex - other | G137: % | AJ137: =CHOOSE(m_identity,ENWL!AJ137, NPgN!AJ137, NPgY!AJ137, WMID!AJ137, EMID!AJ137, SWALES!AJ137, SWEST!AJ137, LPN!AJ137,SPN!AJ137,EPN!AJ137,SPD!AJ137,SPMW!AJ137,SSEH!AJ137,SSES!AJ137) -> 1 | AK137: =CHOOSE(m_identity,ENWL!AK137, NPgN!AK137, NPgY!AK137, WMID!AK137, EMID!AK137, SWALES!AK137, SWEST!AK137, LPN!AK137,SPN!AK137,EPN!AK137,SPD!AK137,SPMW!AK137,SSEH!AK137,SSES!AK137) -> 1 | AL137: =CHOOSE(m_identity,ENWL!AL137, NPgN!AL137, NPgY!AL137, WMID!AL137, EMID!AL137, SWALES!AL137, SWEST!AL137, LPN!AL137,SPN!AL137,EPN!AL137,SPD!AL137,SPMW!AL137,SSEH!AL137,SSES!AL137) -> 1 | AM137: =CHOOSE(m_identity,ENWL!AM137, NPgN!AM137, NPgY!AM137, WMID!AM137, EMID!AM137, SWALES!AM137, SWEST!AM137, LPN!AM137,SPN!AM137,EPN!AM137,SPD!AM137,SPMW!AM137,SSEH!AM137,SSES!AM137) -> 1 | AN137: =CHOOSE(m_identity,ENWL!AN137, NPgN!AN137, NPgY!AN137, WMID!AN137, EMID!AN137, SWALES!AN137, SWEST!AN137, LPN!AN137,SPN!AN137,EPN!AN137,SPD!AN137,SPMW!AN137,SSEH!AN137,SSES!AN137) -> 1 | AO137: =CHOOSE(m_identity,ENWL!AO137, NPgN!AO137, NPgY!AO137, WMID!AO137, EMID!AO137, SWALES!AO137, SWEST!AO137, LPN!AO137,SPN!AO137,EPN!AO137,SPD!AO137,SPMW!AO137,SSEH!AO137,SSES!AO137) -> 1 | AP137: =CHOOSE(m_identity,ENWL!AP137, NPgN!AP137, NPgY!AP137, WMID!AP137, EMID!AP137, SWALES!AP137, SWEST!AP137, LPN!AP137,SPN!AP137,EPN!AP137,SPD!AP137,SPMW!AP137,SSEH!AP137,SSES!AP137) -> 1 | AQ137: =CHOOSE(m_identity,ENWL!AQ137, NPgN!AQ137, NPgY!AQ137, WMID!AQ137, EMID!AQ137, SWALES!AQ137, SWEST!AQ137, LPN!AQ137,SPN!AQ137,EPN!AQ137,SPD!AQ137,SPMW!AQ137,SSEH!AQ137,SSES!AQ137) -> 1
E138: Allocation to faults | G138: % | AJ138: =CHOOSE(m_identity,ENWL!AJ138, NPgN!AJ138, NPgY!AJ138, WMID!AJ138, EMID!AJ138, SWALES!AJ138, SWEST!AJ138, LPN!AJ138,SPN!AJ138,EPN!AJ138,SPD!AJ138,SPMW!AJ138,SSEH!AJ138,SSES!AJ138) -> 0 | AK138: =CHOOSE(m_identity,ENWL!AK138, NPgN!AK138, NPgY!AK138, WMID!AK138, EMID!AK138, SWALES!AK138, SWEST!AK138, LPN!AK138,SPN!AK138,EPN!AK138,SPD!AK138,SPMW!AK138,SSEH!AK138,SSES!AK138) -> 0 | AL138: =CHOOSE(m_identity,ENWL!AL138, NPgN!AL138, NPgY!AL138, WMID!AL138, EMID!AL138, SWALES!AL138, SWEST!AL138, LPN!AL138,SPN!AL138,EPN!AL138,SPD!AL138,SPMW!AL138,SSEH!AL138,SSES!AL138) -> 0 | AM138: =CHOOSE(m_identity,ENWL!AM138, NPgN!AM138, NPgY!AM138, WMID!AM138, EMID!AM138, SWALES!AM138, SWEST!AM138, LPN!AM138,SPN!AM138,EPN!AM138,SPD!AM138,SPMW!AM138,SSEH!AM138,SSES!AM138) -> 0 | AN138: =CHOOSE(m_identity,ENWL!AN138, NPgN!AN138, NPgY!AN138, WMID!AN138, EMID!AN138, SWALES!AN138, SWEST!AN138, LPN!AN138,SPN!AN138,EPN!AN138,SPD!AN138,SPMW!AN138,SSEH!AN138,SSES!AN138) -> 0 | AO138: =CHOOSE(m_identity,ENWL!AO138, NPgN!AO138, NPgY!AO138, WMID!AO138, EMID!AO138, SWALES!AO138, SWEST!AO138, LPN!AO138,SPN!AO138,EPN!AO138,SPD!AO138,SPMW!AO138,SSEH!AO138,SSES!AO138) -> 0 | AP138: =CHOOSE(m_identity,ENWL!AP138, NPgN!AP138, NPgY!AP138, WMID!AP138, EMID!AP138, SWALES!AP138, SWEST!AP138, LPN!AP138,SPN!AP138,EPN!AP138,SPD!AP138,SPMW!AP138,SSEH!AP138,SSES!AP138) -> 0 | AQ138: =CHOOSE(m_identity,ENWL!AQ138, NPgN!AQ138, NPgY!AQ138, WMID!AQ138, EMID!AQ138, SWALES!AQ138, SWEST!AQ138, LPN!AQ138,SPN!AQ138,EPN!AQ138,SPD!AQ138,SPMW!AQ138,SSEH!AQ138,SSES!AQ138) -> 0
E139: Allocation to tree cutting | G139: % | AJ139: =CHOOSE(m_identity,ENWL!AJ139, NPgN!AJ139, NPgY!AJ139, WMID!AJ139, EMID!AJ139, SWALES!AJ139, SWEST!AJ139, LPN!AJ139,SPN!AJ139,EPN!AJ139,SPD!AJ139,SPMW!AJ139,SSEH!AJ139,SSES!AJ139) -> 0 | AK139: =CHOOSE(m_identity,ENWL!AK139, NPgN!AK139, NPgY!AK139, WMID!AK139, EMID!AK139, SWALES!AK139, SWEST!AK139, LPN!AK139,SPN!AK139,EPN!AK139,SPD!AK139,SPMW!AK139,SSEH!AK139,SSES!AK139) -> 0 | AL139: =CHOOSE(m_identity,ENWL!AL139, NPgN!AL139, NPgY!AL139, WMID!AL139, EMID!AL139, SWALES!AL139, SWEST!AL139, LPN!AL139,SPN!AL139,EPN!AL139,SPD!AL139,SPMW!AL139,SSEH!AL139,SSES!AL139) -> 0 | AM139: =CHOOSE(m_identity,ENWL!AM139, NPgN!AM139, NPgY!AM139, WMID!AM139, EMID!AM139, SWALES!AM139, SWEST!AM139, LPN!AM139,SPN!AM139,EPN!AM139,SPD!AM139,SPMW!AM139,SSEH!AM139,SSES!AM139) -> 0 | AN139: =CHOOSE(m_identity,ENWL!AN139, NPgN!AN139, NPgY!AN139, WMID!AN139, EMID!AN139, SWALES!AN139, SWEST!AN139, LPN!AN139,SPN!AN139,EPN!AN139,SPD!AN139,SPMW!AN139,SSEH!AN139,SSES!AN139) -> 0 | AO139: =CHOOSE(m_identity,ENWL!AO139, NPgN!AO139, NPgY!AO139, WMID!AO139, EMID!AO139, SWALES!AO139, SWEST!AO139, LPN!AO139,SPN!AO139,EPN!AO139,SPD!AO139,SPMW!AO139,SSEH!AO139,SSES!AO139) -> 0 | AP139: =CHOOSE(m_identity,ENWL!AP139, NPgN!AP139, NPgY!AP139, WMID!AP139, EMID!AP139, SWALES!AP139, SWEST!AP139, LPN!AP139,SPN!AP139,EPN!AP139,SPD!AP139,SPMW!AP139,SSEH!AP139,SSES!AP139) -> 0 | AQ139: =CHOOSE(m_identity,ENWL!AQ139, NPgN!AQ139, NPgY!AQ139, WMID!AQ139, EMID!AQ139, SWALES!AQ139, SWEST!AQ139, LPN!AQ139,SPN!AQ139,EPN!AQ139,SPD!AQ139,SPMW!AQ139,SSEH!AQ139,SSES!AQ139) -> 0
E140: Allocation to 100% ‘revenue pool’ expenditure | G140: % | AJ140: =CHOOSE(m_identity,ENWL!AJ140, NPgN!AJ140, NPgY!AJ140, WMID!AJ140, EMID!AJ140, SWALES!AJ140, SWEST!AJ140, LPN!AJ140,SPN!AJ140,EPN!AJ140,SPD!AJ140,SPMW!AJ140,SSEH!AJ140,SSES!AJ140) -> 0 | AK140: =CHOOSE(m_identity,ENWL!AK140, NPgN!AK140, NPgY!AK140, WMID!AK140, EMID!AK140, SWALES!AK140, SWEST!AK140, LPN!AK140,SPN!AK140,EPN!AK140,SPD!AK140,SPMW!AK140,SSEH!AK140,SSES!AK140) -> 0 | AL140: =CHOOSE(m_identity,ENWL!AL140, NPgN!AL140, NPgY!AL140, WMID!AL140, EMID!AL140, SWALES!AL140, SWEST!AL140, LPN!AL140,SPN!AL140,EPN!AL140,SPD!AL140,SPMW!AL140,SSEH!AL140,SSES!AL140) -> 0 | AM140: =CHOOSE(m_identity,ENWL!AM140, NPgN!AM140, NPgY!AM140, WMID!AM140, EMID!AM140, SWALES!AM140, SWEST!AM140, LPN!AM140,SPN!AM140,EPN!AM140,SPD!AM140,SPMW!AM140,SSEH!AM140,SSES!AM140) -> 0 | AN140: =CHOOSE(m_identity,ENWL!AN140, NPgN!AN140, NPgY!AN140, WMID!AN140, EMID!AN140, SWALES!AN140, SWEST!AN140, LPN!AN140,SPN!AN140,EPN!AN140,SPD!AN140,SPMW!AN140,SSEH!AN140,SSES!AN140) -> 0 | AO140: =CHOOSE(m_identity,ENWL!AO140, NPgN!AO140, NPgY!AO140, WMID!AO140, EMID!AO140, SWALES!AO140, SWEST!AO140, LPN!AO140,SPN!AO140,EPN!AO140,SPD!AO140,SPMW!AO140,SSEH!AO140,SSES!AO140) -> 0 | AP140: =CHOOSE(m_identity,ENWL!AP140, NPgN!AP140, NPgY!AP140, WMID!AP140, EMID!AP140, SWALES!AP140, SWEST!AP140, LPN!AP140,SPN!AP140,EPN!AP140,SPD!AP140,SPMW!AP140,SSEH!AP140,SSES!AP140) -> 0 | AQ140: =CHOOSE(m_identity,ENWL!AQ140, NPgN!AQ140, NPgY!AQ140, WMID!AQ140, EMID!AQ140, SWALES!AQ140, SWEST!AQ140, LPN!AQ140,SPN!AQ140,EPN!AQ140,SPD!AQ140,SPMW!AQ140,SSEH!AQ140,SSES!AQ140) -> 0
E141: Allocation to controllable opex | G141: % | AJ141: =CHOOSE(m_identity,ENWL!AJ141, NPgN!AJ141, NPgY!AJ141, WMID!AJ141, EMID!AJ141, SWALES!AJ141, SWEST!AJ141, LPN!AJ141,SPN!AJ141,EPN!AJ141,SPD!AJ141,SPMW!AJ141,SSEH!AJ141,SSES!AJ141) -> 0 | AK141: =CHOOSE(m_identity,ENWL!AK141, NPgN!AK141, NPgY!AK141, WMID!AK141, EMID!AK141, SWALES!AK141, SWEST!AK141, LPN!AK141,SPN!AK141,EPN!AK141,SPD!AK141,SPMW!AK141,SSEH!AK141,SSES!AK141) -> 0 | AL141: =CHOOSE(m_identity,ENWL!AL141, NPgN!AL141, NPgY!AL141, WMID!AL141, EMID!AL141, SWALES!AL141, SWEST!AL141, LPN!AL141,SPN!AL141,EPN!AL141,SPD!AL141,SPMW!AL141,SSEH!AL141,SSES!AL141) -> 0 | AM141: =CHOOSE(m_identity,ENWL!AM141, NPgN!AM141, NPgY!AM141, WMID!AM141, EMID!AM141, SWALES!AM141, SWEST!AM141, LPN!AM141,SPN!AM141,EPN!AM141,SPD!AM141,SPMW!AM141,SSEH!AM141,SSES!AM141) -> 0 | AN141: =CHOOSE(m_identity,ENWL!AN141, NPgN!AN141, NPgY!AN141, WMID!AN141, EMID!AN141, SWALES!AN141, SWEST!AN141, LPN!AN141,SPN!AN141,EPN!AN141,SPD!AN141,SPMW!AN141,SSEH!AN141,SSES!AN141) -> 0 | AO141: =CHOOSE(m_identity,ENWL!AO141, NPgN!AO141, NPgY!AO141, WMID!AO141, EMID!AO141, SWALES!AO141, SWEST!AO141, LPN!AO141,SPN!AO141,EPN!AO141,SPD!AO141,SPMW!AO141,SSEH!AO141,SSES!AO141) -> 0 | AP141: =CHOOSE(m_identity,ENWL!AP141, NPgN!AP141, NPgY!AP141, WMID!AP141, EMID!AP141, SWALES!AP141, SWEST!AP141, LPN!AP141,SPN!AP141,EPN!AP141,SPD!AP141,SPMW!AP141,SSEH!AP141,SSES!AP141) -> 0 | AQ141: =CHOOSE(m_identity,ENWL!AQ141, NPgN!AQ141, NPgY!AQ141, WMID!AQ141, EMID!AQ141, SWALES!AQ141, SWEST!AQ141, LPN!AQ141,SPN!AQ141,EPN!AQ141,SPD!AQ141,SPMW!AQ141,SSEH!AQ141,SSES!AQ141) -> 0
E143: =E23 -> Allowed Expenditure - Smart Meter Roll-out costs | G143: £m 12/13 prices | AJ143: =AJ23 -> 1.255093274 | AK143: 2.397137128 | AL143: 3.401666236 | AM143: 3.787737389 | AN143: 3.591877133 | AO143: 2.523178883 | AP143: 0 | AQ143: 0
E144: Allocation to load related capex | G144: % | AJ144: =CHOOSE(m_identity,ENWL!AJ144, NPgN!AJ144, NPgY!AJ144, WMID!AJ144, EMID!AJ144, SWALES!AJ144, SWEST!AJ144, LPN!AJ144,SPN!AJ144,EPN!AJ144,SPD!AJ144,SPMW!AJ144,SSEH!AJ144,SSES!AJ144) -> 0 | AK144: =CHOOSE(m_identity,ENWL!AK144, NPgN!AK144, NPgY!AK144, WMID!AK144, EMID!AK144, SWALES!AK144, SWEST!AK144, LPN!AK144,SPN!AK144,EPN!AK144,SPD!AK144,SPMW!AK144,SSEH!AK144,SSES!AK144) -> 0 | AL144: =CHOOSE(m_identity,ENWL!AL144, NPgN!AL144, NPgY!AL144, WMID!AL144, EMID!AL144, SWALES!AL144, SWEST!AL144, LPN!AL144,SPN!AL144,EPN!AL144,SPD!AL144,SPMW!AL144,SSEH!AL144,SSES!AL144) -> 0 | AM144: =CHOOSE(m_identity,ENWL!AM144, NPgN!AM144, NPgY!AM144, WMID!AM144, EMID!AM144, SWALES!AM144, SWEST!AM144, LPN!AM144,SPN!AM144,EPN!AM144,SPD!AM144,SPMW!AM144,SSEH!AM144,SSES!AM144) -> 0 | AN144: =CHOOSE(m_identity,ENWL!AN144, NPgN!AN144, NPgY!AN144, WMID!AN144, EMID!AN144, SWALES!AN144, SWEST!AN144, LPN!AN144,SPN!AN144,EPN!AN144,SPD!AN144,SPMW!AN144,SSEH!AN144,SSES!AN144) -> 0 | AO144: =CHOOSE(m_identity,ENWL!AO144, NPgN!AO144, NPgY!AO144, WMID!AO144, EMID!AO144, SWALES!AO144, SWEST!AO144, LPN!AO144,SPN!AO144,EPN!AO144,SPD!AO144,SPMW!AO144,SSEH!AO144,SSES!AO144) -> 0 | AP144: =CHOOSE(m_identity,ENWL!AP144, NPgN!AP144, NPgY!AP144, WMID!AP144, EMID!AP144, SWALES!AP144, SWEST!AP144, LPN!AP144,SPN!AP144,EPN!AP144,SPD!AP144,SPMW!AP144,SSEH!AP144,SSES!AP144) -> 0 | AQ144: =CHOOSE(m_identity,ENWL!AQ144, NPgN!AQ144, NPgY!AQ144, WMID!AQ144, EMID!AQ144, SWALES!AQ144, SWEST!AQ144, LPN!AQ144,SPN!AQ144,EPN!AQ144,SPD!AQ144,SPMW!AQ144,SSEH!AQ144,SSES!AQ144) -> 0
E145: Allocation to non-load related capex - asset replacement | G145: % | AJ145: =CHOOSE(m_identity,ENWL!AJ145, NPgN!AJ145, NPgY!AJ145, WMID!AJ145, EMID!AJ145, SWALES!AJ145, SWEST!AJ145, LPN!AJ145,SPN!AJ145,EPN!AJ145,SPD!AJ145,SPMW!AJ145,SSEH!AJ145,SSES!AJ145) -> 0 | AK145: =CHOOSE(m_identity,ENWL!AK145, NPgN!AK145, NPgY!AK145, WMID!AK145, EMID!AK145, SWALES!AK145, SWEST!AK145, LPN!AK145,SPN!AK145,EPN!AK145,SPD!AK145,SPMW!AK145,SSEH!AK145,SSES!AK145) -> 0 | AL145: =CHOOSE(m_identity,ENWL!AL145, NPgN!AL145, NPgY!AL145, WMID!AL145, EMID!AL145, SWALES!AL145, SWEST!AL145, LPN!AL145,SPN!AL145,EPN!AL145,SPD!AL145,SPMW!AL145,SSEH!AL145,SSES!AL145) -> 0 | AM145: =CHOOSE(m_identity,ENWL!AM145, NPgN!AM145, NPgY!AM145, WMID!AM145, EMID!AM145, SWALES!AM145, SWEST!AM145, LPN!AM145,SPN!AM145,EPN!AM145,SPD!AM145,SPMW!AM145,SSEH!AM145,SSES!AM145) -> 0 | AN145: =CHOOSE(m_identity,ENWL!AN145, NPgN!AN145, NPgY!AN145, WMID!AN145, EMID!AN145, SWALES!AN145, SWEST!AN145, LPN!AN145,SPN!AN145,EPN!AN145,SPD!AN145,SPMW!AN145,SSEH!AN145,SSES!AN145) -> 0 | AO145: =CHOOSE(m_identity,ENWL!AO145, NPgN!AO145, NPgY!AO145, WMID!AO145, EMID!AO145, SWALES!AO145, SWEST!AO145, LPN!AO145,SPN!AO145,EPN!AO145,SPD!AO145,SPMW!AO145,SSEH!AO145,SSES!AO145) -> 0 | AP145: =CHOOSE(m_identity,ENWL!AP145, NPgN!AP145, NPgY!AP145, WMID!AP145, EMID!AP145, SWALES!AP145, SWEST!AP145, LPN!AP145,SPN!AP145,EPN!AP145,SPD!AP145,SPMW!AP145,SSEH!AP145,SSES!AP145) -> 0 | AQ145: =CHOOSE(m_identity,ENWL!AQ145, NPgN!AQ145, NPgY!AQ145, WMID!AQ145, EMID!AQ145, SWALES!AQ145, SWEST!AQ145, LPN!AQ145,SPN!AQ145,EPN!AQ145,SPD!AQ145,SPMW!AQ145,SSEH!AQ145,SSES!AQ145) -> 0
E146: Allocation to non-load related capex - other | G146: % | AJ146: =CHOOSE(m_identity,ENWL!AJ146, NPgN!AJ146, NPgY!AJ146, WMID!AJ146, EMID!AJ146, SWALES!AJ146, SWEST!AJ146, LPN!AJ146,SPN!AJ146,EPN!AJ146,SPD!AJ146,SPMW!AJ146,SSEH!AJ146,SSES!AJ146) -> 0 | AK146: =CHOOSE(m_identity,ENWL!AK146, NPgN!AK146, NPgY!AK146, WMID!AK146, EMID!AK146, SWALES!AK146, SWEST!AK146, LPN!AK146,SPN!AK146,EPN!AK146,SPD!AK146,SPMW!AK146,SSEH!AK146,SSES!AK146) -> 0 | AL146: =CHOOSE(m_identity,ENWL!AL146, NPgN!AL146, NPgY!AL146, WMID!AL146, EMID!AL146, SWALES!AL146, SWEST!AL146, LPN!AL146,SPN!AL146,EPN!AL146,SPD!AL146,SPMW!AL146,SSEH!AL146,SSES!AL146) -> 0 | AM146: =CHOOSE(m_identity,ENWL!AM146, NPgN!AM146, NPgY!AM146, WMID!AM146, EMID!AM146, SWALES!AM146, SWEST!AM146, LPN!AM146,SPN!AM146,EPN!AM146,SPD!AM146,SPMW!AM146,SSEH!AM146,SSES!AM146) -> 0 | AN146: =CHOOSE(m_identity,ENWL!AN146, NPgN!AN146, NPgY!AN146, WMID!AN146, EMID!AN146, SWALES!AN146, SWEST!AN146, LPN!AN146,SPN!AN146,EPN!AN146,SPD!AN146,SPMW!AN146,SSEH!AN146,SSES!AN146) -> 0 | AO146: =CHOOSE(m_identity,ENWL!AO146, NPgN!AO146, NPgY!AO146, WMID!AO146, EMID!AO146, SWALES!AO146, SWEST!AO146, LPN!AO146,SPN!AO146,EPN!AO146,SPD!AO146,SPMW!AO146,SSEH!AO146,SSES!AO146) -> 0 | AP146: =CHOOSE(m_identity,ENWL!AP146, NPgN!AP146, NPgY!AP146, WMID!AP146, EMID!AP146, SWALES!AP146, SWEST!AP146, LPN!AP146,SPN!AP146,EPN!AP146,SPD!AP146,SPMW!AP146,SSEH!AP146,SSES!AP146) -> 0 | AQ146: =CHOOSE(m_identity,ENWL!AQ146, NPgN!AQ146, NPgY!AQ146, WMID!AQ146, EMID!AQ146, SWALES!AQ146, SWEST!AQ146, LPN!AQ146,SPN!AQ146,EPN!AQ146,SPD!AQ146,SPMW!AQ146,SSEH!AQ146,SSES!AQ146) -> 0
E147: Allocation to faults | G147: % | AJ147: =CHOOSE(m_identity,ENWL!AJ147, NPgN!AJ147, NPgY!AJ147, WMID!AJ147, EMID!AJ147, SWALES!AJ147, SWEST!AJ147, LPN!AJ147,SPN!AJ147,EPN!AJ147,SPD!AJ147,SPMW!AJ147,SSEH!AJ147,SSES!AJ147) -> 0 | AK147: =CHOOSE(m_identity,ENWL!AK147, NPgN!AK147, NPgY!AK147, WMID!AK147, EMID!AK147, SWALES!AK147, SWEST!AK147, LPN!AK147,SPN!AK147,EPN!AK147,SPD!AK147,SPMW!AK147,SSEH!AK147,SSES!AK147) -> 0 | AL147: =CHOOSE(m_identity,ENWL!AL147, NPgN!AL147, NPgY!AL147, WMID!AL147, EMID!AL147, SWALES!AL147, SWEST!AL147, LPN!AL147,SPN!AL147,EPN!AL147,SPD!AL147,SPMW!AL147,SSEH!AL147,SSES!AL147) -> 0 | AM147: =CHOOSE(m_identity,ENWL!AM147, NPgN!AM147, NPgY!AM147, WMID!AM147, EMID!AM147, SWALES!AM147, SWEST!AM147, LPN!AM147,SPN!AM147,EPN!AM147,SPD!AM147,SPMW!AM147,SSEH!AM147,SSES!AM147) -> 0 | AN147: =CHOOSE(m_identity,ENWL!AN147, NPgN!AN147, NPgY!AN147, WMID!AN147, EMID!AN147, SWALES!AN147, SWEST!AN147, LPN!AN147,SPN!AN147,EPN!AN147,SPD!AN147,SPMW!AN147,SSEH!AN147,SSES!AN147) -> 0 | AO147: =CHOOSE(m_identity,ENWL!AO147, NPgN!AO147, NPgY!AO147, WMID!AO147, EMID!AO147, SWALES!AO147, SWEST!AO147, LPN!AO147,SPN!AO147,EPN!AO147,SPD!AO147,SPMW!AO147,SSEH!AO147,SSES!AO147) -> 0 | AP147: =CHOOSE(m_identity,ENWL!AP147, NPgN!AP147, NPgY!AP147, WMID!AP147, EMID!AP147, SWALES!AP147, SWEST!AP147, LPN!AP147,SPN!AP147,EPN!AP147,SPD!AP147,SPMW!AP147,SSEH!AP147,SSES!AP147) -> 0 | AQ147: =CHOOSE(m_identity,ENWL!AQ147, NPgN!AQ147, NPgY!AQ147, WMID!AQ147, EMID!AQ147, SWALES!AQ147, SWEST!AQ147, LPN!AQ147,SPN!AQ147,EPN!AQ147,SPD!AQ147,SPMW!AQ147,SSEH!AQ147,SSES!AQ147) -> 0
E148: Allocation to tree cutting | G148: % | AJ148: =CHOOSE(m_identity,ENWL!AJ148, NPgN!AJ148, NPgY!AJ148, WMID!AJ148, EMID!AJ148, SWALES!AJ148, SWEST!AJ148, LPN!AJ148,SPN!AJ148,EPN!AJ148,SPD!AJ148,SPMW!AJ148,SSEH!AJ148,SSES!AJ148) -> 0 | AK148: =CHOOSE(m_identity,ENWL!AK148, NPgN!AK148, NPgY!AK148, WMID!AK148, EMID!AK148, SWALES!AK148, SWEST!AK148, LPN!AK148,SPN!AK148,EPN!AK148,SPD!AK148,SPMW!AK148,SSEH!AK148,SSES!AK148) -> 0 | AL148: =CHOOSE(m_identity,ENWL!AL148, NPgN!AL148, NPgY!AL148, WMID!AL148, EMID!AL148, SWALES!AL148, SWEST!AL148, LPN!AL148,SPN!AL148,EPN!AL148,SPD!AL148,SPMW!AL148,SSEH!AL148,SSES!AL148) -> 0 | AM148: =CHOOSE(m_identity,ENWL!AM148, NPgN!AM148, NPgY!AM148, WMID!AM148, EMID!AM148, SWALES!AM148, SWEST!AM148, LPN!AM148,SPN!AM148,EPN!AM148,SPD!AM148,SPMW!AM148,SSEH!AM148,SSES!AM148) -> 0 | AN148: =CHOOSE(m_identity,ENWL!AN148, NPgN!AN148, NPgY!AN148, WMID!AN148, EMID!AN148, SWALES!AN148, SWEST!AN148, LPN!AN148,SPN!AN148,EPN!AN148,SPD!AN148,SPMW!AN148,SSEH!AN148,SSES!AN148) -> 0 | AO148: =CHOOSE(m_identity,ENWL!AO148, NPgN!AO148, NPgY!AO148, WMID!AO148, EMID!AO148, SWALES!AO148, SWEST!AO148, LPN!AO148,SPN!AO148,EPN!AO148,SPD!AO148,SPMW!AO148,SSEH!AO148,SSES!AO148) -> 0 | AP148: =CHOOSE(m_identity,ENWL!AP148, NPgN!AP148, NPgY!AP148, WMID!AP148, EMID!AP148, SWALES!AP148, SWEST!AP148, LPN!AP148,SPN!AP148,EPN!AP148,SPD!AP148,SPMW!AP148,SSEH!AP148,SSES!AP148) -> 0 | AQ148: =CHOOSE(m_identity,ENWL!AQ148, NPgN!AQ148, NPgY!AQ148, WMID!AQ148, EMID!AQ148, SWALES!AQ148, SWEST!AQ148, LPN!AQ148,SPN!AQ148,EPN!AQ148,SPD!AQ148,SPMW!AQ148,SSEH!AQ148,SSES!AQ148) -> 0
E149: Allocation to 100% ‘revenue pool’ expenditure | G149: % | AJ149: =CHOOSE(m_identity,ENWL!AJ149, NPgN!AJ149, NPgY!AJ149, WMID!AJ149, EMID!AJ149, SWALES!AJ149, SWEST!AJ149, LPN!AJ149,SPN!AJ149,EPN!AJ149,SPD!AJ149,SPMW!AJ149,SSEH!AJ149,SSES!AJ149) -> 0.03949447077 | AK149: =CHOOSE(m_identity,ENWL!AK149, NPgN!AK149, NPgY!AK149, WMID!AK149, EMID!AK149, SWALES!AK149, SWEST!AK149, LPN!AK149,SPN!AK149,EPN!AK149,SPD!AK149,SPMW!AK149,SSEH!AK149,SSES!AK149) -> 0.04152565247 | AL149: =CHOOSE(m_identity,ENWL!AL149, NPgN!AL149, NPgY!AL149, WMID!AL149, EMID!AL149, SWALES!AL149, SWEST!AL149, LPN!AL149,SPN!AL149,EPN!AL149,SPD!AL149,SPMW!AL149,SSEH!AL149,SSES!AL149) -> 0.03679717398 | AM149: =CHOOSE(m_identity,ENWL!AM149, NPgN!AM149, NPgY!AM149, WMID!AM149, EMID!AM149, SWALES!AM149, SWEST!AM149, LPN!AM149,SPN!AM149,EPN!AM149,SPD!AM149,SPMW!AM149,SSEH!AM149,SSES!AM149) -> 0.039793076 | AN149: =CHOOSE(m_identity,ENWL!AN149, NPgN!AN149, NPgY!AN149, WMID!AN149, EMID!AN149, SWALES!AN149, SWEST!AN149, LPN!AN149,SPN!AN149,EPN!AN149,SPD!AN149,SPMW!AN149,SSEH!AN149,SSES!AN149) -> 0.04084507042 | AO149: =CHOOSE(m_identity,ENWL!AO149, NPgN!AO149, NPgY!AO149, WMID!AO149, EMID!AO149, SWALES!AO149, SWEST!AO149, LPN!AO149,SPN!AO149,EPN!AO149,SPD!AO149,SPMW!AO149,SSEH!AO149,SSES!AO149) -> 0.04642712959 | AP149: =CHOOSE(m_identity,ENWL!AP149, NPgN!AP149, NPgY!AP149, WMID!AP149, EMID!AP149, SWALES!AP149, SWEST!AP149, LPN!AP149,SPN!AP149,EPN!AP149,SPD!AP149,SPMW!AP149,SSEH!AP149,SSES!AP149) -> 0 | AQ149: =CHOOSE(m_identity,ENWL!AQ149, NPgN!AQ149, NPgY!AQ149, WMID!AQ149, EMID!AQ149, SWALES!AQ149, SWEST!AQ149, LPN!AQ149,SPN!AQ149,EPN!AQ149,SPD!AQ149,SPMW!AQ149,SSEH!AQ149,SSES!AQ149) -> 0
E150: Allocation to controllable opex | G150: % | AJ150: =CHOOSE(m_identity,ENWL!AJ150, NPgN!AJ150, NPgY!AJ150, WMID!AJ150, EMID!AJ150, SWALES!AJ150, SWEST!AJ150, LPN!AJ150,SPN!AJ150,EPN!AJ150,SPD!AJ150,SPMW!AJ150,SSEH!AJ150,SSES!AJ150) -> 0.9605055292 | AK150: =CHOOSE(m_identity,ENWL!AK150, NPgN!AK150, NPgY!AK150, WMID!AK150, EMID!AK150, SWALES!AK150, SWEST!AK150, LPN!AK150,SPN!AK150,EPN!AK150,SPD!AK150,SPMW!AK150,SSEH!AK150,SSES!AK150) -> 0.9584743475 | AL150: =CHOOSE(m_identity,ENWL!AL150, NPgN!AL150, NPgY!AL150, WMID!AL150, EMID!AL150, SWALES!AL150, SWEST!AL150, LPN!AL150,SPN!AL150,EPN!AL150,SPD!AL150,SPMW!AL150,SSEH!AL150,SSES!AL150) -> 0.963202826 | AM150: =CHOOSE(m_identity,ENWL!AM150, NPgN!AM150, NPgY!AM150, WMID!AM150, EMID!AM150, SWALES!AM150, SWEST!AM150, LPN!AM150,SPN!AM150,EPN!AM150,SPD!AM150,SPMW!AM150,SSEH!AM150,SSES!AM150) -> 0.960206924 | AN150: =CHOOSE(m_identity,ENWL!AN150, NPgN!AN150, NPgY!AN150, WMID!AN150, EMID!AN150, SWALES!AN150, SWEST!AN150, LPN!AN150,SPN!AN150,EPN!AN150,SPD!AN150,SPMW!AN150,SSEH!AN150,SSES!AN150) -> 0.9591549296 | AO150: =CHOOSE(m_identity,ENWL!AO150, NPgN!AO150, NPgY!AO150, WMID!AO150, EMID!AO150, SWALES!AO150, SWEST!AO150, LPN!AO150,SPN!AO150,EPN!AO150,SPD!AO150,SPMW!AO150,SSEH!AO150,SSES!AO150) -> 0.9535728704 | AP150: =CHOOSE(m_identity,ENWL!AP150, NPgN!AP150, NPgY!AP150, WMID!AP150, EMID!AP150, SWALES!AP150, SWEST!AP150, LPN!AP150,SPN!AP150,EPN!AP150,SPD!AP150,SPMW!AP150,SSEH!AP150,SSES!AP150) -> 0 | AQ150: =CHOOSE(m_identity,ENWL!AQ150, NPgN!AQ150, NPgY!AQ150, WMID!AQ150, EMID!AQ150, SWALES!AQ150, SWEST!AQ150, LPN!AQ150,SPN!AQ150,EPN!AQ150,SPD!AQ150,SPMW!AQ150,SSEH!AQ150,SSES!AQ150) -> 0
E152: =E24 -> Allowed Expenditure - Specified Street Works | G152: £m 12/13 prices | AJ152: =AJ24 -> 0 | AK152: 0 | AL152: 0 | AM152: 0 | AN152: 0 | AO152: 0 | AP152: 0 | AQ152: 0
E153: Allocation to load related capex | G153: % | AJ153: =CHOOSE(m_identity,ENWL!AJ153, NPgN!AJ153, NPgY!AJ153, WMID!AJ153, EMID!AJ153, SWALES!AJ153, SWEST!AJ153, LPN!AJ153,SPN!AJ153,EPN!AJ153,SPD!AJ153,SPMW!AJ153,SSEH!AJ153,SSES!AJ153) -> 0.35 | AK153: =CHOOSE(m_identity,ENWL!AK153, NPgN!AK153, NPgY!AK153, WMID!AK153, EMID!AK153, SWALES!AK153, SWEST!AK153, LPN!AK153,SPN!AK153,EPN!AK153,SPD!AK153,SPMW!AK153,SSEH!AK153,SSES!AK153) -> 0.35 | AL153: =CHOOSE(m_identity,ENWL!AL153, NPgN!AL153, NPgY!AL153, WMID!AL153, EMID!AL153, SWALES!AL153, SWEST!AL153, LPN!AL153,SPN!AL153,EPN!AL153,SPD!AL153,SPMW!AL153,SSEH!AL153,SSES!AL153) -> 0.35 | AM153: =CHOOSE(m_identity,ENWL!AM153, NPgN!AM153, NPgY!AM153, WMID!AM153, EMID!AM153, SWALES!AM153, SWEST!AM153, LPN!AM153,SPN!AM153,EPN!AM153,SPD!AM153,SPMW!AM153,SSEH!AM153,SSES!AM153) -> 0.35 | AN153: =CHOOSE(m_identity,ENWL!AN153, NPgN!AN153, NPgY!AN153, WMID!AN153, EMID!AN153, SWALES!AN153, SWEST!AN153, LPN!AN153,SPN!AN153,EPN!AN153,SPD!AN153,SPMW!AN153,SSEH!AN153,SSES!AN153) -> 0.35 | AO153: =CHOOSE(m_identity,ENWL!AO153, NPgN!AO153, NPgY!AO153, WMID!AO153, EMID!AO153, SWALES!AO153, SWEST!AO153, LPN!AO153,SPN!AO153,EPN!AO153,SPD!AO153,SPMW!AO153,SSEH!AO153,SSES!AO153) -> 0.35 | AP153: =CHOOSE(m_identity,ENWL!AP153, NPgN!AP153, NPgY!AP153, WMID!AP153, EMID!AP153, SWALES!AP153, SWEST!AP153, LPN!AP153,SPN!AP153,EPN!AP153,SPD!AP153,SPMW!AP153,SSEH!AP153,SSES!AP153) -> 0.35 | AQ153: =CHOOSE(m_identity,ENWL!AQ153, NPgN!AQ153, NPgY!AQ153, WMID!AQ153, EMID!AQ153, SWALES!AQ153, SWEST!AQ153, LPN!AQ153,SPN!AQ153,EPN!AQ153,SPD!AQ153,SPMW!AQ153,SSEH!AQ153,SSES!AQ153) -> 0.35
E154: Allocation to non-load related capex - asset replacement | G154: % | AJ154: =CHOOSE(m_identity,ENWL!AJ154, NPgN!AJ154, NPgY!AJ154, WMID!AJ154, EMID!AJ154, SWALES!AJ154, SWEST!AJ154, LPN!AJ154,SPN!AJ154,EPN!AJ154,SPD!AJ154,SPMW!AJ154,SSEH!AJ154,SSES!AJ154) -> 0 | AK154: =CHOOSE(m_identity,ENWL!AK154, NPgN!AK154, NPgY!AK154, WMID!AK154, EMID!AK154, SWALES!AK154, SWEST!AK154, LPN!AK154,SPN!AK154,EPN!AK154,SPD!AK154,SPMW!AK154,SSEH!AK154,SSES!AK154) -> 0 | AL154: =CHOOSE(m_identity,ENWL!AL154, NPgN!AL154, NPgY!AL154, WMID!AL154, EMID!AL154, SWALES!AL154, SWEST!AL154, LPN!AL154,SPN!AL154,EPN!AL154,SPD!AL154,SPMW!AL154,SSEH!AL154,SSES!AL154) -> 0 | AM154: =CHOOSE(m_identity,ENWL!AM154, NPgN!AM154, NPgY!AM154, WMID!AM154, EMID!AM154, SWALES!AM154, SWEST!AM154, LPN!AM154,SPN!AM154,EPN!AM154,SPD!AM154,SPMW!AM154,SSEH!AM154,SSES!AM154) -> 0 | AN154: =CHOOSE(m_identity,ENWL!AN154, NPgN!AN154, NPgY!AN154, WMID!AN154, EMID!AN154, SWALES!AN154, SWEST!AN154, LPN!AN154,SPN!AN154,EPN!AN154,SPD!AN154,SPMW!AN154,SSEH!AN154,SSES!AN154) -> 0 | AO154: =CHOOSE(m_identity,ENWL!AO154, NPgN!AO154, NPgY!AO154, WMID!AO154, EMID!AO154, SWALES!AO154, SWEST!AO154, LPN!AO154,SPN!AO154,EPN!AO154,SPD!AO154,SPMW!AO154,SSEH!AO154,SSES!AO154) -> 0 | AP154: =CHOOSE(m_identity,ENWL!AP154, NPgN!AP154, NPgY!AP154, WMID!AP154, EMID!AP154, SWALES!AP154, SWEST!AP154, LPN!AP154,SPN!AP154,EPN!AP154,SPD!AP154,SPMW!AP154,SSEH!AP154,SSES!AP154) -> 0 | AQ154: =CHOOSE(m_identity,ENWL!AQ154, NPgN!AQ154, NPgY!AQ154, WMID!AQ154, EMID!AQ154, SWALES!AQ154, SWEST!AQ154, LPN!AQ154,SPN!AQ154,EPN!AQ154,SPD!AQ154,SPMW!AQ154,SSEH!AQ154,SSES!AQ154) -> 0
E155: Allocation to non-load related capex - other | G155: % | AJ155: =CHOOSE(m_identity,ENWL!AJ155, NPgN!AJ155, NPgY!AJ155, WMID!AJ155, EMID!AJ155, SWALES!AJ155, SWEST!AJ155, LPN!AJ155,SPN!AJ155,EPN!AJ155,SPD!AJ155,SPMW!AJ155,SSEH!AJ155,SSES!AJ155) -> 0 | AK155: =CHOOSE(m_identity,ENWL!AK155, NPgN!AK155, NPgY!AK155, WMID!AK155, EMID!AK155, SWALES!AK155, SWEST!AK155, LPN!AK155,SPN!AK155,EPN!AK155,SPD!AK155,SPMW!AK155,SSEH!AK155,SSES!AK155) -> 0 | AL155: =CHOOSE(m_identity,ENWL!AL155, NPgN!AL155, NPgY!AL155, WMID!AL155, EMID!AL155, SWALES!AL155, SWEST!AL155, LPN!AL155,SPN!AL155,EPN!AL155,SPD!AL155,SPMW!AL155,SSEH!AL155,SSES!AL155) -> 0 | AM155: =CHOOSE(m_identity,ENWL!AM155, NPgN!AM155, NPgY!AM155, WMID!AM155, EMID!AM155, SWALES!AM155, SWEST!AM155, LPN!AM155,SPN!AM155,EPN!AM155,SPD!AM155,SPMW!AM155,SSEH!AM155,SSES!AM155) -> 0 | AN155: =CHOOSE(m_identity,ENWL!AN155, NPgN!AN155, NPgY!AN155, WMID!AN155, EMID!AN155, SWALES!AN155, SWEST!AN155, LPN!AN155,SPN!AN155,EPN!AN155,SPD!AN155,SPMW!AN155,SSEH!AN155,SSES!AN155) -> 0 | AO155: =CHOOSE(m_identity,ENWL!AO155, NPgN!AO155, NPgY!AO155, WMID!AO155, EMID!AO155, SWALES!AO155, SWEST!AO155, LPN!AO155,SPN!AO155,EPN!AO155,SPD!AO155,SPMW!AO155,SSEH!AO155,SSES!AO155) -> 0 | AP155: =CHOOSE(m_identity,ENWL!AP155, NPgN!AP155, NPgY!AP155, WMID!AP155, EMID!AP155, SWALES!AP155, SWEST!AP155, LPN!AP155,SPN!AP155,EPN!AP155,SPD!AP155,SPMW!AP155,SSEH!AP155,SSES!AP155) -> 0 | AQ155: =CHOOSE(m_identity,ENWL!AQ155, NPgN!AQ155, NPgY!AQ155, WMID!AQ155, EMID!AQ155, SWALES!AQ155, SWEST!AQ155, LPN!AQ155,SPN!AQ155,EPN!AQ155,SPD!AQ155,SPMW!AQ155,SSEH!AQ155,SSES!AQ155) -> 0
E156: Allocation to faults | G156: % | AJ156: =CHOOSE(m_identity,ENWL!AJ156, NPgN!AJ156, NPgY!AJ156, WMID!AJ156, EMID!AJ156, SWALES!AJ156, SWEST!AJ156, LPN!AJ156,SPN!AJ156,EPN!AJ156,SPD!AJ156,SPMW!AJ156,SSEH!AJ156,SSES!AJ156) -> 0.47 | AK156: =CHOOSE(m_identity,ENWL!AK156, NPgN!AK156, NPgY!AK156, WMID!AK156, EMID!AK156, SWALES!AK156, SWEST!AK156, LPN!AK156,SPN!AK156,EPN!AK156,SPD!AK156,SPMW!AK156,SSEH!AK156,SSES!AK156) -> 0.47 | AL156: =CHOOSE(m_identity,ENWL!AL156, NPgN!AL156, NPgY!AL156, WMID!AL156, EMID!AL156, SWALES!AL156, SWEST!AL156, LPN!AL156,SPN!AL156,EPN!AL156,SPD!AL156,SPMW!AL156,SSEH!AL156,SSES!AL156) -> 0.47 | AM156: =CHOOSE(m_identity,ENWL!AM156, NPgN!AM156, NPgY!AM156, WMID!AM156, EMID!AM156, SWALES!AM156, SWEST!AM156, LPN!AM156,SPN!AM156,EPN!AM156,SPD!AM156,SPMW!AM156,SSEH!AM156,SSES!AM156) -> 0.47 | AN156: =CHOOSE(m_identity,ENWL!AN156, NPgN!AN156, NPgY!AN156, WMID!AN156, EMID!AN156, SWALES!AN156, SWEST!AN156, LPN!AN156,SPN!AN156,EPN!AN156,SPD!AN156,SPMW!AN156,SSEH!AN156,SSES!AN156) -> 0.47 | AO156: =CHOOSE(m_identity,ENWL!AO156, NPgN!AO156, NPgY!AO156, WMID!AO156, EMID!AO156, SWALES!AO156, SWEST!AO156, LPN!AO156,SPN!AO156,EPN!AO156,SPD!AO156,SPMW!AO156,SSEH!AO156,SSES!AO156) -> 0.47 | AP156: =CHOOSE(m_identity,ENWL!AP156, NPgN!AP156, NPgY!AP156, WMID!AP156, EMID!AP156, SWALES!AP156, SWEST!AP156, LPN!AP156,SPN!AP156,EPN!AP156,SPD!AP156,SPMW!AP156,SSEH!AP156,SSES!AP156) -> 0.47 | AQ156: =CHOOSE(m_identity,ENWL!AQ156, NPgN!AQ156, NPgY!AQ156, WMID!AQ156, EMID!AQ156, SWALES!AQ156, SWEST!AQ156, LPN!AQ156,SPN!AQ156,EPN!AQ156,SPD!AQ156,SPMW!AQ156,SSEH!AQ156,SSES!AQ156) -> 0.47
E157: Allocation to tree cutting | G157: % | AJ157: =CHOOSE(m_identity,ENWL!AJ157, NPgN!AJ157, NPgY!AJ157, WMID!AJ157, EMID!AJ157, SWALES!AJ157, SWEST!AJ157, LPN!AJ157,SPN!AJ157,EPN!AJ157,SPD!AJ157,SPMW!AJ157,SSEH!AJ157,SSES!AJ157) -> 0 | AK157: =CHOOSE(m_identity,ENWL!AK157, NPgN!AK157, NPgY!AK157, WMID!AK157, EMID!AK157, SWALES!AK157, SWEST!AK157, LPN!AK157,SPN!AK157,EPN!AK157,SPD!AK157,SPMW!AK157,SSEH!AK157,SSES!AK157) -> 0 | AL157: =CHOOSE(m_identity,ENWL!AL157, NPgN!AL157, NPgY!AL157, WMID!AL157, EMID!AL157, SWALES!AL157, SWEST!AL157, LPN!AL157,SPN!AL157,EPN!AL157,SPD!AL157,SPMW!AL157,SSEH!AL157,SSES!AL157) -> 0 | AM157: =CHOOSE(m_identity,ENWL!AM157, NPgN!AM157, NPgY!AM157, WMID!AM157, EMID!AM157, SWALES!AM157, SWEST!AM157, LPN!AM157,SPN!AM157,EPN!AM157,SPD!AM157,SPMW!AM157,SSEH!AM157,SSES!AM157) -> 0 | AN157: =CHOOSE(m_identity,ENWL!AN157, NPgN!AN157, NPgY!AN157, WMID!AN157, EMID!AN157, SWALES!AN157, SWEST!AN157, LPN!AN157,SPN!AN157,EPN!AN157,SPD!AN157,SPMW!AN157,SSEH!AN157,SSES!AN157) -> 0 | AO157: =CHOOSE(m_identity,ENWL!AO157, NPgN!AO157, NPgY!AO157, WMID!AO157, EMID!AO157, SWALES!AO157, SWEST!AO157, LPN!AO157,SPN!AO157,EPN!AO157,SPD!AO157,SPMW!AO157,SSEH!AO157,SSES!AO157) -> 0 | AP157: =CHOOSE(m_identity,ENWL!AP157, NPgN!AP157, NPgY!AP157, WMID!AP157, EMID!AP157, SWALES!AP157, SWEST!AP157, LPN!AP157,SPN!AP157,EPN!AP157,SPD!AP157,SPMW!AP157,SSEH!AP157,SSES!AP157) -> 0 | AQ157: =CHOOSE(m_identity,ENWL!AQ157, NPgN!AQ157, NPgY!AQ157, WMID!AQ157, EMID!AQ157, SWALES!AQ157, SWEST!AQ157, LPN!AQ157,SPN!AQ157,EPN!AQ157,SPD!AQ157,SPMW!AQ157,SSEH!AQ157,SSES!AQ157) -> 0
E158: Allocation to 100% ‘revenue pool’ expenditure | G158: % | AJ158: =CHOOSE(m_identity,ENWL!AJ158, NPgN!AJ158, NPgY!AJ158, WMID!AJ158, EMID!AJ158, SWALES!AJ158, SWEST!AJ158, LPN!AJ158,SPN!AJ158,EPN!AJ158,SPD!AJ158,SPMW!AJ158,SSEH!AJ158,SSES!AJ158) -> 0.04 | AK158: =CHOOSE(m_identity,ENWL!AK158, NPgN!AK158, NPgY!AK158, WMID!AK158, EMID!AK158, SWALES!AK158, SWEST!AK158, LPN!AK158,SPN!AK158,EPN!AK158,SPD!AK158,SPMW!AK158,SSEH!AK158,SSES!AK158) -> 0.04 | AL158: =CHOOSE(m_identity,ENWL!AL158, NPgN!AL158, NPgY!AL158, WMID!AL158, EMID!AL158, SWALES!AL158, SWEST!AL158, LPN!AL158,SPN!AL158,EPN!AL158,SPD!AL158,SPMW!AL158,SSEH!AL158,SSES!AL158) -> 0.04 | AM158: =CHOOSE(m_identity,ENWL!AM158, NPgN!AM158, NPgY!AM158, WMID!AM158, EMID!AM158, SWALES!AM158, SWEST!AM158, LPN!AM158,SPN!AM158,EPN!AM158,SPD!AM158,SPMW!AM158,SSEH!AM158,SSES!AM158) -> 0.04 | AN158: =CHOOSE(m_identity,ENWL!AN158, NPgN!AN158, NPgY!AN158, WMID!AN158, EMID!AN158, SWALES!AN158, SWEST!AN158, LPN!AN158,SPN!AN158,EPN!AN158,SPD!AN158,SPMW!AN158,SSEH!AN158,SSES!AN158) -> 0.04 | AO158: =CHOOSE(m_identity,ENWL!AO158, NPgN!AO158, NPgY!AO158, WMID!AO158, EMID!AO158, SWALES!AO158, SWEST!AO158, LPN!AO158,SPN!AO158,EPN!AO158,SPD!AO158,SPMW!AO158,SSEH!AO158,SSES!AO158) -> 0.04 | AP158: =CHOOSE(m_identity,ENWL!AP158, NPgN!AP158, NPgY!AP158, WMID!AP158, EMID!AP158, SWALES!AP158, SWEST!AP158, LPN!AP158,SPN!AP158,EPN!AP158,SPD!AP158,SPMW!AP158,SSEH!AP158,SSES!AP158) -> 0.04 | AQ158: =CHOOSE(m_identity,ENWL!AQ158, NPgN!AQ158, NPgY!AQ158, WMID!AQ158, EMID!AQ158, SWALES!AQ158, SWEST!AQ158, LPN!AQ158,SPN!AQ158,EPN!AQ158,SPD!AQ158,SPMW!AQ158,SSEH!AQ158,SSES!AQ158) -> 0.04
E159: Allocation to controllable opex | G159: % | AJ159: =CHOOSE(m_identity,ENWL!AJ159, NPgN!AJ159, NPgY!AJ159, WMID!AJ159, EMID!AJ159, SWALES!AJ159, SWEST!AJ159, LPN!AJ159,SPN!AJ159,EPN!AJ159,SPD!AJ159,SPMW!AJ159,SSEH!AJ159,SSES!AJ159) -> 0.14 | AK159: =CHOOSE(m_identity,ENWL!AK159, NPgN!AK159, NPgY!AK159, WMID!AK159, EMID!AK159, SWALES!AK159, SWEST!AK159, LPN!AK159,SPN!AK159,EPN!AK159,SPD!AK159,SPMW!AK159,SSEH!AK159,SSES!AK159) -> 0.14 | AL159: =CHOOSE(m_identity,ENWL!AL159, NPgN!AL159, NPgY!AL159, WMID!AL159, EMID!AL159, SWALES!AL159, SWEST!AL159, LPN!AL159,SPN!AL159,EPN!AL159,SPD!AL159,SPMW!AL159,SSEH!AL159,SSES!AL159) -> 0.14 | AM159: =CHOOSE(m_identity,ENWL!AM159, NPgN!AM159, NPgY!AM159, WMID!AM159, EMID!AM159, SWALES!AM159, SWEST!AM159, LPN!AM159,SPN!AM159,EPN!AM159,SPD!AM159,SPMW!AM159,SSEH!AM159,SSES!AM159) -> 0.14 | AN159: =CHOOSE(m_identity,ENWL!AN159, NPgN!AN159, NPgY!AN159, WMID!AN159, EMID!AN159, SWALES!AN159, SWEST!AN159, LPN!AN159,SPN!AN159,EPN!AN159,SPD!AN159,SPMW!AN159,SSEH!AN159,SSES!AN159) -> 0.14 | AO159: =CHOOSE(m_identity,ENWL!AO159, NPgN!AO159, NPgY!AO159, WMID!AO159, EMID!AO159, SWALES!AO159, SWEST!AO159, LPN!AO159,SPN!AO159,EPN!AO159,SPD!AO159,SPMW!AO159,SSEH!AO159,SSES!AO159) -> 0.14 | AP159: =CHOOSE(m_identity,ENWL!AP159, NPgN!AP159, NPgY!AP159, WMID!AP159, EMID!AP159, SWALES!AP159, SWEST!AP159, LPN!AP159,SPN!AP159,EPN!AP159,SPD!AP159,SPMW!AP159,SSEH!AP159,SSES!AP159) -> 0.14 | AQ159: =CHOOSE(m_identity,ENWL!AQ159, NPgN!AQ159, NPgY!AQ159, WMID!AQ159, EMID!AQ159, SWALES!AQ159, SWEST!AQ159, LPN!AQ159,SPN!AQ159,EPN!AQ159,SPD!AQ159,SPMW!AQ159,SSEH!AQ159,SSES!AQ159) -> 0.14
E161: =E25 -> Allowed Expenditure - Load Related | G161: £m 12/13 prices | AJ161: =AJ25 -> 25.83201986 | AK161: =AK25 -> 32.82000398 | AL161: 26.24194261 | AM161: 29.95291917 | AN161: 18.26500494 | AO161: 27.47388736 | AP161: 38.74042893 | AQ161: 33.80933459
E162: Allocation to load related capex | G162: % | AJ162: =CHOOSE(m_identity,ENWL!AJ162, NPgN!AJ162, NPgY!AJ162, WMID!AJ162, EMID!AJ162, SWALES!AJ162, SWEST!AJ162, LPN!AJ162,SPN!AJ162,EPN!AJ162,SPD!AJ162,SPMW!AJ162,SSEH!AJ162,SSES!AJ162) -> 0.9896752298 | AK162: =CHOOSE(m_identity,ENWL!AK162, NPgN!AK162, NPgY!AK162, WMID!AK162, EMID!AK162, SWALES!AK162, SWEST!AK162, LPN!AK162,SPN!AK162,EPN!AK162,SPD!AK162,SPMW!AK162,SSEH!AK162,SSES!AK162) -> 0.9884717826 | AL162: =CHOOSE(m_identity,ENWL!AL162, NPgN!AL162, NPgY!AL162, WMID!AL162, EMID!AL162, SWALES!AL162, SWEST!AL162, LPN!AL162,SPN!AL162,EPN!AL162,SPD!AL162,SPMW!AL162,SSEH!AL162,SSES!AL162) -> 0.9890112867 | AM162: =CHOOSE(m_identity,ENWL!AM162, NPgN!AM162, NPgY!AM162, WMID!AM162, EMID!AM162, SWALES!AM162, SWEST!AM162, LPN!AM162,SPN!AM162,EPN!AM162,SPD!AM162,SPMW!AM162,SSEH!AM162,SSES!AM162) -> 0.9894643099 | AN162: =CHOOSE(m_identity,ENWL!AN162, NPgN!AN162, NPgY!AN162, WMID!AN162, EMID!AN162, SWALES!AN162, SWEST!AN162, LPN!AN162,SPN!AN162,EPN!AN162,SPD!AN162,SPMW!AN162,SSEH!AN162,SSES!AN162) -> 0.9886648674 | AO162: =CHOOSE(m_identity,ENWL!AO162, NPgN!AO162, NPgY!AO162, WMID!AO162, EMID!AO162, SWALES!AO162, SWEST!AO162, LPN!AO162,SPN!AO162,EPN!AO162,SPD!AO162,SPMW!AO162,SSEH!AO162,SSES!AO162) -> 0.9887811271 | AP162: =CHOOSE(m_identity,ENWL!AP162, NPgN!AP162, NPgY!AP162, WMID!AP162, EMID!AP162, SWALES!AP162, SWEST!AP162, LPN!AP162,SPN!AP162,EPN!AP162,SPD!AP162,SPMW!AP162,SSEH!AP162,SSES!AP162) -> 0.989356212 | AQ162: =CHOOSE(m_identity,ENWL!AQ162, NPgN!AQ162, NPgY!AQ162, WMID!AQ162, EMID!AQ162, SWALES!AQ162, SWEST!AQ162, LPN!AQ162,SPN!AQ162,EPN!AQ162,SPD!AQ162,SPMW!AQ162,SSEH!AQ162,SSES!AQ162) -> 0.9892486195
E163: Allocation to non-load related capex - asset replacement | G163: % | AJ163: =CHOOSE(m_identity,ENWL!AJ163, NPgN!AJ163, NPgY!AJ163, WMID!AJ163, EMID!AJ163, SWALES!AJ163, SWEST!AJ163, LPN!AJ163,SPN!AJ163,EPN!AJ163,SPD!AJ163,SPMW!AJ163,SSEH!AJ163,SSES!AJ163) -> 0 | AK163: =CHOOSE(m_identity,ENWL!AK163, NPgN!AK163, NPgY!AK163, WMID!AK163, EMID!AK163, SWALES!AK163, SWEST!AK163, LPN!AK163,SPN!AK163,EPN!AK163,SPD!AK163,SPMW!AK163,SSEH!AK163,SSES!AK163) -> 0 | AL163: =CHOOSE(m_identity,ENWL!AL163, NPgN!AL163, NPgY!AL163, WMID!AL163, EMID!AL163, SWALES!AL163, SWEST!AL163, LPN!AL163,SPN!AL163,EPN!AL163,SPD!AL163,SPMW!AL163,SSEH!AL163,SSES!AL163) -> 0 | AM163: =CHOOSE(m_identity,ENWL!AM163, NPgN!AM163, NPgY!AM163, WMID!AM163, EMID!AM163, SWALES!AM163, SWEST!AM163, LPN!AM163,SPN!AM163,EPN!AM163,SPD!AM163,SPMW!AM163,SSEH!AM163,SSES!AM163) -> 0 | AN163: =CHOOSE(m_identity,ENWL!AN163, NPgN!AN163, NPgY!AN163, WMID!AN163, EMID!AN163, SWALES!AN163, SWEST!AN163, LPN!AN163,SPN!AN163,EPN!AN163,SPD!AN163,SPMW!AN163,SSEH!AN163,SSES!AN163) -> 0 | AO163: =CHOOSE(m_identity,ENWL!AO163, NPgN!AO163, NPgY!AO163, WMID!AO163, EMID!AO163, SWALES!AO163, SWEST!AO163, LPN!AO163,SPN!AO163,EPN!AO163,SPD!AO163,SPMW!AO163,SSEH!AO163,SSES!AO163) -> 0 | AP163: =CHOOSE(m_identity,ENWL!AP163, NPgN!AP163, NPgY!AP163, WMID!AP163, EMID!AP163, SWALES!AP163, SWEST!AP163, LPN!AP163,SPN!AP163,EPN!AP163,SPD!AP163,SPMW!AP163,SSEH!AP163,SSES!AP163) -> 0 | AQ163: =CHOOSE(m_identity,ENWL!AQ163, NPgN!AQ163, NPgY!AQ163, WMID!AQ163, EMID!AQ163, SWALES!AQ163, SWEST!AQ163, LPN!AQ163,SPN!AQ163,EPN!AQ163,SPD!AQ163,SPMW!AQ163,SSEH!AQ163,SSES!AQ163) -> 0
E164: Allocation to non-load related capex - other | G164: % | AJ164: =CHOOSE(m_identity,ENWL!AJ164, NPgN!AJ164, NPgY!AJ164, WMID!AJ164, EMID!AJ164, SWALES!AJ164, SWEST!AJ164, LPN!AJ164,SPN!AJ164,EPN!AJ164,SPD!AJ164,SPMW!AJ164,SSEH!AJ164,SSES!AJ164) -> 0 | AK164: =CHOOSE(m_identity,ENWL!AK164, NPgN!AK164, NPgY!AK164, WMID!AK164, EMID!AK164, SWALES!AK164, SWEST!AK164, LPN!AK164,SPN!AK164,EPN!AK164,SPD!AK164,SPMW!AK164,SSEH!AK164,SSES!AK164) -> 0 | AL164: =CHOOSE(m_identity,ENWL!AL164, NPgN!AL164, NPgY!AL164, WMID!AL164, EMID!AL164, SWALES!AL164, SWEST!AL164, LPN!AL164,SPN!AL164,EPN!AL164,SPD!AL164,SPMW!AL164,SSEH!AL164,SSES!AL164) -> 0 | AM164: =CHOOSE(m_identity,ENWL!AM164, NPgN!AM164, NPgY!AM164, WMID!AM164, EMID!AM164, SWALES!AM164, SWEST!AM164, LPN!AM164,SPN!AM164,EPN!AM164,SPD!AM164,SPMW!AM164,SSEH!AM164,SSES!AM164) -> 0 | AN164: =CHOOSE(m_identity,ENWL!AN164, NPgN!AN164, NPgY!AN164, WMID!AN164, EMID!AN164, SWALES!AN164, SWEST!AN164, LPN!AN164,SPN!AN164,EPN!AN164,SPD!AN164,SPMW!AN164,SSEH!AN164,SSES!AN164) -> 0 | AO164: =CHOOSE(m_identity,ENWL!AO164, NPgN!AO164, NPgY!AO164, WMID!AO164, EMID!AO164, SWALES!AO164, SWEST!AO164, LPN!AO164,SPN!AO164,EPN!AO164,SPD!AO164,SPMW!AO164,SSEH!AO164,SSES!AO164) -> 0 | AP164: =CHOOSE(m_identity,ENWL!AP164, NPgN!AP164, NPgY!AP164, WMID!AP164, EMID!AP164, SWALES!AP164, SWEST!AP164, LPN!AP164,SPN!AP164,EPN!AP164,SPD!AP164,SPMW!AP164,SSEH!AP164,SSES!AP164) -> 0 | AQ164: =CHOOSE(m_identity,ENWL!AQ164, NPgN!AQ164, NPgY!AQ164, WMID!AQ164, EMID!AQ164, SWALES!AQ164, SWEST!AQ164, LPN!AQ164,SPN!AQ164,EPN!AQ164,SPD!AQ164,SPMW!AQ164,SSEH!AQ164,SSES!AQ164) -> 0
E165: Allocation to faults | G165: % | AJ165: =CHOOSE(m_identity,ENWL!AJ165, NPgN!AJ165, NPgY!AJ165, WMID!AJ165, EMID!AJ165, SWALES!AJ165, SWEST!AJ165, LPN!AJ165,SPN!AJ165,EPN!AJ165,SPD!AJ165,SPMW!AJ165,SSEH!AJ165,SSES!AJ165) -> 0 | AK165: =CHOOSE(m_identity,ENWL!AK165, NPgN!AK165, NPgY!AK165, WMID!AK165, EMID!AK165, SWALES!AK165, SWEST!AK165, LPN!AK165,SPN!AK165,EPN!AK165,SPD!AK165,SPMW!AK165,SSEH!AK165,SSES!AK165) -> 0 | AL165: =CHOOSE(m_identity,ENWL!AL165, NPgN!AL165, NPgY!AL165, WMID!AL165, EMID!AL165, SWALES!AL165, SWEST!AL165, LPN!AL165,SPN!AL165,EPN!AL165,SPD!AL165,SPMW!AL165,SSEH!AL165,SSES!AL165) -> 0 | AM165: =CHOOSE(m_identity,ENWL!AM165, NPgN!AM165, NPgY!AM165, WMID!AM165, EMID!AM165, SWALES!AM165, SWEST!AM165, LPN!AM165,SPN!AM165,EPN!AM165,SPD!AM165,SPMW!AM165,SSEH!AM165,SSES!AM165) -> 0 | AN165: =CHOOSE(m_identity,ENWL!AN165, NPgN!AN165, NPgY!AN165, WMID!AN165, EMID!AN165, SWALES!AN165, SWEST!AN165, LPN!AN165,SPN!AN165,EPN!AN165,SPD!AN165,SPMW!AN165,SSEH!AN165,SSES!AN165) -> 0 | AO165: =CHOOSE(m_identity,ENWL!AO165, NPgN!AO165, NPgY!AO165, WMID!AO165, EMID!AO165, SWALES!AO165, SWEST!AO165, LPN!AO165,SPN!AO165,EPN!AO165,SPD!AO165,SPMW!AO165,SSEH!AO165,SSES!AO165) -> 0 | AP165: =CHOOSE(m_identity,ENWL!AP165, NPgN!AP165, NPgY!AP165, WMID!AP165, EMID!AP165, SWALES!AP165, SWEST!AP165, LPN!AP165,SPN!AP165,EPN!AP165,SPD!AP165,SPMW!AP165,SSEH!AP165,SSES!AP165) -> 0 | AQ165: =CHOOSE(m_identity,ENWL!AQ165, NPgN!AQ165, NPgY!AQ165, WMID!AQ165, EMID!AQ165, SWALES!AQ165, SWEST!AQ165, LPN!AQ165,SPN!AQ165,EPN!AQ165,SPD!AQ165,SPMW!AQ165,SSEH!AQ165,SSES!AQ165) -> 0
E166: Allocation to tree cutting | G166: % | AJ166: =CHOOSE(m_identity,ENWL!AJ166, NPgN!AJ166, NPgY!AJ166, WMID!AJ166, EMID!AJ166, SWALES!AJ166, SWEST!AJ166, LPN!AJ166,SPN!AJ166,EPN!AJ166,SPD!AJ166,SPMW!AJ166,SSEH!AJ166,SSES!AJ166) -> 0 | AK166: =CHOOSE(m_identity,ENWL!AK166, NPgN!AK166, NPgY!AK166, WMID!AK166, EMID!AK166, SWALES!AK166, SWEST!AK166, LPN!AK166,SPN!AK166,EPN!AK166,SPD!AK166,SPMW!AK166,SSEH!AK166,SSES!AK166) -> 0 | AL166: =CHOOSE(m_identity,ENWL!AL166, NPgN!AL166, NPgY!AL166, WMID!AL166, EMID!AL166, SWALES!AL166, SWEST!AL166, LPN!AL166,SPN!AL166,EPN!AL166,SPD!AL166,SPMW!AL166,SSEH!AL166,SSES!AL166) -> 0 | AM166: =CHOOSE(m_identity,ENWL!AM166, NPgN!AM166, NPgY!AM166, WMID!AM166, EMID!AM166, SWALES!AM166, SWEST!AM166, LPN!AM166,SPN!AM166,EPN!AM166,SPD!AM166,SPMW!AM166,SSEH!AM166,SSES!AM166) -> 0 | AN166: =CHOOSE(m_identity,ENWL!AN166, NPgN!AN166, NPgY!AN166, WMID!AN166, EMID!AN166, SWALES!AN166, SWEST!AN166, LPN!AN166,SPN!AN166,EPN!AN166,SPD!AN166,SPMW!AN166,SSEH!AN166,SSES!AN166) -> 0 | AO166: =CHOOSE(m_identity,ENWL!AO166, NPgN!AO166, NPgY!AO166, WMID!AO166, EMID!AO166, SWALES!AO166, SWEST!AO166, LPN!AO166,SPN!AO166,EPN!AO166,SPD!AO166,SPMW!AO166,SSEH!AO166,SSES!AO166) -> 0 | AP166: =CHOOSE(m_identity,ENWL!AP166, NPgN!AP166, NPgY!AP166, WMID!AP166, EMID!AP166, SWALES!AP166, SWEST!AP166, LPN!AP166,SPN!AP166,EPN!AP166,SPD!AP166,SPMW!AP166,SSEH!AP166,SSES!AP166) -> 0 | AQ166: =CHOOSE(m_identity,ENWL!AQ166, NPgN!AQ166, NPgY!AQ166, WMID!AQ166, EMID!AQ166, SWALES!AQ166, SWEST!AQ166, LPN!AQ166,SPN!AQ166,EPN!AQ166,SPD!AQ166,SPMW!AQ166,SSEH!AQ166,SSES!AQ166) -> 0
E167: Allocation to 100% ‘revenue pool’ expenditure | G167: % | AJ167: =CHOOSE(m_identity,ENWL!AJ167, NPgN!AJ167, NPgY!AJ167, WMID!AJ167, EMID!AJ167, SWALES!AJ167, SWEST!AJ167, LPN!AJ167,SPN!AJ167,EPN!AJ167,SPD!AJ167,SPMW!AJ167,SSEH!AJ167,SSES!AJ167) -> 0.01032477021 | AK167: =CHOOSE(m_identity,ENWL!AK167, NPgN!AK167, NPgY!AK167, WMID!AK167, EMID!AK167, SWALES!AK167, SWEST!AK167, LPN!AK167,SPN!AK167,EPN!AK167,SPD!AK167,SPMW!AK167,SSEH!AK167,SSES!AK167) -> 0.01152821739 | AL167: =CHOOSE(m_identity,ENWL!AL167, NPgN!AL167, NPgY!AL167, WMID!AL167, EMID!AL167, SWALES!AL167, SWEST!AL167, LPN!AL167,SPN!AL167,EPN!AL167,SPD!AL167,SPMW!AL167,SSEH!AL167,SSES!AL167) -> 0.01098871333 | AM167: =CHOOSE(m_identity,ENWL!AM167, NPgN!AM167, NPgY!AM167, WMID!AM167, EMID!AM167, SWALES!AM167, SWEST!AM167, LPN!AM167,SPN!AM167,EPN!AM167,SPD!AM167,SPMW!AM167,SSEH!AM167,SSES!AM167) -> 0.0105356901 | AN167: =CHOOSE(m_identity,ENWL!AN167, NPgN!AN167, NPgY!AN167, WMID!AN167, EMID!AN167, SWALES!AN167, SWEST!AN167, LPN!AN167,SPN!AN167,EPN!AN167,SPD!AN167,SPMW!AN167,SSEH!AN167,SSES!AN167) -> 0.01133513258 | AO167: =CHOOSE(m_identity,ENWL!AO167, NPgN!AO167, NPgY!AO167, WMID!AO167, EMID!AO167, SWALES!AO167, SWEST!AO167, LPN!AO167,SPN!AO167,EPN!AO167,SPD!AO167,SPMW!AO167,SSEH!AO167,SSES!AO167) -> 0.01121887289 | AP167: =CHOOSE(m_identity,ENWL!AP167, NPgN!AP167, NPgY!AP167, WMID!AP167, EMID!AP167, SWALES!AP167, SWEST!AP167, LPN!AP167,SPN!AP167,EPN!AP167,SPD!AP167,SPMW!AP167,SSEH!AP167,SSES!AP167) -> 0.01064378795 | AQ167: =CHOOSE(m_identity,ENWL!AQ167, NPgN!AQ167, NPgY!AQ167, WMID!AQ167, EMID!AQ167, SWALES!AQ167, SWEST!AQ167, LPN!AQ167,SPN!AQ167,EPN!AQ167,SPD!AQ167,SPMW!AQ167,SSEH!AQ167,SSES!AQ167) -> 0.01075138046
E168: Allocation to controllable opex | G168: % | AJ168: =CHOOSE(m_identity,ENWL!AJ168, NPgN!AJ168, NPgY!AJ168, WMID!AJ168, EMID!AJ168, SWALES!AJ168, SWEST!AJ168, LPN!AJ168,SPN!AJ168,EPN!AJ168,SPD!AJ168,SPMW!AJ168,SSEH!AJ168,SSES!AJ168) -> 0 | AK168: =CHOOSE(m_identity,ENWL!AK168, NPgN!AK168, NPgY!AK168, WMID!AK168, EMID!AK168, SWALES!AK168, SWEST!AK168, LPN!AK168,SPN!AK168,EPN!AK168,SPD!AK168,SPMW!AK168,SSEH!AK168,SSES!AK168) -> 0 | AL168: =CHOOSE(m_identity,ENWL!AL168, NPgN!AL168, NPgY!AL168, WMID!AL168, EMID!AL168, SWALES!AL168, SWEST!AL168, LPN!AL168,SPN!AL168,EPN!AL168,SPD!AL168,SPMW!AL168,SSEH!AL168,SSES!AL168) -> 0 | AM168: =CHOOSE(m_identity,ENWL!AM168, NPgN!AM168, NPgY!AM168, WMID!AM168, EMID!AM168, SWALES!AM168, SWEST!AM168, LPN!AM168,SPN!AM168,EPN!AM168,SPD!AM168,SPMW!AM168,SSEH!AM168,SSES!AM168) -> 0 | AN168: =CHOOSE(m_identity,ENWL!AN168, NPgN!AN168, NPgY!AN168, WMID!AN168, EMID!AN168, SWALES!AN168, SWEST!AN168, LPN!AN168,SPN!AN168,EPN!AN168,SPD!AN168,SPMW!AN168,SSEH!AN168,SSES!AN168) -> 0 | AO168: =CHOOSE(m_identity,ENWL!AO168, NPgN!AO168, NPgY!AO168, WMID!AO168, EMID!AO168, SWALES!AO168, SWEST!AO168, LPN!AO168,SPN!AO168,EPN!AO168,SPD!AO168,SPMW!AO168,SSEH!AO168,SSES!AO168) -> 0 | AP168: =CHOOSE(m_identity,ENWL!AP168, NPgN!AP168, NPgY!AP168, WMID!AP168, EMID!AP168, SWALES!AP168, SWEST!AP168, LPN!AP168,SPN!AP168,EPN!AP168,SPD!AP168,SPMW!AP168,SSEH!AP168,SSES!AP168) -> 0 | AQ168: =CHOOSE(m_identity,ENWL!AQ168, NPgN!AQ168, NPgY!AQ168, WMID!AQ168, EMID!AQ168, SWALES!AQ168, SWEST!AQ168, LPN!AQ168,SPN!AQ168,EPN!AQ168,SPD!AQ168,SPMW!AQ168,SSEH!AQ168,SSES!AQ168) -> 0
E170: =E26 -> Allowed Expenditure - Rail Electrification (WPD) | G170: £m 12/13 prices | AJ170: =AJ26 -> 0 | AK170: =AK26 -> 0 | AL170: 0 | AM170: 0 | AN170: 0 | AO170: 0 | AP170: 0 | AQ170: 0
E171: Allocation to load related capex | G171: % | AJ171: =CHOOSE(m_identity,ENWL!AJ171, NPgN!AJ171, NPgY!AJ171, WMID!AJ171, EMID!AJ171, SWALES!AJ171, SWEST!AJ171, LPN!AJ171,SPN!AJ171,EPN!AJ171,SPD!AJ171,SPMW!AJ171,SSEH!AJ171,SSES!AJ171) -> 0 | AK171: =CHOOSE(m_identity,ENWL!AK171, NPgN!AK171, NPgY!AK171, WMID!AK171, EMID!AK171, SWALES!AK171, SWEST!AK171, LPN!AK171,SPN!AK171,EPN!AK171,SPD!AK171,SPMW!AK171,SSEH!AK171,SSES!AK171) -> 0 | AL171: =CHOOSE(m_identity,ENWL!AL171, NPgN!AL171, NPgY!AL171, WMID!AL171, EMID!AL171, SWALES!AL171, SWEST!AL171, LPN!AL171,SPN!AL171,EPN!AL171,SPD!AL171,SPMW!AL171,SSEH!AL171,SSES!AL171) -> 0 | AM171: =CHOOSE(m_identity,ENWL!AM171, NPgN!AM171, NPgY!AM171, WMID!AM171, EMID!AM171, SWALES!AM171, SWEST!AM171, LPN!AM171,SPN!AM171,EPN!AM171,SPD!AM171,SPMW!AM171,SSEH!AM171,SSES!AM171) -> 0 | AN171: =CHOOSE(m_identity,ENWL!AN171, NPgN!AN171, NPgY!AN171, WMID!AN171, EMID!AN171, SWALES!AN171, SWEST!AN171, LPN!AN171,SPN!AN171,EPN!AN171,SPD!AN171,SPMW!AN171,SSEH!AN171,SSES!AN171) -> 0 | AO171: =CHOOSE(m_identity,ENWL!AO171, NPgN!AO171, NPgY!AO171, WMID!AO171, EMID!AO171, SWALES!AO171, SWEST!AO171, LPN!AO171,SPN!AO171,EPN!AO171,SPD!AO171,SPMW!AO171,SSEH!AO171,SSES!AO171) -> 0 | AP171: =CHOOSE(m_identity,ENWL!AP171, NPgN!AP171, NPgY!AP171, WMID!AP171, EMID!AP171, SWALES!AP171, SWEST!AP171, LPN!AP171,SPN!AP171,EPN!AP171,SPD!AP171,SPMW!AP171,SSEH!AP171,SSES!AP171) -> 0 | AQ171: =CHOOSE(m_identity,ENWL!AQ171, NPgN!AQ171, NPgY!AQ171, WMID!AQ171, EMID!AQ171, SWALES!AQ171, SWEST!AQ171, LPN!AQ171,SPN!AQ171,EPN!AQ171,SPD!AQ171,SPMW!AQ171,SSEH!AQ171,SSES!AQ171) -> 0
E172: Allocation to non-load related capex - asset replacement | G172: % | AJ172: =CHOOSE(m_identity,ENWL!AJ172, NPgN!AJ172, NPgY!AJ172, WMID!AJ172, EMID!AJ172, SWALES!AJ172, SWEST!AJ172, LPN!AJ172,SPN!AJ172,EPN!AJ172,SPD!AJ172,SPMW!AJ172,SSEH!AJ172,SSES!AJ172) -> 0.9969188432 | AK172: =CHOOSE(m_identity,ENWL!AK172, NPgN!AK172, NPgY!AK172, WMID!AK172, EMID!AK172, SWALES!AK172, SWEST!AK172, LPN!AK172,SPN!AK172,EPN!AK172,SPD!AK172,SPMW!AK172,SSEH!AK172,SSES!AK172) -> 0.996885818 | AL172: =CHOOSE(m_identity,ENWL!AL172, NPgN!AL172, NPgY!AL172, WMID!AL172, EMID!AL172, SWALES!AL172, SWEST!AL172, LPN!AL172,SPN!AL172,EPN!AL172,SPD!AL172,SPMW!AL172,SSEH!AL172,SSES!AL172) -> 0.9968601885 | AM172: =CHOOSE(m_identity,ENWL!AM172, NPgN!AM172, NPgY!AM172, WMID!AM172, EMID!AM172, SWALES!AM172, SWEST!AM172, LPN!AM172,SPN!AM172,EPN!AM172,SPD!AM172,SPMW!AM172,SSEH!AM172,SSES!AM172) -> 0.9968068497 | AN172: =CHOOSE(m_identity,ENWL!AN172, NPgN!AN172, NPgY!AN172, WMID!AN172, EMID!AN172, SWALES!AN172, SWEST!AN172, LPN!AN172,SPN!AN172,EPN!AN172,SPD!AN172,SPMW!AN172,SSEH!AN172,SSES!AN172) -> 0.9967658175 | AO172: =CHOOSE(m_identity,ENWL!AO172, NPgN!AO172, NPgY!AO172, WMID!AO172, EMID!AO172, SWALES!AO172, SWEST!AO172, LPN!AO172,SPN!AO172,EPN!AO172,SPD!AO172,SPMW!AO172,SSEH!AO172,SSES!AO172) -> 0.9967244248 | AP172: =CHOOSE(m_identity,ENWL!AP172, NPgN!AP172, NPgY!AP172, WMID!AP172, EMID!AP172, SWALES!AP172, SWEST!AP172, LPN!AP172,SPN!AP172,EPN!AP172,SPD!AP172,SPMW!AP172,SSEH!AP172,SSES!AP172) -> 0.9966828251 | AQ172: =CHOOSE(m_identity,ENWL!AQ172, NPgN!AQ172, NPgY!AQ172, WMID!AQ172, EMID!AQ172, SWALES!AQ172, SWEST!AQ172, LPN!AQ172,SPN!AQ172,EPN!AQ172,SPD!AQ172,SPMW!AQ172,SSEH!AQ172,SSES!AQ172) -> 0.9966478601
E173: Allocation to non-load related capex - other | G173: % | AJ173: =CHOOSE(m_identity,ENWL!AJ173, NPgN!AJ173, NPgY!AJ173, WMID!AJ173, EMID!AJ173, SWALES!AJ173, SWEST!AJ173, LPN!AJ173,SPN!AJ173,EPN!AJ173,SPD!AJ173,SPMW!AJ173,SSEH!AJ173,SSES!AJ173) -> 0 | AK173: =CHOOSE(m_identity,ENWL!AK173, NPgN!AK173, NPgY!AK173, WMID!AK173, EMID!AK173, SWALES!AK173, SWEST!AK173, LPN!AK173,SPN!AK173,EPN!AK173,SPD!AK173,SPMW!AK173,SSEH!AK173,SSES!AK173) -> 0 | AL173: =CHOOSE(m_identity,ENWL!AL173, NPgN!AL173, NPgY!AL173, WMID!AL173, EMID!AL173, SWALES!AL173, SWEST!AL173, LPN!AL173,SPN!AL173,EPN!AL173,SPD!AL173,SPMW!AL173,SSEH!AL173,SSES!AL173) -> 0 | AM173: =CHOOSE(m_identity,ENWL!AM173, NPgN!AM173, NPgY!AM173, WMID!AM173, EMID!AM173, SWALES!AM173, SWEST!AM173, LPN!AM173,SPN!AM173,EPN!AM173,SPD!AM173,SPMW!AM173,SSEH!AM173,SSES!AM173) -> 0 | AN173: =CHOOSE(m_identity,ENWL!AN173, NPgN!AN173, NPgY!AN173, WMID!AN173, EMID!AN173, SWALES!AN173, SWEST!AN173, LPN!AN173,SPN!AN173,EPN!AN173,SPD!AN173,SPMW!AN173,SSEH!AN173,SSES!AN173) -> 0 | AO173: =CHOOSE(m_identity,ENWL!AO173, NPgN!AO173, NPgY!AO173, WMID!AO173, EMID!AO173, SWALES!AO173, SWEST!AO173, LPN!AO173,SPN!AO173,EPN!AO173,SPD!AO173,SPMW!AO173,SSEH!AO173,SSES!AO173) -> 0 | AP173: =CHOOSE(m_identity,ENWL!AP173, NPgN!AP173, NPgY!AP173, WMID!AP173, EMID!AP173, SWALES!AP173, SWEST!AP173, LPN!AP173,SPN!AP173,EPN!AP173,SPD!AP173,SPMW!AP173,SSEH!AP173,SSES!AP173) -> 0 | AQ173: =CHOOSE(m_identity,ENWL!AQ173, NPgN!AQ173, NPgY!AQ173, WMID!AQ173, EMID!AQ173, SWALES!AQ173, SWEST!AQ173, LPN!AQ173,SPN!AQ173,EPN!AQ173,SPD!AQ173,SPMW!AQ173,SSEH!AQ173,SSES!AQ173) -> 0
E174: Allocation to faults | G174: % | AJ174: =CHOOSE(m_identity,ENWL!AJ174, NPgN!AJ174, NPgY!AJ174, WMID!AJ174, EMID!AJ174, SWALES!AJ174, SWEST!AJ174, LPN!AJ174,SPN!AJ174,EPN!AJ174,SPD!AJ174,SPMW!AJ174,SSEH!AJ174,SSES!AJ174) -> 0 | AK174: =CHOOSE(m_identity,ENWL!AK174, NPgN!AK174, NPgY!AK174, WMID!AK174, EMID!AK174, SWALES!AK174, SWEST!AK174, LPN!AK174,SPN!AK174,EPN!AK174,SPD!AK174,SPMW!AK174,SSEH!AK174,SSES!AK174) -> 0 | AL174: =CHOOSE(m_identity,ENWL!AL174, NPgN!AL174, NPgY!AL174, WMID!AL174, EMID!AL174, SWALES!AL174, SWEST!AL174, LPN!AL174,SPN!AL174,EPN!AL174,SPD!AL174,SPMW!AL174,SSEH!AL174,SSES!AL174) -> 0 | AM174: =CHOOSE(m_identity,ENWL!AM174, NPgN!AM174, NPgY!AM174, WMID!AM174, EMID!AM174, SWALES!AM174, SWEST!AM174, LPN!AM174,SPN!AM174,EPN!AM174,SPD!AM174,SPMW!AM174,SSEH!AM174,SSES!AM174) -> 0 | AN174: =CHOOSE(m_identity,ENWL!AN174, NPgN!AN174, NPgY!AN174, WMID!AN174, EMID!AN174, SWALES!AN174, SWEST!AN174, LPN!AN174,SPN!AN174,EPN!AN174,SPD!AN174,SPMW!AN174,SSEH!AN174,SSES!AN174) -> 0 | AO174: =CHOOSE(m_identity,ENWL!AO174, NPgN!AO174, NPgY!AO174, WMID!AO174, EMID!AO174, SWALES!AO174, SWEST!AO174, LPN!AO174,SPN!AO174,EPN!AO174,SPD!AO174,SPMW!AO174,SSEH!AO174,SSES!AO174) -> 0 | AP174: =CHOOSE(m_identity,ENWL!AP174, NPgN!AP174, NPgY!AP174, WMID!AP174, EMID!AP174, SWALES!AP174, SWEST!AP174, LPN!AP174,SPN!AP174,EPN!AP174,SPD!AP174,SPMW!AP174,SSEH!AP174,SSES!AP174) -> 0 | AQ174: =CHOOSE(m_identity,ENWL!AQ174, NPgN!AQ174, NPgY!AQ174, WMID!AQ174, EMID!AQ174, SWALES!AQ174, SWEST!AQ174, LPN!AQ174,SPN!AQ174,EPN!AQ174,SPD!AQ174,SPMW!AQ174,SSEH!AQ174,SSES!AQ174) -> 0
E175: Allocation to tree cutting | G175: % | AJ175: =CHOOSE(m_identity,ENWL!AJ175, NPgN!AJ175, NPgY!AJ175, WMID!AJ175, EMID!AJ175, SWALES!AJ175, SWEST!AJ175, LPN!AJ175,SPN!AJ175,EPN!AJ175,SPD!AJ175,SPMW!AJ175,SSEH!AJ175,SSES!AJ175) -> 0 | AK175: =CHOOSE(m_identity,ENWL!AK175, NPgN!AK175, NPgY!AK175, WMID!AK175, EMID!AK175, SWALES!AK175, SWEST!AK175, LPN!AK175,SPN!AK175,EPN!AK175,SPD!AK175,SPMW!AK175,SSEH!AK175,SSES!AK175) -> 0 | AL175: =CHOOSE(m_identity,ENWL!AL175, NPgN!AL175, NPgY!AL175, WMID!AL175, EMID!AL175, SWALES!AL175, SWEST!AL175, LPN!AL175,SPN!AL175,EPN!AL175,SPD!AL175,SPMW!AL175,SSEH!AL175,SSES!AL175) -> 0 | AM175: =CHOOSE(m_identity,ENWL!AM175, NPgN!AM175, NPgY!AM175, WMID!AM175, EMID!AM175, SWALES!AM175, SWEST!AM175, LPN!AM175,SPN!AM175,EPN!AM175,SPD!AM175,SPMW!AM175,SSEH!AM175,SSES!AM175) -> 0 | AN175: =CHOOSE(m_identity,ENWL!AN175, NPgN!AN175, NPgY!AN175, WMID!AN175, EMID!AN175, SWALES!AN175, SWEST!AN175, LPN!AN175,SPN!AN175,EPN!AN175,SPD!AN175,SPMW!AN175,SSEH!AN175,SSES!AN175) -> 0 | AO175: =CHOOSE(m_identity,ENWL!AO175, NPgN!AO175, NPgY!AO175, WMID!AO175, EMID!AO175, SWALES!AO175, SWEST!AO175, LPN!AO175,SPN!AO175,EPN!AO175,SPD!AO175,SPMW!AO175,SSEH!AO175,SSES!AO175) -> 0 | AP175: =CHOOSE(m_identity,ENWL!AP175, NPgN!AP175, NPgY!AP175, WMID!AP175, EMID!AP175, SWALES!AP175, SWEST!AP175, LPN!AP175,SPN!AP175,EPN!AP175,SPD!AP175,SPMW!AP175,SSEH!AP175,SSES!AP175) -> 0 | AQ175: =CHOOSE(m_identity,ENWL!AQ175, NPgN!AQ175, NPgY!AQ175, WMID!AQ175, EMID!AQ175, SWALES!AQ175, SWEST!AQ175, LPN!AQ175,SPN!AQ175,EPN!AQ175,SPD!AQ175,SPMW!AQ175,SSEH!AQ175,SSES!AQ175) -> 0
E176: Allocation to 100% ‘revenue pool’ expenditure | G176: % | AJ176: =CHOOSE(m_identity,ENWL!AJ176, NPgN!AJ176, NPgY!AJ176, WMID!AJ176, EMID!AJ176, SWALES!AJ176, SWEST!AJ176, LPN!AJ176,SPN!AJ176,EPN!AJ176,SPD!AJ176,SPMW!AJ176,SSEH!AJ176,SSES!AJ176) -> 0.00308115681 | AK176: =CHOOSE(m_identity,ENWL!AK176, NPgN!AK176, NPgY!AK176, WMID!AK176, EMID!AK176, SWALES!AK176, SWEST!AK176, LPN!AK176,SPN!AK176,EPN!AK176,SPD!AK176,SPMW!AK176,SSEH!AK176,SSES!AK176) -> 0.003114182014 | AL176: =CHOOSE(m_identity,ENWL!AL176, NPgN!AL176, NPgY!AL176, WMID!AL176, EMID!AL176, SWALES!AL176, SWEST!AL176, LPN!AL176,SPN!AL176,EPN!AL176,SPD!AL176,SPMW!AL176,SSEH!AL176,SSES!AL176) -> 0.003139811488 | AM176: =CHOOSE(m_identity,ENWL!AM176, NPgN!AM176, NPgY!AM176, WMID!AM176, EMID!AM176, SWALES!AM176, SWEST!AM176, LPN!AM176,SPN!AM176,EPN!AM176,SPD!AM176,SPMW!AM176,SSEH!AM176,SSES!AM176) -> 0.003193150334 | AN176: =CHOOSE(m_identity,ENWL!AN176, NPgN!AN176, NPgY!AN176, WMID!AN176, EMID!AN176, SWALES!AN176, SWEST!AN176, LPN!AN176,SPN!AN176,EPN!AN176,SPD!AN176,SPMW!AN176,SSEH!AN176,SSES!AN176) -> 0.003234182501 | AO176: =CHOOSE(m_identity,ENWL!AO176, NPgN!AO176, NPgY!AO176, WMID!AO176, EMID!AO176, SWALES!AO176, SWEST!AO176, LPN!AO176,SPN!AO176,EPN!AO176,SPD!AO176,SPMW!AO176,SSEH!AO176,SSES!AO176) -> 0.0032755752 | AP176: =CHOOSE(m_identity,ENWL!AP176, NPgN!AP176, NPgY!AP176, WMID!AP176, EMID!AP176, SWALES!AP176, SWEST!AP176, LPN!AP176,SPN!AP176,EPN!AP176,SPD!AP176,SPMW!AP176,SSEH!AP176,SSES!AP176) -> 0.003317174921 | AQ176: =CHOOSE(m_identity,ENWL!AQ176, NPgN!AQ176, NPgY!AQ176, WMID!AQ176, EMID!AQ176, SWALES!AQ176, SWEST!AQ176, LPN!AQ176,SPN!AQ176,EPN!AQ176,SPD!AQ176,SPMW!AQ176,SSEH!AQ176,SSES!AQ176) -> 0.003352139864
E177: Allocation to controllable opex | G177: % | AJ177: =CHOOSE(m_identity,ENWL!AJ177, NPgN!AJ177, NPgY!AJ177, WMID!AJ177, EMID!AJ177, SWALES!AJ177, SWEST!AJ177, LPN!AJ177,SPN!AJ177,EPN!AJ177,SPD!AJ177,SPMW!AJ177,SSEH!AJ177,SSES!AJ177) -> 0 | AK177: =CHOOSE(m_identity,ENWL!AK177, NPgN!AK177, NPgY!AK177, WMID!AK177, EMID!AK177, SWALES!AK177, SWEST!AK177, LPN!AK177,SPN!AK177,EPN!AK177,SPD!AK177,SPMW!AK177,SSEH!AK177,SSES!AK177) -> 0 | AL177: =CHOOSE(m_identity,ENWL!AL177, NPgN!AL177, NPgY!AL177, WMID!AL177, EMID!AL177, SWALES!AL177, SWEST!AL177, LPN!AL177,SPN!AL177,EPN!AL177,SPD!AL177,SPMW!AL177,SSEH!AL177,SSES!AL177) -> 0 | AM177: =CHOOSE(m_identity,ENWL!AM177, NPgN!AM177, NPgY!AM177, WMID!AM177, EMID!AM177, SWALES!AM177, SWEST!AM177, LPN!AM177,SPN!AM177,EPN!AM177,SPD!AM177,SPMW!AM177,SSEH!AM177,SSES!AM177) -> 0 | AN177: =CHOOSE(m_identity,ENWL!AN177, NPgN!AN177, NPgY!AN177, WMID!AN177, EMID!AN177, SWALES!AN177, SWEST!AN177, LPN!AN177,SPN!AN177,EPN!AN177,SPD!AN177,SPMW!AN177,SSEH!AN177,SSES!AN177) -> 0 | AO177: =CHOOSE(m_identity,ENWL!AO177, NPgN!AO177, NPgY!AO177, WMID!AO177, EMID!AO177, SWALES!AO177, SWEST!AO177, LPN!AO177,SPN!AO177,EPN!AO177,SPD!AO177,SPMW!AO177,SSEH!AO177,SSES!AO177) -> 0 | AP177: =CHOOSE(m_identity,ENWL!AP177, NPgN!AP177, NPgY!AP177, WMID!AP177, EMID!AP177, SWALES!AP177, SWEST!AP177, LPN!AP177,SPN!AP177,EPN!AP177,SPD!AP177,SPMW!AP177,SSEH!AP177,SSES!AP177) -> 0 | AQ177: =CHOOSE(m_identity,ENWL!AQ177, NPgN!AQ177, NPgY!AQ177, WMID!AQ177, EMID!AQ177, SWALES!AQ177, SWEST!AQ177, LPN!AQ177,SPN!AQ177,EPN!AQ177,SPD!AQ177,SPMW!AQ177,SSEH!AQ177,SSES!AQ177) -> 0
E179: =E27 -> Allowed Expenditure - Moorside Costs (ENWL) | G179: £m 12/13 prices | AJ179: =AJ27 -> 0 | AK179: =AK27 -> 0 | AL179: =AL27 -> 0 | AM179: 0 | AN179: =AN27 -> 0 | AO179: 0 | AP179: 0 | AQ179: 0
E180: Allocation to load related capex | G180: % | AJ180: =CHOOSE(m_identity,ENWL!AJ180, NPgN!AJ180, NPgY!AJ180, WMID!AJ180, EMID!AJ180, SWALES!AJ180, SWEST!AJ180, LPN!AJ180,SPN!AJ180,EPN!AJ180,SPD!AJ180,SPMW!AJ180,SSEH!AJ180,SSES!AJ180) -> 0 | AK180: =CHOOSE(m_identity,ENWL!AK180, NPgN!AK180, NPgY!AK180, WMID!AK180, EMID!AK180, SWALES!AK180, SWEST!AK180, LPN!AK180,SPN!AK180,EPN!AK180,SPD!AK180,SPMW!AK180,SSEH!AK180,SSES!AK180) -> 0 | AL180: =CHOOSE(m_identity,ENWL!AL180, NPgN!AL180, NPgY!AL180, WMID!AL180, EMID!AL180, SWALES!AL180, SWEST!AL180, LPN!AL180,SPN!AL180,EPN!AL180,SPD!AL180,SPMW!AL180,SSEH!AL180,SSES!AL180) -> 0 | AM180: =CHOOSE(m_identity,ENWL!AM180, NPgN!AM180, NPgY!AM180, WMID!AM180, EMID!AM180, SWALES!AM180, SWEST!AM180, LPN!AM180,SPN!AM180,EPN!AM180,SPD!AM180,SPMW!AM180,SSEH!AM180,SSES!AM180) -> 0 | AN180: =CHOOSE(m_identity,ENWL!AN180, NPgN!AN180, NPgY!AN180, WMID!AN180, EMID!AN180, SWALES!AN180, SWEST!AN180, LPN!AN180,SPN!AN180,EPN!AN180,SPD!AN180,SPMW!AN180,SSEH!AN180,SSES!AN180) -> 0 | AO180: =CHOOSE(m_identity,ENWL!AO180, NPgN!AO180, NPgY!AO180, WMID!AO180, EMID!AO180, SWALES!AO180, SWEST!AO180, LPN!AO180,SPN!AO180,EPN!AO180,SPD!AO180,SPMW!AO180,SSEH!AO180,SSES!AO180) -> 0 | AP180: =CHOOSE(m_identity,ENWL!AP180, NPgN!AP180, NPgY!AP180, WMID!AP180, EMID!AP180, SWALES!AP180, SWEST!AP180, LPN!AP180,SPN!AP180,EPN!AP180,SPD!AP180,SPMW!AP180,SSEH!AP180,SSES!AP180) -> 0 | AQ180: =CHOOSE(m_identity,ENWL!AQ180, NPgN!AQ180, NPgY!AQ180, WMID!AQ180, EMID!AQ180, SWALES!AQ180, SWEST!AQ180, LPN!AQ180,SPN!AQ180,EPN!AQ180,SPD!AQ180,SPMW!AQ180,SSEH!AQ180,SSES!AQ180) -> 0
E181: Allocation to non-load related capex - asset replacement | G181: % | AJ181: =CHOOSE(m_identity,ENWL!AJ181, NPgN!AJ181, NPgY!AJ181, WMID!AJ181, EMID!AJ181, SWALES!AJ181, SWEST!AJ181, LPN!AJ181,SPN!AJ181,EPN!AJ181,SPD!AJ181,SPMW!AJ181,SSEH!AJ181,SSES!AJ181) -> 0 | AK181: =CHOOSE(m_identity,ENWL!AK181, NPgN!AK181, NPgY!AK181, WMID!AK181, EMID!AK181, SWALES!AK181, SWEST!AK181, LPN!AK181,SPN!AK181,EPN!AK181,SPD!AK181,SPMW!AK181,SSEH!AK181,SSES!AK181) -> 0 | AL181: =CHOOSE(m_identity,ENWL!AL181, NPgN!AL181, NPgY!AL181, WMID!AL181, EMID!AL181, SWALES!AL181, SWEST!AL181, LPN!AL181,SPN!AL181,EPN!AL181,SPD!AL181,SPMW!AL181,SSEH!AL181,SSES!AL181) -> 0 | AM181: =CHOOSE(m_identity,ENWL!AM181, NPgN!AM181, NPgY!AM181, WMID!AM181, EMID!AM181, SWALES!AM181, SWEST!AM181, LPN!AM181,SPN!AM181,EPN!AM181,SPD!AM181,SPMW!AM181,SSEH!AM181,SSES!AM181) -> 0 | AN181: =CHOOSE(m_identity,ENWL!AN181, NPgN!AN181, NPgY!AN181, WMID!AN181, EMID!AN181, SWALES!AN181, SWEST!AN181, LPN!AN181,SPN!AN181,EPN!AN181,SPD!AN181,SPMW!AN181,SSEH!AN181,SSES!AN181) -> 0 | AO181: =CHOOSE(m_identity,ENWL!AO181, NPgN!AO181, NPgY!AO181, WMID!AO181, EMID!AO181, SWALES!AO181, SWEST!AO181, LPN!AO181,SPN!AO181,EPN!AO181,SPD!AO181,SPMW!AO181,SSEH!AO181,SSES!AO181) -> 0 | AP181: =CHOOSE(m_identity,ENWL!AP181, NPgN!AP181, NPgY!AP181, WMID!AP181, EMID!AP181, SWALES!AP181, SWEST!AP181, LPN!AP181,SPN!AP181,EPN!AP181,SPD!AP181,SPMW!AP181,SSEH!AP181,SSES!AP181) -> 0 | AQ181: =CHOOSE(m_identity,ENWL!AQ181, NPgN!AQ181, NPgY!AQ181, WMID!AQ181, EMID!AQ181, SWALES!AQ181, SWEST!AQ181, LPN!AQ181,SPN!AQ181,EPN!AQ181,SPD!AQ181,SPMW!AQ181,SSEH!AQ181,SSES!AQ181) -> 0
E182: Allocation to non-load related capex - other | G182: % | AJ182: =CHOOSE(m_identity,ENWL!AJ182, NPgN!AJ182, NPgY!AJ182, WMID!AJ182, EMID!AJ182, SWALES!AJ182, SWEST!AJ182, LPN!AJ182,SPN!AJ182,EPN!AJ182,SPD!AJ182,SPMW!AJ182,SSEH!AJ182,SSES!AJ182) -> 0 | AK182: =CHOOSE(m_identity,ENWL!AK182, NPgN!AK182, NPgY!AK182, WMID!AK182, EMID!AK182, SWALES!AK182, SWEST!AK182, LPN!AK182,SPN!AK182,EPN!AK182,SPD!AK182,SPMW!AK182,SSEH!AK182,SSES!AK182) -> 0 | AL182: =CHOOSE(m_identity,ENWL!AL182, NPgN!AL182, NPgY!AL182, WMID!AL182, EMID!AL182, SWALES!AL182, SWEST!AL182, LPN!AL182,SPN!AL182,EPN!AL182,SPD!AL182,SPMW!AL182,SSEH!AL182,SSES!AL182) -> 0 | AM182: =CHOOSE(m_identity,ENWL!AM182, NPgN!AM182, NPgY!AM182, WMID!AM182, EMID!AM182, SWALES!AM182, SWEST!AM182, LPN!AM182,SPN!AM182,EPN!AM182,SPD!AM182,SPMW!AM182,SSEH!AM182,SSES!AM182) -> 0 | AN182: =CHOOSE(m_identity,ENWL!AN182, NPgN!AN182, NPgY!AN182, WMID!AN182, EMID!AN182, SWALES!AN182, SWEST!AN182, LPN!AN182,SPN!AN182,EPN!AN182,SPD!AN182,SPMW!AN182,SSEH!AN182,SSES!AN182) -> 0 | AO182: =CHOOSE(m_identity,ENWL!AO182, NPgN!AO182, NPgY!AO182, WMID!AO182, EMID!AO182, SWALES!AO182, SWEST!AO182, LPN!AO182,SPN!AO182,EPN!AO182,SPD!AO182,SPMW!AO182,SSEH!AO182,SSES!AO182) -> 0 | AP182: =CHOOSE(m_identity,ENWL!AP182, NPgN!AP182, NPgY!AP182, WMID!AP182, EMID!AP182, SWALES!AP182, SWEST!AP182, LPN!AP182,SPN!AP182,EPN!AP182,SPD!AP182,SPMW!AP182,SSEH!AP182,SSES!AP182) -> 0 | AQ182: =CHOOSE(m_identity,ENWL!AQ182, NPgN!AQ182, NPgY!AQ182, WMID!AQ182, EMID!AQ182, SWALES!AQ182, SWEST!AQ182, LPN!AQ182,SPN!AQ182,EPN!AQ182,SPD!AQ182,SPMW!AQ182,SSEH!AQ182,SSES!AQ182) -> 0
E183: Allocation to faults | G183: % | AJ183: =CHOOSE(m_identity,ENWL!AJ183, NPgN!AJ183, NPgY!AJ183, WMID!AJ183, EMID!AJ183, SWALES!AJ183, SWEST!AJ183, LPN!AJ183,SPN!AJ183,EPN!AJ183,SPD!AJ183,SPMW!AJ183,SSEH!AJ183,SSES!AJ183) -> 0 | AK183: =CHOOSE(m_identity,ENWL!AK183, NPgN!AK183, NPgY!AK183, WMID!AK183, EMID!AK183, SWALES!AK183, SWEST!AK183, LPN!AK183,SPN!AK183,EPN!AK183,SPD!AK183,SPMW!AK183,SSEH!AK183,SSES!AK183) -> 0 | AL183: =CHOOSE(m_identity,ENWL!AL183, NPgN!AL183, NPgY!AL183, WMID!AL183, EMID!AL183, SWALES!AL183, SWEST!AL183, LPN!AL183,SPN!AL183,EPN!AL183,SPD!AL183,SPMW!AL183,SSEH!AL183,SSES!AL183) -> 0 | AM183: =CHOOSE(m_identity,ENWL!AM183, NPgN!AM183, NPgY!AM183, WMID!AM183, EMID!AM183, SWALES!AM183, SWEST!AM183, LPN!AM183,SPN!AM183,EPN!AM183,SPD!AM183,SPMW!AM183,SSEH!AM183,SSES!AM183) -> 0 | AN183: =CHOOSE(m_identity,ENWL!AN183, NPgN!AN183, NPgY!AN183, WMID!AN183, EMID!AN183, SWALES!AN183, SWEST!AN183, LPN!AN183,SPN!AN183,EPN!AN183,SPD!AN183,SPMW!AN183,SSEH!AN183,SSES!AN183) -> 0 | AO183: =CHOOSE(m_identity,ENWL!AO183, NPgN!AO183, NPgY!AO183, WMID!AO183, EMID!AO183, SWALES!AO183, SWEST!AO183, LPN!AO183,SPN!AO183,EPN!AO183,SPD!AO183,SPMW!AO183,SSEH!AO183,SSES!AO183) -> 0 | AP183: =CHOOSE(m_identity,ENWL!AP183, NPgN!AP183, NPgY!AP183, WMID!AP183, EMID!AP183, SWALES!AP183, SWEST!AP183, LPN!AP183,SPN!AP183,EPN!AP183,SPD!AP183,SPMW!AP183,SSEH!AP183,SSES!AP183) -> 0 | AQ183: =CHOOSE(m_identity,ENWL!AQ183, NPgN!AQ183, NPgY!AQ183, WMID!AQ183, EMID!AQ183, SWALES!AQ183, SWEST!AQ183, LPN!AQ183,SPN!AQ183,EPN!AQ183,SPD!AQ183,SPMW!AQ183,SSEH!AQ183,SSES!AQ183) -> 0
E184: Allocation to tree cutting | G184: % | AJ184: =CHOOSE(m_identity,ENWL!AJ184, NPgN!AJ184, NPgY!AJ184, WMID!AJ184, EMID!AJ184, SWALES!AJ184, SWEST!AJ184, LPN!AJ184,SPN!AJ184,EPN!AJ184,SPD!AJ184,SPMW!AJ184,SSEH!AJ184,SSES!AJ184) -> 0 | AK184: =CHOOSE(m_identity,ENWL!AK184, NPgN!AK184, NPgY!AK184, WMID!AK184, EMID!AK184, SWALES!AK184, SWEST!AK184, LPN!AK184,SPN!AK184,EPN!AK184,SPD!AK184,SPMW!AK184,SSEH!AK184,SSES!AK184) -> 0 | AL184: =CHOOSE(m_identity,ENWL!AL184, NPgN!AL184, NPgY!AL184, WMID!AL184, EMID!AL184, SWALES!AL184, SWEST!AL184, LPN!AL184,SPN!AL184,EPN!AL184,SPD!AL184,SPMW!AL184,SSEH!AL184,SSES!AL184) -> 0 | AM184: =CHOOSE(m_identity,ENWL!AM184, NPgN!AM184, NPgY!AM184, WMID!AM184, EMID!AM184, SWALES!AM184, SWEST!AM184, LPN!AM184,SPN!AM184,EPN!AM184,SPD!AM184,SPMW!AM184,SSEH!AM184,SSES!AM184) -> 0 | AN184: =CHOOSE(m_identity,ENWL!AN184, NPgN!AN184, NPgY!AN184, WMID!AN184, EMID!AN184, SWALES!AN184, SWEST!AN184, LPN!AN184,SPN!AN184,EPN!AN184,SPD!AN184,SPMW!AN184,SSEH!AN184,SSES!AN184) -> 0 | AO184: =CHOOSE(m_identity,ENWL!AO184, NPgN!AO184, NPgY!AO184, WMID!AO184, EMID!AO184, SWALES!AO184, SWEST!AO184, LPN!AO184,SPN!AO184,EPN!AO184,SPD!AO184,SPMW!AO184,SSEH!AO184,SSES!AO184) -> 0 | AP184: =CHOOSE(m_identity,ENWL!AP184, NPgN!AP184, NPgY!AP184, WMID!AP184, EMID!AP184, SWALES!AP184, SWEST!AP184, LPN!AP184,SPN!AP184,EPN!AP184,SPD!AP184,SPMW!AP184,SSEH!AP184,SSES!AP184) -> 0 | AQ184: =CHOOSE(m_identity,ENWL!AQ184, NPgN!AQ184, NPgY!AQ184, WMID!AQ184, EMID!AQ184, SWALES!AQ184, SWEST!AQ184, LPN!AQ184,SPN!AQ184,EPN!AQ184,SPD!AQ184,SPMW!AQ184,SSEH!AQ184,SSES!AQ184) -> 0
E185: Allocation to 100% ‘revenue pool’ expenditure | G185: % | AJ185: =CHOOSE(m_identity,ENWL!AJ185, NPgN!AJ185, NPgY!AJ185, WMID!AJ185, EMID!AJ185, SWALES!AJ185, SWEST!AJ185, LPN!AJ185,SPN!AJ185,EPN!AJ185,SPD!AJ185,SPMW!AJ185,SSEH!AJ185,SSES!AJ185) -> 0 | AK185: =CHOOSE(m_identity,ENWL!AK185, NPgN!AK185, NPgY!AK185, WMID!AK185, EMID!AK185, SWALES!AK185, SWEST!AK185, LPN!AK185,SPN!AK185,EPN!AK185,SPD!AK185,SPMW!AK185,SSEH!AK185,SSES!AK185) -> 0 | AL185: =CHOOSE(m_identity,ENWL!AL185, NPgN!AL185, NPgY!AL185, WMID!AL185, EMID!AL185, SWALES!AL185, SWEST!AL185, LPN!AL185,SPN!AL185,EPN!AL185,SPD!AL185,SPMW!AL185,SSEH!AL185,SSES!AL185) -> 0 | AM185: =CHOOSE(m_identity,ENWL!AM185, NPgN!AM185, NPgY!AM185, WMID!AM185, EMID!AM185, SWALES!AM185, SWEST!AM185, LPN!AM185,SPN!AM185,EPN!AM185,SPD!AM185,SPMW!AM185,SSEH!AM185,SSES!AM185) -> 0 | AN185: =CHOOSE(m_identity,ENWL!AN185, NPgN!AN185, NPgY!AN185, WMID!AN185, EMID!AN185, SWALES!AN185, SWEST!AN185, LPN!AN185,SPN!AN185,EPN!AN185,SPD!AN185,SPMW!AN185,SSEH!AN185,SSES!AN185) -> 0 | AO185: =CHOOSE(m_identity,ENWL!AO185, NPgN!AO185, NPgY!AO185, WMID!AO185, EMID!AO185, SWALES!AO185, SWEST!AO185, LPN!AO185,SPN!AO185,EPN!AO185,SPD!AO185,SPMW!AO185,SSEH!AO185,SSES!AO185) -> 0 | AP185: =CHOOSE(m_identity,ENWL!AP185, NPgN!AP185, NPgY!AP185, WMID!AP185, EMID!AP185, SWALES!AP185, SWEST!AP185, LPN!AP185,SPN!AP185,EPN!AP185,SPD!AP185,SPMW!AP185,SSEH!AP185,SSES!AP185) -> 0 | AQ185: =CHOOSE(m_identity,ENWL!AQ185, NPgN!AQ185, NPgY!AQ185, WMID!AQ185, EMID!AQ185, SWALES!AQ185, SWEST!AQ185, LPN!AQ185,SPN!AQ185,EPN!AQ185,SPD!AQ185,SPMW!AQ185,SSEH!AQ185,SSES!AQ185) -> 0
E186: Allocation to controllable opex | G186: % | AJ186: =CHOOSE(m_identity,ENWL!AJ186, NPgN!AJ186, NPgY!AJ186, WMID!AJ186, EMID!AJ186, SWALES!AJ186, SWEST!AJ186, LPN!AJ186,SPN!AJ186,EPN!AJ186,SPD!AJ186,SPMW!AJ186,SSEH!AJ186,SSES!AJ186) -> 0 | AK186: =CHOOSE(m_identity,ENWL!AK186, NPgN!AK186, NPgY!AK186, WMID!AK186, EMID!AK186, SWALES!AK186, SWEST!AK186, LPN!AK186,SPN!AK186,EPN!AK186,SPD!AK186,SPMW!AK186,SSEH!AK186,SSES!AK186) -> 0 | AL186: =CHOOSE(m_identity,ENWL!AL186, NPgN!AL186, NPgY!AL186, WMID!AL186, EMID!AL186, SWALES!AL186, SWEST!AL186, LPN!AL186,SPN!AL186,EPN!AL186,SPD!AL186,SPMW!AL186,SSEH!AL186,SSES!AL186) -> 0 | AM186: =CHOOSE(m_identity,ENWL!AM186, NPgN!AM186, NPgY!AM186, WMID!AM186, EMID!AM186, SWALES!AM186, SWEST!AM186, LPN!AM186,SPN!AM186,EPN!AM186,SPD!AM186,SPMW!AM186,SSEH!AM186,SSES!AM186) -> 0 | AN186: =CHOOSE(m_identity,ENWL!AN186, NPgN!AN186, NPgY!AN186, WMID!AN186, EMID!AN186, SWALES!AN186, SWEST!AN186, LPN!AN186,SPN!AN186,EPN!AN186,SPD!AN186,SPMW!AN186,SSEH!AN186,SSES!AN186) -> 0 | AO186: =CHOOSE(m_identity,ENWL!AO186, NPgN!AO186, NPgY!AO186, WMID!AO186, EMID!AO186, SWALES!AO186, SWEST!AO186, LPN!AO186,SPN!AO186,EPN!AO186,SPD!AO186,SPMW!AO186,SSEH!AO186,SSES!AO186) -> 0 | AP186: =CHOOSE(m_identity,ENWL!AP186, NPgN!AP186, NPgY!AP186, WMID!AP186, EMID!AP186, SWALES!AP186, SWEST!AP186, LPN!AP186,SPN!AP186,EPN!AP186,SPD!AP186,SPMW!AP186,SSEH!AP186,SSES!AP186) -> 0 | AQ186: =CHOOSE(m_identity,ENWL!AQ186, NPgN!AQ186, NPgY!AQ186, WMID!AQ186, EMID!AQ186, SWALES!AQ186, SWEST!AQ186, LPN!AQ186,SPN!AQ186,EPN!AQ186,SPD!AQ186,SPMW!AQ186,SSEH!AQ186,SSES!AQ186) -> 0
E188: =E28 -> Allowed Expenditure - Shetland Uncertain Energy (SSEH) | G188: £m 12/13 prices | AJ188: =AJ28 -> 0 | AK188: 0 | AL188: 0 | AM188: 0 | AN188: 0 | AO188: 0 | AP188: 0 | AQ188: 0
E189: Allocation to load related capex | G189: % | AJ189: =CHOOSE(m_identity,ENWL!AJ189, NPgN!AJ189, NPgY!AJ189, WMID!AJ189, EMID!AJ189, SWALES!AJ189, SWEST!AJ189, LPN!AJ189,SPN!AJ189,EPN!AJ189,SPD!AJ189,SPMW!AJ189,SSEH!AJ189,SSES!AJ189) -> 0 | AK189: =CHOOSE(m_identity,ENWL!AK189, NPgN!AK189, NPgY!AK189, WMID!AK189, EMID!AK189, SWALES!AK189, SWEST!AK189, LPN!AK189,SPN!AK189,EPN!AK189,SPD!AK189,SPMW!AK189,SSEH!AK189,SSES!AK189) -> 0 | AL189: =CHOOSE(m_identity,ENWL!AL189, NPgN!AL189, NPgY!AL189, WMID!AL189, EMID!AL189, SWALES!AL189, SWEST!AL189, LPN!AL189,SPN!AL189,EPN!AL189,SPD!AL189,SPMW!AL189,SSEH!AL189,SSES!AL189) -> 0 | AM189: =CHOOSE(m_identity,ENWL!AM189, NPgN!AM189, NPgY!AM189, WMID!AM189, EMID!AM189, SWALES!AM189, SWEST!AM189, LPN!AM189,SPN!AM189,EPN!AM189,SPD!AM189,SPMW!AM189,SSEH!AM189,SSES!AM189) -> 0 | AN189: =CHOOSE(m_identity,ENWL!AN189, NPgN!AN189, NPgY!AN189, WMID!AN189, EMID!AN189, SWALES!AN189, SWEST!AN189, LPN!AN189,SPN!AN189,EPN!AN189,SPD!AN189,SPMW!AN189,SSEH!AN189,SSES!AN189) -> 0 | AO189: =CHOOSE(m_identity,ENWL!AO189, NPgN!AO189, NPgY!AO189, WMID!AO189, EMID!AO189, SWALES!AO189, SWEST!AO189, LPN!AO189,SPN!AO189,EPN!AO189,SPD!AO189,SPMW!AO189,SSEH!AO189,SSES!AO189) -> 0 | AP189: =CHOOSE(m_identity,ENWL!AP189, NPgN!AP189, NPgY!AP189, WMID!AP189, EMID!AP189, SWALES!AP189, SWEST!AP189, LPN!AP189,SPN!AP189,EPN!AP189,SPD!AP189,SPMW!AP189,SSEH!AP189,SSES!AP189) -> 0 | AQ189: =CHOOSE(m_identity,ENWL!AQ189, NPgN!AQ189, NPgY!AQ189, WMID!AQ189, EMID!AQ189, SWALES!AQ189, SWEST!AQ189, LPN!AQ189,SPN!AQ189,EPN!AQ189,SPD!AQ189,SPMW!AQ189,SSEH!AQ189,SSES!AQ189) -> 0
E190: Allocation to non-load related capex - asset replacement | G190: % | AJ190: =CHOOSE(m_identity,ENWL!AJ190, NPgN!AJ190, NPgY!AJ190, WMID!AJ190, EMID!AJ190, SWALES!AJ190, SWEST!AJ190, LPN!AJ190,SPN!AJ190,EPN!AJ190,SPD!AJ190,SPMW!AJ190,SSEH!AJ190,SSES!AJ190) -> 0 | AK190: =CHOOSE(m_identity,ENWL!AK190, NPgN!AK190, NPgY!AK190, WMID!AK190, EMID!AK190, SWALES!AK190, SWEST!AK190, LPN!AK190,SPN!AK190,EPN!AK190,SPD!AK190,SPMW!AK190,SSEH!AK190,SSES!AK190) -> 0 | AL190: =CHOOSE(m_identity,ENWL!AL190, NPgN!AL190, NPgY!AL190, WMID!AL190, EMID!AL190, SWALES!AL190, SWEST!AL190, LPN!AL190,SPN!AL190,EPN!AL190,SPD!AL190,SPMW!AL190,SSEH!AL190,SSES!AL190) -> 0 | AM190: =CHOOSE(m_identity,ENWL!AM190, NPgN!AM190, NPgY!AM190, WMID!AM190, EMID!AM190, SWALES!AM190, SWEST!AM190, LPN!AM190,SPN!AM190,EPN!AM190,SPD!AM190,SPMW!AM190,SSEH!AM190,SSES!AM190) -> 0 | AN190: =CHOOSE(m_identity,ENWL!AN190, NPgN!AN190, NPgY!AN190, WMID!AN190, EMID!AN190, SWALES!AN190, SWEST!AN190, LPN!AN190,SPN!AN190,EPN!AN190,SPD!AN190,SPMW!AN190,SSEH!AN190,SSES!AN190) -> 0 | AO190: =CHOOSE(m_identity,ENWL!AO190, NPgN!AO190, NPgY!AO190, WMID!AO190, EMID!AO190, SWALES!AO190, SWEST!AO190, LPN!AO190,SPN!AO190,EPN!AO190,SPD!AO190,SPMW!AO190,SSEH!AO190,SSES!AO190) -> 0 | AP190: =CHOOSE(m_identity,ENWL!AP190, NPgN!AP190, NPgY!AP190, WMID!AP190, EMID!AP190, SWALES!AP190, SWEST!AP190, LPN!AP190,SPN!AP190,EPN!AP190,SPD!AP190,SPMW!AP190,SSEH!AP190,SSES!AP190) -> 0 | AQ190: =CHOOSE(m_identity,ENWL!AQ190, NPgN!AQ190, NPgY!AQ190, WMID!AQ190, EMID!AQ190, SWALES!AQ190, SWEST!AQ190, LPN!AQ190,SPN!AQ190,EPN!AQ190,SPD!AQ190,SPMW!AQ190,SSEH!AQ190,SSES!AQ190) -> 0
E191: Allocation to non-load related capex - other | G191: % | AJ191: =CHOOSE(m_identity,ENWL!AJ191, NPgN!AJ191, NPgY!AJ191, WMID!AJ191, EMID!AJ191, SWALES!AJ191, SWEST!AJ191, LPN!AJ191,SPN!AJ191,EPN!AJ191,SPD!AJ191,SPMW!AJ191,SSEH!AJ191,SSES!AJ191) -> 0 | AK191: =CHOOSE(m_identity,ENWL!AK191, NPgN!AK191, NPgY!AK191, WMID!AK191, EMID!AK191, SWALES!AK191, SWEST!AK191, LPN!AK191,SPN!AK191,EPN!AK191,SPD!AK191,SPMW!AK191,SSEH!AK191,SSES!AK191) -> 0 | AL191: =CHOOSE(m_identity,ENWL!AL191, NPgN!AL191, NPgY!AL191, WMID!AL191, EMID!AL191, SWALES!AL191, SWEST!AL191, LPN!AL191,SPN!AL191,EPN!AL191,SPD!AL191,SPMW!AL191,SSEH!AL191,SSES!AL191) -> 0 | AM191: =CHOOSE(m_identity,ENWL!AM191, NPgN!AM191, NPgY!AM191, WMID!AM191, EMID!AM191, SWALES!AM191, SWEST!AM191, LPN!AM191,SPN!AM191,EPN!AM191,SPD!AM191,SPMW!AM191,SSEH!AM191,SSES!AM191) -> 0 | AN191: =CHOOSE(m_identity,ENWL!AN191, NPgN!AN191, NPgY!AN191, WMID!AN191, EMID!AN191, SWALES!AN191, SWEST!AN191, LPN!AN191,SPN!AN191,EPN!AN191,SPD!AN191,SPMW!AN191,SSEH!AN191,SSES!AN191) -> 0 | AO191: =CHOOSE(m_identity,ENWL!AO191, NPgN!AO191, NPgY!AO191, WMID!AO191, EMID!AO191, SWALES!AO191, SWEST!AO191, LPN!AO191,SPN!AO191,EPN!AO191,SPD!AO191,SPMW!AO191,SSEH!AO191,SSES!AO191) -> 0 | AP191: =CHOOSE(m_identity,ENWL!AP191, NPgN!AP191, NPgY!AP191, WMID!AP191, EMID!AP191, SWALES!AP191, SWEST!AP191, LPN!AP191,SPN!AP191,EPN!AP191,SPD!AP191,SPMW!AP191,SSEH!AP191,SSES!AP191) -> 0 | AQ191: =CHOOSE(m_identity,ENWL!AQ191, NPgN!AQ191, NPgY!AQ191, WMID!AQ191, EMID!AQ191, SWALES!AQ191, SWEST!AQ191, LPN!AQ191,SPN!AQ191,EPN!AQ191,SPD!AQ191,SPMW!AQ191,SSEH!AQ191,SSES!AQ191) -> 0
E192: Allocation to faults | G192: % | AJ192: =CHOOSE(m_identity,ENWL!AJ192, NPgN!AJ192, NPgY!AJ192, WMID!AJ192, EMID!AJ192, SWALES!AJ192, SWEST!AJ192, LPN!AJ192,SPN!AJ192,EPN!AJ192,SPD!AJ192,SPMW!AJ192,SSEH!AJ192,SSES!AJ192) -> 0 | AK192: =CHOOSE(m_identity,ENWL!AK192, NPgN!AK192, NPgY!AK192, WMID!AK192, EMID!AK192, SWALES!AK192, SWEST!AK192, LPN!AK192,SPN!AK192,EPN!AK192,SPD!AK192,SPMW!AK192,SSEH!AK192,SSES!AK192) -> 0 | AL192: =CHOOSE(m_identity,ENWL!AL192, NPgN!AL192, NPgY!AL192, WMID!AL192, EMID!AL192, SWALES!AL192, SWEST!AL192, LPN!AL192,SPN!AL192,EPN!AL192,SPD!AL192,SPMW!AL192,SSEH!AL192,SSES!AL192) -> 0 | AM192: =CHOOSE(m_identity,ENWL!AM192, NPgN!AM192, NPgY!AM192, WMID!AM192, EMID!AM192, SWALES!AM192, SWEST!AM192, LPN!AM192,SPN!AM192,EPN!AM192,SPD!AM192,SPMW!AM192,SSEH!AM192,SSES!AM192) -> 0 | AN192: =CHOOSE(m_identity,ENWL!AN192, NPgN!AN192, NPgY!AN192, WMID!AN192, EMID!AN192, SWALES!AN192, SWEST!AN192, LPN!AN192,SPN!AN192,EPN!AN192,SPD!AN192,SPMW!AN192,SSEH!AN192,SSES!AN192) -> 0 | AO192: =CHOOSE(m_identity,ENWL!AO192, NPgN!AO192, NPgY!AO192, WMID!AO192, EMID!AO192, SWALES!AO192, SWEST!AO192, LPN!AO192,SPN!AO192,EPN!AO192,SPD!AO192,SPMW!AO192,SSEH!AO192,SSES!AO192) -> 0 | AP192: =CHOOSE(m_identity,ENWL!AP192, NPgN!AP192, NPgY!AP192, WMID!AP192, EMID!AP192, SWALES!AP192, SWEST!AP192, LPN!AP192,SPN!AP192,EPN!AP192,SPD!AP192,SPMW!AP192,SSEH!AP192,SSES!AP192) -> 0 | AQ192: =CHOOSE(m_identity,ENWL!AQ192, NPgN!AQ192, NPgY!AQ192, WMID!AQ192, EMID!AQ192, SWALES!AQ192, SWEST!AQ192, LPN!AQ192,SPN!AQ192,EPN!AQ192,SPD!AQ192,SPMW!AQ192,SSEH!AQ192,SSES!AQ192) -> 0
E193: Allocation to tree cutting | G193: % | AJ193: =CHOOSE(m_identity,ENWL!AJ193, NPgN!AJ193, NPgY!AJ193, WMID!AJ193, EMID!AJ193, SWALES!AJ193, SWEST!AJ193, LPN!AJ193,SPN!AJ193,EPN!AJ193,SPD!AJ193,SPMW!AJ193,SSEH!AJ193,SSES!AJ193) -> 0 | AK193: =CHOOSE(m_identity,ENWL!AK193, NPgN!AK193, NPgY!AK193, WMID!AK193, EMID!AK193, SWALES!AK193, SWEST!AK193, LPN!AK193,SPN!AK193,EPN!AK193,SPD!AK193,SPMW!AK193,SSEH!AK193,SSES!AK193) -> 0 | AL193: =CHOOSE(m_identity,ENWL!AL193, NPgN!AL193, NPgY!AL193, WMID!AL193, EMID!AL193, SWALES!AL193, SWEST!AL193, LPN!AL193,SPN!AL193,EPN!AL193,SPD!AL193,SPMW!AL193,SSEH!AL193,SSES!AL193) -> 0 | AM193: =CHOOSE(m_identity,ENWL!AM193, NPgN!AM193, NPgY!AM193, WMID!AM193, EMID!AM193, SWALES!AM193, SWEST!AM193, LPN!AM193,SPN!AM193,EPN!AM193,SPD!AM193,SPMW!AM193,SSEH!AM193,SSES!AM193) -> 0 | AN193: =CHOOSE(m_identity,ENWL!AN193, NPgN!AN193, NPgY!AN193, WMID!AN193, EMID!AN193, SWALES!AN193, SWEST!AN193, LPN!AN193,SPN!AN193,EPN!AN193,SPD!AN193,SPMW!AN193,SSEH!AN193,SSES!AN193) -> 0 | AO193: =CHOOSE(m_identity,ENWL!AO193, NPgN!AO193, NPgY!AO193, WMID!AO193, EMID!AO193, SWALES!AO193, SWEST!AO193, LPN!AO193,SPN!AO193,EPN!AO193,SPD!AO193,SPMW!AO193,SSEH!AO193,SSES!AO193) -> 0 | AP193: =CHOOSE(m_identity,ENWL!AP193, NPgN!AP193, NPgY!AP193, WMID!AP193, EMID!AP193, SWALES!AP193, SWEST!AP193, LPN!AP193,SPN!AP193,EPN!AP193,SPD!AP193,SPMW!AP193,SSEH!AP193,SSES!AP193) -> 0 | AQ193: =CHOOSE(m_identity,ENWL!AQ193, NPgN!AQ193, NPgY!AQ193, WMID!AQ193, EMID!AQ193, SWALES!AQ193, SWEST!AQ193, LPN!AQ193,SPN!AQ193,EPN!AQ193,SPD!AQ193,SPMW!AQ193,SSEH!AQ193,SSES!AQ193) -> 0
E194: Allocation to 100% ‘revenue pool’ expenditure | G194: % | AJ194: =CHOOSE(m_identity,ENWL!AJ194, NPgN!AJ194, NPgY!AJ194, WMID!AJ194, EMID!AJ194, SWALES!AJ194, SWEST!AJ194, LPN!AJ194,SPN!AJ194,EPN!AJ194,SPD!AJ194,SPMW!AJ194,SSEH!AJ194,SSES!AJ194) -> 0 | AK194: =CHOOSE(m_identity,ENWL!AK194, NPgN!AK194, NPgY!AK194, WMID!AK194, EMID!AK194, SWALES!AK194, SWEST!AK194, LPN!AK194,SPN!AK194,EPN!AK194,SPD!AK194,SPMW!AK194,SSEH!AK194,SSES!AK194) -> 0 | AL194: =CHOOSE(m_identity,ENWL!AL194, NPgN!AL194, NPgY!AL194, WMID!AL194, EMID!AL194, SWALES!AL194, SWEST!AL194, LPN!AL194,SPN!AL194,EPN!AL194,SPD!AL194,SPMW!AL194,SSEH!AL194,SSES!AL194) -> 0 | AM194: =CHOOSE(m_identity,ENWL!AM194, NPgN!AM194, NPgY!AM194, WMID!AM194, EMID!AM194, SWALES!AM194, SWEST!AM194, LPN!AM194,SPN!AM194,EPN!AM194,SPD!AM194,SPMW!AM194,SSEH!AM194,SSES!AM194) -> 0 | AN194: =CHOOSE(m_identity,ENWL!AN194, NPgN!AN194, NPgY!AN194, WMID!AN194, EMID!AN194, SWALES!AN194, SWEST!AN194, LPN!AN194,SPN!AN194,EPN!AN194,SPD!AN194,SPMW!AN194,SSEH!AN194,SSES!AN194) -> 0 | AO194: =CHOOSE(m_identity,ENWL!AO194, NPgN!AO194, NPgY!AO194, WMID!AO194, EMID!AO194, SWALES!AO194, SWEST!AO194, LPN!AO194,SPN!AO194,EPN!AO194,SPD!AO194,SPMW!AO194,SSEH!AO194,SSES!AO194) -> 0 | AP194: =CHOOSE(m_identity,ENWL!AP194, NPgN!AP194, NPgY!AP194, WMID!AP194, EMID!AP194, SWALES!AP194, SWEST!AP194, LPN!AP194,SPN!AP194,EPN!AP194,SPD!AP194,SPMW!AP194,SSEH!AP194,SSES!AP194) -> 0 | AQ194: =CHOOSE(m_identity,ENWL!AQ194, NPgN!AQ194, NPgY!AQ194, WMID!AQ194, EMID!AQ194, SWALES!AQ194, SWEST!AQ194, LPN!AQ194,SPN!AQ194,EPN!AQ194,SPD!AQ194,SPMW!AQ194,SSEH!AQ194,SSES!AQ194) -> 0
E195: Allocation to controllable opex | G195: % | AJ195: =CHOOSE(m_identity,ENWL!AJ195, NPgN!AJ195, NPgY!AJ195, WMID!AJ195, EMID!AJ195, SWALES!AJ195, SWEST!AJ195, LPN!AJ195,SPN!AJ195,EPN!AJ195,SPD!AJ195,SPMW!AJ195,SSEH!AJ195,SSES!AJ195) -> 0 | AK195: =CHOOSE(m_identity,ENWL!AK195, NPgN!AK195, NPgY!AK195, WMID!AK195, EMID!AK195, SWALES!AK195, SWEST!AK195, LPN!AK195,SPN!AK195,EPN!AK195,SPD!AK195,SPMW!AK195,SSEH!AK195,SSES!AK195) -> 0 | AL195: =CHOOSE(m_identity,ENWL!AL195, NPgN!AL195, NPgY!AL195, WMID!AL195, EMID!AL195, SWALES!AL195, SWEST!AL195, LPN!AL195,SPN!AL195,EPN!AL195,SPD!AL195,SPMW!AL195,SSEH!AL195,SSES!AL195) -> 0 | AM195: =CHOOSE(m_identity,ENWL!AM195, NPgN!AM195, NPgY!AM195, WMID!AM195, EMID!AM195, SWALES!AM195, SWEST!AM195, LPN!AM195,SPN!AM195,EPN!AM195,SPD!AM195,SPMW!AM195,SSEH!AM195,SSES!AM195) -> 0 | AN195: =CHOOSE(m_identity,ENWL!AN195, NPgN!AN195, NPgY!AN195, WMID!AN195, EMID!AN195, SWALES!AN195, SWEST!AN195, LPN!AN195,SPN!AN195,EPN!AN195,SPD!AN195,SPMW!AN195,SSEH!AN195,SSES!AN195) -> 0 | AO195: =CHOOSE(m_identity,ENWL!AO195, NPgN!AO195, NPgY!AO195, WMID!AO195, EMID!AO195, SWALES!AO195, SWEST!AO195, LPN!AO195,SPN!AO195,EPN!AO195,SPD!AO195,SPMW!AO195,SSEH!AO195,SSES!AO195) -> 0 | AP195: =CHOOSE(m_identity,ENWL!AP195, NPgN!AP195, NPgY!AP195, WMID!AP195, EMID!AP195, SWALES!AP195, SWEST!AP195, LPN!AP195,SPN!AP195,EPN!AP195,SPD!AP195,SPMW!AP195,SSEH!AP195,SSES!AP195) -> 0 | AQ195: =CHOOSE(m_identity,ENWL!AQ195, NPgN!AQ195, NPgY!AQ195, WMID!AQ195, EMID!AQ195, SWALES!AQ195, SWEST!AQ195, LPN!AQ195,SPN!AQ195,EPN!AQ195,SPD!AQ195,SPMW!AQ195,SSEH!AQ195,SSES!AQ195) -> 0
E197: =E29 -> Allowed Expenditure - Shetland Competitive Process (SSEH) | G197: £m 12/13 prices | AJ197: =AJ29 -> 0 | AK197: =AK29 -> 0 | AL197: 0 | AM197: 0 | AN197: 0 | AO197: 0 | AP197: 0 | AQ197: 0
E198: Allocation to load related capex | G198: % | AJ198: =CHOOSE(m_identity,ENWL!AJ198, NPgN!AJ198, NPgY!AJ198, WMID!AJ198, EMID!AJ198, SWALES!AJ198, SWEST!AJ198, LPN!AJ198,SPN!AJ198,EPN!AJ198,SPD!AJ198,SPMW!AJ198,SSEH!AJ198,SSES!AJ198) -> 0 | AK198: =CHOOSE(m_identity,ENWL!AK198, NPgN!AK198, NPgY!AK198, WMID!AK198, EMID!AK198, SWALES!AK198, SWEST!AK198, LPN!AK198,SPN!AK198,EPN!AK198,SPD!AK198,SPMW!AK198,SSEH!AK198,SSES!AK198) -> 0 | AL198: =CHOOSE(m_identity,ENWL!AL198, NPgN!AL198, NPgY!AL198, WMID!AL198, EMID!AL198, SWALES!AL198, SWEST!AL198, LPN!AL198,SPN!AL198,EPN!AL198,SPD!AL198,SPMW!AL198,SSEH!AL198,SSES!AL198) -> 0 | AM198: =CHOOSE(m_identity,ENWL!AM198, NPgN!AM198, NPgY!AM198, WMID!AM198, EMID!AM198, SWALES!AM198, SWEST!AM198, LPN!AM198,SPN!AM198,EPN!AM198,SPD!AM198,SPMW!AM198,SSEH!AM198,SSES!AM198) -> 0 | AN198: =CHOOSE(m_identity,ENWL!AN198, NPgN!AN198, NPgY!AN198, WMID!AN198, EMID!AN198, SWALES!AN198, SWEST!AN198, LPN!AN198,SPN!AN198,EPN!AN198,SPD!AN198,SPMW!AN198,SSEH!AN198,SSES!AN198) -> 0 | AO198: =CHOOSE(m_identity,ENWL!AO198, NPgN!AO198, NPgY!AO198, WMID!AO198, EMID!AO198, SWALES!AO198, SWEST!AO198, LPN!AO198,SPN!AO198,EPN!AO198,SPD!AO198,SPMW!AO198,SSEH!AO198,SSES!AO198) -> 0 | AP198: =CHOOSE(m_identity,ENWL!AP198, NPgN!AP198, NPgY!AP198, WMID!AP198, EMID!AP198, SWALES!AP198, SWEST!AP198, LPN!AP198,SPN!AP198,EPN!AP198,SPD!AP198,SPMW!AP198,SSEH!AP198,SSES!AP198) -> 0 | AQ198: =CHOOSE(m_identity,ENWL!AQ198, NPgN!AQ198, NPgY!AQ198, WMID!AQ198, EMID!AQ198, SWALES!AQ198, SWEST!AQ198, LPN!AQ198,SPN!AQ198,EPN!AQ198,SPD!AQ198,SPMW!AQ198,SSEH!AQ198,SSES!AQ198) -> 0
E199: Allocation to non-load related capex - asset replacement | G199: % | AJ199: =CHOOSE(m_identity,ENWL!AJ199, NPgN!AJ199, NPgY!AJ199, WMID!AJ199, EMID!AJ199, SWALES!AJ199, SWEST!AJ199, LPN!AJ199,SPN!AJ199,EPN!AJ199,SPD!AJ199,SPMW!AJ199,SSEH!AJ199,SSES!AJ199) -> 0 | AK199: =CHOOSE(m_identity,ENWL!AK199, NPgN!AK199, NPgY!AK199, WMID!AK199, EMID!AK199, SWALES!AK199, SWEST!AK199, LPN!AK199,SPN!AK199,EPN!AK199,SPD!AK199,SPMW!AK199,SSEH!AK199,SSES!AK199) -> 0 | AL199: =CHOOSE(m_identity,ENWL!AL199, NPgN!AL199, NPgY!AL199, WMID!AL199, EMID!AL199, SWALES!AL199, SWEST!AL199, LPN!AL199,SPN!AL199,EPN!AL199,SPD!AL199,SPMW!AL199,SSEH!AL199,SSES!AL199) -> 0 | AM199: =CHOOSE(m_identity,ENWL!AM199, NPgN!AM199, NPgY!AM199, WMID!AM199, EMID!AM199, SWALES!AM199, SWEST!AM199, LPN!AM199,SPN!AM199,EPN!AM199,SPD!AM199,SPMW!AM199,SSEH!AM199,SSES!AM199) -> 0 | AN199: =CHOOSE(m_identity,ENWL!AN199, NPgN!AN199, NPgY!AN199, WMID!AN199, EMID!AN199, SWALES!AN199, SWEST!AN199, LPN!AN199,SPN!AN199,EPN!AN199,SPD!AN199,SPMW!AN199,SSEH!AN199,SSES!AN199) -> 0 | AO199: =CHOOSE(m_identity,ENWL!AO199, NPgN!AO199, NPgY!AO199, WMID!AO199, EMID!AO199, SWALES!AO199, SWEST!AO199, LPN!AO199,SPN!AO199,EPN!AO199,SPD!AO199,SPMW!AO199,SSEH!AO199,SSES!AO199) -> 0 | AP199: =CHOOSE(m_identity,ENWL!AP199, NPgN!AP199, NPgY!AP199, WMID!AP199, EMID!AP199, SWALES!AP199, SWEST!AP199, LPN!AP199,SPN!AP199,EPN!AP199,SPD!AP199,SPMW!AP199,SSEH!AP199,SSES!AP199) -> 0 | AQ199: =CHOOSE(m_identity,ENWL!AQ199, NPgN!AQ199, NPgY!AQ199, WMID!AQ199, EMID!AQ199, SWALES!AQ199, SWEST!AQ199, LPN!AQ199,SPN!AQ199,EPN!AQ199,SPD!AQ199,SPMW!AQ199,SSEH!AQ199,SSES!AQ199) -> 0
E200: Allocation to non-load related capex - other | G200: % | AJ200: =CHOOSE(m_identity,ENWL!AJ200, NPgN!AJ200, NPgY!AJ200, WMID!AJ200, EMID!AJ200, SWALES!AJ200, SWEST!AJ200, LPN!AJ200,SPN!AJ200,EPN!AJ200,SPD!AJ200,SPMW!AJ200,SSEH!AJ200,SSES!AJ200) -> 0 | AK200: =CHOOSE(m_identity,ENWL!AK200, NPgN!AK200, NPgY!AK200, WMID!AK200, EMID!AK200, SWALES!AK200, SWEST!AK200, LPN!AK200,SPN!AK200,EPN!AK200,SPD!AK200,SPMW!AK200,SSEH!AK200,SSES!AK200) -> 0 | AL200: =CHOOSE(m_identity,ENWL!AL200, NPgN!AL200, NPgY!AL200, WMID!AL200, EMID!AL200, SWALES!AL200, SWEST!AL200, LPN!AL200,SPN!AL200,EPN!AL200,SPD!AL200,SPMW!AL200,SSEH!AL200,SSES!AL200) -> 0 | AM200: =CHOOSE(m_identity,ENWL!AM200, NPgN!AM200, NPgY!AM200, WMID!AM200, EMID!AM200, SWALES!AM200, SWEST!AM200, LPN!AM200,SPN!AM200,EPN!AM200,SPD!AM200,SPMW!AM200,SSEH!AM200,SSES!AM200) -> 0 | AN200: =CHOOSE(m_identity,ENWL!AN200, NPgN!AN200, NPgY!AN200, WMID!AN200, EMID!AN200, SWALES!AN200, SWEST!AN200, LPN!AN200,SPN!AN200,EPN!AN200,SPD!AN200,SPMW!AN200,SSEH!AN200,SSES!AN200) -> 0 | AO200: =CHOOSE(m_identity,ENWL!AO200, NPgN!AO200, NPgY!AO200, WMID!AO200, EMID!AO200, SWALES!AO200, SWEST!AO200, LPN!AO200,SPN!AO200,EPN!AO200,SPD!AO200,SPMW!AO200,SSEH!AO200,SSES!AO200) -> 0 | AP200: =CHOOSE(m_identity,ENWL!AP200, NPgN!AP200, NPgY!AP200, WMID!AP200, EMID!AP200, SWALES!AP200, SWEST!AP200, LPN!AP200,SPN!AP200,EPN!AP200,SPD!AP200,SPMW!AP200,SSEH!AP200,SSES!AP200) -> 0 | AQ200: =CHOOSE(m_identity,ENWL!AQ200, NPgN!AQ200, NPgY!AQ200, WMID!AQ200, EMID!AQ200, SWALES!AQ200, SWEST!AQ200, LPN!AQ200,SPN!AQ200,EPN!AQ200,SPD!AQ200,SPMW!AQ200,SSEH!AQ200,SSES!AQ200) -> 0
E201: Allocation to faults | G201: % | AJ201: =CHOOSE(m_identity,ENWL!AJ201, NPgN!AJ201, NPgY!AJ201, WMID!AJ201, EMID!AJ201, SWALES!AJ201, SWEST!AJ201, LPN!AJ201,SPN!AJ201,EPN!AJ201,SPD!AJ201,SPMW!AJ201,SSEH!AJ201,SSES!AJ201) -> 0 | AK201: =CHOOSE(m_identity,ENWL!AK201, NPgN!AK201, NPgY!AK201, WMID!AK201, EMID!AK201, SWALES!AK201, SWEST!AK201, LPN!AK201,SPN!AK201,EPN!AK201,SPD!AK201,SPMW!AK201,SSEH!AK201,SSES!AK201) -> 0 | AL201: =CHOOSE(m_identity,ENWL!AL201, NPgN!AL201, NPgY!AL201, WMID!AL201, EMID!AL201, SWALES!AL201, SWEST!AL201, LPN!AL201,SPN!AL201,EPN!AL201,SPD!AL201,SPMW!AL201,SSEH!AL201,SSES!AL201) -> 0 | AM201: =CHOOSE(m_identity,ENWL!AM201, NPgN!AM201, NPgY!AM201, WMID!AM201, EMID!AM201, SWALES!AM201, SWEST!AM201, LPN!AM201,SPN!AM201,EPN!AM201,SPD!AM201,SPMW!AM201,SSEH!AM201,SSES!AM201) -> 0 | AN201: =CHOOSE(m_identity,ENWL!AN201, NPgN!AN201, NPgY!AN201, WMID!AN201, EMID!AN201, SWALES!AN201, SWEST!AN201, LPN!AN201,SPN!AN201,EPN!AN201,SPD!AN201,SPMW!AN201,SSEH!AN201,SSES!AN201) -> 0 | AO201: =CHOOSE(m_identity,ENWL!AO201, NPgN!AO201, NPgY!AO201, WMID!AO201, EMID!AO201, SWALES!AO201, SWEST!AO201, LPN!AO201,SPN!AO201,EPN!AO201,SPD!AO201,SPMW!AO201,SSEH!AO201,SSES!AO201) -> 0 | AP201: =CHOOSE(m_identity,ENWL!AP201, NPgN!AP201, NPgY!AP201, WMID!AP201, EMID!AP201, SWALES!AP201, SWEST!AP201, LPN!AP201,SPN!AP201,EPN!AP201,SPD!AP201,SPMW!AP201,SSEH!AP201,SSES!AP201) -> 0 | AQ201: =CHOOSE(m_identity,ENWL!AQ201, NPgN!AQ201, NPgY!AQ201, WMID!AQ201, EMID!AQ201, SWALES!AQ201, SWEST!AQ201, LPN!AQ201,SPN!AQ201,EPN!AQ201,SPD!AQ201,SPMW!AQ201,SSEH!AQ201,SSES!AQ201) -> 0
E202: Allocation to tree cutting | G202: % | AJ202: =CHOOSE(m_identity,ENWL!AJ202, NPgN!AJ202, NPgY!AJ202, WMID!AJ202, EMID!AJ202, SWALES!AJ202, SWEST!AJ202, LPN!AJ202,SPN!AJ202,EPN!AJ202,SPD!AJ202,SPMW!AJ202,SSEH!AJ202,SSES!AJ202) -> 0 | AK202: =CHOOSE(m_identity,ENWL!AK202, NPgN!AK202, NPgY!AK202, WMID!AK202, EMID!AK202, SWALES!AK202, SWEST!AK202, LPN!AK202,SPN!AK202,EPN!AK202,SPD!AK202,SPMW!AK202,SSEH!AK202,SSES!AK202) -> 0 | AL202: =CHOOSE(m_identity,ENWL!AL202, NPgN!AL202, NPgY!AL202, WMID!AL202, EMID!AL202, SWALES!AL202, SWEST!AL202, LPN!AL202,SPN!AL202,EPN!AL202,SPD!AL202,SPMW!AL202,SSEH!AL202,SSES!AL202) -> 0 | AM202: =CHOOSE(m_identity,ENWL!AM202, NPgN!AM202, NPgY!AM202, WMID!AM202, EMID!AM202, SWALES!AM202, SWEST!AM202, LPN!AM202,SPN!AM202,EPN!AM202,SPD!AM202,SPMW!AM202,SSEH!AM202,SSES!AM202) -> 0 | AN202: =CHOOSE(m_identity,ENWL!AN202, NPgN!AN202, NPgY!AN202, WMID!AN202, EMID!AN202, SWALES!AN202, SWEST!AN202, LPN!AN202,SPN!AN202,EPN!AN202,SPD!AN202,SPMW!AN202,SSEH!AN202,SSES!AN202) -> 0 | AO202: =CHOOSE(m_identity,ENWL!AO202, NPgN!AO202, NPgY!AO202, WMID!AO202, EMID!AO202, SWALES!AO202, SWEST!AO202, LPN!AO202,SPN!AO202,EPN!AO202,SPD!AO202,SPMW!AO202,SSEH!AO202,SSES!AO202) -> 0 | AP202: =CHOOSE(m_identity,ENWL!AP202, NPgN!AP202, NPgY!AP202, WMID!AP202, EMID!AP202, SWALES!AP202, SWEST!AP202, LPN!AP202,SPN!AP202,EPN!AP202,SPD!AP202,SPMW!AP202,SSEH!AP202,SSES!AP202) -> 0 | AQ202: =CHOOSE(m_identity,ENWL!AQ202, NPgN!AQ202, NPgY!AQ202, WMID!AQ202, EMID!AQ202, SWALES!AQ202, SWEST!AQ202, LPN!AQ202,SPN!AQ202,EPN!AQ202,SPD!AQ202,SPMW!AQ202,SSEH!AQ202,SSES!AQ202) -> 0
E203: Allocation to 100% ‘revenue pool’ expenditure | G203: % | AJ203: =CHOOSE(m_identity,ENWL!AJ203, NPgN!AJ203, NPgY!AJ203, WMID!AJ203, EMID!AJ203, SWALES!AJ203, SWEST!AJ203, LPN!AJ203,SPN!AJ203,EPN!AJ203,SPD!AJ203,SPMW!AJ203,SSEH!AJ203,SSES!AJ203) -> 0 | AK203: =CHOOSE(m_identity,ENWL!AK203, NPgN!AK203, NPgY!AK203, WMID!AK203, EMID!AK203, SWALES!AK203, SWEST!AK203, LPN!AK203,SPN!AK203,EPN!AK203,SPD!AK203,SPMW!AK203,SSEH!AK203,SSES!AK203) -> 0 | AL203: =CHOOSE(m_identity,ENWL!AL203, NPgN!AL203, NPgY!AL203, WMID!AL203, EMID!AL203, SWALES!AL203, SWEST!AL203, LPN!AL203,SPN!AL203,EPN!AL203,SPD!AL203,SPMW!AL203,SSEH!AL203,SSES!AL203) -> 0 | AM203: =CHOOSE(m_identity,ENWL!AM203, NPgN!AM203, NPgY!AM203, WMID!AM203, EMID!AM203, SWALES!AM203, SWEST!AM203, LPN!AM203,SPN!AM203,EPN!AM203,SPD!AM203,SPMW!AM203,SSEH!AM203,SSES!AM203) -> 0 | AN203: =CHOOSE(m_identity,ENWL!AN203, NPgN!AN203, NPgY!AN203, WMID!AN203, EMID!AN203, SWALES!AN203, SWEST!AN203, LPN!AN203,SPN!AN203,EPN!AN203,SPD!AN203,SPMW!AN203,SSEH!AN203,SSES!AN203) -> 0 | AO203: =CHOOSE(m_identity,ENWL!AO203, NPgN!AO203, NPgY!AO203, WMID!AO203, EMID!AO203, SWALES!AO203, SWEST!AO203, LPN!AO203,SPN!AO203,EPN!AO203,SPD!AO203,SPMW!AO203,SSEH!AO203,SSES!AO203) -> 0 | AP203: =CHOOSE(m_identity,ENWL!AP203, NPgN!AP203, NPgY!AP203, WMID!AP203, EMID!AP203, SWALES!AP203, SWEST!AP203, LPN!AP203,SPN!AP203,EPN!AP203,SPD!AP203,SPMW!AP203,SSEH!AP203,SSES!AP203) -> 0 | AQ203: =CHOOSE(m_identity,ENWL!AQ203, NPgN!AQ203, NPgY!AQ203, WMID!AQ203, EMID!AQ203, SWALES!AQ203, SWEST!AQ203, LPN!AQ203,SPN!AQ203,EPN!AQ203,SPD!AQ203,SPMW!AQ203,SSEH!AQ203,SSES!AQ203) -> 0
E204: Allocation to controllable opex | G204: % | AJ204: =CHOOSE(m_identity,ENWL!AJ204, NPgN!AJ204, NPgY!AJ204, WMID!AJ204, EMID!AJ204, SWALES!AJ204, SWEST!AJ204, LPN!AJ204,SPN!AJ204,EPN!AJ204,SPD!AJ204,SPMW!AJ204,SSEH!AJ204,SSES!AJ204) -> 0 | AK204: =CHOOSE(m_identity,ENWL!AK204, NPgN!AK204, NPgY!AK204, WMID!AK204, EMID!AK204, SWALES!AK204, SWEST!AK204, LPN!AK204,SPN!AK204,EPN!AK204,SPD!AK204,SPMW!AK204,SSEH!AK204,SSES!AK204) -> 0 | AL204: =CHOOSE(m_identity,ENWL!AL204, NPgN!AL204, NPgY!AL204, WMID!AL204, EMID!AL204, SWALES!AL204, SWEST!AL204, LPN!AL204,SPN!AL204,EPN!AL204,SPD!AL204,SPMW!AL204,SSEH!AL204,SSES!AL204) -> 0 | AM204: =CHOOSE(m_identity,ENWL!AM204, NPgN!AM204, NPgY!AM204, WMID!AM204, EMID!AM204, SWALES!AM204, SWEST!AM204, LPN!AM204,SPN!AM204,EPN!AM204,SPD!AM204,SPMW!AM204,SSEH!AM204,SSES!AM204) -> 0 | AN204: =CHOOSE(m_identity,ENWL!AN204, NPgN!AN204, NPgY!AN204, WMID!AN204, EMID!AN204, SWALES!AN204, SWEST!AN204, LPN!AN204,SPN!AN204,EPN!AN204,SPD!AN204,SPMW!AN204,SSEH!AN204,SSES!AN204) -> 0 | AO204: =CHOOSE(m_identity,ENWL!AO204, NPgN!AO204, NPgY!AO204, WMID!AO204, EMID!AO204, SWALES!AO204, SWEST!AO204, LPN!AO204,SPN!AO204,EPN!AO204,SPD!AO204,SPMW!AO204,SSEH!AO204,SSES!AO204) -> 0 | AP204: =CHOOSE(m_identity,ENWL!AP204, NPgN!AP204, NPgY!AP204, WMID!AP204, EMID!AP204, SWALES!AP204, SWEST!AP204, LPN!AP204,SPN!AP204,EPN!AP204,SPD!AP204,SPMW!AP204,SSEH!AP204,SSES!AP204) -> 0 | AQ204: =CHOOSE(m_identity,ENWL!AQ204, NPgN!AQ204, NPgY!AQ204, WMID!AQ204, EMID!AQ204, SWALES!AQ204, SWEST!AQ204, LPN!AQ204,SPN!AQ204,EPN!AQ204,SPD!AQ204,SPMW!AQ204,SSEH!AQ204,SSES!AQ204) -> 0
E206: =$E$30 -> Allowed Expenditure - Link Boxes | G206: £m 12/13 prices | AJ206: =AJ30 -> 0 | AK206: =AK30 -> 0 | AL206: 0 | AM206: 0 | AN206: 0 | AO206: 0 | AP206: 0 | AQ206: 0
E207: Allocation to load related capex | G207: % | AJ207: =CHOOSE(m_identity,ENWL!AJ207, NPgN!AJ207, NPgY!AJ207, WMID!AJ207, EMID!AJ207, SWALES!AJ207, SWEST!AJ207, LPN!AJ207,SPN!AJ207,EPN!AJ207,SPD!AJ207,SPMW!AJ207,SSEH!AJ207,SSES!AJ207) -> 0 | AK207: =CHOOSE(m_identity,ENWL!AK207, NPgN!AK207, NPgY!AK207, WMID!AK207, EMID!AK207, SWALES!AK207, SWEST!AK207, LPN!AK207,SPN!AK207,EPN!AK207,SPD!AK207,SPMW!AK207,SSEH!AK207,SSES!AK207) -> 0 | AL207: =CHOOSE(m_identity,ENWL!AL207, NPgN!AL207, NPgY!AL207, WMID!AL207, EMID!AL207, SWALES!AL207, SWEST!AL207, LPN!AL207,SPN!AL207,EPN!AL207,SPD!AL207,SPMW!AL207,SSEH!AL207,SSES!AL207) -> 0 | AM207: =CHOOSE(m_identity,ENWL!AM207, NPgN!AM207, NPgY!AM207, WMID!AM207, EMID!AM207, SWALES!AM207, SWEST!AM207, LPN!AM207,SPN!AM207,EPN!AM207,SPD!AM207,SPMW!AM207,SSEH!AM207,SSES!AM207) -> 0 | AN207: =CHOOSE(m_identity,ENWL!AN207, NPgN!AN207, NPgY!AN207, WMID!AN207, EMID!AN207, SWALES!AN207, SWEST!AN207, LPN!AN207,SPN!AN207,EPN!AN207,SPD!AN207,SPMW!AN207,SSEH!AN207,SSES!AN207) -> 0 | AO207: =CHOOSE(m_identity,ENWL!AO207, NPgN!AO207, NPgY!AO207, WMID!AO207, EMID!AO207, SWALES!AO207, SWEST!AO207, LPN!AO207,SPN!AO207,EPN!AO207,SPD!AO207,SPMW!AO207,SSEH!AO207,SSES!AO207) -> 0 | AP207: =CHOOSE(m_identity,ENWL!AP207, NPgN!AP207, NPgY!AP207, WMID!AP207, EMID!AP207, SWALES!AP207, SWEST!AP207, LPN!AP207,SPN!AP207,EPN!AP207,SPD!AP207,SPMW!AP207,SSEH!AP207,SSES!AP207) -> 0 | AQ207: =CHOOSE(m_identity,ENWL!AQ207, NPgN!AQ207, NPgY!AQ207, WMID!AQ207, EMID!AQ207, SWALES!AQ207, SWEST!AQ207, LPN!AQ207,SPN!AQ207,EPN!AQ207,SPD!AQ207,SPMW!AQ207,SSEH!AQ207,SSES!AQ207) -> 0
E208: Allocation to non-load related capex - asset replacement | G208: % | AJ208: =CHOOSE(m_identity,ENWL!AJ208, NPgN!AJ208, NPgY!AJ208, WMID!AJ208, EMID!AJ208, SWALES!AJ208, SWEST!AJ208, LPN!AJ208,SPN!AJ208,EPN!AJ208,SPD!AJ208,SPMW!AJ208,SSEH!AJ208,SSES!AJ208) -> 0 | AK208: =CHOOSE(m_identity,ENWL!AK208, NPgN!AK208, NPgY!AK208, WMID!AK208, EMID!AK208, SWALES!AK208, SWEST!AK208, LPN!AK208,SPN!AK208,EPN!AK208,SPD!AK208,SPMW!AK208,SSEH!AK208,SSES!AK208) -> 0 | AL208: =CHOOSE(m_identity,ENWL!AL208, NPgN!AL208, NPgY!AL208, WMID!AL208, EMID!AL208, SWALES!AL208, SWEST!AL208, LPN!AL208,SPN!AL208,EPN!AL208,SPD!AL208,SPMW!AL208,SSEH!AL208,SSES!AL208) -> 0 | AM208: =CHOOSE(m_identity,ENWL!AM208, NPgN!AM208, NPgY!AM208, WMID!AM208, EMID!AM208, SWALES!AM208, SWEST!AM208, LPN!AM208,SPN!AM208,EPN!AM208,SPD!AM208,SPMW!AM208,SSEH!AM208,SSES!AM208) -> 0 | AN208: =CHOOSE(m_identity,ENWL!AN208, NPgN!AN208, NPgY!AN208, WMID!AN208, EMID!AN208, SWALES!AN208, SWEST!AN208, LPN!AN208,SPN!AN208,EPN!AN208,SPD!AN208,SPMW!AN208,SSEH!AN208,SSES!AN208) -> 0 | AO208: =CHOOSE(m_identity,ENWL!AO208, NPgN!AO208, NPgY!AO208, WMID!AO208, EMID!AO208, SWALES!AO208, SWEST!AO208, LPN!AO208,SPN!AO208,EPN!AO208,SPD!AO208,SPMW!AO208,SSEH!AO208,SSES!AO208) -> 0 | AP208: =CHOOSE(m_identity,ENWL!AP208, NPgN!AP208, NPgY!AP208, WMID!AP208, EMID!AP208, SWALES!AP208, SWEST!AP208, LPN!AP208,SPN!AP208,EPN!AP208,SPD!AP208,SPMW!AP208,SSEH!AP208,SSES!AP208) -> 0 | AQ208: =CHOOSE(m_identity,ENWL!AQ208, NPgN!AQ208, NPgY!AQ208, WMID!AQ208, EMID!AQ208, SWALES!AQ208, SWEST!AQ208, LPN!AQ208,SPN!AQ208,EPN!AQ208,SPD!AQ208,SPMW!AQ208,SSEH!AQ208,SSES!AQ208) -> 0
E209: Allocation to non-load related capex - other | G209: % | AJ209: =CHOOSE(m_identity,ENWL!AJ209, NPgN!AJ209, NPgY!AJ209, WMID!AJ209, EMID!AJ209, SWALES!AJ209, SWEST!AJ209, LPN!AJ209,SPN!AJ209,EPN!AJ209,SPD!AJ209,SPMW!AJ209,SSEH!AJ209,SSES!AJ209) -> 0 | AK209: =CHOOSE(m_identity,ENWL!AK209, NPgN!AK209, NPgY!AK209, WMID!AK209, EMID!AK209, SWALES!AK209, SWEST!AK209, LPN!AK209,SPN!AK209,EPN!AK209,SPD!AK209,SPMW!AK209,SSEH!AK209,SSES!AK209) -> 0 | AL209: =CHOOSE(m_identity,ENWL!AL209, NPgN!AL209, NPgY!AL209, WMID!AL209, EMID!AL209, SWALES!AL209, SWEST!AL209, LPN!AL209,SPN!AL209,EPN!AL209,SPD!AL209,SPMW!AL209,SSEH!AL209,SSES!AL209) -> 0 | AM209: =CHOOSE(m_identity,ENWL!AM209, NPgN!AM209, NPgY!AM209, WMID!AM209, EMID!AM209, SWALES!AM209, SWEST!AM209, LPN!AM209,SPN!AM209,EPN!AM209,SPD!AM209,SPMW!AM209,SSEH!AM209,SSES!AM209) -> 0 | AN209: =CHOOSE(m_identity,ENWL!AN209, NPgN!AN209, NPgY!AN209, WMID!AN209, EMID!AN209, SWALES!AN209, SWEST!AN209, LPN!AN209,SPN!AN209,EPN!AN209,SPD!AN209,SPMW!AN209,SSEH!AN209,SSES!AN209) -> 0 | AO209: =CHOOSE(m_identity,ENWL!AO209, NPgN!AO209, NPgY!AO209, WMID!AO209, EMID!AO209, SWALES!AO209, SWEST!AO209, LPN!AO209,SPN!AO209,EPN!AO209,SPD!AO209,SPMW!AO209,SSEH!AO209,SSES!AO209) -> 0 | AP209: =CHOOSE(m_identity,ENWL!AP209, NPgN!AP209, NPgY!AP209, WMID!AP209, EMID!AP209, SWALES!AP209, SWEST!AP209, LPN!AP209,SPN!AP209,EPN!AP209,SPD!AP209,SPMW!AP209,SSEH!AP209,SSES!AP209) -> 0 | AQ209: =CHOOSE(m_identity,ENWL!AQ209, NPgN!AQ209, NPgY!AQ209, WMID!AQ209, EMID!AQ209, SWALES!AQ209, SWEST!AQ209, LPN!AQ209,SPN!AQ209,EPN!AQ209,SPD!AQ209,SPMW!AQ209,SSEH!AQ209,SSES!AQ209) -> 0
E210: Allocation to faults | G210: % | AJ210: =CHOOSE(m_identity,ENWL!AJ210, NPgN!AJ210, NPgY!AJ210, WMID!AJ210, EMID!AJ210, SWALES!AJ210, SWEST!AJ210, LPN!AJ210,SPN!AJ210,EPN!AJ210,SPD!AJ210,SPMW!AJ210,SSEH!AJ210,SSES!AJ210) -> 0 | AK210: =CHOOSE(m_identity,ENWL!AK210, NPgN!AK210, NPgY!AK210, WMID!AK210, EMID!AK210, SWALES!AK210, SWEST!AK210, LPN!AK210,SPN!AK210,EPN!AK210,SPD!AK210,SPMW!AK210,SSEH!AK210,SSES!AK210) -> 0 | AL210: =CHOOSE(m_identity,ENWL!AL210, NPgN!AL210, NPgY!AL210, WMID!AL210, EMID!AL210, SWALES!AL210, SWEST!AL210, LPN!AL210,SPN!AL210,EPN!AL210,SPD!AL210,SPMW!AL210,SSEH!AL210,SSES!AL210) -> 0 | AM210: =CHOOSE(m_identity,ENWL!AM210, NPgN!AM210, NPgY!AM210, WMID!AM210, EMID!AM210, SWALES!AM210, SWEST!AM210, LPN!AM210,SPN!AM210,EPN!AM210,SPD!AM210,SPMW!AM210,SSEH!AM210,SSES!AM210) -> 0 | AN210: =CHOOSE(m_identity,ENWL!AN210, NPgN!AN210, NPgY!AN210, WMID!AN210, EMID!AN210, SWALES!AN210, SWEST!AN210, LPN!AN210,SPN!AN210,EPN!AN210,SPD!AN210,SPMW!AN210,SSEH!AN210,SSES!AN210) -> 0 | AO210: =CHOOSE(m_identity,ENWL!AO210, NPgN!AO210, NPgY!AO210, WMID!AO210, EMID!AO210, SWALES!AO210, SWEST!AO210, LPN!AO210,SPN!AO210,EPN!AO210,SPD!AO210,SPMW!AO210,SSEH!AO210,SSES!AO210) -> 0 | AP210: =CHOOSE(m_identity,ENWL!AP210, NPgN!AP210, NPgY!AP210, WMID!AP210, EMID!AP210, SWALES!AP210, SWEST!AP210, LPN!AP210,SPN!AP210,EPN!AP210,SPD!AP210,SPMW!AP210,SSEH!AP210,SSES!AP210) -> 0 | AQ210: =CHOOSE(m_identity,ENWL!AQ210, NPgN!AQ210, NPgY!AQ210, WMID!AQ210, EMID!AQ210, SWALES!AQ210, SWEST!AQ210, LPN!AQ210,SPN!AQ210,EPN!AQ210,SPD!AQ210,SPMW!AQ210,SSEH!AQ210,SSES!AQ210) -> 0
E211: Allocation to tree cutting | G211: % | AJ211: =CHOOSE(m_identity,ENWL!AJ211, NPgN!AJ211, NPgY!AJ211, WMID!AJ211, EMID!AJ211, SWALES!AJ211, SWEST!AJ211, LPN!AJ211,SPN!AJ211,EPN!AJ211,SPD!AJ211,SPMW!AJ211,SSEH!AJ211,SSES!AJ211) -> 0 | AK211: =CHOOSE(m_identity,ENWL!AK211, NPgN!AK211, NPgY!AK211, WMID!AK211, EMID!AK211, SWALES!AK211, SWEST!AK211, LPN!AK211,SPN!AK211,EPN!AK211,SPD!AK211,SPMW!AK211,SSEH!AK211,SSES!AK211) -> 0 | AL211: =CHOOSE(m_identity,ENWL!AL211, NPgN!AL211, NPgY!AL211, WMID!AL211, EMID!AL211, SWALES!AL211, SWEST!AL211, LPN!AL211,SPN!AL211,EPN!AL211,SPD!AL211,SPMW!AL211,SSEH!AL211,SSES!AL211) -> 0 | AM211: =CHOOSE(m_identity,ENWL!AM211, NPgN!AM211, NPgY!AM211, WMID!AM211, EMID!AM211, SWALES!AM211, SWEST!AM211, LPN!AM211,SPN!AM211,EPN!AM211,SPD!AM211,SPMW!AM211,SSEH!AM211,SSES!AM211) -> 0 | AN211: =CHOOSE(m_identity,ENWL!AN211, NPgN!AN211, NPgY!AN211, WMID!AN211, EMID!AN211, SWALES!AN211, SWEST!AN211, LPN!AN211,SPN!AN211,EPN!AN211,SPD!AN211,SPMW!AN211,SSEH!AN211,SSES!AN211) -> 0 | AO211: =CHOOSE(m_identity,ENWL!AO211, NPgN!AO211, NPgY!AO211, WMID!AO211, EMID!AO211, SWALES!AO211, SWEST!AO211, LPN!AO211,SPN!AO211,EPN!AO211,SPD!AO211,SPMW!AO211,SSEH!AO211,SSES!AO211) -> 0 | AP211: =CHOOSE(m_identity,ENWL!AP211, NPgN!AP211, NPgY!AP211, WMID!AP211, EMID!AP211, SWALES!AP211, SWEST!AP211, LPN!AP211,SPN!AP211,EPN!AP211,SPD!AP211,SPMW!AP211,SSEH!AP211,SSES!AP211) -> 0 | AQ211: =CHOOSE(m_identity,ENWL!AQ211, NPgN!AQ211, NPgY!AQ211, WMID!AQ211, EMID!AQ211, SWALES!AQ211, SWEST!AQ211, LPN!AQ211,SPN!AQ211,EPN!AQ211,SPD!AQ211,SPMW!AQ211,SSEH!AQ211,SSES!AQ211) -> 0
E212: Allocation to 100% ‘revenue pool’ expenditure | G212: % | AJ212: =CHOOSE(m_identity,ENWL!AJ212, NPgN!AJ212, NPgY!AJ212, WMID!AJ212, EMID!AJ212, SWALES!AJ212, SWEST!AJ212, LPN!AJ212,SPN!AJ212,EPN!AJ212,SPD!AJ212,SPMW!AJ212,SSEH!AJ212,SSES!AJ212) -> 0 | AK212: =CHOOSE(m_identity,ENWL!AK212, NPgN!AK212, NPgY!AK212, WMID!AK212, EMID!AK212, SWALES!AK212, SWEST!AK212, LPN!AK212,SPN!AK212,EPN!AK212,SPD!AK212,SPMW!AK212,SSEH!AK212,SSES!AK212) -> 0 | AL212: =CHOOSE(m_identity,ENWL!AL212, NPgN!AL212, NPgY!AL212, WMID!AL212, EMID!AL212, SWALES!AL212, SWEST!AL212, LPN!AL212,SPN!AL212,EPN!AL212,SPD!AL212,SPMW!AL212,SSEH!AL212,SSES!AL212) -> 0 | AM212: =CHOOSE(m_identity,ENWL!AM212, NPgN!AM212, NPgY!AM212, WMID!AM212, EMID!AM212, SWALES!AM212, SWEST!AM212, LPN!AM212,SPN!AM212,EPN!AM212,SPD!AM212,SPMW!AM212,SSEH!AM212,SSES!AM212) -> 0 | AN212: =CHOOSE(m_identity,ENWL!AN212, NPgN!AN212, NPgY!AN212, WMID!AN212, EMID!AN212, SWALES!AN212, SWEST!AN212, LPN!AN212,SPN!AN212,EPN!AN212,SPD!AN212,SPMW!AN212,SSEH!AN212,SSES!AN212) -> 0 | AO212: =CHOOSE(m_identity,ENWL!AO212, NPgN!AO212, NPgY!AO212, WMID!AO212, EMID!AO212, SWALES!AO212, SWEST!AO212, LPN!AO212,SPN!AO212,EPN!AO212,SPD!AO212,SPMW!AO212,SSEH!AO212,SSES!AO212) -> 0 | AP212: =CHOOSE(m_identity,ENWL!AP212, NPgN!AP212, NPgY!AP212, WMID!AP212, EMID!AP212, SWALES!AP212, SWEST!AP212, LPN!AP212,SPN!AP212,EPN!AP212,SPD!AP212,SPMW!AP212,SSEH!AP212,SSES!AP212) -> 0 | AQ212: =CHOOSE(m_identity,ENWL!AQ212, NPgN!AQ212, NPgY!AQ212, WMID!AQ212, EMID!AQ212, SWALES!AQ212, SWEST!AQ212, LPN!AQ212,SPN!AQ212,EPN!AQ212,SPD!AQ212,SPMW!AQ212,SSEH!AQ212,SSES!AQ212) -> 0
E213: Allocation to controllable opex | G213: % | AJ213: =CHOOSE(m_identity,ENWL!AJ213, NPgN!AJ213, NPgY!AJ213, WMID!AJ213, EMID!AJ213, SWALES!AJ213, SWEST!AJ213, LPN!AJ213,SPN!AJ213,EPN!AJ213,SPD!AJ213,SPMW!AJ213,SSEH!AJ213,SSES!AJ213) -> 0 | AK213: =CHOOSE(m_identity,ENWL!AK213, NPgN!AK213, NPgY!AK213, WMID!AK213, EMID!AK213, SWALES!AK213, SWEST!AK213, LPN!AK213,SPN!AK213,EPN!AK213,SPD!AK213,SPMW!AK213,SSEH!AK213,SSES!AK213) -> 0 | AL213: =CHOOSE(m_identity,ENWL!AL213, NPgN!AL213, NPgY!AL213, WMID!AL213, EMID!AL213, SWALES!AL213, SWEST!AL213, LPN!AL213,SPN!AL213,EPN!AL213,SPD!AL213,SPMW!AL213,SSEH!AL213,SSES!AL213) -> 0 | AM213: =CHOOSE(m_identity,ENWL!AM213, NPgN!AM213, NPgY!AM213, WMID!AM213, EMID!AM213, SWALES!AM213, SWEST!AM213, LPN!AM213,SPN!AM213,EPN!AM213,SPD!AM213,SPMW!AM213,SSEH!AM213,SSES!AM213) -> 0 | AN213: =CHOOSE(m_identity,ENWL!AN213, NPgN!AN213, NPgY!AN213, WMID!AN213, EMID!AN213, SWALES!AN213, SWEST!AN213, LPN!AN213,SPN!AN213,EPN!AN213,SPD!AN213,SPMW!AN213,SSEH!AN213,SSES!AN213) -> 0 | AO213: =CHOOSE(m_identity,ENWL!AO213, NPgN!AO213, NPgY!AO213, WMID!AO213, EMID!AO213, SWALES!AO213, SWEST!AO213, LPN!AO213,SPN!AO213,EPN!AO213,SPD!AO213,SPMW!AO213,SSEH!AO213,SSES!AO213) -> 0 | AP213: =CHOOSE(m_identity,ENWL!AP213, NPgN!AP213, NPgY!AP213, WMID!AP213, EMID!AP213, SWALES!AP213, SWEST!AP213, LPN!AP213,SPN!AP213,EPN!AP213,SPD!AP213,SPMW!AP213,SSEH!AP213,SSES!AP213) -> 0 | AQ213: =CHOOSE(m_identity,ENWL!AQ213, NPgN!AQ213, NPgY!AQ213, WMID!AQ213, EMID!AQ213, SWALES!AQ213, SWEST!AQ213, LPN!AQ213,SPN!AQ213,EPN!AQ213,SPD!AQ213,SPMW!AQ213,SSEH!AQ213,SSES!AQ213) -> 0
E215: =$E$31 -> Allowed Expenditure - Subsea Cables (SSEH) | G215: £m 12/13 prices | AJ215: =AJ31 -> 0 | AK215: =AK31 -> 0 | AL215: 0 | AM215: 0 | AN215: 0 | AO215: 0 | AP215: 0 | AQ215: 0
E216: Allocation to load related capex | G216: % | AJ216: =CHOOSE(m_identity,ENWL!AJ216, NPgN!AJ216, NPgY!AJ216, WMID!AJ216, EMID!AJ216, SWALES!AJ216, SWEST!AJ216, LPN!AJ216,SPN!AJ216,EPN!AJ216,SPD!AJ216,SPMW!AJ216,SSEH!AJ216,SSES!AJ216) -> 0 | AK216: =CHOOSE(m_identity,ENWL!AK216, NPgN!AK216, NPgY!AK216, WMID!AK216, EMID!AK216, SWALES!AK216, SWEST!AK216, LPN!AK216,SPN!AK216,EPN!AK216,SPD!AK216,SPMW!AK216,SSEH!AK216,SSES!AK216) -> 0 | AL216: =CHOOSE(m_identity,ENWL!AL216, NPgN!AL216, NPgY!AL216, WMID!AL216, EMID!AL216, SWALES!AL216, SWEST!AL216, LPN!AL216,SPN!AL216,EPN!AL216,SPD!AL216,SPMW!AL216,SSEH!AL216,SSES!AL216) -> 0 | AM216: =CHOOSE(m_identity,ENWL!AM216, NPgN!AM216, NPgY!AM216, WMID!AM216, EMID!AM216, SWALES!AM216, SWEST!AM216, LPN!AM216,SPN!AM216,EPN!AM216,SPD!AM216,SPMW!AM216,SSEH!AM216,SSES!AM216) -> 0 | AN216: =CHOOSE(m_identity,ENWL!AN216, NPgN!AN216, NPgY!AN216, WMID!AN216, EMID!AN216, SWALES!AN216, SWEST!AN216, LPN!AN216,SPN!AN216,EPN!AN216,SPD!AN216,SPMW!AN216,SSEH!AN216,SSES!AN216) -> 0 | AO216: =CHOOSE(m_identity,ENWL!AO216, NPgN!AO216, NPgY!AO216, WMID!AO216, EMID!AO216, SWALES!AO216, SWEST!AO216, LPN!AO216,SPN!AO216,EPN!AO216,SPD!AO216,SPMW!AO216,SSEH!AO216,SSES!AO216) -> 0 | AP216: =CHOOSE(m_identity,ENWL!AP216, NPgN!AP216, NPgY!AP216, WMID!AP216, EMID!AP216, SWALES!AP216, SWEST!AP216, LPN!AP216,SPN!AP216,EPN!AP216,SPD!AP216,SPMW!AP216,SSEH!AP216,SSES!AP216) -> 0 | AQ216: =CHOOSE(m_identity,ENWL!AQ216, NPgN!AQ216, NPgY!AQ216, WMID!AQ216, EMID!AQ216, SWALES!AQ216, SWEST!AQ216, LPN!AQ216,SPN!AQ216,EPN!AQ216,SPD!AQ216,SPMW!AQ216,SSEH!AQ216,SSES!AQ216) -> 0
E217: Allocation to non-load related capex - asset replacement | G217: % | AJ217: =CHOOSE(m_identity,ENWL!AJ217, NPgN!AJ217, NPgY!AJ217, WMID!AJ217, EMID!AJ217, SWALES!AJ217, SWEST!AJ217, LPN!AJ217,SPN!AJ217,EPN!AJ217,SPD!AJ217,SPMW!AJ217,SSEH!AJ217,SSES!AJ217) -> 0 | AK217: =CHOOSE(m_identity,ENWL!AK217, NPgN!AK217, NPgY!AK217, WMID!AK217, EMID!AK217, SWALES!AK217, SWEST!AK217, LPN!AK217,SPN!AK217,EPN!AK217,SPD!AK217,SPMW!AK217,SSEH!AK217,SSES!AK217) -> 0 | AL217: =CHOOSE(m_identity,ENWL!AL217, NPgN!AL217, NPgY!AL217, WMID!AL217, EMID!AL217, SWALES!AL217, SWEST!AL217, LPN!AL217,SPN!AL217,EPN!AL217,SPD!AL217,SPMW!AL217,SSEH!AL217,SSES!AL217) -> 0 | AM217: =CHOOSE(m_identity,ENWL!AM217, NPgN!AM217, NPgY!AM217, WMID!AM217, EMID!AM217, SWALES!AM217, SWEST!AM217, LPN!AM217,SPN!AM217,EPN!AM217,SPD!AM217,SPMW!AM217,SSEH!AM217,SSES!AM217) -> 0 | AN217: =CHOOSE(m_identity,ENWL!AN217, NPgN!AN217, NPgY!AN217, WMID!AN217, EMID!AN217, SWALES!AN217, SWEST!AN217, LPN!AN217,SPN!AN217,EPN!AN217,SPD!AN217,SPMW!AN217,SSEH!AN217,SSES!AN217) -> 0 | AO217: =CHOOSE(m_identity,ENWL!AO217, NPgN!AO217, NPgY!AO217, WMID!AO217, EMID!AO217, SWALES!AO217, SWEST!AO217, LPN!AO217,SPN!AO217,EPN!AO217,SPD!AO217,SPMW!AO217,SSEH!AO217,SSES!AO217) -> 0 | AP217: =CHOOSE(m_identity,ENWL!AP217, NPgN!AP217, NPgY!AP217, WMID!AP217, EMID!AP217, SWALES!AP217, SWEST!AP217, LPN!AP217,SPN!AP217,EPN!AP217,SPD!AP217,SPMW!AP217,SSEH!AP217,SSES!AP217) -> 0 | AQ217: =CHOOSE(m_identity,ENWL!AQ217, NPgN!AQ217, NPgY!AQ217, WMID!AQ217, EMID!AQ217, SWALES!AQ217, SWEST!AQ217, LPN!AQ217,SPN!AQ217,EPN!AQ217,SPD!AQ217,SPMW!AQ217,SSEH!AQ217,SSES!AQ217) -> 0
E218: Allocation to non-load related capex - other | G218: % | AJ218: =CHOOSE(m_identity,ENWL!AJ218, NPgN!AJ218, NPgY!AJ218, WMID!AJ218, EMID!AJ218, SWALES!AJ218, SWEST!AJ218, LPN!AJ218,SPN!AJ218,EPN!AJ218,SPD!AJ218,SPMW!AJ218,SSEH!AJ218,SSES!AJ218) -> 0 | AK218: =CHOOSE(m_identity,ENWL!AK218, NPgN!AK218, NPgY!AK218, WMID!AK218, EMID!AK218, SWALES!AK218, SWEST!AK218, LPN!AK218,SPN!AK218,EPN!AK218,SPD!AK218,SPMW!AK218,SSEH!AK218,SSES!AK218) -> 0 | AL218: =CHOOSE(m_identity,ENWL!AL218, NPgN!AL218, NPgY!AL218, WMID!AL218, EMID!AL218, SWALES!AL218, SWEST!AL218, LPN!AL218,SPN!AL218,EPN!AL218,SPD!AL218,SPMW!AL218,SSEH!AL218,SSES!AL218) -> 0 | AM218: =CHOOSE(m_identity,ENWL!AM218, NPgN!AM218, NPgY!AM218, WMID!AM218, EMID!AM218, SWALES!AM218, SWEST!AM218, LPN!AM218,SPN!AM218,EPN!AM218,SPD!AM218,SPMW!AM218,SSEH!AM218,SSES!AM218) -> 0 | AN218: =CHOOSE(m_identity,ENWL!AN218, NPgN!AN218, NPgY!AN218, WMID!AN218, EMID!AN218, SWALES!AN218, SWEST!AN218, LPN!AN218,SPN!AN218,EPN!AN218,SPD!AN218,SPMW!AN218,SSEH!AN218,SSES!AN218) -> 0 | AO218: =CHOOSE(m_identity,ENWL!AO218, NPgN!AO218, NPgY!AO218, WMID!AO218, EMID!AO218, SWALES!AO218, SWEST!AO218, LPN!AO218,SPN!AO218,EPN!AO218,SPD!AO218,SPMW!AO218,SSEH!AO218,SSES!AO218) -> 0 | AP218: =CHOOSE(m_identity,ENWL!AP218, NPgN!AP218, NPgY!AP218, WMID!AP218, EMID!AP218, SWALES!AP218, SWEST!AP218, LPN!AP218,SPN!AP218,EPN!AP218,SPD!AP218,SPMW!AP218,SSEH!AP218,SSES!AP218) -> 0 | AQ218: =CHOOSE(m_identity,ENWL!AQ218, NPgN!AQ218, NPgY!AQ218, WMID!AQ218, EMID!AQ218, SWALES!AQ218, SWEST!AQ218, LPN!AQ218,SPN!AQ218,EPN!AQ218,SPD!AQ218,SPMW!AQ218,SSEH!AQ218,SSES!AQ218) -> 0
E219: Allocation to faults | G219: % | AJ219: =CHOOSE(m_identity,ENWL!AJ219, NPgN!AJ219, NPgY!AJ219, WMID!AJ219, EMID!AJ219, SWALES!AJ219, SWEST!AJ219, LPN!AJ219,SPN!AJ219,EPN!AJ219,SPD!AJ219,SPMW!AJ219,SSEH!AJ219,SSES!AJ219) -> 0 | AK219: =CHOOSE(m_identity,ENWL!AK219, NPgN!AK219, NPgY!AK219, WMID!AK219, EMID!AK219, SWALES!AK219, SWEST!AK219, LPN!AK219,SPN!AK219,EPN!AK219,SPD!AK219,SPMW!AK219,SSEH!AK219,SSES!AK219) -> 0 | AL219: =CHOOSE(m_identity,ENWL!AL219, NPgN!AL219, NPgY!AL219, WMID!AL219, EMID!AL219, SWALES!AL219, SWEST!AL219, LPN!AL219,SPN!AL219,EPN!AL219,SPD!AL219,SPMW!AL219,SSEH!AL219,SSES!AL219) -> 0 | AM219: =CHOOSE(m_identity,ENWL!AM219, NPgN!AM219, NPgY!AM219, WMID!AM219, EMID!AM219, SWALES!AM219, SWEST!AM219, LPN!AM219,SPN!AM219,EPN!AM219,SPD!AM219,SPMW!AM219,SSEH!AM219,SSES!AM219) -> 0 | AN219: =CHOOSE(m_identity,ENWL!AN219, NPgN!AN219, NPgY!AN219, WMID!AN219, EMID!AN219, SWALES!AN219, SWEST!AN219, LPN!AN219,SPN!AN219,EPN!AN219,SPD!AN219,SPMW!AN219,SSEH!AN219,SSES!AN219) -> 0 | AO219: =CHOOSE(m_identity,ENWL!AO219, NPgN!AO219, NPgY!AO219, WMID!AO219, EMID!AO219, SWALES!AO219, SWEST!AO219, LPN!AO219,SPN!AO219,EPN!AO219,SPD!AO219,SPMW!AO219,SSEH!AO219,SSES!AO219) -> 0 | AP219: =CHOOSE(m_identity,ENWL!AP219, NPgN!AP219, NPgY!AP219, WMID!AP219, EMID!AP219, SWALES!AP219, SWEST!AP219, LPN!AP219,SPN!AP219,EPN!AP219,SPD!AP219,SPMW!AP219,SSEH!AP219,SSES!AP219) -> 0 | AQ219: =CHOOSE(m_identity,ENWL!AQ219, NPgN!AQ219, NPgY!AQ219, WMID!AQ219, EMID!AQ219, SWALES!AQ219, SWEST!AQ219, LPN!AQ219,SPN!AQ219,EPN!AQ219,SPD!AQ219,SPMW!AQ219,SSEH!AQ219,SSES!AQ219) -> 0
E220: Allocation to tree cutting | G220: % | AJ220: =CHOOSE(m_identity,ENWL!AJ220, NPgN!AJ220, NPgY!AJ220, WMID!AJ220, EMID!AJ220, SWALES!AJ220, SWEST!AJ220, LPN!AJ220,SPN!AJ220,EPN!AJ220,SPD!AJ220,SPMW!AJ220,SSEH!AJ220,SSES!AJ220) -> 0 | AK220: =CHOOSE(m_identity,ENWL!AK220, NPgN!AK220, NPgY!AK220, WMID!AK220, EMID!AK220, SWALES!AK220, SWEST!AK220, LPN!AK220,SPN!AK220,EPN!AK220,SPD!AK220,SPMW!AK220,SSEH!AK220,SSES!AK220) -> 0 | AL220: =CHOOSE(m_identity,ENWL!AL220, NPgN!AL220, NPgY!AL220, WMID!AL220, EMID!AL220, SWALES!AL220, SWEST!AL220, LPN!AL220,SPN!AL220,EPN!AL220,SPD!AL220,SPMW!AL220,SSEH!AL220,SSES!AL220) -> 0 | AM220: =CHOOSE(m_identity,ENWL!AM220, NPgN!AM220, NPgY!AM220, WMID!AM220, EMID!AM220, SWALES!AM220, SWEST!AM220, LPN!AM220,SPN!AM220,EPN!AM220,SPD!AM220,SPMW!AM220,SSEH!AM220,SSES!AM220) -> 0 | AN220: =CHOOSE(m_identity,ENWL!AN220, NPgN!AN220, NPgY!AN220, WMID!AN220, EMID!AN220, SWALES!AN220, SWEST!AN220, LPN!AN220,SPN!AN220,EPN!AN220,SPD!AN220,SPMW!AN220,SSEH!AN220,SSES!AN220) -> 0 | AO220: =CHOOSE(m_identity,ENWL!AO220, NPgN!AO220, NPgY!AO220, WMID!AO220, EMID!AO220, SWALES!AO220, SWEST!AO220, LPN!AO220,SPN!AO220,EPN!AO220,SPD!AO220,SPMW!AO220,SSEH!AO220,SSES!AO220) -> 0 | AP220: =CHOOSE(m_identity,ENWL!AP220, NPgN!AP220, NPgY!AP220, WMID!AP220, EMID!AP220, SWALES!AP220, SWEST!AP220, LPN!AP220,SPN!AP220,EPN!AP220,SPD!AP220,SPMW!AP220,SSEH!AP220,SSES!AP220) -> 0 | AQ220: =CHOOSE(m_identity,ENWL!AQ220, NPgN!AQ220, NPgY!AQ220, WMID!AQ220, EMID!AQ220, SWALES!AQ220, SWEST!AQ220, LPN!AQ220,SPN!AQ220,EPN!AQ220,SPD!AQ220,SPMW!AQ220,SSEH!AQ220,SSES!AQ220) -> 0
E221: Allocation to 100% ‘revenue pool’ expenditure | G221: % | AJ221: =CHOOSE(m_identity,ENWL!AJ221, NPgN!AJ221, NPgY!AJ221, WMID!AJ221, EMID!AJ221, SWALES!AJ221, SWEST!AJ221, LPN!AJ221,SPN!AJ221,EPN!AJ221,SPD!AJ221,SPMW!AJ221,SSEH!AJ221,SSES!AJ221) -> 0 | AK221: =CHOOSE(m_identity,ENWL!AK221, NPgN!AK221, NPgY!AK221, WMID!AK221, EMID!AK221, SWALES!AK221, SWEST!AK221, LPN!AK221,SPN!AK221,EPN!AK221,SPD!AK221,SPMW!AK221,SSEH!AK221,SSES!AK221) -> 0 | AL221: =CHOOSE(m_identity,ENWL!AL221, NPgN!AL221, NPgY!AL221, WMID!AL221, EMID!AL221, SWALES!AL221, SWEST!AL221, LPN!AL221,SPN!AL221,EPN!AL221,SPD!AL221,SPMW!AL221,SSEH!AL221,SSES!AL221) -> 0 | AM221: =CHOOSE(m_identity,ENWL!AM221, NPgN!AM221, NPgY!AM221, WMID!AM221, EMID!AM221, SWALES!AM221, SWEST!AM221, LPN!AM221,SPN!AM221,EPN!AM221,SPD!AM221,SPMW!AM221,SSEH!AM221,SSES!AM221) -> 0 | AN221: =CHOOSE(m_identity,ENWL!AN221, NPgN!AN221, NPgY!AN221, WMID!AN221, EMID!AN221, SWALES!AN221, SWEST!AN221, LPN!AN221,SPN!AN221,EPN!AN221,SPD!AN221,SPMW!AN221,SSEH!AN221,SSES!AN221) -> 0 | AO221: =CHOOSE(m_identity,ENWL!AO221, NPgN!AO221, NPgY!AO221, WMID!AO221, EMID!AO221, SWALES!AO221, SWEST!AO221, LPN!AO221,SPN!AO221,EPN!AO221,SPD!AO221,SPMW!AO221,SSEH!AO221,SSES!AO221) -> 0 | AP221: =CHOOSE(m_identity,ENWL!AP221, NPgN!AP221, NPgY!AP221, WMID!AP221, EMID!AP221, SWALES!AP221, SWEST!AP221, LPN!AP221,SPN!AP221,EPN!AP221,SPD!AP221,SPMW!AP221,SSEH!AP221,SSES!AP221) -> 0 | AQ221: =CHOOSE(m_identity,ENWL!AQ221, NPgN!AQ221, NPgY!AQ221, WMID!AQ221, EMID!AQ221, SWALES!AQ221, SWEST!AQ221, LPN!AQ221,SPN!AQ221,EPN!AQ221,SPD!AQ221,SPMW!AQ221,SSEH!AQ221,SSES!AQ221) -> 0
E222: Allocation to controllable opex | G222: % | AJ222: =CHOOSE(m_identity,ENWL!AJ222, NPgN!AJ222, NPgY!AJ222, WMID!AJ222, EMID!AJ222, SWALES!AJ222, SWEST!AJ222, LPN!AJ222,SPN!AJ222,EPN!AJ222,SPD!AJ222,SPMW!AJ222,SSEH!AJ222,SSES!AJ222) -> 0 | AK222: =CHOOSE(m_identity,ENWL!AK222, NPgN!AK222, NPgY!AK222, WMID!AK222, EMID!AK222, SWALES!AK222, SWEST!AK222, LPN!AK222,SPN!AK222,EPN!AK222,SPD!AK222,SPMW!AK222,SSEH!AK222,SSES!AK222) -> 0 | AL222: =CHOOSE(m_identity,ENWL!AL222, NPgN!AL222, NPgY!AL222, WMID!AL222, EMID!AL222, SWALES!AL222, SWEST!AL222, LPN!AL222,SPN!AL222,EPN!AL222,SPD!AL222,SPMW!AL222,SSEH!AL222,SSES!AL222) -> 0 | AM222: =CHOOSE(m_identity,ENWL!AM222, NPgN!AM222, NPgY!AM222, WMID!AM222, EMID!AM222, SWALES!AM222, SWEST!AM222, LPN!AM222,SPN!AM222,EPN!AM222,SPD!AM222,SPMW!AM222,SSEH!AM222,SSES!AM222) -> 0 | AN222: =CHOOSE(m_identity,ENWL!AN222, NPgN!AN222, NPgY!AN222, WMID!AN222, EMID!AN222, SWALES!AN222, SWEST!AN222, LPN!AN222,SPN!AN222,EPN!AN222,SPD!AN222,SPMW!AN222,SSEH!AN222,SSES!AN222) -> 0 | AO222: =CHOOSE(m_identity,ENWL!AO222, NPgN!AO222, NPgY!AO222, WMID!AO222, EMID!AO222, SWALES!AO222, SWEST!AO222, LPN!AO222,SPN!AO222,EPN!AO222,SPD!AO222,SPMW!AO222,SSEH!AO222,SSES!AO222) -> 0 | AP222: =CHOOSE(m_identity,ENWL!AP222, NPgN!AP222, NPgY!AP222, WMID!AP222, EMID!AP222, SWALES!AP222, SWEST!AP222, LPN!AP222,SPN!AP222,EPN!AP222,SPD!AP222,SPMW!AP222,SSEH!AP222,SSES!AP222) -> 0 | AQ222: =CHOOSE(m_identity,ENWL!AQ222, NPgN!AQ222, NPgY!AQ222, WMID!AQ222, EMID!AQ222, SWALES!AQ222, SWEST!AQ222, LPN!AQ222,SPN!AQ222,EPN!AQ222,SPD!AQ222,SPMW!AQ222,SSEH!AQ222,SSES!AQ222) -> 0
E224: =E32 -> Allowed Expenditure - Uncertain Rail Electrification Costs | G224: £m 12/13 prices | AJ224: =AJ32 -> 0 | AK224: =AK32 -> 0 | AL224: 0 | AM224: 0 | AN224: 0 | AO224: 0 | AP224: 0 | AQ224: 0
E225: Allocation to load related capex | G225: % | AJ225: =CHOOSE(m_identity,ENWL!AJ225, NPgN!AJ225, NPgY!AJ225, WMID!AJ225, EMID!AJ225, SWALES!AJ225, SWEST!AJ225, LPN!AJ225,SPN!AJ225,EPN!AJ225,SPD!AJ225,SPMW!AJ225,SSEH!AJ225,SSES!AJ225) -> 0 | AK225: =CHOOSE(m_identity,ENWL!AK225, NPgN!AK225, NPgY!AK225, WMID!AK225, EMID!AK225, SWALES!AK225, SWEST!AK225, LPN!AK225,SPN!AK225,EPN!AK225,SPD!AK225,SPMW!AK225,SSEH!AK225,SSES!AK225) -> 0 | AL225: =CHOOSE(m_identity,ENWL!AL225, NPgN!AL225, NPgY!AL225, WMID!AL225, EMID!AL225, SWALES!AL225, SWEST!AL225, LPN!AL225,SPN!AL225,EPN!AL225,SPD!AL225,SPMW!AL225,SSEH!AL225,SSES!AL225) -> 0 | AM225: =CHOOSE(m_identity,ENWL!AM225, NPgN!AM225, NPgY!AM225, WMID!AM225, EMID!AM225, SWALES!AM225, SWEST!AM225, LPN!AM225,SPN!AM225,EPN!AM225,SPD!AM225,SPMW!AM225,SSEH!AM225,SSES!AM225) -> 0 | AN225: =CHOOSE(m_identity,ENWL!AN225, NPgN!AN225, NPgY!AN225, WMID!AN225, EMID!AN225, SWALES!AN225, SWEST!AN225, LPN!AN225,SPN!AN225,EPN!AN225,SPD!AN225,SPMW!AN225,SSEH!AN225,SSES!AN225) -> 0 | AO225: =CHOOSE(m_identity,ENWL!AO225, NPgN!AO225, NPgY!AO225, WMID!AO225, EMID!AO225, SWALES!AO225, SWEST!AO225, LPN!AO225,SPN!AO225,EPN!AO225,SPD!AO225,SPMW!AO225,SSEH!AO225,SSES!AO225) -> 0 | AP225: =CHOOSE(m_identity,ENWL!AP225, NPgN!AP225, NPgY!AP225, WMID!AP225, EMID!AP225, SWALES!AP225, SWEST!AP225, LPN!AP225,SPN!AP225,EPN!AP225,SPD!AP225,SPMW!AP225,SSEH!AP225,SSES!AP225) -> 0 | AQ225: =CHOOSE(m_identity,ENWL!AQ225, NPgN!AQ225, NPgY!AQ225, WMID!AQ225, EMID!AQ225, SWALES!AQ225, SWEST!AQ225, LPN!AQ225,SPN!AQ225,EPN!AQ225,SPD!AQ225,SPMW!AQ225,SSEH!AQ225,SSES!AQ225) -> 0
E226: Allocation to non-load related capex - asset replacement | G226: % | AJ226: =CHOOSE(m_identity,ENWL!AJ226, NPgN!AJ226, NPgY!AJ226, WMID!AJ226, EMID!AJ226, SWALES!AJ226, SWEST!AJ226, LPN!AJ226,SPN!AJ226,EPN!AJ226,SPD!AJ226,SPMW!AJ226,SSEH!AJ226,SSES!AJ226) -> 0.9969188432 | AK226: =CHOOSE(m_identity,ENWL!AK226, NPgN!AK226, NPgY!AK226, WMID!AK226, EMID!AK226, SWALES!AK226, SWEST!AK226, LPN!AK226,SPN!AK226,EPN!AK226,SPD!AK226,SPMW!AK226,SSEH!AK226,SSES!AK226) -> 0.996885818 | AL226: =CHOOSE(m_identity,ENWL!AL226, NPgN!AL226, NPgY!AL226, WMID!AL226, EMID!AL226, SWALES!AL226, SWEST!AL226, LPN!AL226,SPN!AL226,EPN!AL226,SPD!AL226,SPMW!AL226,SSEH!AL226,SSES!AL226) -> 0.9968601885 | AM226: =CHOOSE(m_identity,ENWL!AM226, NPgN!AM226, NPgY!AM226, WMID!AM226, EMID!AM226, SWALES!AM226, SWEST!AM226, LPN!AM226,SPN!AM226,EPN!AM226,SPD!AM226,SPMW!AM226,SSEH!AM226,SSES!AM226) -> 0.9968068497 | AN226: =CHOOSE(m_identity,ENWL!AN226, NPgN!AN226, NPgY!AN226, WMID!AN226, EMID!AN226, SWALES!AN226, SWEST!AN226, LPN!AN226,SPN!AN226,EPN!AN226,SPD!AN226,SPMW!AN226,SSEH!AN226,SSES!AN226) -> 0.9967658175 | AO226: =CHOOSE(m_identity,ENWL!AO226, NPgN!AO226, NPgY!AO226, WMID!AO226, EMID!AO226, SWALES!AO226, SWEST!AO226, LPN!AO226,SPN!AO226,EPN!AO226,SPD!AO226,SPMW!AO226,SSEH!AO226,SSES!AO226) -> 0.9967244248 | AP226: =CHOOSE(m_identity,ENWL!AP226, NPgN!AP226, NPgY!AP226, WMID!AP226, EMID!AP226, SWALES!AP226, SWEST!AP226, LPN!AP226,SPN!AP226,EPN!AP226,SPD!AP226,SPMW!AP226,SSEH!AP226,SSES!AP226) -> 0.9966828251 | AQ226: =CHOOSE(m_identity,ENWL!AQ226, NPgN!AQ226, NPgY!AQ226, WMID!AQ226, EMID!AQ226, SWALES!AQ226, SWEST!AQ226, LPN!AQ226,SPN!AQ226,EPN!AQ226,SPD!AQ226,SPMW!AQ226,SSEH!AQ226,SSES!AQ226) -> 0.9966478601
E227: Allocation to non-load related capex - other | G227: % | AJ227: =CHOOSE(m_identity,ENWL!AJ227, NPgN!AJ227, NPgY!AJ227, WMID!AJ227, EMID!AJ227, SWALES!AJ227, SWEST!AJ227, LPN!AJ227,SPN!AJ227,EPN!AJ227,SPD!AJ227,SPMW!AJ227,SSEH!AJ227,SSES!AJ227) -> 0 | AK227: =CHOOSE(m_identity,ENWL!AK227, NPgN!AK227, NPgY!AK227, WMID!AK227, EMID!AK227, SWALES!AK227, SWEST!AK227, LPN!AK227,SPN!AK227,EPN!AK227,SPD!AK227,SPMW!AK227,SSEH!AK227,SSES!AK227) -> 0 | AL227: =CHOOSE(m_identity,ENWL!AL227, NPgN!AL227, NPgY!AL227, WMID!AL227, EMID!AL227, SWALES!AL227, SWEST!AL227, LPN!AL227,SPN!AL227,EPN!AL227,SPD!AL227,SPMW!AL227,SSEH!AL227,SSES!AL227) -> 0 | AM227: =CHOOSE(m_identity,ENWL!AM227, NPgN!AM227, NPgY!AM227, WMID!AM227, EMID!AM227, SWALES!AM227, SWEST!AM227, LPN!AM227,SPN!AM227,EPN!AM227,SPD!AM227,SPMW!AM227,SSEH!AM227,SSES!AM227) -> 0 | AN227: =CHOOSE(m_identity,ENWL!AN227, NPgN!AN227, NPgY!AN227, WMID!AN227, EMID!AN227, SWALES!AN227, SWEST!AN227, LPN!AN227,SPN!AN227,EPN!AN227,SPD!AN227,SPMW!AN227,SSEH!AN227,SSES!AN227) -> 0 | AO227: =CHOOSE(m_identity,ENWL!AO227, NPgN!AO227, NPgY!AO227, WMID!AO227, EMID!AO227, SWALES!AO227, SWEST!AO227, LPN!AO227,SPN!AO227,EPN!AO227,SPD!AO227,SPMW!AO227,SSEH!AO227,SSES!AO227) -> 0 | AP227: =CHOOSE(m_identity,ENWL!AP227, NPgN!AP227, NPgY!AP227, WMID!AP227, EMID!AP227, SWALES!AP227, SWEST!AP227, LPN!AP227,SPN!AP227,EPN!AP227,SPD!AP227,SPMW!AP227,SSEH!AP227,SSES!AP227) -> 0 | AQ227: =CHOOSE(m_identity,ENWL!AQ227, NPgN!AQ227, NPgY!AQ227, WMID!AQ227, EMID!AQ227, SWALES!AQ227, SWEST!AQ227, LPN!AQ227,SPN!AQ227,EPN!AQ227,SPD!AQ227,SPMW!AQ227,SSEH!AQ227,SSES!AQ227) -> 0
E228: Allocation to faults | G228: % | AJ228: =CHOOSE(m_identity,ENWL!AJ228, NPgN!AJ228, NPgY!AJ228, WMID!AJ228, EMID!AJ228, SWALES!AJ228, SWEST!AJ228, LPN!AJ228,SPN!AJ228,EPN!AJ228,SPD!AJ228,SPMW!AJ228,SSEH!AJ228,SSES!AJ228) -> 0 | AK228: =CHOOSE(m_identity,ENWL!AK228, NPgN!AK228, NPgY!AK228, WMID!AK228, EMID!AK228, SWALES!AK228, SWEST!AK228, LPN!AK228,SPN!AK228,EPN!AK228,SPD!AK228,SPMW!AK228,SSEH!AK228,SSES!AK228) -> 0 | AL228: =CHOOSE(m_identity,ENWL!AL228, NPgN!AL228, NPgY!AL228, WMID!AL228, EMID!AL228, SWALES!AL228, SWEST!AL228, LPN!AL228,SPN!AL228,EPN!AL228,SPD!AL228,SPMW!AL228,SSEH!AL228,SSES!AL228) -> 0 | AM228: =CHOOSE(m_identity,ENWL!AM228, NPgN!AM228, NPgY!AM228, WMID!AM228, EMID!AM228, SWALES!AM228, SWEST!AM228, LPN!AM228,SPN!AM228,EPN!AM228,SPD!AM228,SPMW!AM228,SSEH!AM228,SSES!AM228) -> 0 | AN228: =CHOOSE(m_identity,ENWL!AN228, NPgN!AN228, NPgY!AN228, WMID!AN228, EMID!AN228, SWALES!AN228, SWEST!AN228, LPN!AN228,SPN!AN228,EPN!AN228,SPD!AN228,SPMW!AN228,SSEH!AN228,SSES!AN228) -> 0 | AO228: =CHOOSE(m_identity,ENWL!AO228, NPgN!AO228, NPgY!AO228, WMID!AO228, EMID!AO228, SWALES!AO228, SWEST!AO228, LPN!AO228,SPN!AO228,EPN!AO228,SPD!AO228,SPMW!AO228,SSEH!AO228,SSES!AO228) -> 0 | AP228: =CHOOSE(m_identity,ENWL!AP228, NPgN!AP228, NPgY!AP228, WMID!AP228, EMID!AP228, SWALES!AP228, SWEST!AP228, LPN!AP228,SPN!AP228,EPN!AP228,SPD!AP228,SPMW!AP228,SSEH!AP228,SSES!AP228) -> 0 | AQ228: =CHOOSE(m_identity,ENWL!AQ228, NPgN!AQ228, NPgY!AQ228, WMID!AQ228, EMID!AQ228, SWALES!AQ228, SWEST!AQ228, LPN!AQ228,SPN!AQ228,EPN!AQ228,SPD!AQ228,SPMW!AQ228,SSEH!AQ228,SSES!AQ228) -> 0
E229: Allocation to tree cutting | G229: % | AJ229: =CHOOSE(m_identity,ENWL!AJ229, NPgN!AJ229, NPgY!AJ229, WMID!AJ229, EMID!AJ229, SWALES!AJ229, SWEST!AJ229, LPN!AJ229,SPN!AJ229,EPN!AJ229,SPD!AJ229,SPMW!AJ229,SSEH!AJ229,SSES!AJ229) -> 0 | AK229: =CHOOSE(m_identity,ENWL!AK229, NPgN!AK229, NPgY!AK229, WMID!AK229, EMID!AK229, SWALES!AK229, SWEST!AK229, LPN!AK229,SPN!AK229,EPN!AK229,SPD!AK229,SPMW!AK229,SSEH!AK229,SSES!AK229) -> 0 | AL229: =CHOOSE(m_identity,ENWL!AL229, NPgN!AL229, NPgY!AL229, WMID!AL229, EMID!AL229, SWALES!AL229, SWEST!AL229, LPN!AL229,SPN!AL229,EPN!AL229,SPD!AL229,SPMW!AL229,SSEH!AL229,SSES!AL229) -> 0 | AM229: =CHOOSE(m_identity,ENWL!AM229, NPgN!AM229, NPgY!AM229, WMID!AM229, EMID!AM229, SWALES!AM229, SWEST!AM229, LPN!AM229,SPN!AM229,EPN!AM229,SPD!AM229,SPMW!AM229,SSEH!AM229,SSES!AM229) -> 0 | AN229: =CHOOSE(m_identity,ENWL!AN229, NPgN!AN229, NPgY!AN229, WMID!AN229, EMID!AN229, SWALES!AN229, SWEST!AN229, LPN!AN229,SPN!AN229,EPN!AN229,SPD!AN229,SPMW!AN229,SSEH!AN229,SSES!AN229) -> 0 | AO229: =CHOOSE(m_identity,ENWL!AO229, NPgN!AO229, NPgY!AO229, WMID!AO229, EMID!AO229, SWALES!AO229, SWEST!AO229, LPN!AO229,SPN!AO229,EPN!AO229,SPD!AO229,SPMW!AO229,SSEH!AO229,SSES!AO229) -> 0 | AP229: =CHOOSE(m_identity,ENWL!AP229, NPgN!AP229, NPgY!AP229, WMID!AP229, EMID!AP229, SWALES!AP229, SWEST!AP229, LPN!AP229,SPN!AP229,EPN!AP229,SPD!AP229,SPMW!AP229,SSEH!AP229,SSES!AP229) -> 0 | AQ229: =CHOOSE(m_identity,ENWL!AQ229, NPgN!AQ229, NPgY!AQ229, WMID!AQ229, EMID!AQ229, SWALES!AQ229, SWEST!AQ229, LPN!AQ229,SPN!AQ229,EPN!AQ229,SPD!AQ229,SPMW!AQ229,SSEH!AQ229,SSES!AQ229) -> 0
E230: Allocation to 100% ‘revenue pool’ expenditure | G230: % | AJ230: =CHOOSE(m_identity,ENWL!AJ230, NPgN!AJ230, NPgY!AJ230, WMID!AJ230, EMID!AJ230, SWALES!AJ230, SWEST!AJ230, LPN!AJ230,SPN!AJ230,EPN!AJ230,SPD!AJ230,SPMW!AJ230,SSEH!AJ230,SSES!AJ230) -> 0.00308115681 | AK230: =CHOOSE(m_identity,ENWL!AK230, NPgN!AK230, NPgY!AK230, WMID!AK230, EMID!AK230, SWALES!AK230, SWEST!AK230, LPN!AK230,SPN!AK230,EPN!AK230,SPD!AK230,SPMW!AK230,SSEH!AK230,SSES!AK230) -> 0.003114182014 | AL230: =CHOOSE(m_identity,ENWL!AL230, NPgN!AL230, NPgY!AL230, WMID!AL230, EMID!AL230, SWALES!AL230, SWEST!AL230, LPN!AL230,SPN!AL230,EPN!AL230,SPD!AL230,SPMW!AL230,SSEH!AL230,SSES!AL230) -> 0.003139811488 | AM230: =CHOOSE(m_identity,ENWL!AM230, NPgN!AM230, NPgY!AM230, WMID!AM230, EMID!AM230, SWALES!AM230, SWEST!AM230, LPN!AM230,SPN!AM230,EPN!AM230,SPD!AM230,SPMW!AM230,SSEH!AM230,SSES!AM230) -> 0.003193150334 | AN230: =CHOOSE(m_identity,ENWL!AN230, NPgN!AN230, NPgY!AN230, WMID!AN230, EMID!AN230, SWALES!AN230, SWEST!AN230, LPN!AN230,SPN!AN230,EPN!AN230,SPD!AN230,SPMW!AN230,SSEH!AN230,SSES!AN230) -> 0.003234182501 | AO230: =CHOOSE(m_identity,ENWL!AO230, NPgN!AO230, NPgY!AO230, WMID!AO230, EMID!AO230, SWALES!AO230, SWEST!AO230, LPN!AO230,SPN!AO230,EPN!AO230,SPD!AO230,SPMW!AO230,SSEH!AO230,SSES!AO230) -> 0.0032755752 | AP230: =CHOOSE(m_identity,ENWL!AP230, NPgN!AP230, NPgY!AP230, WMID!AP230, EMID!AP230, SWALES!AP230, SWEST!AP230, LPN!AP230,SPN!AP230,EPN!AP230,SPD!AP230,SPMW!AP230,SSEH!AP230,SSES!AP230) -> 0.003317174921 | AQ230: =CHOOSE(m_identity,ENWL!AQ230, NPgN!AQ230, NPgY!AQ230, WMID!AQ230, EMID!AQ230, SWALES!AQ230, SWEST!AQ230, LPN!AQ230,SPN!AQ230,EPN!AQ230,SPD!AQ230,SPMW!AQ230,SSEH!AQ230,SSES!AQ230) -> 0.003352139864
E231: Allocation to controllable opex | G231: % | AJ231: =CHOOSE(m_identity,ENWL!AJ231, NPgN!AJ231, NPgY!AJ231, WMID!AJ231, EMID!AJ231, SWALES!AJ231, SWEST!AJ231, LPN!AJ231,SPN!AJ231,EPN!AJ231,SPD!AJ231,SPMW!AJ231,SSEH!AJ231,SSES!AJ231) -> 0 | AK231: =CHOOSE(m_identity,ENWL!AK231, NPgN!AK231, NPgY!AK231, WMID!AK231, EMID!AK231, SWALES!AK231, SWEST!AK231, LPN!AK231,SPN!AK231,EPN!AK231,SPD!AK231,SPMW!AK231,SSEH!AK231,SSES!AK231) -> 0 | AL231: =CHOOSE(m_identity,ENWL!AL231, NPgN!AL231, NPgY!AL231, WMID!AL231, EMID!AL231, SWALES!AL231, SWEST!AL231, LPN!AL231,SPN!AL231,EPN!AL231,SPD!AL231,SPMW!AL231,SSEH!AL231,SSES!AL231) -> 0 | AM231: =CHOOSE(m_identity,ENWL!AM231, NPgN!AM231, NPgY!AM231, WMID!AM231, EMID!AM231, SWALES!AM231, SWEST!AM231, LPN!AM231,SPN!AM231,EPN!AM231,SPD!AM231,SPMW!AM231,SSEH!AM231,SSES!AM231) -> 0 | AN231: =CHOOSE(m_identity,ENWL!AN231, NPgN!AN231, NPgY!AN231, WMID!AN231, EMID!AN231, SWALES!AN231, SWEST!AN231, LPN!AN231,SPN!AN231,EPN!AN231,SPD!AN231,SPMW!AN231,SSEH!AN231,SSES!AN231) -> 0 | AO231: =CHOOSE(m_identity,ENWL!AO231, NPgN!AO231, NPgY!AO231, WMID!AO231, EMID!AO231, SWALES!AO231, SWEST!AO231, LPN!AO231,SPN!AO231,EPN!AO231,SPD!AO231,SPMW!AO231,SSEH!AO231,SSES!AO231) -> 0 | AP231: =CHOOSE(m_identity,ENWL!AP231, NPgN!AP231, NPgY!AP231, WMID!AP231, EMID!AP231, SWALES!AP231, SWEST!AP231, LPN!AP231,SPN!AP231,EPN!AP231,SPD!AP231,SPMW!AP231,SSEH!AP231,SSES!AP231) -> 0 | AQ231: =CHOOSE(m_identity,ENWL!AQ231, NPgN!AQ231, NPgY!AQ231, WMID!AQ231, EMID!AQ231, SWALES!AQ231, SWEST!AQ231, LPN!AQ231,SPN!AQ231,EPN!AQ231,SPD!AQ231,SPMW!AQ231,SSEH!AQ231,SSES!AQ231) -> 0
E233: =E33 -> Allowed Expenditure - Innovation Roll-out Mechanism | G233: £m 12/13 prices | AJ233: =AJ33 -> 0 | AK233: =AK33 -> 0 | AL233: 0 | AM233: 0 | AN233: 0 | AO233: 0 | AP233: 0 | AQ233: 0
E234: Allocation to load related capex | G234: % | AJ234: =CHOOSE(m_identity,ENWL!AJ234, NPgN!AJ234, NPgY!AJ234, WMID!AJ234, EMID!AJ234, SWALES!AJ234, SWEST!AJ234, LPN!AJ234,SPN!AJ234,EPN!AJ234,SPD!AJ234,SPMW!AJ234,SSEH!AJ234,SSES!AJ234) -> 0.25 | AK234: =CHOOSE(m_identity,ENWL!AK234, NPgN!AK234, NPgY!AK234, WMID!AK234, EMID!AK234, SWALES!AK234, SWEST!AK234, LPN!AK234,SPN!AK234,EPN!AK234,SPD!AK234,SPMW!AK234,SSEH!AK234,SSES!AK234) -> 0.25 | AL234: =CHOOSE(m_identity,ENWL!AL234, NPgN!AL234, NPgY!AL234, WMID!AL234, EMID!AL234, SWALES!AL234, SWEST!AL234, LPN!AL234,SPN!AL234,EPN!AL234,SPD!AL234,SPMW!AL234,SSEH!AL234,SSES!AL234) -> 0.25 | AM234: =CHOOSE(m_identity,ENWL!AM234, NPgN!AM234, NPgY!AM234, WMID!AM234, EMID!AM234, SWALES!AM234, SWEST!AM234, LPN!AM234,SPN!AM234,EPN!AM234,SPD!AM234,SPMW!AM234,SSEH!AM234,SSES!AM234) -> 0.25 | AN234: =CHOOSE(m_identity,ENWL!AN234, NPgN!AN234, NPgY!AN234, WMID!AN234, EMID!AN234, SWALES!AN234, SWEST!AN234, LPN!AN234,SPN!AN234,EPN!AN234,SPD!AN234,SPMW!AN234,SSEH!AN234,SSES!AN234) -> 0.25 | AO234: =CHOOSE(m_identity,ENWL!AO234, NPgN!AO234, NPgY!AO234, WMID!AO234, EMID!AO234, SWALES!AO234, SWEST!AO234, LPN!AO234,SPN!AO234,EPN!AO234,SPD!AO234,SPMW!AO234,SSEH!AO234,SSES!AO234) -> 0.25 | AP234: =CHOOSE(m_identity,ENWL!AP234, NPgN!AP234, NPgY!AP234, WMID!AP234, EMID!AP234, SWALES!AP234, SWEST!AP234, LPN!AP234,SPN!AP234,EPN!AP234,SPD!AP234,SPMW!AP234,SSEH!AP234,SSES!AP234) -> 0.25 | AQ234: =CHOOSE(m_identity,ENWL!AQ234, NPgN!AQ234, NPgY!AQ234, WMID!AQ234, EMID!AQ234, SWALES!AQ234, SWEST!AQ234, LPN!AQ234,SPN!AQ234,EPN!AQ234,SPD!AQ234,SPMW!AQ234,SSEH!AQ234,SSES!AQ234) -> 0.25
E235: Allocation to non-load related capex - asset replacement | G235: % | AJ235: =CHOOSE(m_identity,ENWL!AJ235, NPgN!AJ235, NPgY!AJ235, WMID!AJ235, EMID!AJ235, SWALES!AJ235, SWEST!AJ235, LPN!AJ235,SPN!AJ235,EPN!AJ235,SPD!AJ235,SPMW!AJ235,SSEH!AJ235,SSES!AJ235) -> 0 | AK235: =CHOOSE(m_identity,ENWL!AK235, NPgN!AK235, NPgY!AK235, WMID!AK235, EMID!AK235, SWALES!AK235, SWEST!AK235, LPN!AK235,SPN!AK235,EPN!AK235,SPD!AK235,SPMW!AK235,SSEH!AK235,SSES!AK235) -> 0 | AL235: =CHOOSE(m_identity,ENWL!AL235, NPgN!AL235, NPgY!AL235, WMID!AL235, EMID!AL235, SWALES!AL235, SWEST!AL235, LPN!AL235,SPN!AL235,EPN!AL235,SPD!AL235,SPMW!AL235,SSEH!AL235,SSES!AL235) -> 0 | AM235: =CHOOSE(m_identity,ENWL!AM235, NPgN!AM235, NPgY!AM235, WMID!AM235, EMID!AM235, SWALES!AM235, SWEST!AM235, LPN!AM235,SPN!AM235,EPN!AM235,SPD!AM235,SPMW!AM235,SSEH!AM235,SSES!AM235) -> 0 | AN235: =CHOOSE(m_identity,ENWL!AN235, NPgN!AN235, NPgY!AN235, WMID!AN235, EMID!AN235, SWALES!AN235, SWEST!AN235, LPN!AN235,SPN!AN235,EPN!AN235,SPD!AN235,SPMW!AN235,SSEH!AN235,SSES!AN235) -> 0 | AO235: =CHOOSE(m_identity,ENWL!AO235, NPgN!AO235, NPgY!AO235, WMID!AO235, EMID!AO235, SWALES!AO235, SWEST!AO235, LPN!AO235,SPN!AO235,EPN!AO235,SPD!AO235,SPMW!AO235,SSEH!AO235,SSES!AO235) -> 0 | AP235: =CHOOSE(m_identity,ENWL!AP235, NPgN!AP235, NPgY!AP235, WMID!AP235, EMID!AP235, SWALES!AP235, SWEST!AP235, LPN!AP235,SPN!AP235,EPN!AP235,SPD!AP235,SPMW!AP235,SSEH!AP235,SSES!AP235) -> 0 | AQ235: =CHOOSE(m_identity,ENWL!AQ235, NPgN!AQ235, NPgY!AQ235, WMID!AQ235, EMID!AQ235, SWALES!AQ235, SWEST!AQ235, LPN!AQ235,SPN!AQ235,EPN!AQ235,SPD!AQ235,SPMW!AQ235,SSEH!AQ235,SSES!AQ235) -> 0
E236: Allocation to non-load related capex - other | G236: % | AJ236: =CHOOSE(m_identity,ENWL!AJ236, NPgN!AJ236, NPgY!AJ236, WMID!AJ236, EMID!AJ236, SWALES!AJ236, SWEST!AJ236, LPN!AJ236,SPN!AJ236,EPN!AJ236,SPD!AJ236,SPMW!AJ236,SSEH!AJ236,SSES!AJ236) -> 0.75 | AK236: =CHOOSE(m_identity,ENWL!AK236, NPgN!AK236, NPgY!AK236, WMID!AK236, EMID!AK236, SWALES!AK236, SWEST!AK236, LPN!AK236,SPN!AK236,EPN!AK236,SPD!AK236,SPMW!AK236,SSEH!AK236,SSES!AK236) -> 0.75 | AL236: =CHOOSE(m_identity,ENWL!AL236, NPgN!AL236, NPgY!AL236, WMID!AL236, EMID!AL236, SWALES!AL236, SWEST!AL236, LPN!AL236,SPN!AL236,EPN!AL236,SPD!AL236,SPMW!AL236,SSEH!AL236,SSES!AL236) -> 0.75 | AM236: =CHOOSE(m_identity,ENWL!AM236, NPgN!AM236, NPgY!AM236, WMID!AM236, EMID!AM236, SWALES!AM236, SWEST!AM236, LPN!AM236,SPN!AM236,EPN!AM236,SPD!AM236,SPMW!AM236,SSEH!AM236,SSES!AM236) -> 0.75 | AN236: =CHOOSE(m_identity,ENWL!AN236, NPgN!AN236, NPgY!AN236, WMID!AN236, EMID!AN236, SWALES!AN236, SWEST!AN236, LPN!AN236,SPN!AN236,EPN!AN236,SPD!AN236,SPMW!AN236,SSEH!AN236,SSES!AN236) -> 0.75 | AO236: =CHOOSE(m_identity,ENWL!AO236, NPgN!AO236, NPgY!AO236, WMID!AO236, EMID!AO236, SWALES!AO236, SWEST!AO236, LPN!AO236,SPN!AO236,EPN!AO236,SPD!AO236,SPMW!AO236,SSEH!AO236,SSES!AO236) -> 0.75 | AP236: =CHOOSE(m_identity,ENWL!AP236, NPgN!AP236, NPgY!AP236, WMID!AP236, EMID!AP236, SWALES!AP236, SWEST!AP236, LPN!AP236,SPN!AP236,EPN!AP236,SPD!AP236,SPMW!AP236,SSEH!AP236,SSES!AP236) -> 0.75 | AQ236: =CHOOSE(m_identity,ENWL!AQ236, NPgN!AQ236, NPgY!AQ236, WMID!AQ236, EMID!AQ236, SWALES!AQ236, SWEST!AQ236, LPN!AQ236,SPN!AQ236,EPN!AQ236,SPD!AQ236,SPMW!AQ236,SSEH!AQ236,SSES!AQ236) -> 0.75
E237: Allocation to faults | G237: % | AJ237: =CHOOSE(m_identity,ENWL!AJ237, NPgN!AJ237, NPgY!AJ237, WMID!AJ237, EMID!AJ237, SWALES!AJ237, SWEST!AJ237, LPN!AJ237,SPN!AJ237,EPN!AJ237,SPD!AJ237,SPMW!AJ237,SSEH!AJ237,SSES!AJ237) -> 0 | AK237: =CHOOSE(m_identity,ENWL!AK237, NPgN!AK237, NPgY!AK237, WMID!AK237, EMID!AK237, SWALES!AK237, SWEST!AK237, LPN!AK237,SPN!AK237,EPN!AK237,SPD!AK237,SPMW!AK237,SSEH!AK237,SSES!AK237) -> 0 | AL237: =CHOOSE(m_identity,ENWL!AL237, NPgN!AL237, NPgY!AL237, WMID!AL237, EMID!AL237, SWALES!AL237, SWEST!AL237, LPN!AL237,SPN!AL237,EPN!AL237,SPD!AL237,SPMW!AL237,SSEH!AL237,SSES!AL237) -> 0 | AM237: =CHOOSE(m_identity,ENWL!AM237, NPgN!AM237, NPgY!AM237, WMID!AM237, EMID!AM237, SWALES!AM237, SWEST!AM237, LPN!AM237,SPN!AM237,EPN!AM237,SPD!AM237,SPMW!AM237,SSEH!AM237,SSES!AM237) -> 0 | AN237: =CHOOSE(m_identity,ENWL!AN237, NPgN!AN237, NPgY!AN237, WMID!AN237, EMID!AN237, SWALES!AN237, SWEST!AN237, LPN!AN237,SPN!AN237,EPN!AN237,SPD!AN237,SPMW!AN237,SSEH!AN237,SSES!AN237) -> 0 | AO237: =CHOOSE(m_identity,ENWL!AO237, NPgN!AO237, NPgY!AO237, WMID!AO237, EMID!AO237, SWALES!AO237, SWEST!AO237, LPN!AO237,SPN!AO237,EPN!AO237,SPD!AO237,SPMW!AO237,SSEH!AO237,SSES!AO237) -> 0 | AP237: =CHOOSE(m_identity,ENWL!AP237, NPgN!AP237, NPgY!AP237, WMID!AP237, EMID!AP237, SWALES!AP237, SWEST!AP237, LPN!AP237,SPN!AP237,EPN!AP237,SPD!AP237,SPMW!AP237,SSEH!AP237,SSES!AP237) -> 0 | AQ237: =CHOOSE(m_identity,ENWL!AQ237, NPgN!AQ237, NPgY!AQ237, WMID!AQ237, EMID!AQ237, SWALES!AQ237, SWEST!AQ237, LPN!AQ237,SPN!AQ237,EPN!AQ237,SPD!AQ237,SPMW!AQ237,SSEH!AQ237,SSES!AQ237) -> 0
E238: Allocation to tree cutting | G238: % | AJ238: =CHOOSE(m_identity,ENWL!AJ238, NPgN!AJ238, NPgY!AJ238, WMID!AJ238, EMID!AJ238, SWALES!AJ238, SWEST!AJ238, LPN!AJ238,SPN!AJ238,EPN!AJ238,SPD!AJ238,SPMW!AJ238,SSEH!AJ238,SSES!AJ238) -> 0 | AK238: =CHOOSE(m_identity,ENWL!AK238, NPgN!AK238, NPgY!AK238, WMID!AK238, EMID!AK238, SWALES!AK238, SWEST!AK238, LPN!AK238,SPN!AK238,EPN!AK238,SPD!AK238,SPMW!AK238,SSEH!AK238,SSES!AK238) -> 0 | AL238: =CHOOSE(m_identity,ENWL!AL238, NPgN!AL238, NPgY!AL238, WMID!AL238, EMID!AL238, SWALES!AL238, SWEST!AL238, LPN!AL238,SPN!AL238,EPN!AL238,SPD!AL238,SPMW!AL238,SSEH!AL238,SSES!AL238) -> 0 | AM238: =CHOOSE(m_identity,ENWL!AM238, NPgN!AM238, NPgY!AM238, WMID!AM238, EMID!AM238, SWALES!AM238, SWEST!AM238, LPN!AM238,SPN!AM238,EPN!AM238,SPD!AM238,SPMW!AM238,SSEH!AM238,SSES!AM238) -> 0 | AN238: =CHOOSE(m_identity,ENWL!AN238, NPgN!AN238, NPgY!AN238, WMID!AN238, EMID!AN238, SWALES!AN238, SWEST!AN238, LPN!AN238,SPN!AN238,EPN!AN238,SPD!AN238,SPMW!AN238,SSEH!AN238,SSES!AN238) -> 0 | AO238: =CHOOSE(m_identity,ENWL!AO238, NPgN!AO238, NPgY!AO238, WMID!AO238, EMID!AO238, SWALES!AO238, SWEST!AO238, LPN!AO238,SPN!AO238,EPN!AO238,SPD!AO238,SPMW!AO238,SSEH!AO238,SSES!AO238) -> 0 | AP238: =CHOOSE(m_identity,ENWL!AP238, NPgN!AP238, NPgY!AP238, WMID!AP238, EMID!AP238, SWALES!AP238, SWEST!AP238, LPN!AP238,SPN!AP238,EPN!AP238,SPD!AP238,SPMW!AP238,SSEH!AP238,SSES!AP238) -> 0 | AQ238: =CHOOSE(m_identity,ENWL!AQ238, NPgN!AQ238, NPgY!AQ238, WMID!AQ238, EMID!AQ238, SWALES!AQ238, SWEST!AQ238, LPN!AQ238,SPN!AQ238,EPN!AQ238,SPD!AQ238,SPMW!AQ238,SSEH!AQ238,SSES!AQ238) -> 0
E239: Allocation to 100% ‘revenue pool’ expenditure | G239: % | AJ239: =CHOOSE(m_identity,ENWL!AJ239, NPgN!AJ239, NPgY!AJ239, WMID!AJ239, EMID!AJ239, SWALES!AJ239, SWEST!AJ239, LPN!AJ239,SPN!AJ239,EPN!AJ239,SPD!AJ239,SPMW!AJ239,SSEH!AJ239,SSES!AJ239) -> 0 | AK239: =CHOOSE(m_identity,ENWL!AK239, NPgN!AK239, NPgY!AK239, WMID!AK239, EMID!AK239, SWALES!AK239, SWEST!AK239, LPN!AK239,SPN!AK239,EPN!AK239,SPD!AK239,SPMW!AK239,SSEH!AK239,SSES!AK239) -> 0 | AL239: =CHOOSE(m_identity,ENWL!AL239, NPgN!AL239, NPgY!AL239, WMID!AL239, EMID!AL239, SWALES!AL239, SWEST!AL239, LPN!AL239,SPN!AL239,EPN!AL239,SPD!AL239,SPMW!AL239,SSEH!AL239,SSES!AL239) -> 0 | AM239: =CHOOSE(m_identity,ENWL!AM239, NPgN!AM239, NPgY!AM239, WMID!AM239, EMID!AM239, SWALES!AM239, SWEST!AM239, LPN!AM239,SPN!AM239,EPN!AM239,SPD!AM239,SPMW!AM239,SSEH!AM239,SSES!AM239) -> 0 | AN239: =CHOOSE(m_identity,ENWL!AN239, NPgN!AN239, NPgY!AN239, WMID!AN239, EMID!AN239, SWALES!AN239, SWEST!AN239, LPN!AN239,SPN!AN239,EPN!AN239,SPD!AN239,SPMW!AN239,SSEH!AN239,SSES!AN239) -> 0 | AO239: =CHOOSE(m_identity,ENWL!AO239, NPgN!AO239, NPgY!AO239, WMID!AO239, EMID!AO239, SWALES!AO239, SWEST!AO239, LPN!AO239,SPN!AO239,EPN!AO239,SPD!AO239,SPMW!AO239,SSEH!AO239,SSES!AO239) -> 0 | AP239: =CHOOSE(m_identity,ENWL!AP239, NPgN!AP239, NPgY!AP239, WMID!AP239, EMID!AP239, SWALES!AP239, SWEST!AP239, LPN!AP239,SPN!AP239,EPN!AP239,SPD!AP239,SPMW!AP239,SSEH!AP239,SSES!AP239) -> 0 | AQ239: =CHOOSE(m_identity,ENWL!AQ239, NPgN!AQ239, NPgY!AQ239, WMID!AQ239, EMID!AQ239, SWALES!AQ239, SWEST!AQ239, LPN!AQ239,SPN!AQ239,EPN!AQ239,SPD!AQ239,SPMW!AQ239,SSEH!AQ239,SSES!AQ239) -> 0
E240: Allocation to controllable opex | G240: % | AJ240: =CHOOSE(m_identity,ENWL!AJ240, NPgN!AJ240, NPgY!AJ240, WMID!AJ240, EMID!AJ240, SWALES!AJ240, SWEST!AJ240, LPN!AJ240,SPN!AJ240,EPN!AJ240,SPD!AJ240,SPMW!AJ240,SSEH!AJ240,SSES!AJ240) -> 0 | AK240: =CHOOSE(m_identity,ENWL!AK240, NPgN!AK240, NPgY!AK240, WMID!AK240, EMID!AK240, SWALES!AK240, SWEST!AK240, LPN!AK240,SPN!AK240,EPN!AK240,SPD!AK240,SPMW!AK240,SSEH!AK240,SSES!AK240) -> 0 | AL240: =CHOOSE(m_identity,ENWL!AL240, NPgN!AL240, NPgY!AL240, WMID!AL240, EMID!AL240, SWALES!AL240, SWEST!AL240, LPN!AL240,SPN!AL240,EPN!AL240,SPD!AL240,SPMW!AL240,SSEH!AL240,SSES!AL240) -> 0 | AM240: =CHOOSE(m_identity,ENWL!AM240, NPgN!AM240, NPgY!AM240, WMID!AM240, EMID!AM240, SWALES!AM240, SWEST!AM240, LPN!AM240,SPN!AM240,EPN!AM240,SPD!AM240,SPMW!AM240,SSEH!AM240,SSES!AM240) -> 0 | AN240: =CHOOSE(m_identity,ENWL!AN240, NPgN!AN240, NPgY!AN240, WMID!AN240, EMID!AN240, SWALES!AN240, SWEST!AN240, LPN!AN240,SPN!AN240,EPN!AN240,SPD!AN240,SPMW!AN240,SSEH!AN240,SSES!AN240) -> 0 | AO240: =CHOOSE(m_identity,ENWL!AO240, NPgN!AO240, NPgY!AO240, WMID!AO240, EMID!AO240, SWALES!AO240, SWEST!AO240, LPN!AO240,SPN!AO240,EPN!AO240,SPD!AO240,SPMW!AO240,SSEH!AO240,SSES!AO240) -> 0 | AP240: =CHOOSE(m_identity,ENWL!AP240, NPgN!AP240, NPgY!AP240, WMID!AP240, EMID!AP240, SWALES!AP240, SWEST!AP240, LPN!AP240,SPN!AP240,EPN!AP240,SPD!AP240,SPMW!AP240,SSEH!AP240,SSES!AP240) -> 0 | AQ240: =CHOOSE(m_identity,ENWL!AQ240, NPgN!AQ240, NPgY!AQ240, WMID!AQ240, EMID!AQ240, SWALES!AQ240, SWEST!AQ240, LPN!AQ240,SPN!AQ240,EPN!AQ240,SPD!AQ240,SPMW!AQ240,SSEH!AQ240,SSES!AQ240) -> 0
E242: Variant allowed load related capex | G242: £m 12/13 prices | AJ242: =CHOOSE(m_identity,ENWL!AJ242, NPgN!AJ242, NPgY!AJ242, WMID!AJ242, EMID!AJ242, SWALES!AJ242, SWEST!AJ242, LPN!AJ242,SPN!AJ242,EPN!AJ242,SPD!AJ242,SPMW!AJ242,SSEH!AJ242,SSES!AJ242) -> 29.99850916 | AK242: =CHOOSE(m_identity,ENWL!AK242, NPgN!AK242, NPgY!AK242, WMID!AK242, EMID!AK242, SWALES!AK242, SWEST!AK242, LPN!AK242,SPN!AK242,EPN!AK242,SPD!AK242,SPMW!AK242,SSEH!AK242,SSES!AK242) -> 36.86349545 | AL242: =CHOOSE(m_identity,ENWL!AL242, NPgN!AL242, NPgY!AL242, WMID!AL242, EMID!AL242, SWALES!AL242, SWEST!AL242, LPN!AL242,SPN!AL242,EPN!AL242,SPD!AL242,SPMW!AL242,SSEH!AL242,SSES!AL242) -> 34.78036234 | AM242: =CHOOSE(m_identity,ENWL!AM242, NPgN!AM242, NPgY!AM242, WMID!AM242, EMID!AM242, SWALES!AM242, SWEST!AM242, LPN!AM242,SPN!AM242,EPN!AM242,SPD!AM242,SPMW!AM242,SSEH!AM242,SSES!AM242) -> 38.39580664 | AN242: =CHOOSE(m_identity,ENWL!AN242, NPgN!AN242, NPgY!AN242, WMID!AN242, EMID!AN242, SWALES!AN242, SWEST!AN242, LPN!AN242,SPN!AN242,EPN!AN242,SPD!AN242,SPMW!AN242,SSEH!AN242,SSES!AN242) -> 18.05796869 | AO242: =CHOOSE(m_identity,ENWL!AO242, NPgN!AO242, NPgY!AO242, WMID!AO242, EMID!AO242, SWALES!AO242, SWEST!AO242, LPN!AO242,SPN!AO242,EPN!AO242,SPD!AO242,SPMW!AO242,SSEH!AO242,SSES!AO242) -> 27.16566131 | AP242: =CHOOSE(m_identity,ENWL!AP242, NPgN!AP242, NPgY!AP242, WMID!AP242, EMID!AP242, SWALES!AP242, SWEST!AP242, LPN!AP242,SPN!AP242,EPN!AP242,SPD!AP242,SPMW!AP242,SSEH!AP242,SSES!AP242) -> 38.32808402 | AQ242: =CHOOSE(m_identity,ENWL!AQ242, NPgN!AQ242, NPgY!AQ242, WMID!AQ242, EMID!AQ242, SWALES!AQ242, SWEST!AQ242, LPN!AQ242,SPN!AQ242,EPN!AQ242,SPD!AQ242,SPMW!AQ242,SSEH!AQ242,SSES!AQ242) -> 33.44583757
E243: Variant allowed non-load related capex - asset replacement | G243: £m 12/13 prices | AJ243: =CHOOSE(m_identity,ENWL!AJ243, NPgN!AJ243, NPgY!AJ243, WMID!AJ243, EMID!AJ243, SWALES!AJ243, SWEST!AJ243, LPN!AJ243,SPN!AJ243,EPN!AJ243,SPD!AJ243,SPMW!AJ243,SSEH!AJ243,SSES!AJ243) -> 0 | AK243: =CHOOSE(m_identity,ENWL!AK243, NPgN!AK243, NPgY!AK243, WMID!AK243, EMID!AK243, SWALES!AK243, SWEST!AK243, LPN!AK243,SPN!AK243,EPN!AK243,SPD!AK243,SPMW!AK243,SSEH!AK243,SSES!AK243) -> 0 | AL243: =CHOOSE(m_identity,ENWL!AL243, NPgN!AL243, NPgY!AL243, WMID!AL243, EMID!AL243, SWALES!AL243, SWEST!AL243, LPN!AL243,SPN!AL243,EPN!AL243,SPD!AL243,SPMW!AL243,SSEH!AL243,SSES!AL243) -> 0 | AM243: =CHOOSE(m_identity,ENWL!AM243, NPgN!AM243, NPgY!AM243, WMID!AM243, EMID!AM243, SWALES!AM243, SWEST!AM243, LPN!AM243,SPN!AM243,EPN!AM243,SPD!AM243,SPMW!AM243,SSEH!AM243,SSES!AM243) -> 0 | AN243: =CHOOSE(m_identity,ENWL!AN243, NPgN!AN243, NPgY!AN243, WMID!AN243, EMID!AN243, SWALES!AN243, SWEST!AN243, LPN!AN243,SPN!AN243,EPN!AN243,SPD!AN243,SPMW!AN243,SSEH!AN243,SSES!AN243) -> 0 | AO243: =CHOOSE(m_identity,ENWL!AO243, NPgN!AO243, NPgY!AO243, WMID!AO243, EMID!AO243, SWALES!AO243, SWEST!AO243, LPN!AO243,SPN!AO243,EPN!AO243,SPD!AO243,SPMW!AO243,SSEH!AO243,SSES!AO243) -> 0 | AP243: =CHOOSE(m_identity,ENWL!AP243, NPgN!AP243, NPgY!AP243, WMID!AP243, EMID!AP243, SWALES!AP243, SWEST!AP243, LPN!AP243,SPN!AP243,EPN!AP243,SPD!AP243,SPMW!AP243,SSEH!AP243,SSES!AP243) -> 0 | AQ243: =CHOOSE(m_identity,ENWL!AQ243, NPgN!AQ243, NPgY!AQ243, WMID!AQ243, EMID!AQ243, SWALES!AQ243, SWEST!AQ243, LPN!AQ243,SPN!AQ243,EPN!AQ243,SPD!AQ243,SPMW!AQ243,SSEH!AQ243,SSES!AQ243) -> 0
E244: Variant allowed non-load related capex - other | G244: £m 12/13 prices | AJ244: =CHOOSE(m_identity,ENWL!AJ244, NPgN!AJ244, NPgY!AJ244, WMID!AJ244, EMID!AJ244, SWALES!AJ244, SWEST!AJ244, LPN!AJ244,SPN!AJ244,EPN!AJ244,SPD!AJ244,SPMW!AJ244,SSEH!AJ244,SSES!AJ244) -> 0 | AK244: =CHOOSE(m_identity,ENWL!AK244, NPgN!AK244, NPgY!AK244, WMID!AK244, EMID!AK244, SWALES!AK244, SWEST!AK244, LPN!AK244,SPN!AK244,EPN!AK244,SPD!AK244,SPMW!AK244,SSEH!AK244,SSES!AK244) -> 0 | AL244: =CHOOSE(m_identity,ENWL!AL244, NPgN!AL244, NPgY!AL244, WMID!AL244, EMID!AL244, SWALES!AL244, SWEST!AL244, LPN!AL244,SPN!AL244,EPN!AL244,SPD!AL244,SPMW!AL244,SSEH!AL244,SSES!AL244) -> 0 | AM244: =CHOOSE(m_identity,ENWL!AM244, NPgN!AM244, NPgY!AM244, WMID!AM244, EMID!AM244, SWALES!AM244, SWEST!AM244, LPN!AM244,SPN!AM244,EPN!AM244,SPD!AM244,SPMW!AM244,SSEH!AM244,SSES!AM244) -> 0 | AN244: =CHOOSE(m_identity,ENWL!AN244, NPgN!AN244, NPgY!AN244, WMID!AN244, EMID!AN244, SWALES!AN244, SWEST!AN244, LPN!AN244,SPN!AN244,EPN!AN244,SPD!AN244,SPMW!AN244,SSEH!AN244,SSES!AN244) -> 0 | AO244: =CHOOSE(m_identity,ENWL!AO244, NPgN!AO244, NPgY!AO244, WMID!AO244, EMID!AO244, SWALES!AO244, SWEST!AO244, LPN!AO244,SPN!AO244,EPN!AO244,SPD!AO244,SPMW!AO244,SSEH!AO244,SSES!AO244) -> 0 | AP244: =CHOOSE(m_identity,ENWL!AP244, NPgN!AP244, NPgY!AP244, WMID!AP244, EMID!AP244, SWALES!AP244, SWEST!AP244, LPN!AP244,SPN!AP244,EPN!AP244,SPD!AP244,SPMW!AP244,SSEH!AP244,SSES!AP244) -> 0 | AQ244: =CHOOSE(m_identity,ENWL!AQ244, NPgN!AQ244, NPgY!AQ244, WMID!AQ244, EMID!AQ244, SWALES!AQ244, SWEST!AQ244, LPN!AQ244,SPN!AQ244,EPN!AQ244,SPD!AQ244,SPMW!AQ244,SSEH!AQ244,SSES!AQ244) -> 0
E245: Variant allowed faults | G245: £m 12/13 prices | AJ245: =CHOOSE(m_identity,ENWL!AJ245, NPgN!AJ245, NPgY!AJ245, WMID!AJ245, EMID!AJ245, SWALES!AJ245, SWEST!AJ245, LPN!AJ245,SPN!AJ245,EPN!AJ245,SPD!AJ245,SPMW!AJ245,SSEH!AJ245,SSES!AJ245) -> 0 | AK245: =CHOOSE(m_identity,ENWL!AK245, NPgN!AK245, NPgY!AK245, WMID!AK245, EMID!AK245, SWALES!AK245, SWEST!AK245, LPN!AK245,SPN!AK245,EPN!AK245,SPD!AK245,SPMW!AK245,SSEH!AK245,SSES!AK245) -> 0 | AL245: =CHOOSE(m_identity,ENWL!AL245, NPgN!AL245, NPgY!AL245, WMID!AL245, EMID!AL245, SWALES!AL245, SWEST!AL245, LPN!AL245,SPN!AL245,EPN!AL245,SPD!AL245,SPMW!AL245,SSEH!AL245,SSES!AL245) -> 0 | AM245: =CHOOSE(m_identity,ENWL!AM245, NPgN!AM245, NPgY!AM245, WMID!AM245, EMID!AM245, SWALES!AM245, SWEST!AM245, LPN!AM245,SPN!AM245,EPN!AM245,SPD!AM245,SPMW!AM245,SSEH!AM245,SSES!AM245) -> 0 | AN245: =CHOOSE(m_identity,ENWL!AN245, NPgN!AN245, NPgY!AN245, WMID!AN245, EMID!AN245, SWALES!AN245, SWEST!AN245, LPN!AN245,SPN!AN245,EPN!AN245,SPD!AN245,SPMW!AN245,SSEH!AN245,SSES!AN245) -> 0 | AO245: =CHOOSE(m_identity,ENWL!AO245, NPgN!AO245, NPgY!AO245, WMID!AO245, EMID!AO245, SWALES!AO245, SWEST!AO245, LPN!AO245,SPN!AO245,EPN!AO245,SPD!AO245,SPMW!AO245,SSEH!AO245,SSES!AO245) -> 0 | AP245: =CHOOSE(m_identity,ENWL!AP245, NPgN!AP245, NPgY!AP245, WMID!AP245, EMID!AP245, SWALES!AP245, SWEST!AP245, LPN!AP245,SPN!AP245,EPN!AP245,SPD!AP245,SPMW!AP245,SSEH!AP245,SSES!AP245) -> 0 | AQ245: =CHOOSE(m_identity,ENWL!AQ245, NPgN!AQ245, NPgY!AQ245, WMID!AQ245, EMID!AQ245, SWALES!AQ245, SWEST!AQ245, LPN!AQ245,SPN!AQ245,EPN!AQ245,SPD!AQ245,SPMW!AQ245,SSEH!AQ245,SSES!AQ245) -> 0
E246: Variant allowed tree cutting | G246: £m 12/13 prices | AJ246: =CHOOSE(m_identity,ENWL!AJ246, NPgN!AJ246, NPgY!AJ246, WMID!AJ246, EMID!AJ246, SWALES!AJ246, SWEST!AJ246, LPN!AJ246,SPN!AJ246,EPN!AJ246,SPD!AJ246,SPMW!AJ246,SSEH!AJ246,SSES!AJ246) -> 0 | AK246: =CHOOSE(m_identity,ENWL!AK246, NPgN!AK246, NPgY!AK246, WMID!AK246, EMID!AK246, SWALES!AK246, SWEST!AK246, LPN!AK246,SPN!AK246,EPN!AK246,SPD!AK246,SPMW!AK246,SSEH!AK246,SSES!AK246) -> 0 | AL246: =CHOOSE(m_identity,ENWL!AL246, NPgN!AL246, NPgY!AL246, WMID!AL246, EMID!AL246, SWALES!AL246, SWEST!AL246, LPN!AL246,SPN!AL246,EPN!AL246,SPD!AL246,SPMW!AL246,SSEH!AL246,SSES!AL246) -> 0 | AM246: =CHOOSE(m_identity,ENWL!AM246, NPgN!AM246, NPgY!AM246, WMID!AM246, EMID!AM246, SWALES!AM246, SWEST!AM246, LPN!AM246,SPN!AM246,EPN!AM246,SPD!AM246,SPMW!AM246,SSEH!AM246,SSES!AM246) -> 0 | AN246: =CHOOSE(m_identity,ENWL!AN246, NPgN!AN246, NPgY!AN246, WMID!AN246, EMID!AN246, SWALES!AN246, SWEST!AN246, LPN!AN246,SPN!AN246,EPN!AN246,SPD!AN246,SPMW!AN246,SSEH!AN246,SSES!AN246) -> 0 | AO246: =CHOOSE(m_identity,ENWL!AO246, NPgN!AO246, NPgY!AO246, WMID!AO246, EMID!AO246, SWALES!AO246, SWEST!AO246, LPN!AO246,SPN!AO246,EPN!AO246,SPD!AO246,SPMW!AO246,SSEH!AO246,SSES!AO246) -> 0 | AP246: =CHOOSE(m_identity,ENWL!AP246, NPgN!AP246, NPgY!AP246, WMID!AP246, EMID!AP246, SWALES!AP246, SWEST!AP246, LPN!AP246,SPN!AP246,EPN!AP246,SPD!AP246,SPMW!AP246,SSEH!AP246,SSES!AP246) -> 0 | AQ246: =CHOOSE(m_identity,ENWL!AQ246, NPgN!AQ246, NPgY!AQ246, WMID!AQ246, EMID!AQ246, SWALES!AQ246, SWEST!AQ246, LPN!AQ246,SPN!AQ246,EPN!AQ246,SPD!AQ246,SPMW!AQ246,SSEH!AQ246,SSES!AQ246) -> 0
... 179 more rows

Sheet Totex
A1: Totex
B2: =UserInterface!G17 -> SSES
E6: Parameter | G6: Units | I6: Constant | AJ6: Annual values
E7: PCFM year ending | I7: =UserInterface!$G$10 -> 2016-03-31 | K7: 1991-03-31 | L7: 1992-03-31 | M7: 1993-03-31 | N7: 1994-03-31 | O7: 1995-03-31 | P7: 1996-03-31 | Q7: 1997-03-31 | R7: 1998-03-31 | S7: 1999-03-31 | T7: 2000-03-31 | U7: 2001-03-31 | V7: 2002-03-31 | W7: 2003-03-31 | X7: 2004-03-31 | Y7: 2005-03-31 | Z7: 2006-03-31 | AA7: 2007-03-31 | AB7: 2008-03-31 | AC7: 2009-03-31 | AD7: 2010-03-31 | AE7: 2011-03-31 | AF7: 2012-03-31 | AG7: 2013-03-31 | AH7: 2014-03-31 | AI7: 2015-03-31 | AJ7: 2016-03-31 | AK7: 2017-03-31 | AL7: 2018-03-31 | AM7: 2019-03-31 | AN7: 2020-03-31 | AO7: 2021-03-31 | AP7: 2022-03-31 | AQ7: 2023-03-31
B9: Totex
C11: Allowed totex aggregated by sub-category
C12: Note: Totex is the sum of a number of cost categories, with all totex allowances falling under one (or more) of them. They have significance in the model as each sub-category can have its own set of tax pool allocation rules.
D14: Non-variant allowances
D15: Note: These values are set at final proposals and are not updated during the price control
E17: Non-variant allowed load related capex | G17: £m 12/13 prices | AJ17: =Input!AJ97 -> 0 | AK17: =Input!AK97 -> 0 | AL17: =Input!AL97 -> 0 | AM17: =Input!AM97 -> 0 | AN17: =Input!AN97 -> 0 | AO17: =Input!AO97 -> 0 | AP17: =Input!AP97 -> 0 | AQ17: =Input!AQ97 -> 0
E18: Non-variant allowed non-load related capex - asset replacement | G18: £m 12/13 prices | AJ18: =Input!AJ98 -> 98.54428553 | AK18: =Input!AK98 -> 98.10132146 | AL18: =Input!AL98 -> 94.12784613 | AM18: =Input!AM98 -> 90.32826066 | AN18: =Input!AN98 -> 85.80297784 | AO18: =Input!AO98 -> 80.78402175 | AP18: =Input!AP98 -> 79.46528115 | AQ18: =Input!AQ98 -> 81.21298545
E19: Non-variant allowed non-load related capex - other | G19: £m 12/13 prices | AJ19: =Input!AJ99 -> 18.28381296 | AK19: =Input!AK99 -> 18.88204475 | AL19: =Input!AL99 -> 15.91201473 | AM19: =Input!AM99 -> 16.84892395 | AN19: =Input!AN99 -> 12.38632703 | AO19: =Input!AO99 -> 11.81186202 | AP19: =Input!AP99 -> 11.486702 | AQ19: =Input!AQ99 -> 10.92631677
E20: Non-variant allowed faults | G20: £m 12/13 prices | AJ20: =Input!AJ100 -> 33.07547295 | AK20: =Input!AK100 -> 32.64756665 | AL20: =Input!AL100 -> 32.40972392 | AM20: =Input!AM100 -> 31.95955749 | AN20: =Input!AN100 -> 31.72850049 | AO20: =Input!AO100 -> 31.33750833 | AP20: =Input!AP100 -> 32.26907557 | AQ20: =Input!AQ100 -> 30.71634812
E21: Non-variant tree cutting | G21: £m 12/13 prices | AJ21: =Input!AJ101 -> 14.4646671 | AK21: =Input!AK101 -> 13.78176026 | AL21: =Input!AL101 -> 13.29126159 | AM21: =Input!AM101 -> 12.01613759 | AN21: =Input!AN101 -> 11.8385551 | AO21: =Input!AO101 -> 11.76402734 | AP21: =Input!AP101 -> 11.58342134 | AQ21: =Input!AQ101 -> 11.40619036
E22: Non-variant allowed 100% ‘revenue pool’ expenditure | G22: £m 12/13 prices | AJ22: =Input!AJ102 -> 10.65609271 | AK22: =Input!AK102 -> 10.57726167 | AL22: =Input!AL102 -> 10.36376818 | AM22: =Input!AM102 -> 10.18708382 | AN22: =Input!AN102 -> 9.864297296 | AO22: =Input!AO102 -> 9.584600354 | AP22: =Input!AP102 -> 9.545373434 | AQ22: =Input!AQ102 -> 9.423228223
E23: Non-variant allowed controllable opex | G23: £m 12/13 prices | AJ23: =Input!AJ103 -> 99.60226431 | AK23: =Input!AK103 -> 98.87046673 | AL23: =Input!AL103 -> 99.82435851 | AM23: =Input!AM103 -> 100.1266088 | AN23: =Input!AN103 -> 99.88550221 | AO23: =Input!AO103 -> 98.46051156 | AP23: =Input!AP103 -> 98.61402505 | AQ23: =Input!AQ103 -> 96.98953265
D25: Variant
D26: Note: Licence conditions may allow for non-baseline allowances to be granted. These are added to the baseline to generate the allowed sub-categories and thereby the overall allowed totex.
E28: Variant allowed load related capex | G28: =Input!G242 -> £m 12/13 prices | AJ28: =Input!AJ242 -> 29.99850916 | AK28: =Input!AK242 -> 36.86349545 | AL28: =Input!AL242 -> 34.78036234 | AM28: =Input!AM242 -> 38.39580664 | AN28: =Input!AN242 -> 18.05796869 | AO28: =Input!AO242 -> 27.16566131 | AP28: =Input!AP242 -> 38.32808402 | AQ28: =Input!AQ242 -> 33.44583757
E29: Variant allowed non-load related capex - asset replacement | G29: =Input!G243 -> £m 12/13 prices | AJ29: =Input!AJ243 -> 0 | AK29: =Input!AK243 -> 0 | AL29: =Input!AL243 -> 0 | AM29: =Input!AM243 -> 0 | AN29: =Input!AN243 -> 0 | AO29: =Input!AO243 -> 0 | AP29: =Input!AP243 -> 0 | AQ29: =Input!AQ243 -> 0
E30: Variant allowed non-load related capex - other | G30: =Input!G244 -> £m 12/13 prices | AJ30: =Input!AJ244 -> 0 | AK30: =Input!AK244 -> 0 | AL30: =Input!AL244 -> 0 | AM30: =Input!AM244 -> 0 | AN30: =Input!AN244 -> 0 | AO30: =Input!AO244 -> 0 | AP30: =Input!AP244 -> 0 | AQ30: =Input!AQ244 -> 0
E31: Variant allowed faults | G31: =Input!G245 -> £m 12/13 prices | AJ31: =Input!AJ245 -> 0 | AK31: =Input!AK245 -> 0 | AL31: =Input!AL245 -> 0 | AM31: =Input!AM245 -> 0 | AN31: =Input!AN245 -> 0 | AO31: =Input!AO245 -> 0 | AP31: =Input!AP245 -> 0 | AQ31: =Input!AQ245 -> 0
E32: Variant allowed tree cutting | G32: =Input!G246 -> £m 12/13 prices | AJ32: =Input!AJ246 -> 0 | AK32: =Input!AK246 -> 0 | AL32: =Input!AL246 -> 0 | AM32: =Input!AM246 -> 0 | AN32: =Input!AN246 -> 0 | AO32: =Input!AO246 -> 0 | AP32: =Input!AP246 -> 0 | AQ32: =Input!AQ246 -> 0
E33: Variant allowed 100% ‘revenue pool’ expenditure | G33: =Input!G247 -> £m 12/13 prices | AJ33: =Input!AJ247 -> 0.3162789138 | AK33: =Input!AK247 -> 0.4778988241 | AL33: =Input!AL247 -> 0.413536889 | AM33: =Input!AM247 -> 0.4663003957 | AN33: =Input!AN247 -> 0.3537467271 | AO33: =Input!AO247 -> 0.425370003 | AP33: =Input!AP247 -> 0.4123449107 | AQ33: =Input!AQ247 -> 0.3634970191
E34: Variant allowed controllable opex | G34: =Input!G248 -> £m 12/13 prices | AJ34: =Input!AJ248 -> 1.20552403 | AK34: =Input!AK248 -> 2.297594445 | AL34: =Input!AL248 -> 3.276494532 | AM34: =Input!AM248 -> 3.637011667 | AN34: =Input!AN248 -> 3.445166659 | AO34: =Input!AO248 -> 2.40603493 | AP34: =Input!AP248 -> 0 | AQ34: =Input!AQ248 -> 0
D36: Allowance
D37: Note: "Allowed totex" is exported to be used in the TIM calculation. The allowed totex sub-categories are used below to create forecast actuals for the tax calculation and the TIM calculation when actuals are not yet available.
E39: Allowed load related capex | G39: £m 12/13 prices | AJ39: =AJ17 + AJ28 -> 29.99850916 | AK39: 36.86349545 | AL39: 34.78036234 | AM39: 38.39580664 | AN39: 18.05796869 | AO39: 27.16566131 | AP39: 38.32808402 | AQ39: 33.44583757
E40: Allowed non-load related capex - asset replacement | G40: £m 12/13 prices | AJ40: 98.54428553 | AK40: 98.10132146 | AL40: 94.12784613 | AM40: 90.32826066 | AN40: 85.80297784 | AO40: 80.78402175 | AP40: 79.46528115 | AQ40: 81.21298545
E41: Allowed non-load related capex - other | G41: £m 12/13 prices | AJ41: 18.28381296 | AK41: 18.88204475 | AL41: 15.91201473 | AM41: 16.84892395 | AN41: 12.38632703 | AO41: 11.81186202 | AP41: 11.486702 | AQ41: 10.92631677
E42: Allowed faults | G42: £m 12/13 prices | AJ42: 33.07547295 | AK42: 32.64756665 | AL42: 32.40972392 | AM42: 31.95955749 | AN42: 31.72850049 | AO42: 31.33750833 | AP42: 32.26907557 | AQ42: 30.71634812
E43: Allowed tree cutting | G43: £m 12/13 prices | AJ43: 14.4646671 | AK43: 13.78176026 | AL43: 13.29126159 | AM43: 12.01613759 | AN43: 11.8385551 | AO43: 11.76402734 | AP43: 11.58342134 | AQ43: 11.40619036
E44: Allowed 100% ‘revenue pool’ expenditure | G44: £m 12/13 prices | AJ44: 10.97237163 | AK44: 11.0551605 | AL44: 10.77730507 | AM44: 10.65338422 | AN44: 10.21804402 | AO44: 10.00997036 | AP44: 9.957718345 | AQ44: 9.786725242
E45: Allowed controllable opex | G45: £m 12/13 prices | AJ45: 100.8077883 | AK45: 101.1680612 | AL45: 103.100853 | AM45: 103.7636204 | AN45: 103.3306689 | AO45: 100.8665465 | AP45: 98.61402505 | AQ45: 96.98953265
E46: Allowed totex | G46: £m 12/13 prices | AJ46: =SUM(AJ39:AJ45) -> 306.1469077 | AK46: 312.4994103 | AL46: 304.3993668 | AM46: 303.965691 | AN46: 273.363042 | AO46: 273.7395976 | AP46: 281.7043075 | AQ46: 274.4839362
C48: Actual totex
D50: Source of actuals
D51: Note: The model assumes that there is a time lag from year t until actual expenditure data becomes available for the model. After the lag, actual expenditure inputs are used. Up to that point the model generates a forecast actual expenditure.
D52: When required in the model, forecasts assume that actuals are equal to their corresponding allowance.
D53: In a year where actual totex is assumed to be available, values must be inputted to the model as it will not generate a forecast and the empty input cell will be read as an actual spend of zero.
E55: Years from t until normal reporting of actual costs | G55: years | I55: =Input!I64 -> 2
E56: Input actuals used | G56: text | AJ56: =YEAR($I$7) >= YEAR(AJ$7) + $I55 -> FALSE | AK56: FALSE | AL56: FALSE | AM56: FALSE | AN56: FALSE | AO56: FALSE | AP56: FALSE | AQ56: FALSE
E57: Forecast actuals generated from allowances | G57: text | AJ57: =YEAR($I$7) < YEAR(AJ$7) + $I55 -> TRUE | AK57: TRUE | AL57: TRUE | AM57: TRUE | AN57: TRUE | AO57: TRUE | AP57: TRUE | AQ57: TRUE
D59: Actual totex from cost reporting processes and final proposals
E61: Actual load related capex | G61: £m 12/13 prices | AJ61: =IF(AJ$56, Input!AJ252, 0) -> 0 | AK61: =IF(AK$56, Input!AK252, 0) -> 0 | AL61: =IF(AL$56, Input!AL252, 0) -> 0 | AM61: =IF(AM$56, Input!AM252, 0) -> 0 | AN61: =IF(AN$56, Input!AN252, 0) -> 0 | AO61: =IF(AO$56, Input!AO252, 0) -> 0 | AP61: =IF(AP$56, Input!AP252, 0) -> 0 | AQ61: =IF(AQ$56, Input!AQ252, 0) -> 0
E62: Actual non-load related capex - asset replacement | G62: £m 12/13 prices | AJ62: =IF(AJ$56, Input!AJ253, 0) -> 0 | AK62: =IF(AK$56, Input!AK253, 0) -> 0 | AL62: =IF(AL$56, Input!AL253, 0) -> 0 | AM62: =IF(AM$56, Input!AM253, 0) -> 0 | AN62: =IF(AN$56, Input!AN253, 0) -> 0 | AO62: =IF(AO$56, Input!AO253, 0) -> 0 | AP62: =IF(AP$56, Input!AP253, 0) -> 0 | AQ62: =IF(AQ$56, Input!AQ253, 0) -> 0
E63: Actual non-load related capex - other | G63: £m 12/13 prices | AJ63: =IF(AJ$56, Input!AJ254, 0) -> 0 | AK63: =IF(AK$56, Input!AK254, 0) -> 0 | AL63: =IF(AL$56, Input!AL254, 0) -> 0 | AM63: =IF(AM$56, Input!AM254, 0) -> 0 | AN63: =IF(AN$56, Input!AN254, 0) -> 0 | AO63: =IF(AO$56, Input!AO254, 0) -> 0 | AP63: =IF(AP$56, Input!AP254, 0) -> 0 | AQ63: =IF(AQ$56, Input!AQ254, 0) -> 0
E64: Actual faults | G64: £m 12/13 prices | AJ64: =IF(AJ$56, Input!AJ255, 0) -> 0 | AK64: =IF(AK$56, Input!AK255, 0) -> 0 | AL64: =IF(AL$56, Input!AL255, 0) -> 0 | AM64: =IF(AM$56, Input!AM255, 0) -> 0 | AN64: =IF(AN$56, Input!AN255, 0) -> 0 | AO64: =IF(AO$56, Input!AO255, 0) -> 0 | AP64: =IF(AP$56, Input!AP255, 0) -> 0 | AQ64: =IF(AQ$56, Input!AQ255, 0) -> 0
E65: Actual tree cutting | G65: £m 12/13 prices | AJ65: =IF(AJ$56, Input!AJ256, 0) -> 0 | AK65: =IF(AK$56, Input!AK256, 0) -> 0 | AL65: =IF(AL$56, Input!AL256, 0) -> 0 | AM65: =IF(AM$56, Input!AM256, 0) -> 0 | AN65: =IF(AN$56, Input!AN256, 0) -> 0 | AO65: =IF(AO$56, Input!AO256, 0) -> 0 | AP65: =IF(AP$56, Input!AP256, 0) -> 0 | AQ65: =IF(AQ$56, Input!AQ256, 0) -> 0
E66: Actual 100% ‘revenue pool’ expenditure | G66: £m 12/13 prices | AJ66: =IF(AJ$56, Input!AJ257, 0) -> 0 | AK66: =IF(AK$56, Input!AK257, 0) -> 0 | AL66: =IF(AL$56, Input!AL257, 0) -> 0 | AM66: =IF(AM$56, Input!AM257, 0) -> 0 | AN66: =IF(AN$56, Input!AN257, 0) -> 0 | AO66: =IF(AO$56, Input!AO257, 0) -> 0 | AP66: =IF(AP$56, Input!AP257, 0) -> 0 | AQ66: =IF(AQ$56, Input!AQ257, 0) -> 0
E67: Actual controllable opex | G67: £m 12/13 prices | AJ67: =IF(AJ$56, Input!AJ258, 0) -> 0 | AK67: =IF(AK$56, Input!AK258, 0) -> 0 | AL67: =IF(AL$56, Input!AL258, 0) -> 0 | AM67: =IF(AM$56, Input!AM258, 0) -> 0 | AN67: =IF(AN$56, Input!AN258, 0) -> 0 | AO67: =IF(AO$56, Input!AO258, 0) -> 0 | AP67: =IF(AP$56, Input!AP258, 0) -> 0 | AQ67: =IF(AQ$56, Input!AQ258, 0) -> 0
D70: Forecast totex from new allowances
E72: Forecast actual load related capex | G72: £m 12/13 prices | AJ72: =IF(AJ$57, AJ39, 0) -> 29.99850916 | AK72: 36.86349545 | AL72: 34.78036234 | AM72: 38.39580664 | AN72: 18.05796869 | AO72: 27.16566131 | AP72: 38.32808402 | AQ72: 33.44583757
E73: Forecast actual non-load related capex - asset replacement | G73: £m 12/13 prices | AJ73: 98.54428553 | AK73: 98.10132146 | AL73: 94.12784613 | AM73: 90.32826066 | AN73: 85.80297784 | AO73: 80.78402175 | AP73: 79.46528115 | AQ73: 81.21298545
E74: Forecast actual non-load related capex - other | G74: £m 12/13 prices | AJ74: 18.28381296 | AK74: 18.88204475 | AL74: 15.91201473 | AM74: 16.84892395 | AN74: 12.38632703 | AO74: 11.81186202 | AP74: 11.486702 | AQ74: 10.92631677
E75: Forecast actual faults | G75: £m 12/13 prices | AJ75: 33.07547295 | AK75: 32.64756665 | AL75: 32.40972392 | AM75: 31.95955749 | AN75: 31.72850049 | AO75: 31.33750833 | AP75: 32.26907557 | AQ75: 30.71634812
E76: Forecast actual tree cutting | G76: £m 12/13 prices | AJ76: =IF(AJ$57, AJ43, 0) -> 14.4646671 | AK76: =IF(AK$57, AK43, 0) -> 13.78176026 | AL76: 13.29126159 | AM76: 12.01613759 | AN76: 11.8385551 | AO76: 11.76402734 | AP76: 11.58342134 | AQ76: 11.40619036
E77: Forecast actual 100% ‘revenue pool’ expenditure | G77: £m 12/13 prices | AJ77: =IF(AJ$57, AJ44, 0) -> 10.97237163 | AK77: =IF(AK$57, AK44, 0) -> 11.0551605 | AL77: 10.77730507 | AM77: 10.65338422 | AN77: 10.21804402 | AO77: 10.00997036 | AP77: 9.957718345 | AQ77: 9.786725242
E78: Forecast actual controllable opex | G78: £m 12/13 prices | AJ78: =IF(AJ$57, AJ45, 0) -> 100.8077883 | AK78: 101.1680612 | AL78: 103.100853 | AM78: 103.7636204 | AN78: 103.3306689 | AO78: 100.8665465 | AP78: 98.61402505 | AQ78: 96.98953265
D80: Totex applied
D81: Note: Actuals are exported both to identify performance against the allowance and to generate writing down allowances used in the tax calculation.
E83: Actual load related capex | G83: £m 12/13 prices | AJ83: =AJ61 + AJ72 -> 29.99850916 | AK83: 36.86349545 | AL83: 34.78036234 | AM83: 38.39580664 | AN83: 18.05796869 | AO83: 27.16566131 | AP83: 38.32808402 | AQ83: 33.44583757
E84: Actual non-load related capex - asset replacement | G84: £m 12/13 prices | AJ84: 98.54428553 | AK84: 98.10132146 | AL84: 94.12784613 | AM84: 90.32826066 | AN84: 85.80297784 | AO84: 80.78402175 | AP84: 79.46528115 | AQ84: 81.21298545
E85: Actual non-load related capex - other | G85: £m 12/13 prices | AJ85: 18.28381296 | AK85: 18.88204475 | AL85: 15.91201473 | AM85: 16.84892395 | AN85: 12.38632703 | AO85: 11.81186202 | AP85: 11.486702 | AQ85: 10.92631677
E86: Actual faults | G86: £m 12/13 prices | AJ86: 33.07547295 | AK86: 32.64756665 | AL86: 32.40972392 | AM86: 31.95955749 | AN86: 31.72850049 | AO86: 31.33750833 | AP86: 32.26907557 | AQ86: 30.71634812
E87: Actual tree cutting | G87: £m 12/13 prices | AJ87: 14.4646671 | AK87: 13.78176026 | AL87: 13.29126159 | AM87: 12.01613759 | AN87: 11.8385551 | AO87: 11.76402734 | AP87: 11.58342134 | AQ87: 11.40619036
E88: Actual 100% ‘revenue pool’ expenditure | G88: £m 12/13 prices | AJ88: 10.97237163 | AK88: 11.0551605 | AL88: 10.77730507 | AM88: 10.65338422 | AN88: 10.21804402 | AO88: 10.00997036 | AP88: 9.957718345 | AQ88: 9.786725242
E89: Actual controllable opex | G89: £m 12/13 prices | AJ89: 100.8077883 | AK89: 101.1680612 | AL89: 103.100853 | AM89: 103.7636204 | AN89: 103.3306689 | AO89: 100.8665465 | AP89: 98.61402505 | AQ89: 96.98953265
E90: Actual totex | G90: £m 12/13 prices | AJ90: =SUM(AJ83:AJ89) -> 306.1469077 | AK90: 312.4994103 | AL90: 304.3993668 | AM90: 303.965691 | AN90: 273.363042 | AO90: 273.7395976 | AP90: 281.7043075 | AQ90: 274.4839362
B92: End of sheet

Sheet TIM
A1: Totex Incentive Mechanism (TIM)
B2: =UserInterface!G17 -> SSES
E6: Parameter | G6: Units | I6: Constant | AJ6: Annual values
E7: PCFM year ending | I7: =UserInterface!$G$10 -> 2016-03-31 | K7: 1991-03-31 | L7: 1992-03-31 | M7: 1993-03-31 | N7: 1994-03-31 | O7: 1995-03-31 | P7: 1996-03-31 | Q7: 1997-03-31 | R7: 1998-03-31 | S7: 1999-03-31 | T7: 2000-03-31 | U7: 2001-03-31 | V7: 2002-03-31 | W7: 2003-03-31 | X7: 2004-03-31 | Y7: 2005-03-31 | Z7: 2006-03-31 | AA7: 2007-03-31 | AB7: 2008-03-31 | AC7: 2009-03-31 | AD7: 2010-03-31 | AE7: 2011-03-31 | AF7: 2012-03-31 | AG7: 2013-03-31 | AH7: 2014-03-31 | AI7: 2015-03-31 | AJ7: 2016-03-31 | AK7: 2017-03-31 | AL7: 2018-03-31 | AM7: 2019-03-31 | AN7: 2020-03-31 | AO7: 2021-03-31 | AP7: 2022-03-31 | AQ7: 2023-03-31
B9: Efficiency incentive
C11: Incentive strength
E13: Incentive strength | G13: % | I13: =Input!I70 -> 0.5647137527
C15: Additional income
E17: Ofgem view | G17: % | I17: =Input!I72 -> 0.75
E18: Operator view | G18: % | I18: =Input!I73 -> 0.25
E20: Ofgem view of group price control totex | G20: £m 12/13 prices | I20: =Input!I78 -> 3395.805907
E21: Group Finance Totex Adjustments (DRS8/Disposals) | G21: £m 12/13 prices | I21: =Input!$I$492 -> -9.35292
E22: Adjusted Ofgem View of Group Totex | G22: £m 12/13 prices | I22: =SUM(I20:I21) -> 3386.452987
E24: Additional income % | G24: % | I24: =Input!I68 -> 0.00120122744
E26: Additional income at group level | G26: £m 12/13 prices | I26: =I22*I24 -> 4.067900252
E28: Forecast licensee totex | G28: £m 12/13 prices | I28: =Input!I75*Input!$I$72+Input!I76*Input!$I$73 -> 2334.462259
E29: Forecast group totex | G29: £m 12/13 prices | I29: =Input!I78*I17 + Input!I79*I18 -> 3455.717872
E30: Percentage of group totex at licensee level | G30: % | I30: =I28 / I29 -> 0.6755361246
B32: Efficiency incentive
C34: Post-TIM overspend (underspend)
C35: Note: Totex overspend (underspend) is identified and subject to the "efficiency incentive rate."
D37: Totex
E39: Actual totex | G39: £m 12/13 prices | AJ39: =Totex!AJ90 -> 306.1469077 | AK39: =Totex!AK90 -> 312.4994103 | AL39: =Totex!AL90 -> 304.3993668 | AM39: =Totex!AM90 -> 303.965691 | AN39: =Totex!AN90 -> 273.363042 | AO39: =Totex!AO90 -> 273.7395976 | AP39: =Totex!AP90 -> 281.7043075 | AQ39: =Totex!AQ90 -> 274.4839362
E40: Less allowed totex | G40: £m 12/13 prices | AJ40: =-Totex!AJ46 -> -306.1469077 | AK40: =-Totex!AK46 -> -312.4994103 | AL40: =-Totex!AL46 -> -304.3993668 | AM40: =-Totex!AM46 -> -303.965691 | AN40: =-Totex!AN46 -> -273.363042 | AO40: =-Totex!AO46 -> -273.7395976 | AP40: =-Totex!AP46 -> -281.7043075 | AQ40: =-Totex!AQ46 -> -274.4839362
E41: Pre-TIM totex overspend (underspend) | G41: £m 12/13 prices | AJ41: =SUM(AJ39:AJ40) -> 0 | AK41: 0 | AL41: 0 | AM41: 0 | AN41: 0 | AO41: 0 | AP41: 0 | AQ41: 0
E43: Funding Adjustment Rate (often referred to as 'sharing factor') | G43: % | AJ43: =(1 - $I$13) -> 0.4352862473 | AK43: =(1 - $I$13) -> 0.4352862473 | AL43: 0.4352862473 | AM43: 0.4352862473 | AN43: 0.4352862473 | AO43: 0.4352862473 | AP43: 0.4352862473 | AQ43: 0.4352862473
E45: Post-TIM totex overspend (underspend) | G45: £m 12/13 prices | AJ45: =AJ$43 * AJ41 -> 0 | AK45: =AK$43 * AK41 -> 0 | AL45: =AL$43 * AL41 -> 0 | AM45: 0 | AN45: 0 | AO45: 0 | AP45: 0 | AQ45: 0
C47: Post-TIM totex
C48: Note: "Post-TIM overspend (underspend)" is added to the allowed totex value to give the Post-TIM totex allowance to be split into fast and slow money.
D50: Totex excluding 'non-load related capex - other'
E52: Allowed totex | G52: £m 12/13 prices | AJ52: =-AJ40 -> 306.1469077 | AK52: =-AK40 -> 312.4994103 | AL52: 304.3993668 | AM52: 303.965691 | AN52: 273.363042 | AO52: 273.7395976 | AP52: 281.7043075 | AQ52: 274.4839362
E53: Post-TIM totex overspend (underspend) | G53: £m 12/13 prices | AJ53: =AJ45 -> 0 | AK53: 0 | AL53: 0 | AM53: 0 | AN53: 0 | AO53: 0 | AP53: 0 | AQ53: 0
E54: Post-TIM totex | G54: £m 12/13 prices | AJ54: =SUM(AJ52:AJ53) -> 306.1469077 | AK54: 312.4994103 | AL54: 304.3993668 | AM54: 303.965691 | AN54: 273.363042 | AO54: 273.7395976 | AP54: 281.7043075 | AQ54: 274.4839362
B56: Capitalisation
B57: Note: Post-TIM totex are allocated into "fast" and "slow" elements based on a pre-set percentage split:
B58: - "fast money " is exported to the "Revenue" sheet where it is included as an element of "recalculated base revenue;" and
B59: - "slow money " is exported to the "Depn" sheet where it is added to RAV. Slow money is recovered over the life of the RAV through regulatory depreciation and return allowances.
C61: Separate capitalisation
D63: Totex excluding 'non-load related capex - other'
E65: Post-TIM totex | G65: £m 12/13 prices | AJ65: =AJ54 -> 306.1469077 | AK65: 312.4994103 | AL65: 304.3993668 | AM65: 303.965691 | AN65: 273.363042 | AO65: 273.7395976 | AP65: 281.7043075 | AQ65: 274.4839362
E66: Capitalised share of totex | G66: % | AJ66: =Input!AJ66 -> 0.7 | AK66: =Input!AK66 -> 0.7 | AL66: =Input!AL66 -> 0.7 | AM66: =Input!AM66 -> 0.7 | AN66: =Input!AN66 -> 0.7 | AO66: =Input!AO66 -> 0.7 | AP66: =Input!AP66 -> 0.7 | AQ66: =Input!AQ66 -> 0.7
E67: Totex fast pot expenditure | G67: £m 12/13 prices | AJ67: =AJ65-AJ68 -> 91.8440723 | AK67: 93.74982308 | AL67: 91.31981004 | AM67: 91.18970729 | AN67: 82.00891261 | AO67: 82.12187928 | AP67: 84.51129224 | AQ67: 82.34518085
E68: Totex slow pot expenditure | G68: £m 12/13 prices | AJ68: =AJ65 * AJ66 -> 214.3028354 | AK68: =AK65 * AK66 -> 218.7495872 | AL68: 213.0795568 | AM68: 212.7759837 | AN68: 191.3541294 | AO68: 191.6177183 | AP68: 197.1930152 | AQ68: 192.1387553
C70: Totex
E72: Fast pot expenditure | G72: £m 12/13 prices | AJ72: =AJ67 -> 91.8440723 | AK72: =AK67 -> 93.74982308 | AL72: 91.31981004 | AM72: 91.18970729 | AN72: 82.00891261 | AO72: 82.12187928 | AP72: 84.51129224 | AQ72: 82.34518085
E74: Slow pot expenditure | G74: £m 12/13 prices | AJ74: =AJ68 -> 214.3028354 | AK74: =AK68 -> 218.7495872 | AL74: 213.0795568 | AM74: 212.7759837 | AN74: 191.3541294 | AO74: 191.6177183 | AP74: 197.1930152 | AQ74: 192.1387553
B76: Additional income
B77: Note: The additional income lump sum is recovered across the price control and is matched to the profile of allowed totex set at final proposals.
E79: Additional income | G79: £m 12/13 prices | I79: =I26*I30 -> 2.748013571
E81: Original allowed totex (set at final proposals) | G81: £m 12/13 prices | AJ81: =Input!AJ490 -> 305.9157047 | AK81: =Input!AK490 -> 311.1679065 | AL81: =Input!AL490 -> 302.4705469 | AM81: =Input!AM490 -> 301.2627037 | AN81: =Input!AN490 -> 270.6262892 | AO81: =Input!AO490 -> 269.4932835 | AP81: =Input!AP490 -> 275.6740548 | AQ81: =Input!AQ490 -> 267.6598989
E82: Total allowed totex in price control (set at final proposals) | G82: £m 12/13 prices | I82: =SUM($AJ81:$AQ81) -> 2304.270388
E84: Share of additional income allowed in year | G84: % | AJ84: =AJ81 / $I82 -> 0.1327603333 | AK84: 0.1350396673 | AL84: 0.1312652146 | AM84: 0.1307410386 | AN84: 0.117445544 | AO84: 0.1169538457 | AP84: 0.1196361574 | AQ84: 0.1161581992
E86: Additional income | G86: £m 12/13 prices | AJ86: =($I79 * AJ84) -> 0.3648271976 | AK86: =($I79 * AK84) -> 0.3710908384 | AL86: 0.3607185911 | AM86: 0.3592781484 | AN86: 0.3227419488 | AO86: 0.3213907553 | AP86: 0.3287617841 | AQ86: 0.3192043079
B88: End of sheet

Sheet DARTs
A1: Direct Allowed Revenue Terms (DARTs)
B2: =UserInterface!G17 -> SSES
E6: Parameter | G6: Units | I6: Constant | AJ6: Annual values
E7: PCFM year ending | I7: =UserInterface!$G$10 -> 2016-03-31 | K7: 1991-03-31 | L7: 1992-03-31 | M7: 1993-03-31 | N7: 1994-03-31 | O7: 1995-03-31 | P7: 1996-03-31 | Q7: 1997-03-31 | R7: 1998-03-31 | S7: 1999-03-31 | T7: 2000-03-31 | U7: 2001-03-31 | V7: 2002-03-31 | W7: 2003-03-31 | X7: 2004-03-31 | Y7: 2005-03-31 | Z7: 2006-03-31 | AA7: 2007-03-31 | AB7: 2008-03-31 | AC7: 2009-03-31 | AD7: 2010-03-31 | AE7: 2011-03-31 | AF7: 2012-03-31 | AG7: 2013-03-31 | AH7: 2014-03-31 | AI7: 2015-03-31 | AJ7: 2016-03-31 | AK7: 2017-03-31 | AL7: 2018-03-31 | AM7: 2019-03-31 | AN7: 2020-03-31 | AO7: 2021-03-31 | AP7: 2022-03-31 | AQ7: 2023-03-31
B9: Direct Allowed Revenue Terms (DARTs)
B10: Note: DARTs are allowances with minimal processing required in the model as they flow directly from input to revenue.
B11: They do however have different indirect impacts on equity issuance and tax. They are grouped here by their treatment type to aid common treatment of DARTs through the rest of the model.
B12: "Post-tax" allowances can be included in the tax calculation but "Pre-tax" allowances cannot.
B13: "Passthrough-style" allowances are treated as an equal revenue and cost. Therefore they have no net cash flow impact. "Revenue" allowances are just set as a revenue amount with any costs relating to them are dealt with elsewhere.
C15: Base Revenue
D17: No impact on net debt, No Tax Allowance given, no tax paid (as underlying assumption is costs equal income)
E19: Established pension deficit repair | G19: £m 12/13 prices | AJ19: =Input!AJ268 -> 32.22532102 | AK19: =Input!AK268 -> 32.22532102 | AL19: =Input!AL268 -> 32.22532102 | AM19: =Input!AM268 -> 32.22532102 | AN19: =Input!AN268 -> 32.22532102 | AO19: =Input!AO268 -> 32.22532102 | AP19: =Input!AP268 -> 32.22532102 | AQ19: =Input!AQ268 -> 32.22532102
E20: Base Revenue DARTs with no impact on net debt or tax | G20: £m 12/13 prices | AJ20: =SUM(AJ19:AJ19) -> 32.22532102 | AK20: 32.22532102 | AL20: 32.22532102 | AM20: 32.22532102 | AN20: 32.22532102 | AO20: 32.22532102 | AP20: 32.22532102 | AQ20: 32.22532102
D22: Impact net debt, No Tax Allowance given, Tax Paid on net income
E24: Revenue from previous controls | G24: £m 12/13 prices | AJ24: =Input!AJ272+Input!AJ276 -> 4.640753774 | AK24: =Input!AK272+Input!AK276 -> 4.815130097 | AL24: =Input!AL272+Input!AL276 -> 4.996058611 | AM24: =Input!AM272+Input!AM276 -> 5.183785513 | AN24: =Input!AN272+Input!AN276 -> 5.378566254 | AO24: =Input!AO272+Input!AO276 -> 5.580665881 | AP24: =Input!AP272+Input!AP276 -> 5.790359401 | AQ24: =Input!AQ272+Input!AQ276 -> 6.007932156
E25: Other adjustments | G25: £m 12/13 prices | AJ25: =Input!AJ278 -> 0 | AK25: =Input!AK278 -> 0 | AL25: =Input!AL278 -> 0 | AM25: =Input!AM278 -> 0 | AN25: =Input!AN278 -> 0 | AO25: =Input!AO278 -> 0 | AP25: =Input!AP278 -> 0 | AQ25: =Input!AQ278 -> 0
E26: Base Revenue DARTs impacting net debt but not tax | G26: £m 12/13 prices | AJ26: =SUM(AJ24:AJ25) -> 4.640753774 | AK26: =SUM(AK24:AK25) -> 4.815130097 | AL26: 4.996058611 | AM26: 5.183785513 | AN26: 5.378566254 | AO26: 5.580665881 | AP26: 5.790359401 | AQ26: 6.007932156
D28: Impact net debt, Tax Allowance given (and so tax paid on income)
E30: Initial Profile Adjustment | G30: £m 12/13 prices | AJ30: =Input!AJ472 -> -16.92242234 | AK30: =Input!AK472 -> -15.28195267 | AL30: =Input!AL472 -> -12.28238235 | AM30: =Input!AM472 -> -10.40868509 | AN30: =Input!AN472 -> -0.74534648 | AO30: =Input!AO472 -> 1.448259298 | AP30: =Input!AP472 -> 25.55211417 | AQ30: =Input!AQ472 -> 28.85623493
